Workbook

Sheet LDC Info
Z3: 1 | AA3: Algoma Power Inc.
Z4: 2 | AA4: Atikokan Hydro Inc.
Z5: 3 | AA5: Attawapiskat Power Corporation
Z6: 4 | AA6: Bluewater Power Distribution Corporation
Z7: 5 | AA7: Brantford Power Inc.
Z8: 6 | AA8: Burlington Hydro Inc.
Z9: 7 | AA9: Canadian Niagara Power Inc.
Z10: 8 | AA10: Centre Wellington Hydro Ltd.
Z11: 9 | AA11: Chapleau Public Utilities Corporation
Z12: 10 | AA12: COLLUS PowerStream Corp.
Z13: 11 | AA13: Cooperative Hydro Embrun Inc.
D14: Utility Name | E14: Centre Wellington Hydro Ltd. | Z14: 12 | AA14: E.L.K. Energy Inc.
Z15: 13 | AA15: Energy + Inc.
D16: Assigned EB Number | E16: EB-2017-0032 | Z16: 14 | AA16: Enersource Hydro Mississauga Inc.
Z17: 15 | AA17: Entegrus Powerlines Inc.
D18: Name of Contact and Title | E18: Florence Thiessen, Vice President Finance & Regulatory | Z18: 16 | AA18: ENWIN Utilities Ltd.
Z19: 17 | AA19: Erie Thames Powerlines Corporation
D20: Phone Number | E20: 519 843-2900 Ext. 225 | Z20: 18 | AA20: Espanola Regional Hydro Distribution Corporation
Z21: 19 | AA21: Essex Powerlines Corporation
D22: Email Address | E22: thiessen@cwhydro.ca | Z22: 20 | AA22: Festival Hydro Inc.
Z23: 21 | AA23: Fort Albany Power Corporation
D24: Test Year | E24: 2018 | Z24: 22 | AA24: Fort Frances Power Corporation
Z25: 23 | AA25: Greater Sudbury Hydro Inc.
D26: Bridge Year | E26: =IF(ISBLANK(E24), "", E24-1) -> 2017 | Z26: 24 | AA26: Grimsby Power Inc.
Z27: 25 | AA27: Guelph Hydro Electric Systems Inc.
D28: Last Rebasing Year | E28: 2013 | Z28: 26 | AA28: Haldimand County Hydro Inc.
Z29: 27 | AA29: Halton Hills Hydro Inc.
A30: Identify the accounting standard used for the test year | Z30: 28 | AA30: Hearst Power Distribution Company Limited
E31: MIFRS | Z31: 29 | AA31: Horizon Utilities Corporation
Z32: 30 | AA32: Hydro 2000 Inc.
A33: Did you update your depreciation and capitalization policies and reflect the changes in policies in a prior rebasing application? | Z33: 31 | AA33: Hydro Hawkesbury Inc.
E34: Yes | Z34: 32 | AA34: Hydro One Brampton Networks Inc.
Z35: 33 | AA35: Hydro One Networks Inc.
A36: When did you update your actual depreciation and capitalization policies? | Z36: 34 | AA36: Hydro One Networks Inc. - Norfolk
E37: 2001-01-01 | F37: 2013 | Z37: 35 | AA37: Hydro One Remote Communities Inc.
Z38: 36 | AA38: Hydro Ottawa Limited
A39: Identify the year the applicant adopted IFRS for financial reporting purposes | Z39: 37 | AA39: Innpower Corporation
E40: 2015 | Z40: 38 | AA40: Kashechewan Power Corporation
Z41: 39 | AA41: Kenora Hydro Electric Corporation Ltd.
Z42: 40 | AA42: Kingston Hydro Corporation
A43: Are you applying for cost recovery for the test and/or future year(s) for Green Energy initiatives? | Z43: 41 | AA43: Kitchener-Wilmot Hydro Inc.
E44: No | Z44: 42 | AA44: Lakefront Utilities Inc.
Z45: 43 | AA45: Lakeland Power Distribution Ltd.
A46: ="Is " & E14 & " an embedded distributor?" -> Is Centre Wellington Hydro Ltd. an embedded distributor? | E46: Yes | Z46: 44 | AA46: London Hydro Inc.
Z47: 45 | AA47: Midland Power Utility Corporation
Z48: 46 | AA48: Milton Hydro Distribution Inc.
B49: Notes | Z49: 47 | AA49: Newmarket-Tay Power Distribution Ltd.
Z50: 48 | AA50: Niagara Peninsula Energy Inc.
C51: Pale green cells represent input cells. | Z51: 49 | AA51: Niagara-on-the-Lake Hydro Inc.
Z52: 50 | AA52: North Bay Hydro Distribution Limited
C53: Pale blue cells represent drop-down lists. The applicant should select the appropriate item from the drop-down list. | Z53: 51 | AA53: Northern Ontario Wires Inc.
Z54: 52 | AA54: Oakville Hydro Electricity Distribution Inc.
C55: White cells contain fixed values, automatically generated values or formulae. | N55: =IF(LEN($G55)>1, (SUMPRODUCT(--($C$78:$C$1000=$C55),--($A$78:$A$1000=$D55), --($B$78:$B$1000=$B55&"_TOTAL"), $L$78:$L$1000)), "") ->  | O55: =IF(LEN($G55)>1, (SUMPRODUCT(--($C$78:$C$1000=$C55),--($A$78:$A$1000=$D55), --($B$78:$B$1000=$B55&"_TOTAL"), $M$78:$M$1000)), "") ->  | Z55: 53 | AA55: Orangeville Hydro Limited
N56: =IF(LEN($G56)>1, (SUMPRODUCT(--($C$78:$C$1000=$C56),--($A$78:$A$1000=$D56), --($B$78:$B$1000=$B56&"_TOTAL"), $L$78:$L$1000)), "") ->  | O56: =IF(LEN($G56)>1, (SUMPRODUCT(--($C$78:$C$1000=$C56),--($A$78:$A$1000=$D56), --($B$78:$B$1000=$B56&"_TOTAL"), $M$78:$M$1000)), "") ->  | Z56: 54 | AA56: Orillia Power Distribution Corporation
Z57: 55 | AA57: Oshawa PUC Networks Inc.
Z58: 56 | AA58: Ottawa River Power Corporation
Z59: 57 | AA59: Peterborough Distribution Inc.
Z60: 58 | AA60: PowerStream Inc.
Z61: 59 | AA61: PUC Distribution Inc.
Z62: 60 | AA62: Renfrew Hydro Inc.
Z63: 61 | AA63: Rideau St. Lawrence Distribution Inc.
Z64: 62 | AA64: Sioux Lookout Hydro Inc.
Z65: 63 | AA65: St. Thomas Energy Inc.
Z66: 64 | AA66: Thunder Bay Hydro Electricity Distribution Inc.
Z67: 65 | AA67: Tillsonburg Hydro Inc.
Z68: 66 | AA68: Toronto Hydro-Electric System Limited
Z69: 67 | AA69: Veridian Connections Inc.
Z70: 68 | AA70: Wasaga Distribution Inc.
Z71: 69 | AA71: Waterloo North Hydro Inc.
Z72: 70 | AA72: Welland Hydro-Electric System Corp.
Z73: 71 | AA73: Wellington North Power Inc.
Z74: 72 | AA74: West Coast Huron Energy Inc.
Z75: 73 | AA75: Westario Power Inc.
Z76: 74 | AA76: Whitby Hydro Electric Corporation
Z77: 75 | AA77: Woodstock Hydro Services Inc.

Sheet Index
A15: 1 | B15: LDC Information Sheet | E15: 27 | F15: App.2-G: Service Reliability Indicators
A16: 2 | B16: Index | E16: 28 | F16: App.2-H: Other Operating Revenue
A17: 3 | B17: Cost of Service Application Flowchart | E17: 29 | F17: App.2-I: Load Forecast CDM Adjustment Workform
A18: 4 | B18: List of Key References | E18: 30 | F18: App.2-IA: Load Forecast Data Instructions
A19: 5 | B19: App.2-A: List of Requested Approvals | E19: 31 | F19: App.2-IB: Actual and Forecast Load and Customer Data
A20: 6 | B20: App.2-AA: Capital Projects Table | E20: 32 | F20: App.2-JA: OM&A Summary Analysis
A21: 7 | B21: App.2-AB: Capital Expenditures | E21: 33 | F21: App.2-JB: Recoverable OM&A Cost Driver Table
A22: 8 | B22: App. 2-AC: Customer Engagement Worksheet | E22: 34 | F22: App.2-JC: OM&A Programs Table
A23: 9 | B23: App.2-B: General Accounting Instructions | E23: 35 | F23: App.2-K: Employee Costs
A24: 10 | B24: App.2-BA: Fixed Asset Continuity Schedule | E24: 36 | F24: App.2-KA: OPEBs (Other Post-Employment Benefits) Costs
A25: 11 | B25: Appendix 2-BB: Service Life Comparison | E25: 37 | F25: App.2-L: Recoverable OM&A Cost per Customer and per FTE
A26: 12 | B26: App.2-CA: Year 1 Depreciation and Amortization Expense (Old CGAAP) | E26: 38 | F26: App.2-M: Regulatory Costs Schedule
A27: 13 | B27: App.2-CB: Year 1 Depreciation and Amortization Expense (New CGAAP) | E27: 39 | F27: App.2-N: Shared Services and Corporate Cost Allocation
A28: 14 | B28: App.2-CC: Year 2 Depreciation and Amortization Expense (New CGAAP) | E28: 40 | F28: App.2-OA: Capital Structure and Cost of Capital
A29: 15 | B29: App.2-CD: Year 3 Depreciation and Amortization Expense (New CGAAP or MIFRS) | E29: 41 | F29: App.2-OB: Debt Instruments
A30: 16 | B30: App.2-CE: Year 4 Depreciation and Amortization Expense (MIFRS) | E30: 42 | F30: App.2-Q: Cost of Serving Embedded Distributor(s)
A31: 17 | B31: App.2-CF: Year 5 Depreciation and Amortization Expense (MIFRS) | E31: 43 | F31: App.2-R: Loss Factors
A32: 18 | B32: App.2-CG: Year 6 Depreciation and Amortization Expense (Old CGAAP) | E32: 44 | F32: App.2-S: Stranded Meter Treatment
A33: 19 | B33: App.2-CH: Depreciation and Amortization Expense (MIFRS) | E33: 45 | F33: App.2-Y: Transition to MIFRS Summary Impact
A34: 20 | B34: App.2-D: Overhead Expenses | E34: 46 | F34: App.2-YA: One-Time Incremental IFRS Transition Costs
A35: 21 | B35: App.2-EA: Account 1575 PP&E Deferral Account (2015 IFRS Adopters)
A36: 22 | B36: App.2-EB: Account 1576 - Accounting Changes Under CGAAP (2012 Changes)
A37: 23 | B37: App.2-EC: Account 1576 - Accounting Changes Under CGAAP (2013 Changes)
A38: 24 | B38: App.2-FA: Renewable Generation Connection Investment Summary
A39: 25 | B39: App.2-FB: Calculation of Renewable Generation Connection Direct Benefits/Provincial Amount: Renewable Enabling Improvement Investments
A40: 26 | B40: App.2-FC: Calculation of Renewable Generation Connection Direct Benefits/Provincial Amount: Renewable Expansion Investments
A42: Note: | B42: Appendices for the Tariff of Rates and Charges at Current and Proposed Rates, and for the Bill Impacts are now in a separate spreadsheet model. These appendices were formerly 2-Z and 2-W.

Sheet COS Flowchart
B4: Cost of Service Rate Application Schematic
B6: The Cost of Service Rate Application Schematic is a flowchart that is included as a guide for the components of an application. The schematic demonstrates how demand and costs interrelate to derive the revenue requirement and how the revenue requirement is allocated between classes and through fixed/variable splits to derive rates that will be compensatory for the annual revenue requirement, based on the the forecasted demand. There is no form to be filled out; therefore, this Schedule is not required to be filed.

Sheet List of Key References
B3: List of Key References
A5: A list of key references for understanding the Filing Requirements has been embedded in the document below. To access the list of references and associated hyperlinks double-click the icon below.

Sheet App.2-A_Requested_Approvals
G1: File Number: | H1: =EBNUMBER -> EB-2017-0032
G2: Exhibit:
G3: Tab:
G4: Schedule:
G5: Page:
G7: Date:
B9: Appendix 2-A
B10: List of Requested Approvals
B12: The distributor must fill out the following sheet with the complete list of specific approvals requested and relevant section(s) of the legislation must be provided. All approvals, including accounting orders (deferral and variance accounts) new rate classes, revised specific service charges or retail service charges which the applicant is seeking, must be separately identified, as well being clearly documented in the appropriate sections of the application.
B14: Additional requests may be added by copying and pasting blank input rows, as needed.
B16: If additional requests arise, or requested approvals are removed, during the processing of the application, the distributor should update this list.
B18: =CONCATENATE('LDC Info'!E14," is seeking the following approvals in this application:") -> Centre Wellington Hydro Ltd. is seeking the following approvals in this application:
B20: 1 | F20: Approval to charge distribution rates effective January 1, 2018 to recover a service revenue requirement of $3,707,317 which includes a revenue deficiency of $465,817 as detailed in Exhibit 6. The schedule of proposed rates is set out in Exhibit 8.
B22: 2 | F22: Approval of the Distribution System Plan as outlined in Exhibit 2 Section 2.5.2
B24: 3 | F24: Approval of a revised Microfit monthly service charge as outlined in Exhibit 3 and 8.
B26: 4 | F26: Approval to adjust the Retail Transmission Rates – Network and Connection as detailed in Exhibit 8.
B28: 5 | F28: Approval of the proposed loss factors as detailed in Exhibit 8.
B30: 6 | F30: Approval to continue to charge Wholesale Market and Rural Rate Protection Charges approved in the Board Decision and Order in the matter of CWH 2017 Distribution Rates (EB-2016-0062).
B32: 7 | F32: Approval to continue the Specific Service Charges, Retail Service Charges, and Transformer Allowance approved in the Board Decision and Order in the matter of CWH’s 2017 Distribution Rates (EB-2016-0062).
B34: 8 | F34: Approval of the rate riders for a one year disposition of the Group 1 and Group 2 and Other Deferral and Variance Accounts as detailed in Exhibit 9.
B36: 9 | F36: Approval of the transition plan into fully fixed rates for residential customers as outlined in Exhibit 8.
B38: 10
B40: 11
B42: 12
B44: 13
B46: 14
B48: 15

Sheet App.2-AA_Capital Projects
A1: Amended Oct 28, 2017 - added 2013 Board Approved | H1: File Number: | I1: =EBNUMBER -> EB-2017-0032
H2: Exhibit:
H3: Tab:
H4: Schedule:
H5: Page:
H7: Date:
A9: Appendix 2-AA
A10: Capital Projects Table
A13: Projects | B13: 2013 Board Approved | C13: 2013 | D13: 2014 | E13: 2015 | F13: 2016 | G13: 2017 Bridge Year | H13: 2018 Test Year
A14: Reporting Basis | C14: MIFRS | D14: MIFRS | E14: MIFRS | F14: MIFRS | G14: MIFRS | H14: MIFRS
A15: System Access
A16: New Services | B16: 10500 | C16: 24212.1 | D16: 23553.41 | E16: 27248.6 | F16: 47340.88 | G16: 26100 | H16: 30600
A17: New Meter install | E17: 11040.75
A18: Fergus Library | B18: 225000 | C18: 96402.19 | E18: 145536.9
A19: Geo Solar | C19: -172.1
A20: Elora Sewage plant | B20: 95600 | C20: 101041.96
A21: St George Hospital realign | D21: 25026.76
A22: Water Street Widening | F22: 287507.57
A23: Wellington Place Hospital Service | B23: 139900 | G23: 244100
A24: Easements | B24: 4000
A25: Capital Contributions
A26: Water St Customers paying for underground service conversion | F26: -18230.73
A27: New Services | B27: -40900 | C27: -123726.86 | D27: -8643.96 | E27: -9096.25 | F27: -27041.91
A28: Hospital Realignment | D28: -10111.47
A30: Sub-Total | B30: =SUM(B16:B29) -> 434100 | C30: =SUM(C16:C29) -> 97757.29 | D30: =SUM(D16:D29) -> 29824.74 | E30: 174730 | F30: 289575.81 | G30: 270200 | H30: 30600
A31: System Renewal
A32: Annual Pole Replacement | C32: 39679.21 | D32: 20659.07 | E32: 2862.92 | F32: 51617.89 | G32: 89300 | H32: 94500
A33: Transformers | C33: 66685.13 | D33: 4330.38 | E33: 12207.83 | F33: 78568.67 | G33: 80000 | H33: 80000
A34: Rodan Meter Platform | G34: 18000
A35: Argyll St | C35: 57736.68
A36: Tower St Bridge | C36: 78726.07
A37: Beatty Line | B37: 178800 | C37: 150358.72 | D37: 24828.8
A38: GS>50 stock | C38: 1458.6
A39: MS 1 | B39: 1145000 | C39: 1238505.27
A40: MS 1 River crossing | C40: 162337.69
A41: Condo | C41: 43352.21
A42: Irvine Reconstruction | C42: 30031.26
A43: Tower St | C43: 16050.59
A44: Union to Highland | C44: 72997.28 | D44: 60996.35
A45: Perth St: Prince's to Wellington | C45: 35783.29 | D45: 79838.24
A46: Replace #6 Copper wire & insulators | B46: 15600
A47: MS 1Elora | D47: 1925636.4 | E47: 9877.77
A48: Chalmers | D48: 65408.21 | E48: 35045.52
A49: Elora mS1 | D49: 98873.1 | E49: 32714.04
A50: Gartshore M3 | E50: 121676.86
A51: MS3 Fergus | E51: 807551.19
A52: Tower St Concrete Poles | F52: 18068.6
A53: Braeside UG | F53: 47628.64
A54: Melville Poles | E54: 34919.53
A55: Poletran replacement | F55: 215179.65
A56: Gartshore Stn | E56: 43498.28
A57: Mill St | E57: 12635.59
A58: MS 2 Waterloo | F58: 491599.7
A59: MS 4 Gzowski | F59: 691579.69
A60: Station 4 Riser Pole | F60: 59773.19
A61: CWEI Pole, Transformers | G61: 35000
A62: Hill St Conversion | G62: 49300
A63: Hill St Re-routing | G63: 25000
A64: Hill St | G64: 49900
A65: 44kV Tie Re Route | G65: 140200
A66: Brock St Conversion | G66: 22700
A67: St Patrick: Gartshore to Herrick | H67: 85600
A68: St Patrick: Gowrie to Herrick | H68: 103800
A69: St George: Herrick to Gartshore | H69: 103800
A71: Sub-Total | B71: =SUM(B32:B70) -> 1339400 | C71: 1993702 | D71: 2280570.55 | E71: 1112989.53 | F71: 1654016.03 | G71: 509400 | H71: 467700
A72: System Service
A73: Meters | B73: 18400 | D73: 6928.93 | E73: 1915.5 | F73: 22513.16 | G73: 17400 | H73: 41400
A74: Zehrs Wholesale meter
A75: Meter Transfer Smart meters | C75: 1191255.27
A76: Meter New install Res and GS'50 | C76: 13984.88
A77: St David St Bridge UG Addition | H77: 40500
A78: Station Fans - Elora #2, Fergus #4 | H78: 44800
A80: Contrib Capital for meters | C80: -826.13 | D80: -1981.82 | E80: -2138.87 | F80: -1167.32 | G80: 0 | H80: 0
A81: Contrib Capital for CTs PTs | D81: -1663.26 | E81: -2390.03 | F81: -2055.24
A83: Sub-Total | B83: =SUM(B73:B82) -> 18400 | C83: =SUM(C73:C82) -> 1204414.02 | D83: 3283.85 | E83: -2613.4 | F83: 19290.6 | G83: 17400 | H83: 126700
A84: General Plant
A85: Capital Conts Pd Hydro One | D85: 4602.5
A86: Computer Software | B86: 50000 | C86: 171607.43 | D86: =43154.43-16791.36 -> 26363.07 | E86: 68020.08 | F86: 0 | H86: 50000
A87: Building and Fixtures | F87: 73701 | G87: 22000
A88: Building and Fixtures - Cold Storage | G88: 55000
A89: Office Furniture | B89: 5000 | C89: 4295 | D89: 1227.45 | E89: 3294.59 | G89: 18300 | H89: 30000
A90: Computer Hardware | B90: 28500 | C90: 64467.2 | D90: 4801.65 | E90: 71184.04 | F90: 55095.83 | G90: 62500 | H90: 19000
A91: Transportation Equipment | C91: 15150 | D91: 37625.72 | E91: 421051.52 | F91: 33498.31 | G91: 400000 | H91: 130000
A92: Stores Equipment | G92: 5000
A93: Tools, Shop and Garage Equip | B93: 1000 | C93: 7491.42 | D93: 9895.65 | E93: 2357.45 | F93: 5599 | G93: 8800 | H93: 14800
A94: Measurement & Testing Equip | H94: 4500
A95: Power Operated Equipment | E95: 6261.97 | F95: 2020.37
A96: Communication Equipment | C96: 4815 | E96: 13100
A97: Misc Equipment | G97: 9000 | H97: 2000
A98: System Supervisory Equipment
A101: Sub-Total | B101: =SUM(B85:B100) -> 84500 | C101: 267826.05 | D101: 84516.04 | E101: 585269.65 | F101: 169914.51 | G101: 580600 | H101: 250300
A102: Miscellaneous
A103: Total | B103: =SUMPRODUCT(--($A15:$A102="Sub-Total"), B$15:B$102)+B102 -> 1876400 | C103: 3563699.36 | D103: 2398195.18 | E103: 1870375.78 | F103: 2132796.95 | G103: 1377600 | H103: 875300
A104: Less Renewable Generation Facility Assets and Other Non-Rate-Regulated Utility Assets (input as negative) | C104: 0 | D104: 0 | E104: 0 | F104: 0 | G104: 0 | H104: 0
A105: Total | C105: =C103+C104 -> 3563699.36 | D105: 2398195.18 | E105: 1870375.78 | F105: 2132796.95 | G105: 1377600 | H105: 875300
A107: Notes:
A109: 1 Please provide a breakdown of the major components of each capital project undertaken in each year. Please ensure that all projects below the materiality threshold are included in the miscellaneous line. Add more projects as required.
A110: 2 The applicant should group projects appropriately and avoid presentations that result in classification of significant components of the capital budget in the miscellaneous category.

Sheet App.2-AB_Capital Expenditures
S1: File Number: | U1: =EBNUMBER -> EB-2017-0032
S2: Exhibit:
S3: Tab:
A4: AMENDED JUNE 14, 2017 | S4: Schedule:
A5: Amended on October 28 to remove smart meters in 2013 (2-SEC-7) | S5: Page:
S7: Date:
A9: Appendix 2-AB
A10: Table 2 - Capital Expenditure Summary from Chapter 5 Consolidated Distribution System Plan Filing Requirements
A12: First year of Forecast Period: | B12: =TestYear -> 2018
A13: CATEGORY | B13: Historical Period (previous plan1 & actual) | Q13: Forecast Period (planned)
B14: =+E14-1 -> 2013 | E14: =+H14-1 -> 2014 | H14: =+K14-1 -> 2015 | K14: =+N14-1 -> 2016 | N14: =+Q14-1 -> 2017 | Q14: =+B12 -> 2018 | R14: =+Q14+1 -> 2019 | S14: =R14+1 -> 2020 | T14: =S14+1 -> 2021 | U14: =T14+1 -> 2022
B15: Plan | C15: Actual | D15: Var | E15: Plan | F15: Actual | G15: Var | H15: Plan | I15: Actual | J15: Var | K15: Plan | L15: Actual | M15: Var | N15: Plan | O15: Actual2 | P15: Var
B16: $ '000 | D16: % | E16: $ '000 | G16: % | H16: $ '000 | J16: % | K16: $ '000 | M16: % | N16: $ '000 | P16: % | Q16: $ '000
A17: System Access | C17: 98 | D17: =IF(ISERROR((C17-B17)/B17),"--",(C17-B17)/B17) -> -- | F17: 30 | G17: =IF(ISERROR((F17-E17)/E17),"--",(F17-E17)/E17) -> -- | I17: 175 | J17: =IF(ISERROR((I17-H17)/H17),"--",(I17-H17)/H17) -> -- | L17: 290 | M17: =IF(ISERROR((L17-K17)/K17),"--",(L17-K17)/K17) -> -- | N17: 270 | P17: =IF(ISERROR((O17-N17)/N17),"--",(O17-N17)/N17) -> -1 | Q17: 31 | R17: 25 | S17: 25 | T17: 26 | U17: 26
A18: System Renewal | C18: 1994 | D18: -- | F18: 2281 | G18: -- | I18: 1113 | J18: -- | L18: 1654 | M18: -- | N18: 187 | P18: -1 | Q18: 468 | R18: 503 | S18: 527 | T18: 539 | U18: 1228
A19: System Service | C19: =1204-('App.2-AA_Capital Projects'!C75/1000) -> 12.74473 | D19: -- | F19: 3 | G19: -- | I19: -2 | J19: -- | L19: 19 | M19: -- | N19: 17 | P19: -1 | Q19: 127 | R19: 65 | S19: 29 | T19: 29 | U19: 29
A20: General Plant | C20: =268-('App.2-AA_Capital Projects'!C86/1000) -> 96.39257 | D20: -- | F20: 85 | G20: -- | I20: 585 | J20: -- | L20: 170 | M20: -- | N20: 581 | P20: -1 | Q20: 250 | R20: 157 | S20: 393 | T20: 126 | U20: 142
A21: TOTAL EXPENDITURE | B21: 1876 | C21: =SUM(C17:C20) -> 2201.1373 | D21: 0.1733141258 | E21: 2347 | F21: 2399 | G21: 0.02215594376 | H21: 2035 | I21: 1871 | J21: -0.08058968059 | K21: 2051 | L21: 2133 | M21: 0.03998049732 | N21: 1055 | O21: 0 | P21: -1 | Q21: 876 | R21: 750 | S21: 974 | T21: 720 | U21: =SUM(U17:U20) -> 1425
A22: System O&M | B22: 1018 | C22: 1081 | D22: 0.06188605108 | E22: 1037 | F22: 1066 | G22: 0.02796528447 | H22: 1015 | I22: 1110 | J22: 0.09359605911 | K22: 1074 | L22: 1180 | M22: 0.09869646182 | N22: 1198 | P22: =IF(ISERROR((O22-N22)/N22),"--",(O22-N22)/N22) -> -1 | Q22: 1249 | R22: 1280 | S22: 1312 | T22: 1345 | U22: 1379
A24: Notes to the Table:
A25: 1. Historical “previous plan” data is not required unless a plan has previously been filed. However, use the last Board-approved, at least on a Total (Capital) Expenditure basis for the last cost of service rebasing year, and the applicant should include their planned budget in each subsequent historical year up to and including the Bridge Year.
A26: 2. Indicate the number of months of 'actual' data included in the last year of the Historical Period (normally a 'bridge' year): | J26: 0
A28: Explanatory Notes on Variances (complete only if applicable) | W28: .
A29: Notes on shifts in forecast vs. historical budgets by category
A32: Notes on year over year Plan vs. Actual variances for Total Expenditures
A33: CWH did not have a DSP in its 2013 CoS filing therefore only total plan numbers have been provided. The capital budget spending for 2013 was projected to be $1,876,400, and the actual capital expenditures for that year was a total of $3,563,699 or a difference of $1,687,299. The overspending compared to the plan of 2013 was primarily due to the transfer of capital costs associated with the Smart Meter deployment from account 1555-Smart Meter Capital and Recovery Offset variance account into capital in 2013. The amount transferred from account 1555 was split between two categories in the above table. The System Service project in table above for the 2013 actual column is solely the transfer for the meters ($1,204k) and there was $172k of the $268k in the General Plant category for computer software attributed to smart meters.
A35: Notes on Plan vs. Actual variance trends for individual expenditure categories
A36: CWH in the historic years completed extensive work on their distribution stations. Details regarding these can be seen within the DSP provided in this application within Exhibit 2. The stations have all been restored or rebuilt and therefore there is a drop in the trend within "System Renewal" starting in 2017.

Sheet App.2-AC_Customer Engagement
B1: File Number: | C1: =EBNUMBER -> EB-2017-0032
B2: Exhibit:
B3: Tab:
B4: Schedule:
B5: Page:
B7: Date:
A9: Appendix 2-AC
A10: Customer Engagement Activities Summary
A12: Provide a list of customer engagement activities | B12: Provide a list of customer needs and preferences identified through each engagement activity | C12: Actions taken to respond to identified needs and preferences. If no action was taken, explain why.
A13: Paperless Billing | B13: Through survey, phone calls and emails, and front desk discussions customers have shown interest in registering for paperless billing and simplify their billing experience. | C13: Paperless billing is available to all customers. Customers are required to register for an online Customer Connect account and paperless billing to receive emails when their bill is ready. These emails have a short breakdown of the amount owning and date required. This allows customers to conveniently pay their bill, or if they require further details, they are able to log into their online account and download their complete monthly bill.
A14: Billing Inserts | B14: Through calls to our call centre and emails, customers have expressed the desire to be provided with information and details regarding programs and offerings from CWH, IESO and the OEB. Additionally, customers would like to be informed of any other changes that may affect their energy usage or billing. | C14: Billing inserts are continuously created and delivered along with bills to share important information with customers. Inserts are also available at the reception area for customers to take with them after visiting the office.
A15: Radio Advertisements | B15: Customers have shown through survey and emails that they are interested in getting information about various programs that are offered. | C15: Radio advertisements are aired when pertinent information in regards to specific CWH events or program offerings are being delivered.
A16: CDM, including save on energy programs and use of a roving energy manager. | B16: Through the most recent customer satisfaction survey customers place a high priority (level 3) on education about energy conservation. | C16: Marketing save on energy programs through CWH’s online website and newspaper adds. Support staff through roving energy manager to over assistance to customers.
A17: Christmas Lights and spring flowers. | B17: CWH works with the Township on festive projects throughout the year, installs Christmas decorations and lights on downtown street light poles and trees at the Municipal office. | C17: CWH crews install Christmas decorations and lights on downtown St light poles and trees at the Municipal office, and in the spring hang flower baskets on decorative poles and assist with pot placements.
A18: In-Office Customer Engagement | B18: CWH’s office is open to all walk in customers and contractors. | C18: Concerns or just general enquires are answered immediately by appropriate staff.
A19: Children programs | B19: CWH is involved with the community and enjoys working with groups that organize programs for children. | C19: Safe communities day - Wellington County; CWH attends the annual safety day for children in Marden along with local fire departments, emergency services, and numerous other delegates. CWH staff also attends local fundraisers such as a local group that raises funds for playground equipment called Vic Terrace Mighty Machines Show.
A22: Note: Use "ALT-ENTER" to go to the next line within a cell

Sheet App.2-B_Acctg Instructions
A1: General Instructions to MIFRS Appendices
A2: Types of Schedules to File
A4: The purpose of this tab is to provide general instructions. The specific instructions to each appendix are listed in footnotes of each appendix.
A6: The typical applicant is expected to have made capitalization and depreciation policy changes under CGAAP as permitted by the Board on January 1, 2012 or mandated by the Board by January 1, 2013, and adopted IFRS for reporting purposes on January 1, 2015 (transition date January 1, 2014). Some distributors filing for 2017 rates have rebased with these accounting changes reflected in a prior rebasing application. If that is the case, information relating to pre-accounting policy changes is not generally required. The information to be provided by applicants will depend on when the accounting policy changes were made and when they last rebased. In general, applicants should provide the following information in the appendices:
E9: Reflecting Accounting Policy Changes in Current Application | G9: Reflected Accounting Policy Changes in Prior Application3
E10: Accounting Policy Changes in 2012 and Adopted IFRS in 2015 | F10: Accounting Policy Changes in 2013 and Adopted IFRS in 2015 | G10: Adopted IFRS in 2015
A11: Information to be filed in 2017 CoS Application | B11: 2017 | C11: Test | E11: MIFRS | F11: MIFRS | G11: MIFRS
B12: 2016 | C12: Bridge | E12: MIFRS | F12: MIFRS | G12: MIFRS
B13: 2015 | C13: Historical | E13: MIFRS | F13: MIFRS | G13: MIFRS
B14: 2014 | C14: Historical | E14: MIFRS and Revised CGAAP1 | F14: MIFRS and Revised CGAAP1 | G14: MIFRS and Revised CGAAP1
B15: 2013 | C15: Historical | E15: Revised CGAAP | F15: CGAAP and Revised CGAAP2 | G15: Rebased under Revised CGAAP
B16: 2012 | C16: Historical | E16: CGAAP and Revised CGAAP2 | F16: CGAAP | G16: Rebased under Revised CGAAP
B17: Prior | C17: Historicals | E17: Rebased under CGAAP | F17: Rebased under CGAAP | G17: N/A
A19: 1) For the transition year (2014), the applicant may file two appendices, one under Revised CGAAP and one under MIFRS, depending on the materiality of impacts. See the specific instructions under each appendix below for further details.
A20: 2) For applicants that are reflecting accounting policy changes for the first time in a rebasing application, the applicant must file two appendices in the year that the applicant implemented changes to its capitalization and depreciation policies (2012 or 2013), one before and one after the policy changes.
A21: 3) Applicants should provide CGGAP and Revised CGAAP schedules (i.e. as indicated in the first two columns of the above table) to support balances in Account 1576 if the account has yet to be disposed of.
A23: Appendix 2-BA - Fixed Asset Schedule
A25: Applicants are to provide Appendix 2-BA in accordance with the years and corresponding accounting standards noted in the above table to provide a year over year continuity in fixed assets.
A26: For the transition year (2014), the applicant should file two appendices, one under Revised CGAAP and one under MIFRS if the change between Revised CGAAP and MIFRS is material. If the change from the accounting standards is not material, the applicant may choose to only provide one appendix under MIFRS. However, the applicant must also indicate the fixed asset net book value balance under Revised CGAAP, the total dollar value of the change and explain why it is not material.
A30: Regulatory Gross Assets of Property, Plant and Equipment
A32: For an applicant that adopted IFRS on January 1, 2015 for financial reporting purposes, the applicant must establish the continuity of historic cost by using the December 31, 2013 regulatory gross assets of property, plant and equipment as the opening January 1, 2014 regulatory gross assets. The applicant must provide schedules (including Appendix 2-BA, Fixed Asset Continuity Schedule) which must identify the following details to substantiate the continuity of historic cost for regulatory purposes:
A35: · December 31, 2013 regulatory gross assets of property, plant and equipment, by asset class; and
A36: · January 1, 2014 regulatory gross assets of property, plant and equipment, by asset class.
A38: Accumulated Depreciation
A40: For an applicant that adopted IFRS on January 1, 2015 for financial reporting purposes, the applicant must establish the continuity of historic cost by using the December 31, 2013 regulatory accumulated depreciation as the opening January 1, 2014 regulatory accumulated depreciation. The applicant must provide schedules (including Appendix 2-BA, Fixed Asset Continuity Schedule) which must identify the following details to substantiate the continuity of historic cost for regulatory purposes:
A43: · December 31, 2013 regulatory accumulated depreciation, by asset class; and
A44: · January 1, 2014 regulatory accumulated depreciation, by asset class.
A46: Appendix 2-Cx - Depreciation and Amortization
A48: Applicants are to provide Appendix 2-Cx in accordance with the years and corresponding accounting standards listed in the above table.
A49: · | B49: If an applicant is reflecting changes to its depreciation policies for the first time in a rebasing application, the applicant should complete Appendix 2-CA to 2-CG (changes made in 2012) or Appendix 2-CA to 2-CF (changes made in 2013). In this set of appendices, the applicant will need to indicate the year it made the accounting policy changes. The applicant must provide data starting from the year it made changes to its capitalization and depreciation policies.
B52: *Depreciation accounting policy changes were mandated by the Board by January 1, 2013. In general, no further changes to an applicant's depreciation policy (i.e. assets' service lives) are expected after the Board mandated changes by January 1, 2013. The set of Appendix 2-CA to 2-CG assumes this to be the case. If the applicant has made any changes to its depreciation policy subsequent to the Board mandated changes, applicants must identify the change, explain the nature of the change, the reason for the change, quantify the impact of the change, and quantify the depreciation expense before and after the change.
A53: · | B53: If an applicant changed depreciation policies and reflected these changes in a prior rebasing application, the applicant should complete Appendix 2-CH. The applicant must provide data starting from the earlier of 1) all historical years back to its last rebasing; or 2) at least three years of historical actuals, in addition to Bridge Year and Test Year forecasts.
A56: Appendix 2-E - Account 1575, IFRS-CGAAP Transitional PP&E Amounts (2-EA), Account 1576, Accounting Changes Under CGAAP (2-EB, 2-EC)
A58: 1) For an applicant that has a balance in Account 1576 to dispose:
A59: · | B59: If an applicant changed capitalization and depreciation policies effective January 1, 2012, the applicant must complete Appendix 2-EB
A60: · | B60: If an applicant changed capitalization and depreciation policies effective January 1, 2013, the applicant must complete Appendix 2-EC
A62: 2) For an applicant that has a balance in Account 1575 to dispose:
A63: · | B63: The applicant must complete 2-EA
A64: If the applicant did not make any further PP&E accounting policy changes beyond the capitalization and depreciation policy changes as mandated by the Board by January 1, 2013 (i.e. no further changes made on transition to IFRS), the applicant must indicate this and does not need to complete Appendix 2-EA.
A69: Please refer to section 2.12.4 and 2.12.5 of the Filing Requirements for further details.
A71: Appendix 2-Y - Summary of Impacts to Revenue Requirement from Transition to MIFRS
A73: An applicant must provide a summary of the dollar impacts of MIFRS to each component of the revenue requirement (e.g. rate base, operating costs, etc.), including the overall impact on the proposed revenue requirement. Accordingly, the applicant must identify financial differences and resulting revenue requirement impacts arising from the adoption of MIFRS as compared to CGAAP. If the applicant is reflecting the changes in capitalization and depreciation policies for the first time in a rebasing application, then a comparison between MIFRS and CGAAP before the change in accounting policies should be completed. If the applicant changed capitalization and depreciation policies and reflected these changes in a prior rebasing application, then a comparison between MIFRS and CGAAP after the change in accounting policies should be completed.

Sheet App.2-BA_Fixed Asset Cont
L1: File Number: | M1: =EBNUMBER -> EB-2017-0032
A2: Please refer to separate Excel file entitled "Fixed Asset Continuity Schedule." | L2: Exhibit:
L3: Tab:
L4: Schedule:
L5: Page:
L7: Date:
A9: Appendix 2-BA
A10: Fixed Asset Continuity Schedule 1
E12: Accounting Standard | F12: MIFRS
E13: Year
D15: Cost | J15: Accumulated Depreciation
A16: CCA Class 2 | B16: OEB Account 3 | C16: Description 3 | D16: Opening Balance | E16: Additions 4 | F16: Disposals 6 | G16: Closing Balance | I16: Opening Balance | J16: Additions | K16: Disposals 6 | L16: Closing Balance | M16: Net Book Value
A17: 12 | B17: 1611 | C17: Computer Software (Formally known as Account 1925) | G17: =D17+E17+F17 -> 0 | L17: =I17+J17+K17 -> 0 | M17: =G17+L17 -> 0
A18: CEC | B18: 1612 | C18: Land Rights (Formally known as Account 1906) | G18: =D18+E18+F18 -> 0 | L18: =I18+J18+K18 -> 0 | M18: =G18+L18 -> 0
A19: N/A | B19: 1805 | C19: Land | G19: =D19+E19+F19 -> 0 | L19: =I19+J19+K19 -> 0 | M19: =G19+L19 -> 0
A20: 47 | B20: 1808 | C20: Buildings | G20: =D20+E20+F20 -> 0 | L20: =I20+J20+K20 -> 0 | M20: =G20+L20 -> 0
A21: 13 | B21: 1810 | C21: Leasehold Improvements | G21: 0 | L21: 0 | M21: 0
A22: 47 | B22: 1815 | C22: Transformer Station Equipment >50 kV | G22: 0 | L22: 0 | M22: 0
A23: 47 | B23: 1820 | C23: Distribution Station Equipment <50 kV | G23: 0 | L23: 0 | M23: 0
A24: 47 | B24: 1825 | C24: Storage Battery Equipment | G24: 0 | L24: 0 | M24: 0
A25: 47 | B25: 1830 | C25: Poles, Towers & Fixtures | G25: 0 | L25: 0 | M25: 0
A26: 47 | B26: 1835 | C26: Overhead Conductors & Devices | G26: 0 | L26: 0 | M26: 0
A27: 47 | B27: 1840 | C27: Underground Conduit | G27: 0 | L27: 0 | M27: 0
A28: 47 | B28: 1845 | C28: Underground Conductors & Devices | G28: 0 | L28: 0 | M28: 0
A29: 47 | B29: 1850 | C29: Line Transformers | G29: 0 | L29: 0 | M29: 0
A30: 47 | B30: 1855 | C30: Services (Overhead & Underground) | G30: 0 | L30: 0 | M30: 0
A31: 47 | B31: 1860 | C31: Meters | G31: 0 | L31: 0 | M31: 0
A32: 47 | B32: 1860 | C32: Meters (Smart Meters) | G32: 0 | L32: 0 | M32: 0
A33: N/A | B33: 1905 | C33: Land | G33: 0 | L33: 0 | M33: 0
A34: 47 | B34: 1908 | C34: Buildings & Fixtures | G34: 0 | L34: 0 | M34: 0
A35: 13 | B35: 1910 | C35: Leasehold Improvements | G35: 0 | L35: 0 | M35: 0
A36: 8 | B36: 1915 | C36: Office Furniture & Equipment (10 years) | G36: 0 | L36: 0 | M36: 0
A37: 8 | B37: 1915 | C37: Office Furniture & Equipment (5 years) | G37: 0 | L37: 0 | M37: 0
A38: 10 | B38: 1920 | C38: Computer Equipment - Hardware | G38: 0 | L38: 0 | M38: 0
A39: 45 | B39: 1920 | C39: Computer Equip.-Hardware(Post Mar. 22/04) | G39: 0 | L39: 0 | M39: 0
A40: 45.1 | B40: 1920 | C40: Computer Equip.-Hardware(Post Mar. 19/07) | G40: 0 | L40: 0 | M40: 0
A41: 10 | B41: 1930 | C41: Transportation Equipment | G41: 0 | L41: 0 | M41: 0
A42: 8 | B42: 1935 | C42: Stores Equipment | G42: 0 | L42: 0 | M42: 0
A43: 8 | B43: 1940 | C43: Tools, Shop & Garage Equipment | G43: 0 | L43: 0 | M43: 0
A44: 8 | B44: 1945 | C44: Measurement & Testing Equipment | G44: 0 | L44: 0 | M44: 0
A45: 8 | B45: 1950 | C45: Power Operated Equipment | G45: 0 | L45: 0 | M45: 0
A46: 8 | B46: 1955 | C46: Communications Equipment | G46: 0 | L46: 0 | M46: 0
A47: 8 | B47: 1955 | C47: Communication Equipment (Smart Meters) | G47: 0 | L47: 0 | M47: 0
A48: 8 | B48: 1960 | C48: Miscellaneous Equipment | G48: 0 | L48: 0 | M48: 0
A49: 47 | B49: 1970 | C49: Load Management Controls Customer Premises | G49: 0 | L49: 0 | M49: 0
A50: 47 | B50: 1975 | C50: Load Management Controls Utility Premises | G50: 0 | L50: 0 | M50: 0
A51: 47 | B51: 1980 | C51: System Supervisor Equipment | G51: 0 | L51: 0 | M51: 0
A52: 47 | B52: 1985 | C52: Miscellaneous Fixed Assets | G52: 0 | L52: 0 | M52: 0
A53: 47 | B53: 1990 | C53: Other Tangible Property | G53: 0 | L53: 0 | M53: 0
A54: 47 | B54: 1995 | C54: Contributions & Grants | G54: 0 | L54: 0 | M54: 0
A55: 47 | B55: 2440 | C55: Deferred Revenue5
G56: 0 | L56: 0 | M56: 0
C57: Sub-Total | D57: =SUM(D17:D56) -> 0 | E57: =SUM(E17:E56) -> 0 | F57: =SUM(F17:F56) -> 0 | G57: =SUM(G17:G56) -> 0 | I57: =SUM(I17:I56) -> 0 | J57: =SUM(J17:J56) -> 0 | K57: =SUM(K17:K56) -> 0 | L57: =SUM(L17:L56) -> 0 | M57: =SUM(M17:M56) -> 0
C58: Less Socialized Renewable Energy Generation Investments (input as negative) | G58: =D58+E58+F58 -> 0 | L58: =I58+J58+K58 -> 0 | M58: =G58+L58 -> 0
C59: Less Other Non Rate-Regulated Utility Assets (input as negative) | G59: 0 | L59: =I59+J59+K59 -> 0 | M59: 0
C60: Total PP&E | D60: =SUM(D57:D59) -> 0 | E60: =SUM(E57:E59) -> 0 | F60: =SUM(F57:F59) -> 0 | G60: =SUM(G57:G59) -> 0 | I60: =SUM(I57:I59) -> 0 | J60: =SUM(J57:J59) -> 0 | K60: =SUM(K57:K59) -> 0 | L60: =SUM(L57:L59) -> 0 | M60: =SUM(M57:M59) -> 0
C61: Depreciation Expense adj. from gain or loss on the retirement of assets (pool of like assets), if applicable6
C62: Total | J62: =J60+J61 -> 0
I64: Less: Fully Allocated Depreciation
A65: 10 | C65: Transportation | I65: Transportation
A66: 8 | C66: Stores Equipment | I66: Stores Equipment
I67: Net Depreciation | K67: =J62-K65-K66 -> 0
A69: Notes:
A71: 1 | B71: Tables in the format outlined above covering all fixed asset accounts should be submitted for the Test Year, Bridge Year and all relevant historical years. At a minimum , the applicant must provide data for the earlier of: 1) all historical years back to its last rebasing; or 2) at least three years of historical actuals, in addition to Bridge Year and Test Year forecasts.
A74: 2 | B74: The "CCA Class" for fixed assets should agree with the CCA Class used for tax purposes in Tax Returns. Fixed Assets sub-components may be used where the underlying asset components are classified under multiple CCA Classes for tax purposes. If an applicant uses any different classes from those shown in the table, an explanation should be provided. (also see note 3).
A77: 3 | B77: The table may need to be customized for a utility's asset categories or for any new asset accounts announced or authorized by the Board.
A79: 4 | B79: The additions in column (E) must not include construction work in progress (CWIP).
A81: 5 | B81: Effective on the date of IFRS adoption, customer contributions will no longer be recorded in Account 1995 Contributions & Grants, but will be recorded in Account 2440, Deferred Revenues.
A83: 6 | B83: The applicant must ensure that all asset disposals have been clearly identified in the Chapter 2 Appendices for all historic, bridge and test years. Where a distributor for general financial reporting purposes under IFRS has accounted for the amount of gain or loss on the retirement of assets in a pool of like assets as a charge or credit to income, for reporting and rate application filings, the distributor shall reclassify such gains and losses as depreciation expense, and disclose the amount separately.

Sheet Appendix 2-BB Service Life
N1: File Number: | P1: 0
A2: Please refer to separate Excel file entitled "Fixed Asset Continuity Schedule." | N2: Exhibit:
N3: Tab:
N4: Schedule:
N5: Page:
N7: Date:
A9: Appendix 2-BB
A10: Service Life Comparison
A11: Table F-1 from Kinetrics Report1
C15: Asset Details | F15: Useful Life | J15: USoA Account Number | K15: USoA Account Description | L15: Current | N15: Proposed | P15: Outside Range of Min, Max TUL?
A16: Parent* | B16: # | C16: Category| Component | Type | F16: MIN UL | G16: TUL | H16: MAX UL | L16: Years | M16: Rate | N16: Years | O16: Rate | P16: Below Min TUL | Q16: Above Max TUL
A17: OH | B17: 1 | C17: Fully Dressed Wood Poles | D17: Overall | F17: 35 | G17: 45 | H17: 75 | M17: =IF(ISERROR(1/L17), "", 1/L17) ->  | O17: =IF(ISERROR(1/N17), "", 1/N17) ->  | P17: =IF(ISBLANK(N17),"",IF(N17<F17,"Yes","No")) ->  | Q17: =IF(ISBLANK(N17),"",IF(N17>H17,"Yes","No")) -> 
D18: Cross Arm | E18: Wood | F18: 20 | G18: 40 | H18: 55 | M18: =IF(ISERROR(1/L18), "", 1/L18) ->  | O18: =IF(ISERROR(1/N18), "", 1/N18) ->  | P18: =IF(ISBLANK(N18),"",IF(N18<F18,"Yes","No")) ->  | Q18: =IF(ISBLANK(N18),"",IF(N18>H18,"Yes","No")) -> 
E19: Steel | F19: 30 | G19: 70 | H19: 95
B20: 2 | C20: Fully Dressed Concrete Poles | D20: Overall | F20: 50 | G20: 60 | H20: 80
D21: Cross Arm | E21: Wood | F21: 20 | G21: 40 | H21: 55
E22: Steel | F22: 30 | G22: 70 | H22: 95
B23: 3 | C23: Fully Dressed Steel Poles | D23: Overall | F23: 60 | G23: 60 | H23: 80
D24: Cross Arm | E24: Wood | F24: 20 | G24: 40 | H24: 55
E25: Steel | F25: 30 | G25: 70 | H25: 95
B26: 4 | C26: OH Line Switch | F26: 30 | G26: 45 | H26: 55
B27: 5 | C27: OH Line Switch Motor | F27: 15 | G27: 25 | H27: 25
B28: 6 | C28: OH Line Switch RTU | F28: 15 | G28: 20 | H28: 20
B29: 7 | C29: OH Integral Switches | F29: 35 | G29: 45 | H29: 60
B30: 8 | C30: OH Conductors | F30: 50 | G30: 60 | H30: 75
B31: 9 | C31: OH Transformers & Voltage Regulators | F31: 30 | G31: 40 | H31: 60
B32: 10 | C32: OH Shunt Capacitor Banks | F32: 25 | G32: 30 | H32: 40
B33: 11 | C33: Reclosers | F33: 25 | G33: 40 | H33: 55
A34: TS & MS | B34: 12 | C34: Power Transformers | D34: Overall | F34: 30 | G34: 45 | H34: 60
D35: Bushing | F35: 10 | G35: 20 | H35: 30
D36: Tap Changer | F36: 20 | G36: 30 | H36: 60
B37: 13 | C37: Station Service Transformer | F37: 30 | G37: 45 | H37: 55
B38: 14 | C38: Station Grounding Transformer | F38: 30 | G38: 40 | H38: 40
B39: 15 | C39: Station DC System | D39: Overall | F39: 10 | G39: 20 | H39: 30
D40: Battery Bank | F40: 10 | G40: 15 | H40: 15
D41: Charger | F41: 20 | G41: 20 | H41: 30
B42: 16 | C42: Station Metal Clad Switchgear | D42: Overall | F42: 30 | G42: 40 | H42: 60
D43: Removable Breaker | F43: 25 | G43: 40 | H43: 60
B44: 17 | C44: Station Independent Breakers | F44: 35 | G44: 45 | H44: 65
B45: 18 | C45: Station Switch | F45: 30 | G45: 50 | H45: 60
B46: 19 | C46: Electromechanical Relays | F46: 25 | G46: 35 | H46: 50
B47: 20 | C47: Solid State Relays | F47: 10 | G47: 30 | H47: 45
B48: 21 | C48: Digital & Numeric Relays | F48: 15 | G48: 20 | H48: 20
B49: 22 | C49: Rigid Busbars | F49: 30 | G49: 55 | H49: 60
B50: 23 | C50: Steel Structure | F50: 35 | G50: 50 | H50: 90
A51: UG | B51: 24 | C51: Primary Paper Insulated Lead Covered (PILC) Cables | F51: 60 | G51: 65 | H51: 75
B52: 25 | C52: Primary Ethylene-Propylene Rubber (EPR) Cables | F52: 20 | G52: 25 | H52: 25
B53: 26 | C53: Primary Non-Tree Retardant (TR) Cross Linked Polyethylene (XLPE) Cables Direct Buried | F53: 20 | G53: 25 | H53: 30
B54: 27 | C54: Primary Non-TR XLPE Cables in Duct | F54: 20 | G54: 25 | H54: 30
B55: 30 | C55: Secondary PILC Cables | F55: 70 | G55: 75 | H55: 80
B56: 31 | C56: Secondary Cables Direct Buried | F56: 25 | G56: 35 | H56: 40
B57: 32 | C57: Secondary Cables in Duct | F57: 35 | G57: 40 | H57: 60
B58: 33 | C58: Network Tranformers | D58: Overall | F58: 20 | G58: 35 | H58: 50
D59: Protector | F59: 20 | G59: 35 | H59: 40
B60: 34 | C60: Pad-Mounted Transformers | F60: 25 | G60: 40 | H60: 45
B61: 35 | C61: Submersible/Vault Transformers | F61: 25 | G61: 35 | H61: 45
B62: 36 | C62: UG Foundation | F62: 35 | G62: 55 | H62: 70
B63: 37 | C63: UG Vaults | D63: Overall | F63: 40 | G63: 60 | H63: 80
D64: Roof | F64: 20 | G64: 30 | H64: 45
B65: 38 | C65: UG Vault Switches | F65: 20 | G65: 35 | H65: 50
B66: 39 | C66: Pad-Mounted Switchgear | F66: 20 | G66: 30 | H66: 45
B67: 40 | C67: Ducts | F67: 30 | G67: 50 | H67: 85
B68: 41 | C68: Concrete Encased Duct Banks | F68: 35 | G68: 55 | H68: 80
B69: 42 | C69: Cable Chambers | F69: 50 | G69: 60 | H69: 80
A70: S | B70: 43 | C70: Remote SCADA | F70: 15 | G70: 20 | H70: 30
A73: Table F-2 from Kinetrics Report1
C75: Asset Details | F75: Useful Life Range | J75: USoA Account Number | K75: USoA Account Description | L75: Current | N75: Proposed | P75: Outside Range of Min, Max TUL?
B76: # | C76: Category| Component | Type | L76: Years | M76: Rate | N76: Years | O76: Rate | P76: Below Min Range | Q76: Above Max Range
B77: 1 | C77: Office Equipment | F77: 5 | G77: 15 | M77: =IF(ISERROR(1/L77), "", 1/L77) ->  | O77: =IF(ISERROR(1/N77), "", 1/N77) ->  | P77: =IF(ISBLANK(N77),"",IF(N77<F77,"Yes","No")) ->  | Q77: =IF(ISBLANK(N77),"",IF(N77>G77,"Yes","No")) -> 
B78: 2 | C78: Vehicles | D78: Trucks & Buckets | F78: 5 | G78: 15 | M78: =IF(ISERROR(1/L78), "", 1/L78) ->  | O78: =IF(ISERROR(1/N78), "", 1/N78) ->  | P78: =IF(ISBLANK(N78),"",IF(N78<F78,"Yes","No")) ->  | Q78: =IF(ISBLANK(N78),"",IF(N78>G78,"Yes","No")) -> 
D79: Trailers | F79: 5 | G79: 20
D80: Vans | F80: 5 | G80: 10
B81: 3 | C81: Administrative Buildings | F81: 50 | G81: 75
B82: 4 | C82: Leasehold Improvements | F82: Lease dependent
B83: 5 | C83: Station Buildings | D83: Station Buildings | F83: 50 | G83: 75
D84: Parking | F84: 25 | G84: 30
D85: Fence | F85: 25 | G85: 60
D86: Roof | F86: 20 | G86: 30
B87: 6 | C87: Computer Equipment | D87: Hardware | F87: 3 | G87: 5
D88: Software | F88: 2 | G88: 5
B89: 7 | C89: Equipment | D89: Power Operated | F89: 5 | G89: 10
D90: Stores | F90: 5 | G90: 10
D91: Tools, Shop, Garage Equipment | F91: 5 | G91: 10
D92: Measurement & Testing Equipment | F92: 5 | G92: 10
B93: 8 | C93: Communication | D93: Towers | F93: 60 | G93: 70
D94: Wireless | F94: 2 | G94: 10
B95: 9 | C95: Residential Energy Meters | F95: 25 | G95: 35
B96: 10 | C96: Industrial/Commercial Energy Meters | F96: 25 | G96: 35
B97: 11 | C97: Wholesale Energy Meters | F97: 15 | G97: 30
B98: 12 | C98: Current & Potential Transformer (CT & PT) | F98: 35 | G98: 50
B99: 13 | C99: Smart Meters | F99: 5 | G99: 15
B100: 14 | C100: Repeaters - Smart Metering | F100: 10 | G100: 15
B101: 15 | C101: Data Collectors - Smart Metering | F101: 15 | G101: 20
A104: * TS & MS = Transformer and Municipal Stations UG = Underground Systems S = Monitoring and Control Systems
A106: Note 1: | B106: Tables F-1 and F-2 above are to be used as a reference in order to complete columns J, K, L and N.
B107: See pages 17-19 of Kinetrics Report

Sheet App.2-CA_OldCGAAPDepExp_Yr1
K1: File Number: | L1: =EBNUMBER -> EB-2017-0032
A2: Please refer to separate Excel file entitled "Fixed Asset Continuity Schedule." | K2: Exhibit:
K3: Tab:
K4: Schedule:
K5: Page:
K7: Date:
A9: Appendix 2-CA
A10: Depreciation and Amortization Expense
B11: Former CGAAP (Year 1)
A13: Select the set of appendices that apply | K13: Year Reflected in Schedule Below | L13: Accounting Standard
A14: 2012 Set of Appendices (2-CA to 2-CG) | C14: Assumes the applicant made capitalization and depreciation expense accounting policy changes under CGAAP effective January 1, 2012 and has adopted IFRS for financial reporting purposes effective January 1, 2015. Assumes that the applicant is reflecting these changes in a rebasing application for the first time. | K14: 2012 | L14: Former CGAAP
A15: 2013 Set of Appendices (2-CA to 2-CF) | C15: Assumes the applicant made capitalization and depreciation expense accounting policy changes under CGAAP effective January 1, 2013 and has adopted IFRS for financial reporting purposes effective January 1, 2015. Assumes that the applicant is reflecting these changes in a rebasing application for the first time. | K15: 2013 | L15: Former CGAAP
A18: Account | B18: Description | C18: Opening Regulatory Gross PP&E as at Jan. 1 | D18: Less Fully Depreciated | E18: Net for Depreciation | F18: Additions | G18: Total for Depreciation 1 | H18: Years | I18: Depreciation Rate | J18: Current Year Depreciation Expense | K18: Depreciation Expense per Appendix 2-BA Fixed Assets, Column J (l) | L18: Variance 2
C19: (a) | D19: (b) | E19: (c) | F19: (d) | G19: (e) = (c) + ½ x (d) | H19: (f) | I19: (g) = 1 / (f) | J19: (h) = (e) / (f) | L19: (m) = (h) - (l)
A20: 1611 | B20: Computer Software (Formally known as Account 1925) | E20: =C20-D20 -> 0 | G20: =E20+0.5*F20 -> 0 | I20: =IF(H20=0,0,1/H20) -> 0 | J20: =IF(H20=0,0,G20/H20) -> 0 | L20: =IF(ISERROR(+J20-K20), 0, +J20-K20) -> 0
A21: 1612 | B21: Land Rights (Formally known as Account 1906) | E21: =C21-D21 -> 0 | G21: =E21+0.5*F21 -> 0 | I21: 0 | J21: 0 | L21: 0
A22: 1805 | B22: Land | E22: 0 | G22: 0 | I22: 0 | J22: 0 | L22: 0
A23: 1808 | B23: Buildings | E23: 0 | G23: 0 | I23: 0 | J23: 0 | L23: 0
A24: 1810 | B24: Leasehold Improvements | E24: 0 | G24: 0 | I24: 0 | J24: 0 | L24: 0
A25: 1815 | B25: Transformer Station Equipment >50 kV | E25: 0 | G25: 0 | I25: 0 | J25: 0 | L25: 0
A26: 1820 | B26: Distribution Station Equipment <50 kV | E26: 0 | G26: 0 | I26: 0 | J26: 0 | L26: 0
A27: 1825 | B27: Storage Battery Equipment | E27: 0 | G27: 0 | I27: 0 | J27: 0 | L27: 0
A28: 1830 | B28: Poles, Towers & Fixtures | E28: 0 | G28: 0 | I28: 0 | J28: 0 | L28: 0
A29: 1835 | B29: Overhead Conductors & Devices | E29: 0 | G29: 0 | I29: 0 | J29: 0 | L29: 0
A30: 1840 | B30: Underground Conduit | E30: 0 | G30: 0 | I30: 0 | J30: 0 | L30: 0
A31: 1845 | B31: Underground Conductors & Devices | E31: 0 | G31: 0 | I31: 0 | J31: 0 | L31: 0
A32: 1850 | B32: Line Transformers | E32: 0 | G32: 0 | I32: 0 | J32: 0 | L32: 0
A33: 1855 | B33: Services (Overhead & Underground) | E33: 0 | G33: 0 | I33: 0 | J33: 0 | L33: 0
A34: 1860 | B34: Meters | E34: 0 | G34: 0 | I34: 0 | J34: 0 | L34: 0
A35: 1860 | B35: Meters (Smart Meters) | E35: 0 | G35: 0 | I35: 0 | J35: 0 | L35: 0
A36: 1905 | B36: Land | E36: 0 | G36: 0 | I36: 0 | J36: 0 | L36: 0
A37: 1908 | B37: Buildings & Fixtures | E37: 0 | G37: 0 | I37: 0 | J37: 0 | L37: 0
A38: 1910 | B38: Leasehold Improvements | E38: 0 | G38: 0 | I38: 0 | J38: 0 | L38: 0
A39: 1915 | B39: Office Furniture & Equipment (10 years) | E39: 0 | G39: 0 | I39: 0 | J39: 0 | L39: 0
A40: 1915 | B40: Office Furniture & Equipment (5 years) | E40: 0 | G40: 0 | I40: 0 | J40: 0 | L40: 0
A41: 1920 | B41: Computer Equipment - Hardware | E41: 0 | G41: 0 | I41: 0 | J41: 0 | L41: 0
A42: 1920 | B42: Computer Equip.-Hardware(Post Mar. 22/04) | E42: 0 | G42: 0 | I42: 0 | J42: 0 | L42: 0
A43: 1920 | B43: Computer Equip.-Hardware(Post Mar. 19/07) | E43: 0 | G43: 0 | I43: 0 | J43: 0 | L43: 0
A44: 1930 | B44: Transportation Equipment | E44: 0 | G44: 0 | I44: 0 | J44: 0 | L44: 0
A45: 1935 | B45: Stores Equipment | E45: 0 | G45: 0 | I45: 0 | J45: 0 | L45: 0
A46: 1940 | B46: Tools, Shop & Garage Equipment | E46: 0 | G46: 0 | I46: 0 | J46: 0 | L46: 0
A47: 1945 | B47: Measurement & Testing Equipment | E47: 0 | G47: 0 | I47: 0 | J47: 0 | L47: 0
A48: 1950 | B48: Power Operated Equipment | E48: 0 | G48: 0 | I48: 0 | J48: 0 | L48: 0
A49: 1955 | B49: Communications Equipment | E49: 0 | G49: 0 | I49: 0 | J49: 0 | L49: 0
A50: 1955 | B50: Communication Equipment (Smart Meters) | E50: 0 | G50: 0 | I50: 0 | J50: 0 | L50: 0
A51: 1960 | B51: Miscellaneous Equipment | E51: 0 | G51: 0 | I51: 0 | J51: 0 | L51: 0
A52: 1970 | B52: Load Management Controls Customer Premises | E52: 0 | G52: 0 | I52: 0 | J52: 0 | L52: 0
A53: 1975 | B53: Load Management Controls Utility Premises | E53: 0 | G53: 0 | I53: 0 | J53: 0 | L53: 0
A54: 1980 | B54: System Supervisor Equipment | E54: 0 | G54: 0 | I54: 0 | J54: 0 | L54: 0
A55: 1985 | B55: Miscellaneous Fixed Assets | E55: 0 | G55: 0 | I55: 0 | J55: 0 | L55: 0
A56: 1990 | B56: Other Tangible Property | E56: 0 | G56: 0 | I56: 0 | J56: 0 | L56: 0
A57: 1995 | B57: Contributions & Grants | E57: 0 | G57: 0 | I57: 0 | J57: 0 | L57: 0
B58: Total | C58: =SUM(C20:C57) -> 0 | D58: =SUM(D20:D57) -> 0 | E58: =SUM(E20:E57) -> 0 | F58: =SUM(F20:F57) -> 0 | G58: =SUM(G20:G57) -> 0 | J58: =SUM(J20:J57) -> 0 | K58: =SUM(K20:K57) -> 0 | L58: =SUM(L20:L57) -> 0
A60: Notes:
A62: 1 | B62: Board policy of the "half-year" rule - the applicant must ensure that additions in the year attract a half-year depreciation expense in the first year. Deviations from this standard practice must be supported in the application.
A63: 2 | B63: The applicant must provide an explanation of material variances.
A65: General | B65: Applicants must provide a breakdown of depreciation and amortization expense in the above format for all relevant accounts. Asset Retirement Obligations (AROs), depreciation and accretion expense should be disclosed separately consistent with the Notes of historical Audited Financial Statements.

Sheet App.2-CB_NewCGAAP_DepExp_Yr1
N1: File Number: | O1: =EBNUMBER -> EB-2017-0032
B2: Please refer to separate Excel file entitled "Fixed Asset Continuity Schedule." | N2: Exhibit:
N3: Tab:
N4: Schedule:
N5: Page:
N7: Date:
A9: Appendix 2-CB
A10: Depreciation and Amortization Expense
A11: Revised CGAAP (Year 1)
A13: Select the set of appendices that apply | L13: Year Reflected in Schedule Below | N13: Accounting Standard
A14: 2012 Set of Appendices (2-CA to 2-CG) | C14: Assumes the applicant made capitalization and depreciation expense accounting policy changes under CGAAP effective January 1, 2012 and has adopted IFRS for financial reporting purposes effective January 1, 2015. Assumes that the applicant is reflecting these changes in a rebasing application for the first time. | L14: 2012 | N14: Revised CGAAP
A15: 2013 Set of Appendices (2-CA to 2-CF) | C15: Assumes the applicant made capitalization and depreciation expense accounting policy changes under CGAAP effective January 1, 2013 and has adopted IFRS for financial reporting purposes effective January 1, 2015. Assumes that the applicant is reflecting these changes in a rebasing application for the first time. | L15: 2013 | N15: Revised CGAAP
A18: Account | B18: Description | C18: Opening NBV as at Jan 15 | D18: Additions | E18: Average Remaining Life of Opening NBV 4 | F18: Years (new additions only) 3 | G18: Depreciation Rate on New Additions | H18: Depreciation Expense on Opening NBV | I18: Depreciation Expense on Additions 1 | J18: Current Year Depreciation Expense | K18: Depreciation Expense per Appendix 2-BA Fixed Assets, Column J (l) | L18: Variance 2 | M18: Depreciation Expense on Current Full Year Additions | N18: Less Depreciation Expense on Assets Fully Depreciated During the Year (o) | O18: Current Full Year Depreciation 6
C19: (a) | D19: (d) | E19: (i) | F19: (f) | G19: (g) = 1 / (f) | H19: (j) = (a) / (i) | I19: (h)=((d)*0.5)/(f) | J19: (k) = (j) + (h) | L19: (m) = (k) - (l) | M19: (n) = (d)/(f) | O19: (p) = (j) + (n) - (o)
A20: 1611 | B20: Computer Software (Formally known as Account 1925) | G20: =IF(F20=0,0,1/F20) -> 0 | H20: =IF(E20=0,0,+C20/E20) -> 0 | I20: =IF(F20=0,0,+(D20*0.5)/F20) -> 0 | J20: =IF(ISERROR(+H20+I20), 0, +H20+I20) -> 0 | L20: =IF(ISERROR(+J20-K20), 0, +J20-K20) -> 0 | M20: =IF(F20=0,0,+(D20)/F20) -> 0 | O20: =IF(ISERROR(+M20+H20-N20), 0, +M20+H20-N20) -> 0
A21: 1612 | B21: Land Rights (Formally known as Account 1906) | G21: 0 | H21: 0 | I21: 0 | J21: 0 | L21: 0 | M21: 0 | O21: =IF(ISERROR(+M21+H21-N21), 0, +M21+H21-N21) -> 0
A22: 1805 | B22: Land | G22: 0 | H22: 0 | I22: 0 | J22: 0 | L22: 0 | M22: 0 | O22: 0
A23: 1808 | B23: Buildings | G23: 0 | H23: 0 | I23: 0 | J23: 0 | L23: 0 | M23: 0 | O23: 0
A24: 1810 | B24: Leasehold Improvements | G24: 0 | H24: 0 | I24: 0 | J24: 0 | L24: 0 | M24: 0 | O24: 0
A25: 1815 | B25: Transformer Station Equipment >50 kV | G25: 0 | H25: 0 | I25: 0 | J25: 0 | L25: 0 | M25: 0 | O25: 0
A26: 1820 | B26: Distribution Station Equipment <50 kV | G26: 0 | H26: 0 | I26: 0 | J26: 0 | L26: 0 | M26: 0 | O26: 0
A27: 1825 | B27: Storage Battery Equipment | G27: 0 | H27: 0 | I27: 0 | J27: 0 | L27: 0 | M27: 0 | O27: 0
A28: 1830 | B28: Poles, Towers & Fixtures | G28: 0 | H28: 0 | I28: 0 | J28: 0 | L28: 0 | M28: 0 | O28: 0
A29: 1835 | B29: Overhead Conductors & Devices | G29: 0 | H29: 0 | I29: 0 | J29: 0 | L29: 0 | M29: 0 | O29: 0
A30: 1840 | B30: Underground Conduit | G30: 0 | H30: 0 | I30: 0 | J30: 0 | L30: 0 | M30: 0 | O30: 0
A31: 1845 | B31: Underground Conductors & Devices | G31: 0 | H31: 0 | I31: 0 | J31: 0 | L31: 0 | M31: 0 | O31: 0
A32: 1850 | B32: Line Transformers | G32: 0 | H32: 0 | I32: 0 | J32: 0 | L32: 0 | M32: 0 | O32: 0
A33: 1855 | B33: Services (Overhead & Underground) | G33: 0 | H33: 0 | I33: 0 | J33: 0 | L33: 0 | M33: 0 | O33: 0
A34: 1860 | B34: Meters | G34: 0 | H34: 0 | I34: 0 | J34: 0 | L34: 0 | M34: 0 | O34: 0
A35: 1860 | B35: Meters (Smart Meters) | G35: 0 | H35: 0 | I35: 0 | J35: 0 | L35: 0 | M35: 0 | O35: 0
A36: 1905 | B36: Land | G36: 0 | H36: 0 | I36: 0 | J36: 0 | L36: 0 | M36: 0 | O36: 0
A37: 1908 | B37: Buildings & Fixtures | G37: 0 | H37: 0 | I37: 0 | J37: 0 | L37: 0 | M37: 0 | O37: 0
A38: 1910 | B38: Leasehold Improvements | G38: 0 | H38: 0 | I38: 0 | J38: 0 | L38: 0 | M38: 0 | O38: 0
A39: 1915 | B39: Office Furniture & Equipment (10 years) | G39: 0 | H39: 0 | I39: 0 | J39: 0 | L39: 0 | M39: 0 | O39: 0
A40: 1915 | B40: Office Furniture & Equipment (5 years) | G40: 0 | H40: 0 | I40: 0 | J40: 0 | L40: 0 | M40: 0 | O40: 0
A41: 1920 | B41: Computer Equipment - Hardware | G41: 0 | H41: 0 | I41: 0 | J41: 0 | L41: 0 | M41: 0 | O41: 0
A42: 1920 | B42: Computer Equip.-Hardware(Post Mar. 22/04) | G42: 0 | H42: 0 | I42: 0 | J42: 0 | L42: 0 | M42: 0 | O42: 0
A43: 1920 | B43: Computer Equip.-Hardware(Post Mar. 19/07) | G43: 0 | H43: 0 | I43: 0 | J43: 0 | L43: 0 | M43: 0 | O43: 0
A44: 1930 | B44: Transportation Equipment | G44: 0 | H44: 0 | I44: 0 | J44: 0 | L44: 0 | M44: 0 | O44: 0
A45: 1935 | B45: Stores Equipment | G45: 0 | H45: 0 | I45: 0 | J45: 0 | L45: 0 | M45: 0 | O45: 0
A46: 1940 | B46: Tools, Shop & Garage Equipment | G46: 0 | H46: 0 | I46: 0 | J46: 0 | L46: 0 | M46: 0 | O46: 0
A47: 1945 | B47: Measurement & Testing Equipment | G47: 0 | H47: 0 | I47: 0 | J47: 0 | L47: 0 | M47: 0 | O47: 0
A48: 1950 | B48: Power Operated Equipment | G48: 0 | H48: 0 | I48: 0 | J48: 0 | L48: 0 | M48: 0 | O48: 0
A49: 1955 | B49: Communications Equipment | G49: 0 | H49: 0 | I49: 0 | J49: 0 | L49: 0 | M49: 0 | O49: 0
A50: 1955 | B50: Communication Equipment (Smart Meters) | G50: 0 | H50: 0 | I50: 0 | J50: 0 | L50: 0 | M50: 0 | O50: 0
A51: 1960 | B51: Miscellaneous Equipment | G51: 0 | H51: 0 | I51: 0 | J51: 0 | L51: 0 | M51: 0 | O51: 0
A52: 1970 | B52: Load Management Controls Customer Premises | G52: 0 | H52: 0 | I52: 0 | J52: 0 | L52: 0 | M52: 0 | O52: 0
A53: 1975 | B53: Load Management Controls Utility Premises | G53: 0 | H53: 0 | I53: 0 | J53: 0 | L53: 0 | M53: 0 | O53: 0
A54: 1980 | B54: System Supervisor Equipment | G54: 0 | H54: 0 | I54: 0 | J54: 0 | L54: 0 | M54: 0 | O54: 0
A55: 1985 | B55: Miscellaneous Fixed Assets | G55: 0 | H55: 0 | I55: 0 | J55: 0 | L55: 0 | M55: 0 | O55: 0
A56: 1990 | B56: Other Tangible Property | G56: 0 | H56: 0 | I56: 0 | J56: 0 | L56: 0 | M56: 0 | O56: 0
A57: 1995 | B57: Contributions & Grants | G57: 0 | H57: 0 | I57: 0 | J57: 0 | L57: 0 | M57: 0 | O57: 0
B58: Total | C58: =SUM(C20:C57) -> 0 | D58: =SUM(D20:D57) -> 0 | H58: =SUM(H20:H57) -> 0 | I58: 0 | J58: 0 | K58: 0 | L58: 0 | M58: 0 | N58: 0 | O58: 0
A60: Notes:
A62: 1 | B62: Board policy of the "half-year" rule - the applicant must ensure that additions in the year attract a half-year depreciation expense in the first year. Deviations from this standard practice must be supported in the application.
A63: 2 | B63: The applicant must provide an explanation of material variances in evidence.
A64: 3 | B64: The applicant should ensure that the years for new additions of assets are the asset useful lives determined by management in accordance with the Board's regulatory accounting policies. The capitalization and depreciation expense accounting changes should be implemented consistent with the Board’s regulatory accounting policies as set out for modified IFRS as contained in the Report of the Board, Transition to International Financial Reporting Standards, EB-2008-0408, the Kinectrics Report, and the Revised 2012 Accounting Procedures Handbook for Electricity Distributors (“APH”).
A65: 4 | B65: A recalculation should be performed to determine the average remaining life of opening balance of assets (i.e. excluding current year's additions) under the change in policies under CGAAP. For example, Asset A had a useful life of 20 years under CGAAP without the change in policies. On January 1 of the year of policy changes, Asset A was 3 years depreciated. As a result, Asset A would have a remaining service life of 17 years (20 years less 3 years) as at January 1 of the year of policy changes. Due to making the change in policies under CGAAP, management re-assessed the asset useful lives and concluded that the revised useful life of Asset A is now 30 years. Therefore, the average remaining useful life of the opening balance of Asset A is determined to be 27 years (30 years less 3 years) under the revised CGAAP as at January 1 of the year of policy changes.
A66: 5 | B66: NBV must exclude assets still on the books but which have been fully amortized or depreciated.
A67: 6 | B67: This column refers to the calculated full year depreciation but excludes the depreciation expense on assets fully depreciated during the year. This column is used for the purpose of calculating depreciation expense in the following year on the next worksheet.
A69: General: | B69: Applicants must provide a breakdown of depreciation and amortization expense in the above format for all relevant accounts. Asset Retirement Obligations (AROs), depreciation and accretion expense should be disclosed separately consistent with the Notes of historical Audited Financial Statements.

Sheet App.2-CC_DepExp_Yr2
J1: File Number: | K1: =EBNUMBER -> EB-2017-0032
A2: Please refer to separate Excel file entitled "Fixed Asset Continuity Schedule." | J2: Exhibit:
J3: Tab:
J4: Schedule:
J5: Page:
J7: Date:
A9: Appendix 2-CC
A10: Depreciation and Amortization Expense
A11: Revised CGAAP (Year 2)
A13: Select the set of appendices that apply | J13: Year Reflected in Schedule Below | K13: Accounting Standard
A14: 2012 Set of Appendices (2-CA to 2-CG) | C14: Assumes the applicant made capitalization and depreciation expense accounting policy changes under CGAAP effective January 1, 2012 and has adopted IFRS for financial reporting purposes effective January 1, 2015. Assumes that the applicant is reflecting these changes in a rebasing application for the first time. | J14: 2013 | K14: Revised CGAAP
A15: 2013 Set of Appendices (2-CA to 2-CF) | C15: Assumes the applicant made capitalization and depreciation expense accounting policy changes under CGAAP effective January 1, 2013 and has adopted IFRS for financial reporting purposes effective January 1, 2015. Assumes that the applicant is reflecting these changes in a rebasing application for the first time. | J15: 2014 | K15: Revised CGAAP
A18: Account | B18: Description | C18: Additions | D18: Years (new additions only) | E18: Depreciation Rate on New Additions | F18: Current Year Depreciation Expense 1 | G18: Depreciation Expense per Apppendix 2-BA Fixed Assets, Column J (l) | H18: Variance 2 | I18: Depreciation Expense on Current Full Year Additions | J18: Less Depreciation Expense on Assets Fully Depreciated During the Year (o) | K18: Current Full Year Depreciation 3
C19: (d) | D19: (f) | E19: (g) = 1 / (f) | F19: (h)= Prior Full Year Deprecation + ((d)*0.5)/(f) | H19: (m) = (h) - (l) | I19: (n)=((d))/(f) | K19: (p) = Prior Full Year Depreciation + (n) - (o)
A20: 1611 | B20: Computer Software (Formally known as Account 1925) | E20: =IF(D20=0,0,1/D20) -> 0 | F20: =IF(D20=0,+'App.2-CB_NewCGAAP_DepExp_Yr1'!O20,+'App.2-CB_NewCGAAP_DepExp_Yr1'!O20+((C20*0.5)/D20)) -> 0 | H20: =IF(ISERROR(+F20-G20), 0, +F20-G20) -> 0 | I20: =IF(D20=0,0,+(C20)/D20) -> 0 | K20: =IF(ISERROR(+I20+'App.2-CB_NewCGAAP_DepExp_Yr1'!O20-J20), 0, +I20+'App.2-CB_NewCGAAP_DepExp_Yr1'!O20-J20) -> 0
A21: 1612 | B21: Land Rights (Formally known as Account 1906) | E21: 0 | F21: =IF(D21=0,+'App.2-CB_NewCGAAP_DepExp_Yr1'!O21,+'App.2-CB_NewCGAAP_DepExp_Yr1'!O21+((C21*0.5)/D21)) -> 0 | H21: 0 | I21: 0 | K21: =IF(ISERROR(+I21+'App.2-CB_NewCGAAP_DepExp_Yr1'!O21-J21), 0, +I21+'App.2-CB_NewCGAAP_DepExp_Yr1'!O21-J21) -> 0
A22: 1805 | B22: Land | E22: 0 | F22: =IF(D22=0,+'App.2-CB_NewCGAAP_DepExp_Yr1'!O22,+'App.2-CB_NewCGAAP_DepExp_Yr1'!O22+((C22*0.5)/D22)) -> 0 | H22: 0 | I22: 0 | K22: =IF(ISERROR(+I22+'App.2-CB_NewCGAAP_DepExp_Yr1'!O22-J22), 0, +I22+'App.2-CB_NewCGAAP_DepExp_Yr1'!O22-J22) -> 0
A23: 1808 | B23: Buildings | E23: 0 | F23: =IF(D23=0,+'App.2-CB_NewCGAAP_DepExp_Yr1'!O23,+'App.2-CB_NewCGAAP_DepExp_Yr1'!O23+((C23*0.5)/D23)) -> 0 | H23: 0 | I23: 0 | K23: =IF(ISERROR(+I23+'App.2-CB_NewCGAAP_DepExp_Yr1'!O23-J23), 0, +I23+'App.2-CB_NewCGAAP_DepExp_Yr1'!O23-J23) -> 0
A24: 1810 | B24: Leasehold Improvements | E24: 0 | F24: =IF(D24=0,+'App.2-CB_NewCGAAP_DepExp_Yr1'!O24,+'App.2-CB_NewCGAAP_DepExp_Yr1'!O24+((C24*0.5)/D24)) -> 0 | H24: 0 | I24: 0 | K24: =IF(ISERROR(+I24+'App.2-CB_NewCGAAP_DepExp_Yr1'!O24-J24), 0, +I24+'App.2-CB_NewCGAAP_DepExp_Yr1'!O24-J24) -> 0
A25: 1815 | B25: Transformer Station Equipment >50 kV | E25: 0 | F25: =IF(D25=0,+'App.2-CB_NewCGAAP_DepExp_Yr1'!O25,+'App.2-CB_NewCGAAP_DepExp_Yr1'!O25+((C25*0.5)/D25)) -> 0 | H25: 0 | I25: 0 | K25: =IF(ISERROR(+I25+'App.2-CB_NewCGAAP_DepExp_Yr1'!O25-J25), 0, +I25+'App.2-CB_NewCGAAP_DepExp_Yr1'!O25-J25) -> 0
A26: 1820 | B26: Distribution Station Equipment <50 kV | E26: 0 | F26: =IF(D26=0,+'App.2-CB_NewCGAAP_DepExp_Yr1'!O26,+'App.2-CB_NewCGAAP_DepExp_Yr1'!O26+((C26*0.5)/D26)) -> 0 | H26: 0 | I26: 0 | K26: =IF(ISERROR(+I26+'App.2-CB_NewCGAAP_DepExp_Yr1'!O26-J26), 0, +I26+'App.2-CB_NewCGAAP_DepExp_Yr1'!O26-J26) -> 0
A27: 1825 | B27: Storage Battery Equipment | E27: 0 | F27: =IF(D27=0,+'App.2-CB_NewCGAAP_DepExp_Yr1'!O27,+'App.2-CB_NewCGAAP_DepExp_Yr1'!O27+((C27*0.5)/D27)) -> 0 | H27: 0 | I27: 0 | K27: =IF(ISERROR(+I27+'App.2-CB_NewCGAAP_DepExp_Yr1'!O27-J27), 0, +I27+'App.2-CB_NewCGAAP_DepExp_Yr1'!O27-J27) -> 0
A28: 1830 | B28: Poles, Towers & Fixtures | E28: 0 | F28: =IF(D28=0,+'App.2-CB_NewCGAAP_DepExp_Yr1'!O28,+'App.2-CB_NewCGAAP_DepExp_Yr1'!O28+((C28*0.5)/D28)) -> 0 | H28: 0 | I28: 0 | K28: =IF(ISERROR(+I28+'App.2-CB_NewCGAAP_DepExp_Yr1'!O28-J28), 0, +I28+'App.2-CB_NewCGAAP_DepExp_Yr1'!O28-J28) -> 0
A29: 1835 | B29: Overhead Conductors & Devices | E29: 0 | F29: =IF(D29=0,+'App.2-CB_NewCGAAP_DepExp_Yr1'!O29,+'App.2-CB_NewCGAAP_DepExp_Yr1'!O29+((C29*0.5)/D29)) -> 0 | H29: 0 | I29: 0 | K29: =IF(ISERROR(+I29+'App.2-CB_NewCGAAP_DepExp_Yr1'!O29-J29), 0, +I29+'App.2-CB_NewCGAAP_DepExp_Yr1'!O29-J29) -> 0
A30: 1840 | B30: Underground Conduit | E30: 0 | F30: =IF(D30=0,+'App.2-CB_NewCGAAP_DepExp_Yr1'!O30,+'App.2-CB_NewCGAAP_DepExp_Yr1'!O30+((C30*0.5)/D30)) -> 0 | H30: 0 | I30: 0 | K30: =IF(ISERROR(+I30+'App.2-CB_NewCGAAP_DepExp_Yr1'!O30-J30), 0, +I30+'App.2-CB_NewCGAAP_DepExp_Yr1'!O30-J30) -> 0
A31: 1845 | B31: Underground Conductors & Devices | E31: 0 | F31: =IF(D31=0,+'App.2-CB_NewCGAAP_DepExp_Yr1'!O31,+'App.2-CB_NewCGAAP_DepExp_Yr1'!O31+((C31*0.5)/D31)) -> 0 | H31: 0 | I31: 0 | K31: =IF(ISERROR(+I31+'App.2-CB_NewCGAAP_DepExp_Yr1'!O31-J31), 0, +I31+'App.2-CB_NewCGAAP_DepExp_Yr1'!O31-J31) -> 0
A32: 1850 | B32: Line Transformers | E32: 0 | F32: =IF(D32=0,+'App.2-CB_NewCGAAP_DepExp_Yr1'!O32,+'App.2-CB_NewCGAAP_DepExp_Yr1'!O32+((C32*0.5)/D32)) -> 0 | H32: 0 | I32: 0 | K32: =IF(ISERROR(+I32+'App.2-CB_NewCGAAP_DepExp_Yr1'!O32-J32), 0, +I32+'App.2-CB_NewCGAAP_DepExp_Yr1'!O32-J32) -> 0
A33: 1855 | B33: Services (Overhead & Underground) | E33: 0 | F33: =IF(D33=0,+'App.2-CB_NewCGAAP_DepExp_Yr1'!O33,+'App.2-CB_NewCGAAP_DepExp_Yr1'!O33+((C33*0.5)/D33)) -> 0 | H33: 0 | I33: 0 | K33: =IF(ISERROR(+I33+'App.2-CB_NewCGAAP_DepExp_Yr1'!O33-J33), 0, +I33+'App.2-CB_NewCGAAP_DepExp_Yr1'!O33-J33) -> 0
A34: 1860 | B34: Meters | E34: 0 | F34: =IF(D34=0,+'App.2-CB_NewCGAAP_DepExp_Yr1'!O34,+'App.2-CB_NewCGAAP_DepExp_Yr1'!O34+((C34*0.5)/D34)) -> 0 | H34: 0 | I34: 0 | K34: =IF(ISERROR(+I34+'App.2-CB_NewCGAAP_DepExp_Yr1'!O34-J34), 0, +I34+'App.2-CB_NewCGAAP_DepExp_Yr1'!O34-J34) -> 0
A35: 1860 | B35: Meters (Smart Meters) | E35: 0 | F35: =IF(D35=0,+'App.2-CB_NewCGAAP_DepExp_Yr1'!O35,+'App.2-CB_NewCGAAP_DepExp_Yr1'!O35+((C35*0.5)/D35)) -> 0 | H35: 0 | I35: 0 | K35: =IF(ISERROR(+I35+'App.2-CB_NewCGAAP_DepExp_Yr1'!O35-J35), 0, +I35+'App.2-CB_NewCGAAP_DepExp_Yr1'!O35-J35) -> 0
A36: 1905 | B36: Land | E36: 0 | F36: =IF(D36=0,+'App.2-CB_NewCGAAP_DepExp_Yr1'!O36,+'App.2-CB_NewCGAAP_DepExp_Yr1'!O36+((C36*0.5)/D36)) -> 0 | H36: 0 | I36: 0 | K36: =IF(ISERROR(+I36+'App.2-CB_NewCGAAP_DepExp_Yr1'!O36-J36), 0, +I36+'App.2-CB_NewCGAAP_DepExp_Yr1'!O36-J36) -> 0
A37: 1908 | B37: Buildings & Fixtures | E37: 0 | F37: =IF(D37=0,+'App.2-CB_NewCGAAP_DepExp_Yr1'!O37,+'App.2-CB_NewCGAAP_DepExp_Yr1'!O37+((C37*0.5)/D37)) -> 0 | H37: 0 | I37: 0 | K37: =IF(ISERROR(+I37+'App.2-CB_NewCGAAP_DepExp_Yr1'!O37-J37), 0, +I37+'App.2-CB_NewCGAAP_DepExp_Yr1'!O37-J37) -> 0
A38: 1910 | B38: Leasehold Improvements | E38: 0 | F38: =IF(D38=0,+'App.2-CB_NewCGAAP_DepExp_Yr1'!O38,+'App.2-CB_NewCGAAP_DepExp_Yr1'!O38+((C38*0.5)/D38)) -> 0 | H38: 0 | I38: 0 | K38: =IF(ISERROR(+I38+'App.2-CB_NewCGAAP_DepExp_Yr1'!O38-J38), 0, +I38+'App.2-CB_NewCGAAP_DepExp_Yr1'!O38-J38) -> 0
A39: 1915 | B39: Office Furniture & Equipment (10 years) | E39: 0 | F39: =IF(D39=0,+'App.2-CB_NewCGAAP_DepExp_Yr1'!O39,+'App.2-CB_NewCGAAP_DepExp_Yr1'!O39+((C39*0.5)/D39)) -> 0 | H39: 0 | I39: 0 | K39: =IF(ISERROR(+I39+'App.2-CB_NewCGAAP_DepExp_Yr1'!O39-J39), 0, +I39+'App.2-CB_NewCGAAP_DepExp_Yr1'!O39-J39) -> 0
A40: 1915 | B40: Office Furniture & Equipment (5 years) | E40: 0 | F40: =IF(D40=0,+'App.2-CB_NewCGAAP_DepExp_Yr1'!O40,+'App.2-CB_NewCGAAP_DepExp_Yr1'!O40+((C40*0.5)/D40)) -> 0 | H40: 0 | I40: 0 | K40: =IF(ISERROR(+I40+'App.2-CB_NewCGAAP_DepExp_Yr1'!O40-J40), 0, +I40+'App.2-CB_NewCGAAP_DepExp_Yr1'!O40-J40) -> 0
A41: 1920 | B41: Computer Equipment - Hardware | E41: 0 | F41: =IF(D41=0,+'App.2-CB_NewCGAAP_DepExp_Yr1'!O41,+'App.2-CB_NewCGAAP_DepExp_Yr1'!O41+((C41*0.5)/D41)) -> 0 | H41: 0 | I41: 0 | K41: =IF(ISERROR(+I41+'App.2-CB_NewCGAAP_DepExp_Yr1'!O41-J41), 0, +I41+'App.2-CB_NewCGAAP_DepExp_Yr1'!O41-J41) -> 0
A42: 1920 | B42: Computer Equip.-Hardware(Post Mar. 22/04) | E42: 0 | F42: =IF(D42=0,+'App.2-CB_NewCGAAP_DepExp_Yr1'!O42,+'App.2-CB_NewCGAAP_DepExp_Yr1'!O42+((C42*0.5)/D42)) -> 0 | H42: 0 | I42: 0 | K42: =IF(ISERROR(+I42+'App.2-CB_NewCGAAP_DepExp_Yr1'!O42-J42), 0, +I42+'App.2-CB_NewCGAAP_DepExp_Yr1'!O42-J42) -> 0
A43: 1920 | B43: Computer Equip.-Hardware(Post Mar. 19/07) | E43: 0 | F43: =IF(D43=0,+'App.2-CB_NewCGAAP_DepExp_Yr1'!O43,+'App.2-CB_NewCGAAP_DepExp_Yr1'!O43+((C43*0.5)/D43)) -> 0 | H43: 0 | I43: 0 | K43: =IF(ISERROR(+I43+'App.2-CB_NewCGAAP_DepExp_Yr1'!O43-J43), 0, +I43+'App.2-CB_NewCGAAP_DepExp_Yr1'!O43-J43) -> 0
A44: 1930 | B44: Transportation Equipment | E44: 0 | F44: =IF(D44=0,+'App.2-CB_NewCGAAP_DepExp_Yr1'!O44,+'App.2-CB_NewCGAAP_DepExp_Yr1'!O44+((C44*0.5)/D44)) -> 0 | H44: 0 | I44: 0 | K44: =IF(ISERROR(+I44+'App.2-CB_NewCGAAP_DepExp_Yr1'!O44-J44), 0, +I44+'App.2-CB_NewCGAAP_DepExp_Yr1'!O44-J44) -> 0
A45: 1935 | B45: Stores Equipment | E45: 0 | F45: =IF(D45=0,+'App.2-CB_NewCGAAP_DepExp_Yr1'!O45,+'App.2-CB_NewCGAAP_DepExp_Yr1'!O45+((C45*0.5)/D45)) -> 0 | H45: 0 | I45: 0 | K45: =IF(ISERROR(+I45+'App.2-CB_NewCGAAP_DepExp_Yr1'!O45-J45), 0, +I45+'App.2-CB_NewCGAAP_DepExp_Yr1'!O45-J45) -> 0
A46: 1940 | B46: Tools, Shop & Garage Equipment | E46: 0 | F46: =IF(D46=0,+'App.2-CB_NewCGAAP_DepExp_Yr1'!O46,+'App.2-CB_NewCGAAP_DepExp_Yr1'!O46+((C46*0.5)/D46)) -> 0 | H46: 0 | I46: 0 | K46: =IF(ISERROR(+I46+'App.2-CB_NewCGAAP_DepExp_Yr1'!O46-J46), 0, +I46+'App.2-CB_NewCGAAP_DepExp_Yr1'!O46-J46) -> 0
A47: 1945 | B47: Measurement & Testing Equipment | E47: 0 | F47: =IF(D47=0,+'App.2-CB_NewCGAAP_DepExp_Yr1'!O47,+'App.2-CB_NewCGAAP_DepExp_Yr1'!O47+((C47*0.5)/D47)) -> 0 | H47: 0 | I47: 0 | K47: =IF(ISERROR(+I47+'App.2-CB_NewCGAAP_DepExp_Yr1'!O47-J47), 0, +I47+'App.2-CB_NewCGAAP_DepExp_Yr1'!O47-J47) -> 0
A48: 1950 | B48: Power Operated Equipment | E48: 0 | F48: =IF(D48=0,+'App.2-CB_NewCGAAP_DepExp_Yr1'!O48,+'App.2-CB_NewCGAAP_DepExp_Yr1'!O48+((C48*0.5)/D48)) -> 0 | H48: 0 | I48: 0 | K48: =IF(ISERROR(+I48+'App.2-CB_NewCGAAP_DepExp_Yr1'!O48-J48), 0, +I48+'App.2-CB_NewCGAAP_DepExp_Yr1'!O48-J48) -> 0
A49: 1955 | B49: Communications Equipment | E49: 0 | F49: =IF(D49=0,+'App.2-CB_NewCGAAP_DepExp_Yr1'!O49,+'App.2-CB_NewCGAAP_DepExp_Yr1'!O49+((C49*0.5)/D49)) -> 0 | H49: 0 | I49: 0 | K49: =IF(ISERROR(+I49+'App.2-CB_NewCGAAP_DepExp_Yr1'!O49-J49), 0, +I49+'App.2-CB_NewCGAAP_DepExp_Yr1'!O49-J49) -> 0
A50: 1955 | B50: Communication Equipment (Smart Meters) | E50: 0 | F50: =IF(D50=0,+'App.2-CB_NewCGAAP_DepExp_Yr1'!O50,+'App.2-CB_NewCGAAP_DepExp_Yr1'!O50+((C50*0.5)/D50)) -> 0 | H50: 0 | I50: 0 | K50: =IF(ISERROR(+I50+'App.2-CB_NewCGAAP_DepExp_Yr1'!O50-J50), 0, +I50+'App.2-CB_NewCGAAP_DepExp_Yr1'!O50-J50) -> 0
A51: 1960 | B51: Miscellaneous Equipment | E51: 0 | F51: =IF(D51=0,+'App.2-CB_NewCGAAP_DepExp_Yr1'!O51,+'App.2-CB_NewCGAAP_DepExp_Yr1'!O51+((C51*0.5)/D51)) -> 0 | H51: 0 | I51: 0 | K51: =IF(ISERROR(+I51+'App.2-CB_NewCGAAP_DepExp_Yr1'!O51-J51), 0, +I51+'App.2-CB_NewCGAAP_DepExp_Yr1'!O51-J51) -> 0
A52: 1970 | B52: Load Management Controls Customer Premises | E52: 0 | F52: =IF(D52=0,+'App.2-CB_NewCGAAP_DepExp_Yr1'!O52,+'App.2-CB_NewCGAAP_DepExp_Yr1'!O52+((C52*0.5)/D52)) -> 0 | H52: 0 | I52: 0 | K52: =IF(ISERROR(+I52+'App.2-CB_NewCGAAP_DepExp_Yr1'!O52-J52), 0, +I52+'App.2-CB_NewCGAAP_DepExp_Yr1'!O52-J52) -> 0
A53: 1975 | B53: Load Management Controls Utility Premises | E53: 0 | F53: =IF(D53=0,+'App.2-CB_NewCGAAP_DepExp_Yr1'!O53,+'App.2-CB_NewCGAAP_DepExp_Yr1'!O53+((C53*0.5)/D53)) -> 0 | H53: 0 | I53: 0 | K53: =IF(ISERROR(+I53+'App.2-CB_NewCGAAP_DepExp_Yr1'!O53-J53), 0, +I53+'App.2-CB_NewCGAAP_DepExp_Yr1'!O53-J53) -> 0
A54: 1980 | B54: System Supervisor Equipment | E54: 0 | F54: =IF(D54=0,+'App.2-CB_NewCGAAP_DepExp_Yr1'!O54,+'App.2-CB_NewCGAAP_DepExp_Yr1'!O54+((C54*0.5)/D54)) -> 0 | H54: 0 | I54: 0 | K54: =IF(ISERROR(+I54+'App.2-CB_NewCGAAP_DepExp_Yr1'!O54-J54), 0, +I54+'App.2-CB_NewCGAAP_DepExp_Yr1'!O54-J54) -> 0
A55: 1985 | B55: Miscellaneous Fixed Assets | E55: 0 | F55: =IF(D55=0,+'App.2-CB_NewCGAAP_DepExp_Yr1'!O55,+'App.2-CB_NewCGAAP_DepExp_Yr1'!O55+((C55*0.5)/D55)) -> 0 | H55: 0 | I55: 0 | K55: =IF(ISERROR(+I55+'App.2-CB_NewCGAAP_DepExp_Yr1'!O55-J55), 0, +I55+'App.2-CB_NewCGAAP_DepExp_Yr1'!O55-J55) -> 0
A56: 1990 | B56: Other Tangible Property | E56: 0 | F56: =IF(D56=0,+'App.2-CB_NewCGAAP_DepExp_Yr1'!O56,+'App.2-CB_NewCGAAP_DepExp_Yr1'!O56+((C56*0.5)/D56)) -> 0 | H56: 0 | I56: 0 | K56: =IF(ISERROR(+I56+'App.2-CB_NewCGAAP_DepExp_Yr1'!O56-J56), 0, +I56+'App.2-CB_NewCGAAP_DepExp_Yr1'!O56-J56) -> 0
A57: 1995 | B57: Contributions & Grants | E57: 0 | F57: =IF(D57=0,+'App.2-CB_NewCGAAP_DepExp_Yr1'!O57,+'App.2-CB_NewCGAAP_DepExp_Yr1'!O57+((C57*0.5)/D57)) -> 0 | H57: 0 | I57: 0 | K57: =IF(ISERROR(+I57+'App.2-CB_NewCGAAP_DepExp_Yr1'!O57-J57), 0, +I57+'App.2-CB_NewCGAAP_DepExp_Yr1'!O57-J57) -> 0
B58: Total | C58: =SUM(C20:C57) -> 0 | F58: =SUM(F20:F57) -> 0 | G58: 0 | H58: 0 | I58: 0 | J58: 0 | K58: 0
A60: Notes:
A61: 1 | B61: Board policy of the "half-year" rule - the applicant must ensure that additions in the year attract a half-year depreciation expense in the first year. Deviations from this standard practice must be supported in the application.
A62: 2 | B62: The applicant must provide an explanation of material variances in evidence.
A63: 3 | B63: This column refers to the calculated full year depreciation but excludes the depreciation expense on assets fully depreciated during the year. This column is used for the purpose of calculating depreciation expense in the following year on the next worksheet.
A65: General: | B65: Applicants must provide a breakdown of depreciation and amortization expense in the above format for all relevant accounts. Asset Retirement Obligations (AROs), depreciation and accretion expense should be disclosed separately consistent with the Notes of historical Audited Financial Statements.

Sheet App.2-CD_DepExp_Yr3
J1: File Number: | K1: =EBNUMBER -> EB-2017-0032
A2: Please refer to separate Excel file entitled "Fixed Asset Continuity Schedule." | J2: Exhibit:
J3: Tab:
J4: Schedule:
J5: Page:
J7: Date:
A9: Appendix 2-CD
A10: Depreciation and Amortization Expense
A11: Revised CGAAP or MIFRS (Year 3)
A13: Select the set of appendices that apply | J13: Year Reflected in Schedule Below | K13: Accounting Standard
A14: 2012 Set of Appendices (2-CA to 2-CG) | C14: Assumes the applicant made capitalization and depreciation expense accounting policy changes under CGAAP effective January 1, 2012 and has adopted IFRS for financial reporting purposes effective January 1, 2015. Assumes that the applicant is reflecting these changes in a rebasing application for the first time. | J14: 2014 | K14: Revised CGAAP
A15: 2013 Set of Appendices (2-CA to 2-CF) | C15: Assumes the applicant made capitalization and depreciation expense accounting policy changes under CGAAP effective January 1, 2013 and has adopted IFRS for financial reporting purposes effective January 1, 2015. Assumes that the applicant is reflecting these changes in a rebasing application for the first time. | J15: 2015 | K15: MIFRS
A18: Account | B18: Description | C18: Additions | D18: Years (new additions only) | E18: Depreciation Rate on New Additions | F18: Current Year Depreciation Expense1 | G18: Depreciation Expense per Apppendix 2-BA Fixed Assets, Column J (l) | H18: Variance 2 | I18: Depreciation Expense on Current Full Year Additions | J18: Less Depreciation Expense on Assets Fully Depreciated During the Year (o) | K18: Current Full Year Depreciation 3
C19: (d) | D19: (f) | E19: (g) = 1 / (f) | F19: (h) = Prior Full Year Deprecation + ((d)*0.5)/(f) | H19: (m) = (h) - (l) | I19: (n)=((d))/(f) | K19: (p) = Prior Full Year Depreciation + (n) - (o)
A20: 1611 | B20: Computer Software (Formally known as Account 1925) | E20: =IF(D20=0,0,1/D20) -> 0 | F20: =IF(D20=0,+'App.2-CC_DepExp_Yr2'!K20,+'App.2-CC_DepExp_Yr2'!K20+((C20*0.5)/D20)) -> 0 | H20: =IF(ISERROR(+F20-G20), 0, +F20-G20) -> 0 | I20: =IF(D20=0,0,+(C20)/D20) -> 0 | K20: =IF(ISERROR(+I20+'App.2-CC_DepExp_Yr2'!K20-J20), 0, +I20+'App.2-CC_DepExp_Yr2'!K20-J20) -> 0
A21: 1612 | B21: Land Rights (Formally known as Account 1906) | E21: 0 | F21: =IF(D21=0,+'App.2-CC_DepExp_Yr2'!K21,+'App.2-CC_DepExp_Yr2'!K21+((C21*0.5)/D21)) -> 0 | H21: 0 | I21: =IF(D21=0,0,+(C21)/D21) -> 0 | K21: =IF(ISERROR(+I21+'App.2-CC_DepExp_Yr2'!K21-J21), 0, +I21+'App.2-CC_DepExp_Yr2'!K21-J21) -> 0
A22: 1805 | B22: Land | E22: 0 | F22: =IF(D22=0,+'App.2-CC_DepExp_Yr2'!K22,+'App.2-CC_DepExp_Yr2'!K22+((C22*0.5)/D22)) -> 0 | H22: 0 | I22: 0 | K22: =IF(ISERROR(+I22+'App.2-CC_DepExp_Yr2'!K22-J22), 0, +I22+'App.2-CC_DepExp_Yr2'!K22-J22) -> 0
A23: 1808 | B23: Buildings | E23: 0 | F23: =IF(D23=0,+'App.2-CC_DepExp_Yr2'!K23,+'App.2-CC_DepExp_Yr2'!K23+((C23*0.5)/D23)) -> 0 | H23: 0 | I23: 0 | K23: =IF(ISERROR(+I23+'App.2-CC_DepExp_Yr2'!K23-J23), 0, +I23+'App.2-CC_DepExp_Yr2'!K23-J23) -> 0
A24: 1810 | B24: Leasehold Improvements | E24: 0 | F24: =IF(D24=0,+'App.2-CC_DepExp_Yr2'!K24,+'App.2-CC_DepExp_Yr2'!K24+((C24*0.5)/D24)) -> 0 | H24: 0 | I24: 0 | K24: =IF(ISERROR(+I24+'App.2-CC_DepExp_Yr2'!K24-J24), 0, +I24+'App.2-CC_DepExp_Yr2'!K24-J24) -> 0
A25: 1815 | B25: Transformer Station Equipment >50 kV | E25: 0 | F25: =IF(D25=0,+'App.2-CC_DepExp_Yr2'!K25,+'App.2-CC_DepExp_Yr2'!K25+((C25*0.5)/D25)) -> 0 | H25: 0 | I25: 0 | K25: =IF(ISERROR(+I25+'App.2-CC_DepExp_Yr2'!K25-J25), 0, +I25+'App.2-CC_DepExp_Yr2'!K25-J25) -> 0
A26: 1820 | B26: Distribution Station Equipment <50 kV | E26: 0 | F26: =IF(D26=0,+'App.2-CC_DepExp_Yr2'!K26,+'App.2-CC_DepExp_Yr2'!K26+((C26*0.5)/D26)) -> 0 | H26: 0 | I26: 0 | K26: =IF(ISERROR(+I26+'App.2-CC_DepExp_Yr2'!K26-J26), 0, +I26+'App.2-CC_DepExp_Yr2'!K26-J26) -> 0
A27: 1825 | B27: Storage Battery Equipment | E27: 0 | F27: =IF(D27=0,+'App.2-CC_DepExp_Yr2'!K27,+'App.2-CC_DepExp_Yr2'!K27+((C27*0.5)/D27)) -> 0 | H27: 0 | I27: 0 | K27: =IF(ISERROR(+I27+'App.2-CC_DepExp_Yr2'!K27-J27), 0, +I27+'App.2-CC_DepExp_Yr2'!K27-J27) -> 0
A28: 1830 | B28: Poles, Towers & Fixtures | E28: 0 | F28: =IF(D28=0,+'App.2-CC_DepExp_Yr2'!K28,+'App.2-CC_DepExp_Yr2'!K28+((C28*0.5)/D28)) -> 0 | H28: 0 | I28: 0 | K28: =IF(ISERROR(+I28+'App.2-CC_DepExp_Yr2'!K28-J28), 0, +I28+'App.2-CC_DepExp_Yr2'!K28-J28) -> 0
A29: 1835 | B29: Overhead Conductors & Devices | E29: 0 | F29: =IF(D29=0,+'App.2-CC_DepExp_Yr2'!K29,+'App.2-CC_DepExp_Yr2'!K29+((C29*0.5)/D29)) -> 0 | H29: 0 | I29: 0 | K29: =IF(ISERROR(+I29+'App.2-CC_DepExp_Yr2'!K29-J29), 0, +I29+'App.2-CC_DepExp_Yr2'!K29-J29) -> 0
A30: 1840 | B30: Underground Conduit | E30: 0 | F30: =IF(D30=0,+'App.2-CC_DepExp_Yr2'!K30,+'App.2-CC_DepExp_Yr2'!K30+((C30*0.5)/D30)) -> 0 | H30: 0 | I30: 0 | K30: =IF(ISERROR(+I30+'App.2-CC_DepExp_Yr2'!K30-J30), 0, +I30+'App.2-CC_DepExp_Yr2'!K30-J30) -> 0
A31: 1845 | B31: Underground Conductors & Devices | E31: 0 | F31: =IF(D31=0,+'App.2-CC_DepExp_Yr2'!K31,+'App.2-CC_DepExp_Yr2'!K31+((C31*0.5)/D31)) -> 0 | H31: 0 | I31: 0 | K31: =IF(ISERROR(+I31+'App.2-CC_DepExp_Yr2'!K31-J31), 0, +I31+'App.2-CC_DepExp_Yr2'!K31-J31) -> 0
A32: 1850 | B32: Line Transformers | E32: 0 | F32: =IF(D32=0,+'App.2-CC_DepExp_Yr2'!K32,+'App.2-CC_DepExp_Yr2'!K32+((C32*0.5)/D32)) -> 0 | H32: 0 | I32: 0 | K32: =IF(ISERROR(+I32+'App.2-CC_DepExp_Yr2'!K32-J32), 0, +I32+'App.2-CC_DepExp_Yr2'!K32-J32) -> 0
A33: 1855 | B33: Services (Overhead & Underground) | E33: 0 | F33: =IF(D33=0,+'App.2-CC_DepExp_Yr2'!K33,+'App.2-CC_DepExp_Yr2'!K33+((C33*0.5)/D33)) -> 0 | H33: 0 | I33: 0 | K33: =IF(ISERROR(+I33+'App.2-CC_DepExp_Yr2'!K33-J33), 0, +I33+'App.2-CC_DepExp_Yr2'!K33-J33) -> 0
A34: 1860 | B34: Meters | E34: 0 | F34: =IF(D34=0,+'App.2-CC_DepExp_Yr2'!K34,+'App.2-CC_DepExp_Yr2'!K34+((C34*0.5)/D34)) -> 0 | H34: 0 | I34: 0 | K34: =IF(ISERROR(+I34+'App.2-CC_DepExp_Yr2'!K34-J34), 0, +I34+'App.2-CC_DepExp_Yr2'!K34-J34) -> 0
A35: 1860 | B35: Meters (Smart Meters) | E35: 0 | F35: =IF(D35=0,+'App.2-CC_DepExp_Yr2'!K35,+'App.2-CC_DepExp_Yr2'!K35+((C35*0.5)/D35)) -> 0 | H35: 0 | I35: 0 | K35: =IF(ISERROR(+I35+'App.2-CC_DepExp_Yr2'!K35-J35), 0, +I35+'App.2-CC_DepExp_Yr2'!K35-J35) -> 0
A36: 1905 | B36: Land | E36: 0 | F36: =IF(D36=0,+'App.2-CC_DepExp_Yr2'!K36,+'App.2-CC_DepExp_Yr2'!K36+((C36*0.5)/D36)) -> 0 | H36: 0 | I36: 0 | K36: =IF(ISERROR(+I36+'App.2-CC_DepExp_Yr2'!K36-J36), 0, +I36+'App.2-CC_DepExp_Yr2'!K36-J36) -> 0
A37: 1908 | B37: Buildings & Fixtures | E37: 0 | F37: =IF(D37=0,+'App.2-CC_DepExp_Yr2'!K37,+'App.2-CC_DepExp_Yr2'!K37+((C37*0.5)/D37)) -> 0 | H37: 0 | I37: 0 | K37: =IF(ISERROR(+I37+'App.2-CC_DepExp_Yr2'!K37-J37), 0, +I37+'App.2-CC_DepExp_Yr2'!K37-J37) -> 0
A38: 1910 | B38: Leasehold Improvements | E38: 0 | F38: =IF(D38=0,+'App.2-CC_DepExp_Yr2'!K38,+'App.2-CC_DepExp_Yr2'!K38+((C38*0.5)/D38)) -> 0 | H38: 0 | I38: 0 | K38: =IF(ISERROR(+I38+'App.2-CC_DepExp_Yr2'!K38-J38), 0, +I38+'App.2-CC_DepExp_Yr2'!K38-J38) -> 0
A39: 1915 | B39: Office Furniture & Equipment (10 years) | E39: 0 | F39: =IF(D39=0,+'App.2-CC_DepExp_Yr2'!K39,+'App.2-CC_DepExp_Yr2'!K39+((C39*0.5)/D39)) -> 0 | H39: 0 | I39: 0 | K39: =IF(ISERROR(+I39+'App.2-CC_DepExp_Yr2'!K39-J39), 0, +I39+'App.2-CC_DepExp_Yr2'!K39-J39) -> 0
A40: 1915 | B40: Office Furniture & Equipment (5 years) | E40: 0 | F40: =IF(D40=0,+'App.2-CC_DepExp_Yr2'!K40,+'App.2-CC_DepExp_Yr2'!K40+((C40*0.5)/D40)) -> 0 | H40: 0 | I40: 0 | K40: =IF(ISERROR(+I40+'App.2-CC_DepExp_Yr2'!K40-J40), 0, +I40+'App.2-CC_DepExp_Yr2'!K40-J40) -> 0
A41: 1920 | B41: Computer Equipment - Hardware | E41: 0 | F41: =IF(D41=0,+'App.2-CC_DepExp_Yr2'!K41,+'App.2-CC_DepExp_Yr2'!K41+((C41*0.5)/D41)) -> 0 | H41: 0 | I41: 0 | K41: =IF(ISERROR(+I41+'App.2-CC_DepExp_Yr2'!K41-J41), 0, +I41+'App.2-CC_DepExp_Yr2'!K41-J41) -> 0
A42: 1920 | B42: Computer Equip.-Hardware(Post Mar. 22/04) | E42: 0 | F42: =IF(D42=0,+'App.2-CC_DepExp_Yr2'!K42,+'App.2-CC_DepExp_Yr2'!K42+((C42*0.5)/D42)) -> 0 | H42: 0 | I42: 0 | K42: =IF(ISERROR(+I42+'App.2-CC_DepExp_Yr2'!K42-J42), 0, +I42+'App.2-CC_DepExp_Yr2'!K42-J42) -> 0
A43: 1920 | B43: Computer Equip.-Hardware(Post Mar. 19/07) | E43: 0 | F43: =IF(D43=0,+'App.2-CC_DepExp_Yr2'!K43,+'App.2-CC_DepExp_Yr2'!K43+((C43*0.5)/D43)) -> 0 | H43: 0 | I43: 0 | K43: =IF(ISERROR(+I43+'App.2-CC_DepExp_Yr2'!K43-J43), 0, +I43+'App.2-CC_DepExp_Yr2'!K43-J43) -> 0
A44: 1930 | B44: Transportation Equipment | E44: 0 | F44: =IF(D44=0,+'App.2-CC_DepExp_Yr2'!K44,+'App.2-CC_DepExp_Yr2'!K44+((C44*0.5)/D44)) -> 0 | H44: 0 | I44: 0 | K44: =IF(ISERROR(+I44+'App.2-CC_DepExp_Yr2'!K44-J44), 0, +I44+'App.2-CC_DepExp_Yr2'!K44-J44) -> 0
A45: 1935 | B45: Stores Equipment | E45: 0 | F45: =IF(D45=0,+'App.2-CC_DepExp_Yr2'!K45,+'App.2-CC_DepExp_Yr2'!K45+((C45*0.5)/D45)) -> 0 | H45: 0 | I45: 0 | K45: =IF(ISERROR(+I45+'App.2-CC_DepExp_Yr2'!K45-J45), 0, +I45+'App.2-CC_DepExp_Yr2'!K45-J45) -> 0
A46: 1940 | B46: Tools, Shop & Garage Equipment | E46: 0 | F46: =IF(D46=0,+'App.2-CC_DepExp_Yr2'!K46,+'App.2-CC_DepExp_Yr2'!K46+((C46*0.5)/D46)) -> 0 | H46: 0 | I46: 0 | K46: =IF(ISERROR(+I46+'App.2-CC_DepExp_Yr2'!K46-J46), 0, +I46+'App.2-CC_DepExp_Yr2'!K46-J46) -> 0
A47: 1945 | B47: Measurement & Testing Equipment | E47: 0 | F47: =IF(D47=0,+'App.2-CC_DepExp_Yr2'!K47,+'App.2-CC_DepExp_Yr2'!K47+((C47*0.5)/D47)) -> 0 | H47: 0 | I47: 0 | K47: =IF(ISERROR(+I47+'App.2-CC_DepExp_Yr2'!K47-J47), 0, +I47+'App.2-CC_DepExp_Yr2'!K47-J47) -> 0
A48: 1950 | B48: Power Operated Equipment | E48: 0 | F48: =IF(D48=0,+'App.2-CC_DepExp_Yr2'!K48,+'App.2-CC_DepExp_Yr2'!K48+((C48*0.5)/D48)) -> 0 | H48: 0 | I48: 0 | K48: =IF(ISERROR(+I48+'App.2-CC_DepExp_Yr2'!K48-J48), 0, +I48+'App.2-CC_DepExp_Yr2'!K48-J48) -> 0
A49: 1955 | B49: Communications Equipment | E49: 0 | F49: =IF(D49=0,+'App.2-CC_DepExp_Yr2'!K49,+'App.2-CC_DepExp_Yr2'!K49+((C49*0.5)/D49)) -> 0 | H49: 0 | I49: 0 | K49: =IF(ISERROR(+I49+'App.2-CC_DepExp_Yr2'!K49-J49), 0, +I49+'App.2-CC_DepExp_Yr2'!K49-J49) -> 0
A50: 1955 | B50: Communication Equipment (Smart Meters) | E50: 0 | F50: =IF(D50=0,+'App.2-CC_DepExp_Yr2'!K50,+'App.2-CC_DepExp_Yr2'!K50+((C50*0.5)/D50)) -> 0 | H50: 0 | I50: 0 | K50: =IF(ISERROR(+I50+'App.2-CC_DepExp_Yr2'!K50-J50), 0, +I50+'App.2-CC_DepExp_Yr2'!K50-J50) -> 0
A51: 1960 | B51: Miscellaneous Equipment | E51: 0 | F51: =IF(D51=0,+'App.2-CC_DepExp_Yr2'!K51,+'App.2-CC_DepExp_Yr2'!K51+((C51*0.5)/D51)) -> 0 | H51: 0 | I51: 0 | K51: =IF(ISERROR(+I51+'App.2-CC_DepExp_Yr2'!K51-J51), 0, +I51+'App.2-CC_DepExp_Yr2'!K51-J51) -> 0
A52: 1970 | B52: Load Management Controls Customer Premises | E52: 0 | F52: =IF(D52=0,+'App.2-CC_DepExp_Yr2'!K52,+'App.2-CC_DepExp_Yr2'!K52+((C52*0.5)/D52)) -> 0 | H52: 0 | I52: 0 | K52: =IF(ISERROR(+I52+'App.2-CC_DepExp_Yr2'!K52-J52), 0, +I52+'App.2-CC_DepExp_Yr2'!K52-J52) -> 0
A53: 1975 | B53: Load Management Controls Utility Premises | E53: 0 | F53: =IF(D53=0,+'App.2-CC_DepExp_Yr2'!K53,+'App.2-CC_DepExp_Yr2'!K53+((C53*0.5)/D53)) -> 0 | H53: 0 | I53: 0 | K53: =IF(ISERROR(+I53+'App.2-CC_DepExp_Yr2'!K53-J53), 0, +I53+'App.2-CC_DepExp_Yr2'!K53-J53) -> 0
A54: 1980 | B54: System Supervisor Equipment | E54: 0 | F54: =IF(D54=0,+'App.2-CC_DepExp_Yr2'!K54,+'App.2-CC_DepExp_Yr2'!K54+((C54*0.5)/D54)) -> 0 | H54: 0 | I54: 0 | K54: =IF(ISERROR(+I54+'App.2-CC_DepExp_Yr2'!K54-J54), 0, +I54+'App.2-CC_DepExp_Yr2'!K54-J54) -> 0
A55: 1985 | B55: Miscellaneous Fixed Assets | E55: 0 | F55: =IF(D55=0,+'App.2-CC_DepExp_Yr2'!K55,+'App.2-CC_DepExp_Yr2'!K55+((C55*0.5)/D55)) -> 0 | H55: 0 | I55: 0 | K55: =IF(ISERROR(+I55+'App.2-CC_DepExp_Yr2'!K55-J55), 0, +I55+'App.2-CC_DepExp_Yr2'!K55-J55) -> 0
A56: 1990 | B56: Other Tangible Property | E56: 0 | F56: =IF(D56=0,+'App.2-CC_DepExp_Yr2'!K56,+'App.2-CC_DepExp_Yr2'!K56+((C56*0.5)/D56)) -> 0 | H56: 0 | I56: 0 | K56: =IF(ISERROR(+I56+'App.2-CC_DepExp_Yr2'!K56-J56), 0, +I56+'App.2-CC_DepExp_Yr2'!K56-J56) -> 0
A57: 1995 | B57: Contributions & Grants | E57: =IF(D57=0,0,1/D57) -> 0 | F57: =IF(D57=0,+'App.2-CC_DepExp_Yr2'!K57,+'App.2-CC_DepExp_Yr2'!K57+((C57*0.5)/D57)) -> 0 | H57: 0 | I57: 0 | K57: =IF(ISERROR(+I57+'App.2-CC_DepExp_Yr2'!K57-J57), 0, +I57+'App.2-CC_DepExp_Yr2'!K57-J57) -> 0
B58: Total | C58: =SUM(C20:C57) -> 0 | F58: =SUM(F20:F57) -> 0 | G58: 0 | H58: 0 | I58: 0 | J58: 0 | K58: 0
B59: Depreciation exp. adj. from gain or loss on the retirement of assets (pool of like assets) (under MIFRS)
B60: Total Depreciation Expense | F60: =+F59+F58 -> 0
A62: Notes:
A63: 1 | B63: Board policy of the "half-year" rule - the applicant must ensure that additions in the year attract a half-year depreciation expense in the first year. Deviations from this standard practice must be supported in the application.
A64: 2 | B64: The applicant must provide an explanation of material variances in evidence.
A65: 3 | B65: This column refers to the calculated full year depreciation but excludes the depreciation expense on assets fully depreciated during the year. This column is used for the purpose of calculating depreciation expense in the following year on the next worksheet.
A67: General: | B67: Applicants must provide a breakdown of depreciation and amortization expense in the above format for all relevant accounts. Asset Retirement Obligations (AROs), depreciation and accretion expense should be disclosed separately consistent with the Notes of historical Audited Financial Statements.

Sheet App.2-CE_DepExp_Yr4
J1: File Number: | K1: =EBNUMBER -> EB-2017-0032
A2: Please refer to separate Excel file entitled "Fixed Asset Continuity Schedule." | J2: Exhibit:
J3: Tab:
J4: Schedule:
J5: Page:
J7: Date:
A9: Appendix 2-CE
A10: Depreciation and Amortization Expense
A11: MIFRS (Year 4)
A13: Select the set of appendices that apply | J13: Year Reflected in Schedule Below | K13: Accounting Standard
A14: 2012 Set of Appendices (2-CA to 2-CG) | C14: Assumes the applicant made capitalization and depreciation expense accounting policy changes under CGAAP effective January 1, 2012 and has adopted IFRS for financial reporting purposes effective January 1, 2015. Assumes that the applicant is reflecting these changes in a rebasing application for the first time. | J14: 2015 | K14: MIFRS
A15: 2013 Set of Appendices (2-CA to 2-CF) | C15: Assumes the applicant made capitalization and depreciation expense accounting policy changes under CGAAP effective January 1, 2013 and has adopted IFRS for financial reporting purposes effective January 1, 2015. Assumes that the applicant is reflecting these changes in a rebasing application for the first time. | J15: 2016 | K15: MIFRS
A18: Account | B18: Description | C18: Additions | D18: Years (new additions only) | E18: Depreciation Rate on New Additions | F18: Current Year Depreciation Expense1 | G18: Depreciation Expense per Appendix 2-BA Fixed Assets, Column J (l) | H18: Variance 2 | I18: Depreciation Expense on Current Full Year Additions | J18: Less Depreciation Expense on Assets Fully Depreciated During the Year (o) | K18: Current Full Year Depreciation 3
C19: (d) | D19: (f) | E19: (g) = 1 / (f) | F19: (h)=Prior Full Year Depreciation + ((d)*0.5)/(f) | H19: (m) = (h) - (l) | I19: (n)=((d))/(f) | K19: (p) = Prior Full Year Depreciation + (n) - (o)
A20: 1611 | B20: Computer Software (Formally known as Account 1925) | E20: =IF(D20=0,0,1/D20) -> 0 | F20: =IF(D20=0,'App.2-CD_DepExp_Yr3'!K20,+'App.2-CD_DepExp_Yr3'!K20+((C20*0.5)/D20)) -> 0 | H20: =IF(ISERROR(+F20-G20), 0, +F20-G20) -> 0 | I20: =IF(D20=0,0,+(C20)/D20) -> 0 | K20: =IF(ISERROR(+I20+'App.2-CD_DepExp_Yr3'!K20-J20), 0, +I20+'App.2-CD_DepExp_Yr3'!K20-J20) -> 0
A21: 1612 | B21: Land Rights (Formally known as Account 1906) | E21: 0 | F21: =IF(D21=0,'App.2-CD_DepExp_Yr3'!K21,+'App.2-CD_DepExp_Yr3'!K21+((C21*0.5)/D21)) -> 0 | H21: 0 | I21: =IF(D21=0,0,+(C21)/D21) -> 0 | K21: =IF(ISERROR(+I21+'App.2-CD_DepExp_Yr3'!K21-J21), 0, +I21+'App.2-CD_DepExp_Yr3'!K21-J21) -> 0
A22: 1805 | B22: Land | E22: 0 | F22: =IF(D22=0,'App.2-CD_DepExp_Yr3'!K22,+'App.2-CD_DepExp_Yr3'!K22+((C22*0.5)/D22)) -> 0 | H22: 0 | I22: 0 | K22: =IF(ISERROR(+I22+'App.2-CD_DepExp_Yr3'!K22-J22), 0, +I22+'App.2-CD_DepExp_Yr3'!K22-J22) -> 0
A23: 1808 | B23: Buildings | E23: 0 | F23: =IF(D23=0,'App.2-CD_DepExp_Yr3'!K23,+'App.2-CD_DepExp_Yr3'!K23+((C23*0.5)/D23)) -> 0 | H23: 0 | I23: 0 | K23: =IF(ISERROR(+I23+'App.2-CD_DepExp_Yr3'!K23-J23), 0, +I23+'App.2-CD_DepExp_Yr3'!K23-J23) -> 0
A24: 1810 | B24: Leasehold Improvements | E24: 0 | F24: =IF(D24=0,'App.2-CD_DepExp_Yr3'!K24,+'App.2-CD_DepExp_Yr3'!K24+((C24*0.5)/D24)) -> 0 | H24: 0 | I24: 0 | K24: =IF(ISERROR(+I24+'App.2-CD_DepExp_Yr3'!K24-J24), 0, +I24+'App.2-CD_DepExp_Yr3'!K24-J24) -> 0
A25: 1815 | B25: Transformer Station Equipment >50 kV | E25: 0 | F25: =IF(D25=0,'App.2-CD_DepExp_Yr3'!K25,+'App.2-CD_DepExp_Yr3'!K25+((C25*0.5)/D25)) -> 0 | H25: 0 | I25: 0 | K25: =IF(ISERROR(+I25+'App.2-CD_DepExp_Yr3'!K25-J25), 0, +I25+'App.2-CD_DepExp_Yr3'!K25-J25) -> 0
A26: 1820 | B26: Distribution Station Equipment <50 kV | E26: 0 | F26: =IF(D26=0,'App.2-CD_DepExp_Yr3'!K26,+'App.2-CD_DepExp_Yr3'!K26+((C26*0.5)/D26)) -> 0 | H26: 0 | I26: 0 | K26: =IF(ISERROR(+I26+'App.2-CD_DepExp_Yr3'!K26-J26), 0, +I26+'App.2-CD_DepExp_Yr3'!K26-J26) -> 0
A27: 1825 | B27: Storage Battery Equipment | E27: 0 | F27: =IF(D27=0,'App.2-CD_DepExp_Yr3'!K27,+'App.2-CD_DepExp_Yr3'!K27+((C27*0.5)/D27)) -> 0 | H27: 0 | I27: 0 | K27: =IF(ISERROR(+I27+'App.2-CD_DepExp_Yr3'!K27-J27), 0, +I27+'App.2-CD_DepExp_Yr3'!K27-J27) -> 0
A28: 1830 | B28: Poles, Towers & Fixtures | E28: 0 | F28: =IF(D28=0,'App.2-CD_DepExp_Yr3'!K28,+'App.2-CD_DepExp_Yr3'!K28+((C28*0.5)/D28)) -> 0 | H28: 0 | I28: 0 | K28: =IF(ISERROR(+I28+'App.2-CD_DepExp_Yr3'!K28-J28), 0, +I28+'App.2-CD_DepExp_Yr3'!K28-J28) -> 0
A29: 1835 | B29: Overhead Conductors & Devices | E29: 0 | F29: =IF(D29=0,'App.2-CD_DepExp_Yr3'!K29,+'App.2-CD_DepExp_Yr3'!K29+((C29*0.5)/D29)) -> 0 | H29: 0 | I29: 0 | K29: =IF(ISERROR(+I29+'App.2-CD_DepExp_Yr3'!K29-J29), 0, +I29+'App.2-CD_DepExp_Yr3'!K29-J29) -> 0
A30: 1840 | B30: Underground Conduit | E30: 0 | F30: =IF(D30=0,'App.2-CD_DepExp_Yr3'!K30,+'App.2-CD_DepExp_Yr3'!K30+((C30*0.5)/D30)) -> 0 | H30: 0 | I30: 0 | K30: =IF(ISERROR(+I30+'App.2-CD_DepExp_Yr3'!K30-J30), 0, +I30+'App.2-CD_DepExp_Yr3'!K30-J30) -> 0
A31: 1845 | B31: Underground Conductors & Devices | E31: 0 | F31: =IF(D31=0,'App.2-CD_DepExp_Yr3'!K31,+'App.2-CD_DepExp_Yr3'!K31+((C31*0.5)/D31)) -> 0 | H31: 0 | I31: 0 | K31: =IF(ISERROR(+I31+'App.2-CD_DepExp_Yr3'!K31-J31), 0, +I31+'App.2-CD_DepExp_Yr3'!K31-J31) -> 0
A32: 1850 | B32: Line Transformers | E32: 0 | F32: =IF(D32=0,'App.2-CD_DepExp_Yr3'!K32,+'App.2-CD_DepExp_Yr3'!K32+((C32*0.5)/D32)) -> 0 | H32: 0 | I32: 0 | K32: =IF(ISERROR(+I32+'App.2-CD_DepExp_Yr3'!K32-J32), 0, +I32+'App.2-CD_DepExp_Yr3'!K32-J32) -> 0
A33: 1855 | B33: Services (Overhead & Underground) | E33: 0 | F33: =IF(D33=0,'App.2-CD_DepExp_Yr3'!K33,+'App.2-CD_DepExp_Yr3'!K33+((C33*0.5)/D33)) -> 0 | H33: 0 | I33: 0 | K33: =IF(ISERROR(+I33+'App.2-CD_DepExp_Yr3'!K33-J33), 0, +I33+'App.2-CD_DepExp_Yr3'!K33-J33) -> 0
A34: 1860 | B34: Meters | E34: 0 | F34: =IF(D34=0,'App.2-CD_DepExp_Yr3'!K34,+'App.2-CD_DepExp_Yr3'!K34+((C34*0.5)/D34)) -> 0 | H34: 0 | I34: 0 | K34: =IF(ISERROR(+I34+'App.2-CD_DepExp_Yr3'!K34-J34), 0, +I34+'App.2-CD_DepExp_Yr3'!K34-J34) -> 0
A35: 1860 | B35: Meters (Smart Meters) | E35: 0 | F35: =IF(D35=0,'App.2-CD_DepExp_Yr3'!K35,+'App.2-CD_DepExp_Yr3'!K35+((C35*0.5)/D35)) -> 0 | H35: 0 | I35: 0 | K35: =IF(ISERROR(+I35+'App.2-CD_DepExp_Yr3'!K35-J35), 0, +I35+'App.2-CD_DepExp_Yr3'!K35-J35) -> 0
A36: 1905 | B36: Land | E36: 0 | F36: =IF(D36=0,'App.2-CD_DepExp_Yr3'!K36,+'App.2-CD_DepExp_Yr3'!K36+((C36*0.5)/D36)) -> 0 | H36: 0 | I36: 0 | K36: =IF(ISERROR(+I36+'App.2-CD_DepExp_Yr3'!K36-J36), 0, +I36+'App.2-CD_DepExp_Yr3'!K36-J36) -> 0
A37: 1908 | B37: Buildings & Fixtures | E37: 0 | F37: =IF(D37=0,'App.2-CD_DepExp_Yr3'!K37,+'App.2-CD_DepExp_Yr3'!K37+((C37*0.5)/D37)) -> 0 | H37: 0 | I37: 0 | K37: =IF(ISERROR(+I37+'App.2-CD_DepExp_Yr3'!K37-J37), 0, +I37+'App.2-CD_DepExp_Yr3'!K37-J37) -> 0
A38: 1910 | B38: Leasehold Improvements | E38: 0 | F38: =IF(D38=0,'App.2-CD_DepExp_Yr3'!K38,+'App.2-CD_DepExp_Yr3'!K38+((C38*0.5)/D38)) -> 0 | H38: 0 | I38: 0 | K38: =IF(ISERROR(+I38+'App.2-CD_DepExp_Yr3'!K38-J38), 0, +I38+'App.2-CD_DepExp_Yr3'!K38-J38) -> 0
A39: 1915 | B39: Office Furniture & Equipment (10 years) | E39: 0 | F39: =IF(D39=0,'App.2-CD_DepExp_Yr3'!K39,+'App.2-CD_DepExp_Yr3'!K39+((C39*0.5)/D39)) -> 0 | H39: 0 | I39: 0 | K39: =IF(ISERROR(+I39+'App.2-CD_DepExp_Yr3'!K39-J39), 0, +I39+'App.2-CD_DepExp_Yr3'!K39-J39) -> 0
A40: 1915 | B40: Office Furniture & Equipment (5 years) | E40: 0 | F40: =IF(D40=0,'App.2-CD_DepExp_Yr3'!K40,+'App.2-CD_DepExp_Yr3'!K40+((C40*0.5)/D40)) -> 0 | H40: 0 | I40: 0 | K40: =IF(ISERROR(+I40+'App.2-CD_DepExp_Yr3'!K40-J40), 0, +I40+'App.2-CD_DepExp_Yr3'!K40-J40) -> 0
A41: 1920 | B41: Computer Equipment - Hardware | E41: 0 | F41: =IF(D41=0,'App.2-CD_DepExp_Yr3'!K41,+'App.2-CD_DepExp_Yr3'!K41+((C41*0.5)/D41)) -> 0 | H41: 0 | I41: 0 | K41: =IF(ISERROR(+I41+'App.2-CD_DepExp_Yr3'!K41-J41), 0, +I41+'App.2-CD_DepExp_Yr3'!K41-J41) -> 0
A42: 1920 | B42: Computer Equip.-Hardware(Post Mar. 22/04) | E42: 0 | F42: =IF(D42=0,'App.2-CD_DepExp_Yr3'!K42,+'App.2-CD_DepExp_Yr3'!K42+((C42*0.5)/D42)) -> 0 | H42: 0 | I42: 0 | K42: =IF(ISERROR(+I42+'App.2-CD_DepExp_Yr3'!K42-J42), 0, +I42+'App.2-CD_DepExp_Yr3'!K42-J42) -> 0
A43: 1920 | B43: Computer Equip.-Hardware(Post Mar. 19/07) | E43: 0 | F43: =IF(D43=0,'App.2-CD_DepExp_Yr3'!K43,+'App.2-CD_DepExp_Yr3'!K43+((C43*0.5)/D43)) -> 0 | H43: 0 | I43: 0 | K43: =IF(ISERROR(+I43+'App.2-CD_DepExp_Yr3'!K43-J43), 0, +I43+'App.2-CD_DepExp_Yr3'!K43-J43) -> 0
A44: 1930 | B44: Transportation Equipment | E44: 0 | F44: =IF(D44=0,'App.2-CD_DepExp_Yr3'!K44,+'App.2-CD_DepExp_Yr3'!K44+((C44*0.5)/D44)) -> 0 | H44: 0 | I44: 0 | K44: =IF(ISERROR(+I44+'App.2-CD_DepExp_Yr3'!K44-J44), 0, +I44+'App.2-CD_DepExp_Yr3'!K44-J44) -> 0
A45: 1935 | B45: Stores Equipment | E45: 0 | F45: =IF(D45=0,'App.2-CD_DepExp_Yr3'!K45,+'App.2-CD_DepExp_Yr3'!K45+((C45*0.5)/D45)) -> 0 | H45: 0 | I45: 0 | K45: =IF(ISERROR(+I45+'App.2-CD_DepExp_Yr3'!K45-J45), 0, +I45+'App.2-CD_DepExp_Yr3'!K45-J45) -> 0
A46: 1940 | B46: Tools, Shop & Garage Equipment | E46: 0 | F46: =IF(D46=0,'App.2-CD_DepExp_Yr3'!K46,+'App.2-CD_DepExp_Yr3'!K46+((C46*0.5)/D46)) -> 0 | H46: 0 | I46: 0 | K46: =IF(ISERROR(+I46+'App.2-CD_DepExp_Yr3'!K46-J46), 0, +I46+'App.2-CD_DepExp_Yr3'!K46-J46) -> 0
A47: 1945 | B47: Measurement & Testing Equipment | E47: 0 | F47: =IF(D47=0,'App.2-CD_DepExp_Yr3'!K47,+'App.2-CD_DepExp_Yr3'!K47+((C47*0.5)/D47)) -> 0 | H47: 0 | I47: 0 | K47: =IF(ISERROR(+I47+'App.2-CD_DepExp_Yr3'!K47-J47), 0, +I47+'App.2-CD_DepExp_Yr3'!K47-J47) -> 0
A48: 1950 | B48: Power Operated Equipment | E48: 0 | F48: =IF(D48=0,'App.2-CD_DepExp_Yr3'!K48,+'App.2-CD_DepExp_Yr3'!K48+((C48*0.5)/D48)) -> 0 | H48: 0 | I48: 0 | K48: =IF(ISERROR(+I48+'App.2-CD_DepExp_Yr3'!K48-J48), 0, +I48+'App.2-CD_DepExp_Yr3'!K48-J48) -> 0
A49: 1955 | B49: Communications Equipment | E49: 0 | F49: =IF(D49=0,'App.2-CD_DepExp_Yr3'!K49,+'App.2-CD_DepExp_Yr3'!K49+((C49*0.5)/D49)) -> 0 | H49: 0 | I49: 0 | K49: =IF(ISERROR(+I49+'App.2-CD_DepExp_Yr3'!K49-J49), 0, +I49+'App.2-CD_DepExp_Yr3'!K49-J49) -> 0
A50: 1955 | B50: Communication Equipment (Smart Meters) | E50: 0 | F50: =IF(D50=0,'App.2-CD_DepExp_Yr3'!K50,+'App.2-CD_DepExp_Yr3'!K50+((C50*0.5)/D50)) -> 0 | H50: 0 | I50: 0 | K50: =IF(ISERROR(+I50+'App.2-CD_DepExp_Yr3'!K50-J50), 0, +I50+'App.2-CD_DepExp_Yr3'!K50-J50) -> 0
A51: 1960 | B51: Miscellaneous Equipment | E51: 0 | F51: =IF(D51=0,'App.2-CD_DepExp_Yr3'!K51,+'App.2-CD_DepExp_Yr3'!K51+((C51*0.5)/D51)) -> 0 | H51: 0 | I51: 0 | K51: =IF(ISERROR(+I51+'App.2-CD_DepExp_Yr3'!K51-J51), 0, +I51+'App.2-CD_DepExp_Yr3'!K51-J51) -> 0
A52: 1970 | B52: Load Management Controls Customer Premises | E52: 0 | F52: =IF(D52=0,'App.2-CD_DepExp_Yr3'!K52,+'App.2-CD_DepExp_Yr3'!K52+((C52*0.5)/D52)) -> 0 | H52: 0 | I52: 0 | K52: =IF(ISERROR(+I52+'App.2-CD_DepExp_Yr3'!K52-J52), 0, +I52+'App.2-CD_DepExp_Yr3'!K52-J52) -> 0
A53: 1975 | B53: Load Management Controls Utility Premises | E53: 0 | F53: =IF(D53=0,'App.2-CD_DepExp_Yr3'!K53,+'App.2-CD_DepExp_Yr3'!K53+((C53*0.5)/D53)) -> 0 | H53: 0 | I53: 0 | K53: =IF(ISERROR(+I53+'App.2-CD_DepExp_Yr3'!K53-J53), 0, +I53+'App.2-CD_DepExp_Yr3'!K53-J53) -> 0
A54: 1980 | B54: System Supervisor Equipment | E54: 0 | F54: =IF(D54=0,'App.2-CD_DepExp_Yr3'!K54,+'App.2-CD_DepExp_Yr3'!K54+((C54*0.5)/D54)) -> 0 | H54: 0 | I54: 0 | K54: =IF(ISERROR(+I54+'App.2-CD_DepExp_Yr3'!K54-J54), 0, +I54+'App.2-CD_DepExp_Yr3'!K54-J54) -> 0
A55: 1985 | B55: Miscellaneous Fixed Assets | E55: 0 | F55: =IF(D55=0,'App.2-CD_DepExp_Yr3'!K55,+'App.2-CD_DepExp_Yr3'!K55+((C55*0.5)/D55)) -> 0 | H55: 0 | I55: 0 | K55: =IF(ISERROR(+I55+'App.2-CD_DepExp_Yr3'!K55-J55), 0, +I55+'App.2-CD_DepExp_Yr3'!K55-J55) -> 0
A56: 1990 | B56: Other Tangible Property | E56: 0 | F56: =IF(D56=0,'App.2-CD_DepExp_Yr3'!K56,+'App.2-CD_DepExp_Yr3'!K56+((C56*0.5)/D56)) -> 0 | H56: 0 | I56: 0 | K56: =IF(ISERROR(+I56+'App.2-CD_DepExp_Yr3'!K56-J56), 0, +I56+'App.2-CD_DepExp_Yr3'!K56-J56) -> 0
A57: 1995 | B57: Contributions & Grants | E57: 0 | F57: =IF(D57=0,'App.2-CD_DepExp_Yr3'!K57,+'App.2-CD_DepExp_Yr3'!K57+((C57*0.5)/D57)) -> 0 | H57: 0 | I57: 0 | K57: =IF(ISERROR(+I57+'App.2-CD_DepExp_Yr3'!K57-J57), 0, +I57+'App.2-CD_DepExp_Yr3'!K57-J57) -> 0
B58: Total | C58: =SUM(C20:C57) -> 0 | F58: =SUM(F20:F57) -> 0 | G58: 0 | H58: 0 | I58: 0 | J58: 0 | K58: 0
B59: Depreciation exp. adj. from gain or loss on the retirement of assets (pool of like assets)
B60: Total Depreciation Expense | F60: =SUM(F58:F59) -> 0
A61: Notes:
A62: 1 | B62: Board policy of the "half-year" rule - the applicant must ensure that additions in the year attract a half-year depreciation expense in the first year. Deviations from this standard practice must be supported in the application.
A63: 2 | B63: The applicant must provide an explanation of material variances in evidence.
A64: 3 | B64: This column refers to the calculated full year depreciation but excludes the depreciation expense on assets fully depreciated during the year. This column is used for the purpose of calculating depreciation expense in the following year on the next worksheet.
A66: General: | B66: Applicants must provide a breakdown of depreciation and amortization expense in the above format for all relevant accounts. Asset Retirement Obligations (AROs), depreciation and accretion expense should be disclosed separately consistent with the Notes of historical Audited Financial Statements.

Sheet App.2-CF_DepExp_Yr5
J1: File Number: | K1: =EBNUMBER -> EB-2017-0032
A2: Please refer to separate Excel file entitled "Fixed Asset Continuity Schedule." | J2: Exhibit:
J3: Tab:
J4: Schedule:
J5: Page:
J7: Date:
A9: Appendix 2-CF
A10: Depreciation and Amortization Expense
A11: MIFRS (Year 5)
A13: Select the set of appendices that apply | J13: Year Reflected in Schedule Below | K13: Accounting Standard
A14: 2012 Set of Appendices (2-CA to 2-CG) | C14: Assumes the applicant made capitalization and depreciation expense accounting policy changes under CGAAP effective January 1, 2012 and has adopted IFRS for financial reporting purposes effective January 1, 2015. Assumes that the applicant is reflecting these changes in a rebasing application for the first time. | J14: 2016 | K14: MIFRS
A15: 2013 Set of Appendices (2-CA to 2-CF) | C15: Assumes the applicant made capitalization and depreciation expense accounting policy changes under CGAAP effective January 1, 2013 and has adopted IFRS for financial reporting purposes effective January 1, 2015. Assumes that the applicant is reflecting these changes in a rebasing application for the first time. | J15: 2017 | K15: MIFRS
A18: Account | B18: Description | C18: Additions | D18: Years (new additions only) | E18: Depreciation Rate on New Additions | F18: Current Depreciation Expense1 | G18: Depreciation Expense per Appendix 2-BA Fixed Assets, Column J (l) | H18: Variance 2 | I18: Depreciation Expense on Current Full Year Additions | J18: Less Depreciation Expense on Assets Fully Depreciated During the Year (o) | K18: Current Full Year Depreciation 3
C19: (d) | D19: (f) | E19: (g) = 1 / (f) | F19: (h)= Prior Full Year Depreciation + ((d)*0.5)/(f) | H19: (m) = (h) - (l) | I19: (n)=((d))/(f) | K19: (p) = Prior Full Year Depreciation + (n) - (o)
A20: 1611 | B20: Computer Software (Formally known as Account 1925) | E20: =IF(D20=0,0,1/D20) -> 0 | F20: =IF(D20=0,'App.2-CE_DepExp_Yr4'!K20,+'App.2-CE_DepExp_Yr4'!K20+((C20*0.5)/D20)) -> 0 | H20: =IF(ISERROR(+F20-G20), 0, +F20-G20) -> 0 | I20: =IF(D20=0,0,+(C20)/D20) -> 0 | K20: =IF(ISERROR(+I20+'App.2-CE_DepExp_Yr4'!K20-J20), 0, +'App.2-CE_DepExp_Yr4'!K20-J20) -> 0
A21: 1612 | B21: Land Rights (Formally known as Account 1906) | E21: 0 | F21: =IF(D21=0,'App.2-CE_DepExp_Yr4'!K21,+'App.2-CE_DepExp_Yr4'!K21+((C21*0.5)/D21)) -> 0 | H21: 0 | I21: =IF(D21=0,0,+(C21)/D21) -> 0 | K21: =IF(ISERROR(+I21+'App.2-CE_DepExp_Yr4'!K21-J21), 0, +'App.2-CE_DepExp_Yr4'!K21-J21) -> 0
A22: 1805 | B22: Land | E22: 0 | F22: =IF(D22=0,'App.2-CE_DepExp_Yr4'!K22,+'App.2-CE_DepExp_Yr4'!K22+((C22*0.5)/D22)) -> 0 | H22: 0 | I22: 0 | K22: =IF(ISERROR(+I22+'App.2-CE_DepExp_Yr4'!K22-J22), 0, +'App.2-CE_DepExp_Yr4'!K22-J22) -> 0
A23: 1808 | B23: Buildings | E23: 0 | F23: =IF(D23=0,'App.2-CE_DepExp_Yr4'!K23,+'App.2-CE_DepExp_Yr4'!K23+((C23*0.5)/D23)) -> 0 | H23: 0 | I23: 0 | K23: =IF(ISERROR(+I23+'App.2-CE_DepExp_Yr4'!K23-J23), 0, +'App.2-CE_DepExp_Yr4'!K23-J23) -> 0
A24: 1810 | B24: Leasehold Improvements | E24: 0 | F24: =IF(D24=0,'App.2-CE_DepExp_Yr4'!K24,+'App.2-CE_DepExp_Yr4'!K24+((C24*0.5)/D24)) -> 0 | H24: 0 | I24: 0 | K24: =IF(ISERROR(+I24+'App.2-CE_DepExp_Yr4'!K24-J24), 0, +'App.2-CE_DepExp_Yr4'!K24-J24) -> 0
A25: 1815 | B25: Transformer Station Equipment >50 kV | E25: 0 | F25: =IF(D25=0,'App.2-CE_DepExp_Yr4'!K25,+'App.2-CE_DepExp_Yr4'!K25+((C25*0.5)/D25)) -> 0 | H25: 0 | I25: 0 | K25: =IF(ISERROR(+I25+'App.2-CE_DepExp_Yr4'!K25-J25), 0, +'App.2-CE_DepExp_Yr4'!K25-J25) -> 0
A26: 1820 | B26: Distribution Station Equipment <50 kV | E26: 0 | F26: =IF(D26=0,'App.2-CE_DepExp_Yr4'!K26,+'App.2-CE_DepExp_Yr4'!K26+((C26*0.5)/D26)) -> 0 | H26: 0 | I26: 0 | K26: =IF(ISERROR(+I26+'App.2-CE_DepExp_Yr4'!K26-J26), 0, +'App.2-CE_DepExp_Yr4'!K26-J26) -> 0
A27: 1825 | B27: Storage Battery Equipment | E27: 0 | F27: =IF(D27=0,'App.2-CE_DepExp_Yr4'!K27,+'App.2-CE_DepExp_Yr4'!K27+((C27*0.5)/D27)) -> 0 | H27: 0 | I27: 0 | K27: =IF(ISERROR(+I27+'App.2-CE_DepExp_Yr4'!K27-J27), 0, +'App.2-CE_DepExp_Yr4'!K27-J27) -> 0
A28: 1830 | B28: Poles, Towers & Fixtures | E28: 0 | F28: =IF(D28=0,'App.2-CE_DepExp_Yr4'!K28,+'App.2-CE_DepExp_Yr4'!K28+((C28*0.5)/D28)) -> 0 | H28: 0 | I28: 0 | K28: =IF(ISERROR(+I28+'App.2-CE_DepExp_Yr4'!K28-J28), 0, +'App.2-CE_DepExp_Yr4'!K28-J28) -> 0
A29: 1835 | B29: Overhead Conductors & Devices | E29: 0 | F29: =IF(D29=0,'App.2-CE_DepExp_Yr4'!K29,+'App.2-CE_DepExp_Yr4'!K29+((C29*0.5)/D29)) -> 0 | H29: 0 | I29: 0 | K29: =IF(ISERROR(+I29+'App.2-CE_DepExp_Yr4'!K29-J29), 0, +'App.2-CE_DepExp_Yr4'!K29-J29) -> 0
A30: 1840 | B30: Underground Conduit | E30: 0 | F30: =IF(D30=0,'App.2-CE_DepExp_Yr4'!K30,+'App.2-CE_DepExp_Yr4'!K30+((C30*0.5)/D30)) -> 0 | H30: 0 | I30: 0 | K30: =IF(ISERROR(+I30+'App.2-CE_DepExp_Yr4'!K30-J30), 0, +'App.2-CE_DepExp_Yr4'!K30-J30) -> 0
A31: 1845 | B31: Underground Conductors & Devices | E31: 0 | F31: =IF(D31=0,'App.2-CE_DepExp_Yr4'!K31,+'App.2-CE_DepExp_Yr4'!K31+((C31*0.5)/D31)) -> 0 | H31: 0 | I31: 0 | K31: =IF(ISERROR(+I31+'App.2-CE_DepExp_Yr4'!K31-J31), 0, +'App.2-CE_DepExp_Yr4'!K31-J31) -> 0
A32: 1850 | B32: Line Transformers | E32: 0 | F32: =IF(D32=0,'App.2-CE_DepExp_Yr4'!K32,+'App.2-CE_DepExp_Yr4'!K32+((C32*0.5)/D32)) -> 0 | H32: 0 | I32: 0 | K32: =IF(ISERROR(+I32+'App.2-CE_DepExp_Yr4'!K32-J32), 0, +'App.2-CE_DepExp_Yr4'!K32-J32) -> 0
A33: 1855 | B33: Services (Overhead & Underground) | E33: 0 | F33: =IF(D33=0,'App.2-CE_DepExp_Yr4'!K33,+'App.2-CE_DepExp_Yr4'!K33+((C33*0.5)/D33)) -> 0 | H33: 0 | I33: 0 | K33: =IF(ISERROR(+I33+'App.2-CE_DepExp_Yr4'!K33-J33), 0, +'App.2-CE_DepExp_Yr4'!K33-J33) -> 0
A34: 1860 | B34: Meters | E34: 0 | F34: =IF(D34=0,'App.2-CE_DepExp_Yr4'!K34,+'App.2-CE_DepExp_Yr4'!K34+((C34*0.5)/D34)) -> 0 | H34: 0 | I34: 0 | K34: =IF(ISERROR(+I34+'App.2-CE_DepExp_Yr4'!K34-J34), 0, +'App.2-CE_DepExp_Yr4'!K34-J34) -> 0
A35: 1860 | B35: Meters (Smart Meters) | E35: 0 | F35: =IF(D35=0,'App.2-CE_DepExp_Yr4'!K35,+'App.2-CE_DepExp_Yr4'!K35+((C35*0.5)/D35)) -> 0 | H35: 0 | I35: 0 | K35: =IF(ISERROR(+I35+'App.2-CE_DepExp_Yr4'!K35-J35), 0, +'App.2-CE_DepExp_Yr4'!K35-J35) -> 0
A36: 1905 | B36: Land | E36: 0 | F36: =IF(D36=0,'App.2-CE_DepExp_Yr4'!K36,+'App.2-CE_DepExp_Yr4'!K36+((C36*0.5)/D36)) -> 0 | H36: 0 | I36: 0 | K36: =IF(ISERROR(+I36+'App.2-CE_DepExp_Yr4'!K36-J36), 0, +'App.2-CE_DepExp_Yr4'!K36-J36) -> 0
A37: 1908 | B37: Buildings & Fixtures | E37: 0 | F37: =IF(D37=0,'App.2-CE_DepExp_Yr4'!K37,+'App.2-CE_DepExp_Yr4'!K37+((C37*0.5)/D37)) -> 0 | H37: 0 | I37: 0 | K37: =IF(ISERROR(+I37+'App.2-CE_DepExp_Yr4'!K37-J37), 0, +'App.2-CE_DepExp_Yr4'!K37-J37) -> 0
A38: 1910 | B38: Leasehold Improvements | E38: 0 | F38: =IF(D38=0,'App.2-CE_DepExp_Yr4'!K38,+'App.2-CE_DepExp_Yr4'!K38+((C38*0.5)/D38)) -> 0 | H38: 0 | I38: 0 | K38: =IF(ISERROR(+I38+'App.2-CE_DepExp_Yr4'!K38-J38), 0, +'App.2-CE_DepExp_Yr4'!K38-J38) -> 0
A39: 1915 | B39: Office Furniture & Equipment (10 years) | E39: 0 | F39: =IF(D39=0,'App.2-CE_DepExp_Yr4'!K39,+'App.2-CE_DepExp_Yr4'!K39+((C39*0.5)/D39)) -> 0 | H39: 0 | I39: 0 | K39: =IF(ISERROR(+I39+'App.2-CE_DepExp_Yr4'!K39-J39), 0, +'App.2-CE_DepExp_Yr4'!K39-J39) -> 0
A40: 1915 | B40: Office Furniture & Equipment (5 years) | E40: 0 | F40: =IF(D40=0,'App.2-CE_DepExp_Yr4'!K40,+'App.2-CE_DepExp_Yr4'!K40+((C40*0.5)/D40)) -> 0 | H40: 0 | I40: 0 | K40: =IF(ISERROR(+I40+'App.2-CE_DepExp_Yr4'!K40-J40), 0, +'App.2-CE_DepExp_Yr4'!K40-J40) -> 0
A41: 1920 | B41: Computer Equipment - Hardware | E41: 0 | F41: =IF(D41=0,'App.2-CE_DepExp_Yr4'!K41,+'App.2-CE_DepExp_Yr4'!K41+((C41*0.5)/D41)) -> 0 | H41: 0 | I41: 0 | K41: =IF(ISERROR(+I41+'App.2-CE_DepExp_Yr4'!K41-J41), 0, +'App.2-CE_DepExp_Yr4'!K41-J41) -> 0
A42: 1920 | B42: Computer Equip.-Hardware(Post Mar. 22/04) | E42: 0 | F42: =IF(D42=0,'App.2-CE_DepExp_Yr4'!K42,+'App.2-CE_DepExp_Yr4'!K42+((C42*0.5)/D42)) -> 0 | H42: 0 | I42: 0 | K42: =IF(ISERROR(+I42+'App.2-CE_DepExp_Yr4'!K42-J42), 0, +'App.2-CE_DepExp_Yr4'!K42-J42) -> 0
A43: 1920 | B43: Computer Equip.-Hardware(Post Mar. 19/07) | E43: 0 | F43: =IF(D43=0,'App.2-CE_DepExp_Yr4'!K43,+'App.2-CE_DepExp_Yr4'!K43+((C43*0.5)/D43)) -> 0 | H43: 0 | I43: 0 | K43: =IF(ISERROR(+I43+'App.2-CE_DepExp_Yr4'!K43-J43), 0, +'App.2-CE_DepExp_Yr4'!K43-J43) -> 0
A44: 1930 | B44: Transportation Equipment | E44: 0 | F44: =IF(D44=0,'App.2-CE_DepExp_Yr4'!K44,+'App.2-CE_DepExp_Yr4'!K44+((C44*0.5)/D44)) -> 0 | H44: 0 | I44: 0 | K44: =IF(ISERROR(+I44+'App.2-CE_DepExp_Yr4'!K44-J44), 0, +'App.2-CE_DepExp_Yr4'!K44-J44) -> 0
A45: 1935 | B45: Stores Equipment | E45: 0 | F45: =IF(D45=0,'App.2-CE_DepExp_Yr4'!K45,+'App.2-CE_DepExp_Yr4'!K45+((C45*0.5)/D45)) -> 0 | H45: 0 | I45: 0 | K45: =IF(ISERROR(+I45+'App.2-CE_DepExp_Yr4'!K45-J45), 0, +'App.2-CE_DepExp_Yr4'!K45-J45) -> 0
A46: 1940 | B46: Tools, Shop & Garage Equipment | E46: 0 | F46: =IF(D46=0,'App.2-CE_DepExp_Yr4'!K46,+'App.2-CE_DepExp_Yr4'!K46+((C46*0.5)/D46)) -> 0 | H46: 0 | I46: 0 | K46: =IF(ISERROR(+I46+'App.2-CE_DepExp_Yr4'!K46-J46), 0, +'App.2-CE_DepExp_Yr4'!K46-J46) -> 0
A47: 1945 | B47: Measurement & Testing Equipment | E47: 0 | F47: =IF(D47=0,'App.2-CE_DepExp_Yr4'!K47,+'App.2-CE_DepExp_Yr4'!K47+((C47*0.5)/D47)) -> 0 | H47: 0 | I47: 0 | K47: =IF(ISERROR(+I47+'App.2-CE_DepExp_Yr4'!K47-J47), 0, +'App.2-CE_DepExp_Yr4'!K47-J47) -> 0
A48: 1950 | B48: Power Operated Equipment | E48: 0 | F48: =IF(D48=0,'App.2-CE_DepExp_Yr4'!K48,+'App.2-CE_DepExp_Yr4'!K48+((C48*0.5)/D48)) -> 0 | H48: 0 | I48: 0 | K48: =IF(ISERROR(+I48+'App.2-CE_DepExp_Yr4'!K48-J48), 0, +'App.2-CE_DepExp_Yr4'!K48-J48) -> 0
A49: 1955 | B49: Communications Equipment | E49: 0 | F49: =IF(D49=0,'App.2-CE_DepExp_Yr4'!K49,+'App.2-CE_DepExp_Yr4'!K49+((C49*0.5)/D49)) -> 0 | H49: 0 | I49: 0 | K49: =IF(ISERROR(+I49+'App.2-CE_DepExp_Yr4'!K49-J49), 0, +'App.2-CE_DepExp_Yr4'!K49-J49) -> 0
A50: 1955 | B50: Communication Equipment (Smart Meters) | E50: 0 | F50: =IF(D50=0,'App.2-CE_DepExp_Yr4'!K50,+'App.2-CE_DepExp_Yr4'!K50+((C50*0.5)/D50)) -> 0 | H50: 0 | I50: 0 | K50: =IF(ISERROR(+I50+'App.2-CE_DepExp_Yr4'!K50-J50), 0, +'App.2-CE_DepExp_Yr4'!K50-J50) -> 0
A51: 1960 | B51: Miscellaneous Equipment | E51: 0 | F51: =IF(D51=0,'App.2-CE_DepExp_Yr4'!K51,+'App.2-CE_DepExp_Yr4'!K51+((C51*0.5)/D51)) -> 0 | H51: 0 | I51: 0 | K51: =IF(ISERROR(+I51+'App.2-CE_DepExp_Yr4'!K51-J51), 0, +'App.2-CE_DepExp_Yr4'!K51-J51) -> 0
A52: 1970 | B52: Load Management Controls Customer Premises | E52: 0 | F52: =IF(D52=0,'App.2-CE_DepExp_Yr4'!K52,+'App.2-CE_DepExp_Yr4'!K52+((C52*0.5)/D52)) -> 0 | H52: 0 | I52: 0 | K52: =IF(ISERROR(+I52+'App.2-CE_DepExp_Yr4'!K52-J52), 0, +'App.2-CE_DepExp_Yr4'!K52-J52) -> 0
A53: 1975 | B53: Load Management Controls Utility Premises | E53: 0 | F53: =IF(D53=0,'App.2-CE_DepExp_Yr4'!K53,+'App.2-CE_DepExp_Yr4'!K53+((C53*0.5)/D53)) -> 0 | H53: 0 | I53: 0 | K53: =IF(ISERROR(+I53+'App.2-CE_DepExp_Yr4'!K53-J53), 0, +'App.2-CE_DepExp_Yr4'!K53-J53) -> 0
A54: 1980 | B54: System Supervisor Equipment | E54: 0 | F54: =IF(D54=0,'App.2-CE_DepExp_Yr4'!K54,+'App.2-CE_DepExp_Yr4'!K54+((C54*0.5)/D54)) -> 0 | H54: 0 | I54: 0 | K54: =IF(ISERROR(+I54+'App.2-CE_DepExp_Yr4'!K54-J54), 0, +'App.2-CE_DepExp_Yr4'!K54-J54) -> 0
A55: 1985 | B55: Miscellaneous Fixed Assets | E55: 0 | F55: =IF(D55=0,'App.2-CE_DepExp_Yr4'!K55,+'App.2-CE_DepExp_Yr4'!K55+((C55*0.5)/D55)) -> 0 | H55: 0 | I55: 0 | K55: =IF(ISERROR(+I55+'App.2-CE_DepExp_Yr4'!K55-J55), 0, +'App.2-CE_DepExp_Yr4'!K55-J55) -> 0
A56: 1990 | B56: Other Tangible Property | E56: 0 | F56: =IF(D56=0,'App.2-CE_DepExp_Yr4'!K56,+'App.2-CE_DepExp_Yr4'!K56+((C56*0.5)/D56)) -> 0 | H56: 0 | I56: 0 | K56: =IF(ISERROR(+I56+'App.2-CE_DepExp_Yr4'!K56-J56), 0, +'App.2-CE_DepExp_Yr4'!K56-J56) -> 0
A57: 1995 | B57: Contributions & Grants | E57: 0 | F57: =IF(D57=0,'App.2-CE_DepExp_Yr4'!K57,+'App.2-CE_DepExp_Yr4'!K57+((C57*0.5)/D57)) -> 0 | H57: 0 | I57: 0 | K57: =IF(ISERROR(+I57+'App.2-CE_DepExp_Yr4'!K57-J57), 0, +'App.2-CE_DepExp_Yr4'!K57-J57) -> 0
B58: Total | C58: =SUM(C20:C57) -> 0 | F58: =SUM(F20:F57) -> 0 | G58: 0 | H58: 0 | I58: 0 | J58: 0 | K58: 0
B59: Depreciation exp. adj. from gain or loss on the retirement of assets (pool of like assets)
B60: Total Depreciation Expense | F60: =SUM(F58:F59) -> 0
A61: Notes:
A62: 1 | B62: Board policy of the "half-year" rule - the applicant must ensure that additions in the year attract a half-year depreciation expense in the first year. Deviations from this standard practice must be supported in the application.
A63: 2 | B63: The applicant must provide an explanation of material variances in evidence.
A64: 3 | B64: This column refers to the calculated full year depreciation but excludes the depreciation expense on assets fully depreciated during the year. This column is used for the purpose of calculating depreciation expense in the following year on the next worksheet.
A66: General: | B66: Applicants must provide a breakdown of depreciation and amortization expense in the above format for all relevant accounts. Asset Retirement Obligations (AROs), depreciation and accretion expense should be disclosed separately consistent with the Notes of historical Audited Financial Statements.

Sheet App.2-CG_DepExp_Yr6
J1: File Number: | K1: =EBNUMBER -> EB-2017-0032
A2: Please refer to separate Excel file entitled "Fixed Asset Continuity Schedule." | J2: Exhibit:
J3: Tab:
J4: Schedule:
J5: Page:
J7: Date:
A9: Appendix 2-CG
A10: Depreciation and Amortization Expense
A11: MIFRS (Year 6)
A13: Select the set of appendices that apply | J13: Year Reflected in Schedule Below | K13: Accounting Standard
A14: 2012 Set of Appendices (2-CA to 2-CG) | C14: Assumes the applicant made capitalization and depreciation expense accounting policy changes under CGAAP effective January 1, 2012 and has adopted IFRS for financial reporting purposes effective January 1, 2015. Assumes that the applicant is reflecting these changes in a rebasing application for the first time. | J14: 2017 | K14: MIFRS
A15: N/A | B15: 2013 Set of Appendices | C15: Not applicable as the test year depreciation is already calculated in Appendix 2-CF. Note that this appendix is not to be used even though depreciation expense calculations will flow through from previous years to this appendix. | J15: N/A | K15: N/A
A18: Account | B18: Description | C18: Additions | D18: Years (new additions only) | E18: Depreciation Rate on New Additions | F18: Current Depreciation Expense1 | G18: Depreciation Expense per Appendix 2-BA Fixed Assets, Column J (l) | H18: Variance 2
C19: (d) | D19: (f) | E19: (g) = 1 / (f) | F19: (h)= Prior Full Year Depreciation + ((d)*0.5)/(f) | H19: (m) = (h) - (l)
A20: 1611 | B20: Computer Software (Formally known as Account 1925) | E20: =IF(D20=0,0,1/D20) -> 0 | F20: =IF(D20=0,'App.2-CF_DepExp_Yr5'!K20,+'App.2-CF_DepExp_Yr5'!K20+((C20*0.5)/D20)) -> 0 | H20: =IF(ISERROR(+F20-G20), 0, +F20-G20) -> 0
A21: 1612 | B21: Land Rights (Formally known as Account 1906) | E21: 0 | F21: =IF(D21=0,'App.2-CF_DepExp_Yr5'!K21,+'App.2-CF_DepExp_Yr5'!K21+((C21*0.5)/D21)) -> 0 | H21: 0
A22: 1805 | B22: Land | E22: 0 | F22: =IF(D22=0,'App.2-CF_DepExp_Yr5'!K22,+'App.2-CF_DepExp_Yr5'!K22+((C22*0.5)/D22)) -> 0 | H22: 0
A23: 1808 | B23: Buildings | E23: 0 | F23: =IF(D23=0,'App.2-CF_DepExp_Yr5'!K23,+'App.2-CF_DepExp_Yr5'!K23+((C23*0.5)/D23)) -> 0 | H23: 0
A24: 1810 | B24: Leasehold Improvements | E24: 0 | F24: =IF(D24=0,'App.2-CF_DepExp_Yr5'!K24,+'App.2-CF_DepExp_Yr5'!K24+((C24*0.5)/D24)) -> 0 | H24: 0
A25: 1815 | B25: Transformer Station Equipment >50 kV | E25: 0 | F25: =IF(D25=0,'App.2-CF_DepExp_Yr5'!K25,+'App.2-CF_DepExp_Yr5'!K25+((C25*0.5)/D25)) -> 0 | H25: 0
A26: 1820 | B26: Distribution Station Equipment <50 kV | E26: 0 | F26: =IF(D26=0,'App.2-CF_DepExp_Yr5'!K26,+'App.2-CF_DepExp_Yr5'!K26+((C26*0.5)/D26)) -> 0 | H26: 0
A27: 1825 | B27: Storage Battery Equipment | E27: 0 | F27: =IF(D27=0,'App.2-CF_DepExp_Yr5'!K27,+'App.2-CF_DepExp_Yr5'!K27+((C27*0.5)/D27)) -> 0 | H27: 0
A28: 1830 | B28: Poles, Towers & Fixtures | E28: 0 | F28: =IF(D28=0,'App.2-CF_DepExp_Yr5'!K28,+'App.2-CF_DepExp_Yr5'!K28+((C28*0.5)/D28)) -> 0 | H28: 0
A29: 1835 | B29: Overhead Conductors & Devices | E29: 0 | F29: =IF(D29=0,'App.2-CF_DepExp_Yr5'!K29,+'App.2-CF_DepExp_Yr5'!K29+((C29*0.5)/D29)) -> 0 | H29: 0
A30: 1840 | B30: Underground Conduit | E30: 0 | F30: =IF(D30=0,'App.2-CF_DepExp_Yr5'!K30,+'App.2-CF_DepExp_Yr5'!K30+((C30*0.5)/D30)) -> 0 | H30: 0
A31: 1845 | B31: Underground Conductors & Devices | E31: 0 | F31: =IF(D31=0,'App.2-CF_DepExp_Yr5'!K31,+'App.2-CF_DepExp_Yr5'!K31+((C31*0.5)/D31)) -> 0 | H31: 0
A32: 1850 | B32: Line Transformers | E32: 0 | F32: =IF(D32=0,'App.2-CF_DepExp_Yr5'!K32,+'App.2-CF_DepExp_Yr5'!K32+((C32*0.5)/D32)) -> 0 | H32: 0
A33: 1855 | B33: Services (Overhead & Underground) | E33: 0 | F33: =IF(D33=0,'App.2-CF_DepExp_Yr5'!K33,+'App.2-CF_DepExp_Yr5'!K33+((C33*0.5)/D33)) -> 0 | H33: 0
A34: 1860 | B34: Meters | E34: 0 | F34: =IF(D34=0,'App.2-CF_DepExp_Yr5'!K34,+'App.2-CF_DepExp_Yr5'!K34+((C34*0.5)/D34)) -> 0 | H34: 0
A35: 1860 | B35: Meters (Smart Meters) | E35: 0 | F35: =IF(D35=0,'App.2-CF_DepExp_Yr5'!K35,+'App.2-CF_DepExp_Yr5'!K35+((C35*0.5)/D35)) -> 0 | H35: 0
A36: 1905 | B36: Land | E36: 0 | F36: =IF(D36=0,'App.2-CF_DepExp_Yr5'!K36,+'App.2-CF_DepExp_Yr5'!K36+((C36*0.5)/D36)) -> 0 | H36: 0
A37: 1908 | B37: Buildings & Fixtures | E37: 0 | F37: =IF(D37=0,'App.2-CF_DepExp_Yr5'!K37,+'App.2-CF_DepExp_Yr5'!K37+((C37*0.5)/D37)) -> 0 | H37: 0
A38: 1910 | B38: Leasehold Improvements | E38: 0 | F38: =IF(D38=0,'App.2-CF_DepExp_Yr5'!K38,+'App.2-CF_DepExp_Yr5'!K38+((C38*0.5)/D38)) -> 0 | H38: 0
A39: 1915 | B39: Office Furniture & Equipment (10 years) | E39: 0 | F39: =IF(D39=0,'App.2-CF_DepExp_Yr5'!K39,+'App.2-CF_DepExp_Yr5'!K39+((C39*0.5)/D39)) -> 0 | H39: 0
A40: 1915 | B40: Office Furniture & Equipment (5 years) | E40: 0 | F40: =IF(D40=0,'App.2-CF_DepExp_Yr5'!K40,+'App.2-CF_DepExp_Yr5'!K40+((C40*0.5)/D40)) -> 0 | H40: 0
A41: 1920 | B41: Computer Equipment - Hardware | E41: 0 | F41: =IF(D41=0,'App.2-CF_DepExp_Yr5'!K41,+'App.2-CF_DepExp_Yr5'!K41+((C41*0.5)/D41)) -> 0 | H41: 0
A42: 1920 | B42: Computer Equip.-Hardware(Post Mar. 22/04) | E42: 0 | F42: =IF(D42=0,'App.2-CF_DepExp_Yr5'!K42,+'App.2-CF_DepExp_Yr5'!K42+((C42*0.5)/D42)) -> 0 | H42: 0
A43: 1920 | B43: Computer Equip.-Hardware(Post Mar. 19/07) | E43: 0 | F43: =IF(D43=0,'App.2-CF_DepExp_Yr5'!K43,+'App.2-CF_DepExp_Yr5'!K43+((C43*0.5)/D43)) -> 0 | H43: 0
A44: 1930 | B44: Transportation Equipment | E44: 0 | F44: =IF(D44=0,'App.2-CF_DepExp_Yr5'!K44,+'App.2-CF_DepExp_Yr5'!K44+((C44*0.5)/D44)) -> 0 | H44: 0
A45: 1935 | B45: Stores Equipment | E45: 0 | F45: =IF(D45=0,'App.2-CF_DepExp_Yr5'!K45,+'App.2-CF_DepExp_Yr5'!K45+((C45*0.5)/D45)) -> 0 | H45: 0
A46: 1940 | B46: Tools, Shop & Garage Equipment | E46: 0 | F46: =IF(D46=0,'App.2-CF_DepExp_Yr5'!K46,+'App.2-CF_DepExp_Yr5'!K46+((C46*0.5)/D46)) -> 0 | H46: 0
A47: 1945 | B47: Measurement & Testing Equipment | E47: 0 | F47: =IF(D47=0,'App.2-CF_DepExp_Yr5'!K47,+'App.2-CF_DepExp_Yr5'!K47+((C47*0.5)/D47)) -> 0 | H47: 0
A48: 1950 | B48: Power Operated Equipment | E48: 0 | F48: =IF(D48=0,'App.2-CF_DepExp_Yr5'!K48,+'App.2-CF_DepExp_Yr5'!K48+((C48*0.5)/D48)) -> 0 | H48: 0
A49: 1955 | B49: Communications Equipment | E49: 0 | F49: =IF(D49=0,'App.2-CF_DepExp_Yr5'!K49,+'App.2-CF_DepExp_Yr5'!K49+((C49*0.5)/D49)) -> 0 | H49: 0
A50: 1955 | B50: Communication Equipment (Smart Meters) | E50: 0 | F50: =IF(D50=0,'App.2-CF_DepExp_Yr5'!K50,+'App.2-CF_DepExp_Yr5'!K50+((C50*0.5)/D50)) -> 0 | H50: 0
A51: 1960 | B51: Miscellaneous Equipment | E51: 0 | F51: =IF(D51=0,'App.2-CF_DepExp_Yr5'!K51,+'App.2-CF_DepExp_Yr5'!K51+((C51*0.5)/D51)) -> 0 | H51: 0
A52: 1970 | B52: Load Management Controls Customer Premises | E52: 0 | F52: =IF(D52=0,'App.2-CF_DepExp_Yr5'!K52,+'App.2-CF_DepExp_Yr5'!K52+((C52*0.5)/D52)) -> 0 | H52: 0
A53: 1975 | B53: Load Management Controls Utility Premises | E53: 0 | F53: =IF(D53=0,'App.2-CF_DepExp_Yr5'!K53,+'App.2-CF_DepExp_Yr5'!K53+((C53*0.5)/D53)) -> 0 | H53: 0
A54: 1980 | B54: System Supervisor Equipment | E54: 0 | F54: =IF(D54=0,'App.2-CF_DepExp_Yr5'!K54,+'App.2-CF_DepExp_Yr5'!K54+((C54*0.5)/D54)) -> 0 | H54: 0
A55: 1985 | B55: Miscellaneous Fixed Assets | E55: 0 | F55: =IF(D55=0,'App.2-CF_DepExp_Yr5'!K55,+'App.2-CF_DepExp_Yr5'!K55+((C55*0.5)/D55)) -> 0 | H55: 0
A56: 1990 | B56: Other Tangible Property | E56: 0 | F56: =IF(D56=0,'App.2-CF_DepExp_Yr5'!K56,+'App.2-CF_DepExp_Yr5'!K56+((C56*0.5)/D56)) -> 0 | H56: 0
A57: 1995 | B57: Contributions & Grants | E57: 0 | F57: =IF(D57=0,'App.2-CF_DepExp_Yr5'!K57,+'App.2-CF_DepExp_Yr5'!K57+((C57*0.5)/D57)) -> 0 | H57: 0
B58: Total | C58: =SUM(C20:C57) -> 0 | F58: =SUM(F20:F57) -> 0 | G58: =SUM(G20:G57) -> 0 | H58: =SUM(H20:H57) -> 0
B59: Depreciation exp. adj. from gain or loss on the retirement of assets (pool of like assets)
B60: Total Depreciation Expense | F60: =SUM(F58:F59) -> 0
A61: Notes:
A62: 1 | B62: Board policy of the "half-year" rule - the applicant must ensure that additions in the year attract a half-year depreciation expense in the first year. Deviations from this standard practice must be supported in the application.
A63: 2 | B63: The applicant must provide an explanation of material variances in evidence.
A66: General: | B66: Applicants must provide a breakdown of depreciation and amortization expense in the above format for all relevant accounts. Asset Retirement Obligations (AROs), depreciation and accretion expense should be disclosed separately consistent with the Notes of historical Audited Financial Statements.

Sheet App.2-CH_DepExp
K1: File Number: | L1: =EBNUMBER -> EB-2017-0032
A2: Please refer to separate Excel file entitled "Fixed Asset Continuity Schedule." | K2: Exhibit:
K3: Tab:
K4: Schedule:
K5: Page:
K7: Date:
A9: Appendix 2-CH1
A10: Depreciation and Amortization Expense
A11: Revised CGAAP or MIFRS
A13: Assumes the applicant changed capitalization and depreciation policies and reflected these changes in a prior rebasing application
D15: Accounting Standard
D16: Year
A18: Account | B18: Description | C18: Opening Regulatory Gross PP&E as at Jan. 1 | D18: Less Fully Depreciated | E18: Net for Depreciation | F18: Additions | G18: Total for Depreciation 2 | H18: Years | I18: Depreciation Rate | J18: Current Year Depreciation Expense | K18: Depreciation Expense per Appendix 2-BA Fixed Assets, Column J (l) | L18: Variance 3
C19: (a) | D19: (b) | E19: (c) | F19: (d) | G19: (e) = (c) + ½ x (d) | H19: (f) | I19: (g) = 1 / (f) | J19: (h) = (e) / (f) | L19: (m) = (h) - (l)
A20: 1611 | B20: Computer Software (Formally known as Account 1925) | E20: =C20-D20 -> 0 | G20: =E20+0.5*F20 -> 0 | I20: =IF(H20=0,0,1/H20) -> 0 | J20: =IF(H20=0,0,G20/H20) -> 0 | L20: =IF(ISERROR(+J20-K20), 0, +J20-K20) -> 0
A21: 1612 | B21: Land Rights (Formally known as Account 1906) | E21: =C21-D21 -> 0 | G21: =E21+0.5*F21 -> 0 | I21: 0 | J21: 0 | L21: 0
A22: 1805 | B22: Land | E22: 0 | G22: 0 | I22: 0 | J22: 0 | L22: 0
A23: 1808 | B23: Buildings | E23: 0 | G23: 0 | I23: 0 | J23: 0 | L23: 0
A24: 1810 | B24: Leasehold Improvements | E24: 0 | G24: 0 | I24: 0 | J24: 0 | L24: 0
A25: 1815 | B25: Transformer Station Equipment >50 kV | E25: 0 | G25: 0 | I25: 0 | J25: 0 | L25: 0
A26: 1820 | B26: Distribution Station Equipment <50 kV | E26: 0 | G26: 0 | I26: 0 | J26: 0 | L26: 0
A27: 1825 | B27: Storage Battery Equipment | E27: 0 | G27: 0 | I27: 0 | J27: 0 | L27: 0
A28: 1830 | B28: Poles, Towers & Fixtures | E28: 0 | G28: 0 | I28: 0 | J28: 0 | L28: 0
A29: 1835 | B29: Overhead Conductors & Devices | E29: 0 | G29: 0 | I29: 0 | J29: 0 | L29: 0
A30: 1840 | B30: Underground Conduit | E30: 0 | G30: 0 | I30: 0 | J30: 0 | L30: 0
A31: 1845 | B31: Underground Conductors & Devices | E31: 0 | G31: 0 | I31: 0 | J31: 0 | L31: 0
A32: 1850 | B32: Line Transformers | E32: 0 | G32: 0 | I32: 0 | J32: 0 | L32: 0
A33: 1855 | B33: Services (Overhead & Underground) | E33: 0 | G33: 0 | I33: 0 | J33: 0 | L33: 0
A34: 1860 | B34: Meters | E34: 0 | G34: 0 | I34: 0 | J34: 0 | L34: 0
A35: 1860 | B35: Meters (Smart Meters) | E35: 0 | G35: 0 | I35: 0 | J35: 0 | L35: 0
A36: 1905 | B36: Land | E36: 0 | G36: 0 | I36: 0 | J36: 0 | L36: 0
A37: 1908 | B37: Buildings & Fixtures | E37: 0 | G37: 0 | I37: 0 | J37: 0 | L37: 0
A38: 1910 | B38: Leasehold Improvements | E38: 0 | G38: 0 | I38: 0 | J38: 0 | L38: 0
A39: 1915 | B39: Office Furniture & Equipment (10 years) | E39: 0 | G39: 0 | I39: 0 | J39: 0 | L39: 0
A40: 1915 | B40: Office Furniture & Equipment (5 years) | E40: 0 | G40: 0 | I40: 0 | J40: 0 | L40: 0
A41: 1920 | B41: Computer Equipment - Hardware | E41: 0 | G41: 0 | I41: 0 | J41: 0 | L41: 0
A42: 1920 | B42: Computer Equip.-Hardware(Post Mar. 22/04) | E42: 0 | G42: 0 | I42: 0 | J42: 0 | L42: 0
A43: 1920 | B43: Computer Equip.-Hardware(Post Mar. 19/07) | E43: 0 | G43: 0 | I43: 0 | J43: 0 | L43: 0
A44: 1930 | B44: Transportation Equipment | E44: 0 | G44: 0 | I44: 0 | J44: 0 | L44: 0
A45: 1935 | B45: Stores Equipment | E45: 0 | G45: 0 | I45: 0 | J45: 0 | L45: 0
A46: 1940 | B46: Tools, Shop & Garage Equipment | E46: 0 | G46: 0 | I46: 0 | J46: 0 | L46: 0
A47: 1945 | B47: Measurement & Testing Equipment | E47: 0 | G47: 0 | I47: 0 | J47: 0 | L47: 0
A48: 1950 | B48: Power Operated Equipment | E48: 0 | G48: 0 | I48: 0 | J48: 0 | L48: 0
A49: 1955 | B49: Communications Equipment | E49: 0 | G49: 0 | I49: 0 | J49: 0 | L49: 0
A50: 1955 | B50: Communication Equipment (Smart Meters) | E50: 0 | G50: 0 | I50: 0 | J50: 0 | L50: 0
A51: 1960 | B51: Miscellaneous Equipment | E51: 0 | G51: 0 | I51: 0 | J51: 0 | L51: 0
A52: 1970 | B52: Load Management Controls - Customer Premises | E52: 0 | G52: 0 | I52: 0 | J52: 0 | L52: 0
A53: 1975 | B53: Load Management Controls Utility Premises | E53: 0 | G53: 0 | I53: 0 | J53: 0 | L53: 0
A54: 1980 | B54: System Supervisor Equipment | E54: 0 | G54: 0 | I54: 0 | J54: 0 | L54: 0
A55: 1985 | B55: Miscellaneous Fixed Assets | E55: 0 | G55: 0 | I55: 0 | J55: 0 | L55: 0
A56: 1990 | B56: Other Tangible Property | E56: 0 | G56: 0 | I56: 0 | J56: 0 | L56: 0
A57: 1995 | B57: Contributions & Grants | E57: 0 | G57: 0 | I57: 0 | J57: 0 | L57: 0
B58: Total | C58: =SUM(C20:C57) -> 0 | D58: =SUM(D20:D57) -> 0 | E58: =SUM(E20:E57) -> 0 | F58: =SUM(F20:F57) -> 0 | G58: =SUM(G20:G57) -> 0 | J58: =SUM(J20:J57) -> 0 | K58: =SUM(K20:K57) -> 0 | L58: =SUM(L20:L57) -> 0
B59: Depreciation exp. adj. from gain or loss on the retirement of assets (pool of like assets) (under MIFRS)
B60: Total Depreciation Expense | J60: =SUM(J58:J59) -> 0
A62: Notes:
A64: 1 | B64: The appendix should be submitted for the Test Year, Bridge Year and all relevant historical years. At a minimum , the applicant must provide data for the earlier of: 1) all historical years back to its last rebasing; or 2) at least three years of historical actuals, in addition to Bridge Year and Test Year forecasts.
A66: 2 | B66: Board policy of the "half-year" rule - the applicant must ensure that additions in the year attract a half-year depreciation expense in the first year. Deviations from this standard practice must be supported in the application.
A67: 3 | B67: The applicant must provide an explanation of material variances in evidence.
A69: General | B69: Applicants must provide a breakdown of depreciation and amortization expense in the above format for all relevant accounts. Asset Retirement Obligations (AROs), depreciation and accretion expense should be disclosed separately consistent with the Notes of historical Audited Financial Statements.

Sheet App.2-D_Overhead
F1: File Number: | G1: =EBNUMBER -> EB-2017-0032
A2: Not Applicable | F2: Exhibit:
F3: Tab:
F4: Schedule:
F5: Page:
F7: Date:
A9: Appendix 2-D
A10: Overhead Expense
A12: Applicants are to provide a breakdown of OM&A before capitalization in the below table. OM&A before capitalization may be broken down by cost center, program, drivers or another format best suited to focus on capitalized vs. uncapitalized OM&A.
A14: OM&A Before Capitalization
B15: =F15-4 -> 2014 | C15: =F15-3 -> 2015 | D15: =F15-2 -> 2016 | E15: =F15-1 -> 2017 | F15: =TestYear -> 2018
B16: Historical Year | C16: Historical Year | D16: Historical Year | E16: Bridge Year | F16: Test Year
A27: Total OM&A Before Capitalization (B) | B27: =SUM(B17:B26) -> 0 | C27: =SUM(C17:C26) -> 0 | D27: =SUM(D17:D26) -> 0 | E27: =SUM(E17:E26) -> 0 | F27: =SUM(F17:F26) -> 0
A29: Applicants are to provide a breakdown of capitalized OM&A in the below table. Capitalized OM&A may be broken down using the categories listed in the table below if possible. Otherwise, applicants are to provide its own break down of capitalized OM&A.
A31: Capitalized OM&A | G31: Directly | H31: Explanation for Change in Overhead Capitalized
B32: =F32-4 -> 2014 | C32: =F32-3 -> 2015 | D32: =F32-2 -> 2016 | E32: =F32-1 -> 2017 | F32: =TestYear -> 2018 | G32: Attributable?
B33: Historical Year | C33: Historical Year | D33: Historical Year | E33: Bridge Year | F33: Test Year | G33: (Yes/No)
A34: employee benefits
A35: costs of site preparation
A36: initial delivery and handling costs
A37: costs of testing whether the asset is functioning properly
A38: professional fees
A40: costs of opening a new facility
A41: costs of introducing a new product or service (including costs of advertising and promotional activities)
A42: costs of conducting business in a new location or with a new class of customer (including costs of staff training)
A43: administration and other general overhead costs
A45: Insert description of additional item(s) and new rows if needed
A47: Total Capitalized OM&A (A) | B47: =SUM(B34:B46) -> 0 | C47: =SUM(C34:C46) -> 0 | D47: =SUM(D34:D46) -> 0 | E47: =SUM(E34:E46) -> 0 | F47: =SUM(F34:F46) -> 0
A49: % of Capitalized OM&A (=A/B) | B49: =IF(ISERROR(B47/B27),"0%",B47/B27) -> 0% | C49: =IF(ISERROR(C47/C27),"0%",C47/C27) -> 0% | D49: =IF(ISERROR(D47/D27),"0%",D47/D27) -> 0% | E49: =IF(ISERROR(E47/E27),"0%",E47/E27) -> 0% | F49: =IF(ISERROR(F47/F27),"0%",F47/F27) -> 0%

Sheet App.2-EA_Account 1575 (2015)
H1: File Number: | I1: =EBNUMBER -> EB-2017-0032
A2: Not Applicable | H2: Exhibit:
H3: Tab:
H4: Schedule:
H5: Page:
H7: Date:
A9: Appendix 2-EA
A10: Account 1575 - IFRS-CGAAP Transitional PP&E Amounts
A11: 2015 Adopters of IFRS for Financial Reporting Purposes
A13: For applicants that adopted IFRS on January 1, 2015 for financial reporting purposes
B17: =RebaseYear &" Rebasing Year" -> 2013 Rebasing Year | C17: =TestYear-3 -> 2015 | D17: =TestYear-2 -> 2016 | E17: =CONCATENATE(TestYear-1," Bridge Year") -> 2017 Bridge Year | F17: =CONCATENATE(TestYear," Rebasing Year") -> 2018 Rebasing Year
A18: Reporting Basis | B18: CGAAP | C18: CGAAP | D18: CGAAP | E18: MIFRS | F18: MIFRS
B19: Forecast | C19: Actual | D19: Actual | E19: Forecast | F19: Forecast
D20: $ | E20: $
A21: PP&E Values under CGAAP
A22: Opening net PP&E - Note 1 | D22: =+C25 -> 0 | E22: =+D25 -> 0
A23: Net Additions - Note 4
A24: Net Depreciation (amounts should be negative) - Note 4
A25: Closing net PP&E (1) | C25: =C22+C23+C24 -> 0 | D25: =SUM(D22:D24) -> 0 | E25: =SUM(E22:E24) -> 0
A27: PP&E Values under MIFRS (Starts from 2014, the transition year)
A28: Opening net PP&E - Note 1 | D28: =+C31 -> 0 | E28: =+D31 -> 0
A29: Net Additions - Note 4
A30: Net Depreciation (amounts should be negative) - Note 4
A31: Closing net PP&E (2) | C31: =SUM(C28:C30) -> 0 | D31: =SUM(D28:D30) -> 0 | E31: =SUM(E28:E30) -> 0
A33: Difference in Closing net PP&E, former CGAAP vs. revised CGAAP | C33: =C25-C31 -> 0 | D33: =D25-D31 -> 0 | E33: =E25-E31 -> 0
A36: Effect on Deferral and Variance Account Rate Riders
A37: Closing balance in Account 1576 | F37: =IF(ISERROR(E33), 0, E33) -> 0 | H37: WACC
A38: Return on Rate Base Associated with Account 1576 balance at WACC - Note 2 | F38: =E33*I37*I38 -> 0 | G38: # of years of rate rider disposition period
A39: Amount included in Deferral and Variance Account Rate Rider Calculation | F39: =F37+F38 -> 0
A41: Notes:
A42: 1 For an applicant that adopted IFRS on January 1, 2015, the PP&E values as of January 1, 2014 under both CGAAP and MIFRS should be the same.
A43: 2 Return on rate base associated with deferred balance is calculated as:
A44: the deferral account closing balance as of 2016 x WACC X # of years of rate rider disposition period
A45: * Please note that the calculation should be adjusted once WACC is updated and finalized in the rate application.
A46: 3 The PP&E deferral account is cleared by including the total balance in the deferral and variance account rate rider calculation.
A47: 4 Net additions are additions net of disposals; Net depreciation is additions to depreciation net of disposals.

Sheet App.2-EB_Account 1576 (2012)
J1: File Number: | K1: =EBNUMBER -> EB-2017-0032
A2: Not Applicable | J2: Exhibit:
J3: Tab:
J4: Schedule:
J5: Page:
J7: Date:
A9: Appendix 2-EB
A10: Account 1576 - Accounting Changes under CGAAP
A11: 2012 Changes in Accounting Policies under CGAAP
A13: For applicants with a balance in Account 1576 and made capitalization and depreciation expense accounting policy changes under CGAAP effective January 1, 2012
B17: 2011 Rebasing Year | C17: 2012 | D17: 2013 | E17: 2014 | F17: 2015 | G17: 2016 | H17: 2017 Rebasing Year
A18: Reporting Basis | B18: CGAAP | C18: CGAAP | D18: CGAAP | E18: CGAAP | F18: MIFRS - Note 5 | G18: MIFRS | H18: MIFRS
B19: Forecast | C19: Actual | D19: Actual | E19: Actual | F19: Actual | G19: Forecast | H19: Forecast
C20: $ | D20: $ | E20: $ | G20: $
A21: PP&E Values under former CGAAP
A22: Opening net PP&E - Note 1 | D22: =+C25 -> 0 | E22: =+D25 -> 0 | F22: =+D25 -> 0 | G22: =+E25 -> 0
A23: Net Additions - Note 4
A24: Net Depreciation (amounts should be negative) - Note 4
A25: Closing net PP&E (1) | C25: =C22+C23+C24 -> 0 | D25: =D22+D23+D24 -> 0 | E25: =E22+E23+E24 -> 0 | F25: =F22+F23+F24 -> 0 | G25: =G22+G23+G24 -> 0
A27: PP&E Values under revised CGAAP (Starts from 2012)
A28: Opening net PP&E - Note 1 | D28: =+C31 -> 0 | E28: =+D31 -> 0 | F28: =+D31 -> 0 | G28: =+E31 -> 0
A29: Net Additions - Note 4
A30: Net Depreciation (amounts should be negative) - Note 4
A31: Closing net PP&E (2) | C31: =SUM(C28:C30) -> 0 | D31: =SUM(D28:D30) -> 0 | E31: =SUM(E28:E30) -> 0 | F31: =SUM(F28:F30) -> 0 | G31: =SUM(G28:G30) -> 0
A33: Difference in Closing net PP&E, former CGAAP vs. revised CGAAP | C33: =C25-C31 -> 0 | D33: =D25-D31 -> 0 | E33: =E25-E31 -> 0 | F33: =F25-F31 -> 0 | G33: =G25-G31 -> 0
A36: Effect on Deferral and Variance Account Rate Riders
A37: Closing balance in Account 1576 | H37: =IF(ISERROR(G33), 0, G33) -> 0 | J37: WACC
A38: Return on Rate Base Associated with Account 1576 balance at WACC - Note 2 | H38: =G33*K37*K38 -> 0 | I38: # of years of rate rider disposition period
A39: Amount included in Deferral and Variance Account Rate Rider Calculation | H39: =H37+H38 -> 0
A41: Notes:
A42: 1 For an applicant that made the capitalization and depreciation expense accounting policy changes on January 1, 2012, the PP&E values as of January 1, 2012 under both former CGAAP and revised CGAAP should be the same.
A43: 2 Return on rate base associated with Account 1576 balance is calculated as:
A44: the variance account ending balance as of 2016 x WACC X # of years of rate rider disposition period
A45: * Please note that the calculation should be adjusted once WACC is updated and finalized in the rate application.
A46: 3 Account 1576 is cleared by including the total balance in the deferral and variance account rate rider calculation.
A47: 4 Net additions are additions net of disposals; Net depreciation is additions to depreciation net of disposals.
A48: 5 Differences due to the adoption of MIFRS are to be shown separately in Account 1575 in Appendix 2-EA as Accounts 1575 and 1576 cannot be used interchangably.

Sheet App.2-EC_Account 1576 (2013)
I1: File Number: | J1: =EBNUMBER -> EB-2017-0032
A2: Not Applicable | I2: Exhibit:
I3: Tab:
I4: Schedule:
I5: Page:
I7: Date:
A9: Appendix 2-EC
A10: Account 1576 - Accounting Changes under CGAAP
A11: 2013 Changes in Accounting Policies under CGAAP
A13: For applicants with a balance in Account 1576 and made capitalization and depreciation expense accounting policy changes under CGAAP effective January 1, 2013
B17: 2012 Rebasing Year | C17: 2013 | D17: 2014 | E17: 2015 | F17: 2016 | G17: 2017 Rebasing Year
A18: Reporting Basis | B18: CGAAP | C18: CGAAP | D18: CGAAP | E18: MIFRS - Note 5 | F18: MIFRS | G18: MIFRS
B19: Actual | C19: Actual | D19: Actual | E19: Actual | F19: Forecast | G19: Forecast
C20: $ | D20: $ | F20: $
A21: PP&E Values under former CGAAP
A22: Opening net PP&E - Note 1 | D22: =+C25 -> 0 | E22: =+D25 -> 0 | F22: =+D25 -> 0
A23: Net Additions - Note 4
A24: Net Depreciation (amounts should be negative) - Note 4
A25: Closing net PP&E (1) | C25: =C22+C23+C24 -> 0 | D25: =D22+D23+D24 -> 0 | E25: =E22+E23+E24 -> 0 | F25: =F22+F23+F24 -> 0
A27: PP&E Values under revised CGAAP (Starts from 2012)
A28: Opening net PP&E - Note 1 | D28: =+C31 -> 0 | E28: =+D31 -> 0 | F28: =+D31 -> 0
A29: Net Additions - Note 4
A30: Net Depreciation (amounts should be negative) - Note 4
A31: Closing net PP&E (2) | C31: =SUM(C28:C30) -> 0 | D31: =SUM(D28:D30) -> 0 | E31: =SUM(E28:E30) -> 0 | F31: =SUM(F28:F30) -> 0
A33: Difference in Closing net PP&E, former CGAAP vs. revised CGAAP | C33: =C25-C31 -> 0 | D33: =D25-D31 -> 0 | E33: =E25-E31 -> 0 | F33: =F25-F31 -> 0
A36: Effect on Deferral and Variance Account Rate Riders
A37: Closing balance in Account 1576 | G37: =IF(ISERROR(F33), 0, F33) -> 0 | I37: WACC
A38: Return on Rate Base Associated with Account 1576 balance at WACC - Note 2 | G38: =F33*J37*J38 -> 0 | H38: # of years of rate rider disposition period
A39: Amount included in Deferral and Variance Account Rate Rider Calculation | G39: =G37+G38 -> 0
A41: Notes:
A42: 1 For an applicant that made the capitalization and depreciation expense accounting policy changes on January 1, 2013, the PP&E values as of January 1, 2013 under both former CGAAP and revised CGAAP should be the same.
A43: 2 Return on rate base associated with Account 1576 balance is calculated as:
A44: the variance account ending balance as of 2016 x WACC X # of years of rate rider disposition period
A45: * Please note that the calculation should be adjusted once WACC is updated and finalized in the rate application.
A46: 3 Account 1576 is cleared by including the total balance in the deferral and variance account rate rider calculation.
A47: 4 Net additions are additions net of disposals; Net depreciation is additions to depreciation net of disposals.
A48: 5 Differences due to the adoption of MIFRS are to be shown separately in Account 1575 in Appendix 2-EA as Accounts 1575 and 1576 cannot be used interchangably.

Sheet App.2-FA Proposed REG Invest.
J1: File Number: | K1: =EBNUMBER -> EB-2017-0032
A2: Not Applicable | J2: Exhibit:
J3: Tab:
J4: Schedule:
J5: Page:
J7: Date:
A9: Appendix 2-FA
A10: Renewable Generation Connection Investment Summary (past investments or over the future rate setting period)
A12: Enter the details of the Renewable Generation Connection projects as described in the appropriate section of the Filing Requirements.
A13: All costs entered on this page will be transferred to the appropriate cells in the appendices that follow.
A14: For Part A, Renewable Enabling Improvements (REI), these amounts will be transferred to Appendix 2 - FB
A15: For Part B, Expansions, these amounts will be transferred to Appendix 2 - FC
A17: If there are more than five projects proposed to be in-service in a certain year, please amend the tables below and ensure that the formulae for the Total Amounts in any given rate year are updated.
A18: Based on the current methodology and allocation, amounts allocated represent 6% for REI Connection Investments and 17% for Expansion Investments. (EB-2009-0349, 6-10-2010, p. 15, note 9)
A20: There are two scenarios described below. Separate sets of spreadsheets (2-FA, 2-FB, 2-FC) should be submited for each scenario as required.
A21: Scenario 1: Past Investments with No Recovery. The distributor has made investments in the past (during the IRM Years), but has not received approval for these projects and therefore did not receive
A22: revenue from the IESO under Regulation 330/09 and did not receive ratepayer revenue for the direct benefit portion of the investment.
A23: The WCA percentage, debt percentages, interest rates, kWh, tax rates, amortization period, CCA Class and percentage should correspond to the distributor's last Cost of Service approval.
A24: The Direct Benefit portion of the calculated Revenue Requirement for each year should be summed and can be applied for recovery from the distributor's ratepayers through a rate rider.
A25: The Provincial Recovery portion of the calculated Revenue Requirement for each year should be summed and can be applied for recovery from the IESO through a separate order.
A27: Scenario 2: Investments in the Test Year and Beyond. Distributor plans to make investments in 2017 and/or beyond. These investments should be added to 2-FA in the appropriate year.
A28: The WCA percentage, debt percentages, interest rates, kWh, tax rates, amortization period, CCA Class and percentage should correspond to the distributor's current application.
A30: Part A | G30: Test Year
A31: REI Investments (Direct Benefit at 6%) | C31: =D31-1 -> 2014 | D31: =E31-1 -> 2015 | E31: =F31-1 -> 2016 | F31: =G31-1 -> 2017 | G31: =TestYear -> 2018 | H31: =G31+1 -> 2019 | I31: =H31+1 -> 2020 | J31: =I31+1 -> 2021 | K31: =J31+1 -> 2022
A32: Project 1
A33: Name: REI Connection Project
A34: Capital Costs | C34: 0 | D34: 0 | E34: 0 | F34: 0 | G34: 0 | H34: 0 | I34: 0 | J34: 0 | K34: 0
A35: OM&A (Start-Up) | C35: 0 | D35: 0 | E35: 0 | F35: 0 | G35: 0 | H35: 0 | I35: 0 | J35: 0 | K35: 0
A36: OM&A (Ongoing) | C36: 0 | D36: 0 | E36: 0 | F36: 0 | G36: 0 | H36: 0 | I36: 0 | J36: 0 | K36: 0
A38: Project 2
A39: Name: REI Connection Project
A40: Capital Costs | C40: 0 | D40: 0 | E40: 0 | F40: 0 | G40: 0 | H40: 0 | I40: 0 | J40: 0 | K40: 0
A41: OM&A (Start-Up) | C41: 0 | D41: 0 | E41: 0 | F41: 0 | G41: 0 | H41: 0 | I41: 0 | J41: 0 | K41: 0
A42: OM&A (Ongoing) | C42: 0 | D42: 0 | E42: 0 | F42: 0 | G42: 0 | H42: 0 | I42: 0 | J42: 0 | K42: 0
A44: Project 3
A45: Name: REI Connection Project
A46: Capital Costs | C46: 0 | D46: 0 | E46: 0 | F46: 0 | G46: 0 | H46: 0 | I46: 0 | J46: 0 | K46: 0
A47: OM&A (Start-Up) | C47: 0 | D47: 0 | E47: 0 | F47: 0 | G47: 0 | H47: 0 | I47: 0 | J47: 0 | K47: 0
A48: OM&A (Ongoing) | C48: 0 | D48: 0 | E48: 0 | F48: 0 | G48: 0 | H48: 0 | I48: 0 | J48: 0 | K48: 0
A50: Project 4
A51: Name: REI Connection Project
A52: Capital Costs | C52: 0 | D52: 0 | E52: 0 | F52: 0 | G52: 0 | H52: 0 | I52: 0 | J52: 0 | K52: 0
A53: OM&A (Start-Up) | C53: 0 | D53: 0 | E53: 0 | F53: 0 | G53: 0 | H53: 0 | I53: 0 | J53: 0 | K53: 0
A54: OM&A (Ongoing) | C54: 0 | D54: 0 | E54: 0 | F54: 0 | G54: 0 | H54: 0 | I54: 0 | J54: 0 | K54: 0
A56: Project 5
A57: Name: REI Connection Project
A58: Capital Costs | C58: 0 | D58: 0 | E58: 0 | F58: 0 | G58: 0 | H58: 0 | I58: 0 | J58: 0 | K58: 0
A59: OM&A (Start-Up) | C59: 0 | D59: 0 | E59: 0 | F59: 0 | G59: 0 | H59: 0 | I59: 0 | J59: 0 | K59: 0
A60: OM&A (Ongoing) | C60: 0 | D60: 0 | E60: 0 | F60: 0 | G60: 0 | H60: 0 | I60: 0 | J60: 0 | K60: 0
A62: Total Capital Costs | C62: =SUM(C58,C52,C46,C40,C34) -> 0 | D62: 0 | E62: 0 | F62: 0 | G62: =SUM(G58,G52,G46,G40,G34) -> 0 | H62: =SUM(H58,H52,H46,H40,H34) -> 0 | I62: 0 | J62: 0 | K62: 0
A63: Total OM&A (Start-Up) | C63: 0 | D63: 0 | E63: 0 | F63: 0 | G63: =SUM(G59,G53,G47,G41,G35) -> 0 | H63: 0 | I63: 0 | J63: 0 | K63: 0
A64: Total OM&A (Ongoing) | C64: 0 | D64: 0 | E64: 0 | F64: 0 | G64: =SUM(G60,G54,G48,G42,G36) -> 0 | H64: 0 | I64: 0 | J64: 0 | K64: 0
A67: Part B | G67: Test Year
A68: Expansion Investments (Direct Benefit at 17%) | C68: =D68-1 -> 2014 | D68: =E68-1 -> 2015 | E68: =F68-1 -> 2016 | F68: =G68-1 -> 2017 | G68: =TestYear -> 2018 | H68: =G68+1 -> 2019 | I68: =H68+1 -> 2020 | J68: =I68+1 -> 2021 | K68: =J68+1 -> 2022
A69: Project 1
A70: Name: Expansion Connection Project
A71: Capital Costs | C71: 0 | D71: 0 | E71: 0 | F71: 0 | G71: 0 | H71: 0 | I71: 0 | J71: 0 | K71: 0
A72: OM&A (Start-Up) | C72: 0 | D72: 0 | E72: 0 | F72: 0 | G72: 0 | H72: 0 | I72: 0 | J72: 0 | K72: 0
A73: OM&A (Ongoing) | C73: 0 | D73: 0 | E73: 0 | F73: 0 | G73: 0 | H73: 0 | I73: 0 | J73: 0 | K73: 0
A75: Project 2
A76: Name: Expansion Connection Project
A77: Capital Costs | C77: 0 | D77: 0 | E77: 0 | F77: 0 | G77: 0 | H77: 0 | I77: 0 | J77: 0 | K77: 0
A78: OM&A (Start-Up) | C78: 0 | D78: 0 | E78: 0 | F78: 0 | G78: 0 | H78: 0 | I78: 0 | J78: 0 | K78: 0
A79: OM&A (Ongoing) | C79: 0 | D79: 0 | E79: 0 | F79: 0 | G79: 0 | H79: 0 | I79: 0 | J79: 0 | K79: 0
A81: Project 3
A82: Name: Expansion Connection Project
A83: Capital Costs | C83: 0 | D83: 0 | E83: 0 | F83: 0 | G83: 0 | H83: 0 | I83: 0 | J83: 0 | K83: 0
A84: OM&A (Start-Up) | C84: 0 | D84: 0 | E84: 0 | F84: 0 | G84: 0 | H84: 0 | I84: 0 | J84: 0 | K84: 0
A85: OM&A (Ongoing) | C85: 0 | D85: 0 | E85: 0 | F85: 0 | G85: 0 | H85: 0 | I85: 0 | J85: 0 | K85: 0
A87: Project 4
A88: Name: Expansion Connection Project
A89: Capital Costs | C89: 0 | D89: 0 | E89: 0 | F89: 0 | G89: 0 | H89: 0 | I89: 0 | J89: 0 | K89: 0
A90: OM&A (Start-Up) | C90: 0 | D90: 0 | E90: 0 | F90: 0 | G90: 0 | H90: 0 | I90: 0 | J90: 0 | K90: 0
A91: OM&A (Ongoing) | C91: 0 | D91: 0 | E91: 0 | F91: 0 | G91: 0 | H91: 0 | I91: 0 | J91: 0 | K91: 0
A93: Project 5
A94: Name: Expansion Connection Project
A95: Capital Costs | C95: 0 | D95: 0 | E95: 0 | F95: 0 | G95: 0 | H95: 0 | I95: 0 | J95: 0 | K95: 0
A96: OM&A (Start-Up) | C96: 0 | D96: 0 | E96: 0 | F96: 0 | G96: 0 | H96: 0 | I96: 0 | J96: 0 | K96: 0
A97: OM&A (Ongoing) | C97: 0 | D97: 0 | E97: 0 | F97: 0 | G97: 0 | H97: 0 | I97: 0 | J97: 0 | K97: 0
A99: Total Capital Costs | C99: =SUM(C95,C89,C83,C77,C71) -> 0 | D99: 0 | E99: 0 | F99: 0 | G99: =SUM(G95,G89,G83,G77,G71) -> 0 | H99: =SUM(H95,H89,H83,H77,H71) -> 0 | I99: 0 | J99: 0 | K99: 0
A100: Total OM&A (Start-Up) | C100: 0 | D100: 0 | E100: 0 | F100: 0 | G100: =SUM(G96,G90,G84,G78,G72) -> 0 | H100: 0 | I100: 0 | J100: 0 | K100: 0
A101: Total OM&A (Ongoing) | C101: 0 | D101: 0 | E101: 0 | F101: 0 | G101: =SUM(G97,G91,G85,G79,G73) -> 0 | H101: 0 | I101: 0 | J101: 0 | K101: 0

Sheet App.2-FB Calc of REG Improvemnt
N1: File Number: | O1: =EBNUMBER -> EB-2017-0032
A2: Not Applicable | N2: Exhibit:
N3: Tab:
N4: Schedule:
N5: Page:
N7: Date:
A9: Appendix 2-FB
A10: Calculation of Renewable Generation Connection Direct Benefits/Provincial Amount: Renewable Enabling Improvement Investments
A12: This table will calculate the distributor/provincial shares of the investments entered in Part A of Appendix 2-FA.
A13: Enter values in green shaded cells: WCA percentage, debt percentages, interest rates, kWh, tax rates, amortization period, CCA Class and percentage.
A14: For historical investments, enter these variables for your last cost of service test year. For 2017 and beyond, enter variables as in the application.
A15: Rate Riders are not calculated for the Test Year as these assets and costs are already in the distributor's rate base/revenue requirement.
C17: =F17-1 -> 2014 | F17: =I17-1 -> 2015 | I17: =L17-1 -> 2016 | L17: =BridgeYear -> 2017 | O17: =CONCATENATE(TestYear," Test Year") -> 2018 Test Year | R17: =TestYear+1 -> 2019 | U17: =R17+1 -> 2020 | V17: 2016 | X17: =U17+1 -> 2021 | AA17: =X17+1 -> 2022
D18: Direct Benefit | E18: Provincial | G18: Direct Benefit | H18: Provincial | J18: Direct Benefit | K18: Provincial | M18: Direct Benefit | N18: Provincial | P18: Direct Benefit | Q18: Provincial | S18: Direct Benefit | T18: Provincial | V18: Direct Benefit | W18: Provincial | Y18: Direct Benefit | Z18: Provincial | AB18: Direct Benefit | AC18: Provincial
C19: Total | D19: 0.06 | E19: 0.94 | F19: Total | G19: 0.06 | H19: 0.94 | I19: Total | J19: 0.06 | K19: 0.94 | L19: Total | M19: 0.06 | N19: 0.94 | O19: Total | P19: 0.06 | Q19: 0.94 | R19: Total | S19: 0.06 | T19: 0.94 | U19: Total | V19: 0.06 | W19: 0.94 | X19: Total | Y19: 0.06 | Z19: 0.94 | AA19: Total | AB19: 0.06 | AC19: 0.94
A20: Net Fixed Assets (average) | C20: =D82 -> 0 | D20: =C20*D19 -> 0 | E20: =C20*E19 -> 0 | F20: =E82 -> 0 | G20: =F20*G19 -> 0 | H20: =F20*H19 -> 0 | I20: =F82 -> 0 | J20: =I20*J19 -> 0 | K20: =I20*K19 -> 0 | L20: =G82 -> 0 | M20: =L20*M19 -> 0 | N20: =L20*N19 -> 0 | O20: =H82 -> 0 | P20: =O20*P19 -> 0 | Q20: =O20*Q19 -> 0 | R20: =I82 -> 0 | S20: =R20*S19 -> 0 | T20: =R20*T19 -> 0 | U20: =J82 -> 0 | V20: =U20*V19 -> 0 | W20: =U20*W19 -> 0 | X20: =K82 -> 0 | Y20: =X20*Y19 -> 0 | Z20: =X20*Z19 -> 0 | AA20: =L82 -> 0 | AB20: =AA20*AB19 -> 0 | AC20: =AA20*AC19 -> 0
A21: Incremental OM&A (on-going, N/A for Provincial Recovery) | C21: ='App.2-FA Proposed REG Invest.'!C64 -> 0 | D21: =C21 -> 0 | F21: ='App.2-FA Proposed REG Invest.'!D64 -> 0 | G21: =F21 -> 0 | I21: ='App.2-FA Proposed REG Invest.'!E64 -> 0 | J21: =I21 -> 0 | L21: ='App.2-FA Proposed REG Invest.'!F64 -> 0 | M21: =L21 -> 0 | O21: ='App.2-FA Proposed REG Invest.'!G64 -> 0 | P21: =O21 -> 0 | R21: ='App.2-FA Proposed REG Invest.'!H64 -> 0 | S21: =R21 -> 0 | U21: ='App.2-FA Proposed REG Invest.'!I64 -> 0 | V21: =U21 -> 0 | X21: ='App.2-FA Proposed REG Invest.'!J64 -> 0 | Y21: =X21 -> 0 | AA21: ='App.2-FA Proposed REG Invest.'!K64 -> 0 | AB21: =AA21 -> 0
A22: Incremental OM&A (start-up, applicable for Provincial Recovery) | C22: ='App.2-FA Proposed REG Invest.'!C63 -> 0 | D22: =C22*D19 -> 0 | E22: =C22*E19 -> 0 | F22: ='App.2-FA Proposed REG Invest.'!D63 -> 0 | G22: =F22*G19 -> 0 | H22: =F22*H19 -> 0 | I22: ='App.2-FA Proposed REG Invest.'!E63 -> 0 | J22: =I22*J19 -> 0 | K22: =I22*K19 -> 0 | L22: ='App.2-FA Proposed REG Invest.'!F63 -> 0 | M22: =L22*M19 -> 0 | N22: =L22*N19 -> 0 | O22: ='App.2-FA Proposed REG Invest.'!G63 -> 0 | P22: =O22*P19 -> 0 | Q22: =O22*Q19 -> 0 | R22: ='App.2-FA Proposed REG Invest.'!H63 -> 0 | S22: =R22*S19 -> 0 | T22: =R22*T19 -> 0 | U22: ='App.2-FA Proposed REG Invest.'!I63 -> 0 | V22: =U22*V19 -> 0 | W22: =U22*W19 -> 0 | X22: ='App.2-FA Proposed REG Invest.'!J63 -> 0 | Y22: =X22*Y19 -> 0 | Z22: =X22*Z19 -> 0 | AA22: ='App.2-FA Proposed REG Invest.'!K63 -> 0 | AB22: =AA22*AB19 -> 0 | AC22: =AA22*AC19 -> 0
A23: WCA | D23: =(D21+D22)*$B$23 -> 0 | E23: =E22*$B$23 -> 0 | G23: =(G21+G22)*$B$23 -> 0 | H23: =H22*$B$23 -> 0 | J23: =(J21+J22)*$B$23 -> 0 | K23: =K22*$B$23 -> 0 | M23: =(M21+M22)*$B$23 -> 0 | N23: =N22*$B$23 -> 0 | P23: =(P21+P22)*$B$23 -> 0 | Q23: =Q22*$B$23 -> 0 | S23: =(S21+S22)*$B$23 -> 0 | T23: =T22*$B$23 -> 0 | V23: =(V21+V22)*$B$23 -> 0 | W23: =W22*$B$23 -> 0 | Y23: =(Y21+Y22)*$B$23 -> 0 | Z23: =Z22*$B$23 -> 0 | AB23: =(AB21+AB22)*$B$23 -> 0 | AC23: =AC22*$B$23 -> 0
A24: Rate Base | D24: =SUM(D20+D23) -> 0 | E24: =SUM(E20+E23) -> 0 | G24: =SUM(G20+G23) -> 0 | H24: =SUM(H20+H23) -> 0 | J24: =SUM(J20+J23) -> 0 | K24: =SUM(K20+K23) -> 0 | M24: =SUM(M20+M23) -> 0 | N24: =SUM(N20+N23) -> 0 | P24: =SUM(P20+P23) -> 0 | Q24: =SUM(Q20+Q23) -> 0 | S24: =SUM(S20+S23) -> 0 | T24: =SUM(T20+T23) -> 0 | V24: =SUM(V20+V23) -> 0 | W24: =SUM(W20+W23) -> 0 | Y24: =SUM(Y20+Y23) -> 0 | Z24: =SUM(Z20+Z23) -> 0 | AB24: =SUM(AB20+AB23) -> 0 | AC24: =SUM(AC20+AC23) -> 0
A27: Deemed ST Debt | D27: =D24*$B$27 -> 0 | E27: =E24*$B$27 -> 0 | G27: =G24*$B$27 -> 0 | H27: =H24*$B$27 -> 0 | J27: =J24*$B$27 -> 0 | K27: =K24*$B$27 -> 0 | M27: =M24*$B$27 -> 0 | N27: =N24*$B$27 -> 0 | P27: =P24*$B$27 -> 0 | Q27: =Q24*$B$27 -> 0 | S27: =S24*$B$27 -> 0 | T27: =T24*$B$27 -> 0 | V27: =V24*$B$27 -> 0 | W27: =W24*$B$27 -> 0 | Y27: =Y24*$B$27 -> 0 | Z27: =Z24*$B$27 -> 0 | AB27: =AB24*$B$27 -> 0 | AC27: =AC24*$B$27 -> 0
A28: Deemed LT Debt | D28: =D24*$B$28 -> 0 | E28: =E24*$B$28 -> 0 | G28: =G24*$B$28 -> 0 | H28: =H24*$B$28 -> 0 | J28: =J24*$B$28 -> 0 | K28: =K24*$B$28 -> 0 | M28: =M24*$B$28 -> 0 | N28: =N24*$B$28 -> 0 | P28: =P24*$B$28 -> 0 | Q28: =Q24*$B$28 -> 0 | S28: =S24*$B$28 -> 0 | T28: =T24*$B$28 -> 0 | V28: =V24*$B$28 -> 0 | W28: =W24*$B$28 -> 0 | Y28: =Y24*$B$28 -> 0 | Z28: =Z24*$B$28 -> 0 | AB28: =AB24*$B$28 -> 0 | AC28: =AC24*$B$28 -> 0
A29: Deemed Equity | D29: =D24*$B$29 -> 0 | E29: =E24*$B$29 -> 0 | G29: =G24*$B$29 -> 0 | H29: =H24*$B$29 -> 0 | J29: =J24*$B$29 -> 0 | K29: =K24*$B$29 -> 0 | M29: =M24*$B$29 -> 0 | N29: =N24*$B$29 -> 0 | P29: =P24*$B$29 -> 0 | Q29: =Q24*$B$29 -> 0 | S29: =S24*$B$29 -> 0 | T29: =T24*$B$29 -> 0 | V29: =V24*$B$29 -> 0 | W29: =W24*$B$29 -> 0 | Y29: =Y24*$B$29 -> 0 | Z29: =Z24*$B$29 -> 0 | AB29: =AB24*$B$29 -> 0 | AC29: =AC24*$B$29 -> 0
A31: ST Interest | D31: =D27*$B31 -> 0 | E31: 0 | G31: =G27*$B31 -> 0 | H31: 0 | J31: =J27*$B31 -> 0 | K31: 0 | M31: =M27*$B31 -> 0 | N31: 0 | P31: =P27*$B31 -> 0 | Q31: 0 | S31: =S27*$B31 -> 0 | T31: 0 | V31: =V27*$B31 -> 0 | W31: 0 | Y31: =Y27*$B31 -> 0 | Z31: 0 | AB31: =AB27*$B31 -> 0 | AC31: 0
A32: LT Interest | D32: 0 | E32: 0 | G32: 0 | H32: 0 | J32: 0 | K32: 0 | M32: 0 | N32: 0 | P32: 0 | Q32: 0 | S32: 0 | T32: 0 | V32: 0 | W32: 0 | Y32: 0 | Z32: 0 | AB32: 0 | AC32: 0
A33: ROE | D33: 0 | E33: 0 | G33: 0 | H33: 0 | J33: 0 | K33: 0 | M33: 0 | N33: 0 | P33: 0 | Q33: 0 | S33: 0 | T33: 0 | V33: 0 | W33: 0 | Y33: 0 | Z33: 0 | AB33: 0 | AC33: 0
A34: Cost of Capital Total | D34: =SUM(D31:D33) -> 0 | E34: =SUM(E31:E33) -> 0 | G34: =SUM(G31:G33) -> 0 | H34: =SUM(H31:H33) -> 0 | J34: =SUM(J31:J33) -> 0 | K34: =SUM(K31:K33) -> 0 | M34: =SUM(M31:M33) -> 0 | N34: =SUM(N31:N33) -> 0 | P34: =SUM(P31:P33) -> 0 | Q34: =SUM(Q31:Q33) -> 0 | S34: =SUM(S31:S33) -> 0 | T34: =SUM(T31:T33) -> 0 | V34: =SUM(V31:V33) -> 0 | W34: =SUM(W31:W33) -> 0 | Y34: =SUM(Y31:Y33) -> 0 | Z34: =SUM(Z31:Z33) -> 0 | AB34: =SUM(AB31:AB33) -> 0 | AC34: =SUM(AC31:AC33) -> 0
A36: OM&A | D36: =D21+D22 -> 0 | E36: =E22 -> 0 | G36: =G21+G22 -> 0 | H36: =H22 -> 0 | J36: =J21+J22 -> 0 | K36: =K22 -> 0 | M36: =M21+M22 -> 0 | N36: =N22 -> 0 | P36: =P21+P22 -> 0 | Q36: =Q22 -> 0 | S36: =S21+S22 -> 0 | T36: =T22 -> 0 | V36: =V21+V22 -> 0 | W36: =W22 -> 0 | Y36: =Y21+Y22 -> 0 | Z36: =Z22 -> 0 | AB36: =AB21+AB22 -> 0 | AC36: =AC22 -> 0
A37: Amortization | C37: =D77 -> 0 | D37: =C37*D$19 -> 0 | E37: =C37*E$19 -> 0 | F37: =E77 -> 0 | G37: =F37*G$19 -> 0 | H37: =F37*H$19 -> 0 | I37: =F77 -> 0 | J37: =I37*J$19 -> 0 | K37: =I37*K$19 -> 0 | L37: =G77 -> 0 | M37: =L37*M$19 -> 0 | N37: =L37*N$19 -> 0 | O37: =H77 -> 0 | P37: =O37*P$19 -> 0 | Q37: =O37*Q$19 -> 0 | R37: =I76+I77 -> 0 | S37: =R37*S$19 -> 0 | T37: =R37*T$19 -> 0 | U37: =J76+J77 -> 0 | V37: =U37*V$19 -> 0 | W37: =U37*W$19 -> 0 | X37: =K76+K77 -> 0 | Y37: =X37*Y$19 -> 0 | Z37: =X37*Z$19 -> 0 | AA37: =L76+L77 -> 0 | AB37: =AA37*AB$19 -> 0 | AC37: =AA37*AC$19 -> 0
A38: Grossed-up PILs | D38: =D65 -> 0 | E38: =E65 -> 0 | G38: =G65 -> 0 | H38: =H65 -> 0 | J38: =J65 -> 0 | K38: =K65 -> 0 | M38: =M65 -> 0 | N38: =N65 -> 0 | P38: =P65 -> 0 | Q38: =Q65 -> 0 | S38: =S65 -> 0 | T38: =T65 -> 0 | V38: =V65 -> 0 | W38: =W65 -> 0 | Y38: =Y65 -> 0 | Z38: =Z65 -> 0 | AB38: =AB65 -> 0 | AC38: =AC65 -> 0
A40: Revenue Requirement | D40: =SUM(D34:D38) -> 0 | E40: =SUM(E34:E38) -> 0 | G40: =SUM(G34:G38) -> 0 | H40: =SUM(H34:H38) -> 0 | J40: =SUM(J34:J38) -> 0 | K40: =SUM(K34:K38) -> 0 | M40: =SUM(M34:M38) -> 0 | N40: =SUM(N34:N38) -> 0 | P40: =SUM(P34:P38) -> 0 | Q40: =SUM(Q34:Q38) -> 0 | S40: =SUM(S34:S38) -> 0 | T40: =SUM(T34:T38) -> 0 | V40: =SUM(V34:V38) -> 0 | W40: =SUM(W34:W38) -> 0 | Y40: =SUM(Y34:Y38) -> 0 | Z40: =SUM(Z34:Z38) -> 0 | AB40: =SUM(AB34:AB38) -> 0 | AC40: =SUM(AC34:AC38) -> 0
A43: Provincial Rate Protection | E43: =E40 -> 0 | H43: =H40 -> 0 | K43: =K40 -> 0 | N43: =N40 -> 0 | Q43: =Q40 -> 0 | T43: =T40 -> 0 | W43: =W40 -> 0 | Z43: =Z40 -> 0 | AC43: =AC40 -> 0
A45: Monthly Amount Paid by IESO | E45: =E43/12 -> 0 | H45: =H43/12 -> 0 | K45: =K43/12 -> 0 | N45: =N43/12 -> 0 | Q45: =Q43/12 -> 0 | T45: =T43/12 -> 0 | W45: =W43/12 -> 0 | Z45: =Z43/12 -> 0 | AC45: =AC43/12 -> 0
A47: Note 1: The difference between the actual costs of approved eligible investments and revenue received from the IESO should be recorded in a variance account. The Board may provide
A48: regulatory accounting guidance regarding a variance account either in an individual proceeding or on a generic basis.
A49: Note 2: For the 2016 Test Year, Costs and Revenues of the Direct Benefit are to be included in the test year applicant Rate Base and Revenues.
A51: PILs Calculation
D52: =C17 -> 2014 | G52: =F17 -> 2015 | J52: =I17 -> 2016 | M52: =L17 -> 2017 | P52: =O17 -> 2018 Test Year | S52: =R17 -> 2019 | V52: =U17 -> 2020 | Y52: =X17 -> 2021 | AB52: =AA17 -> 2022
A53: Income Tax | D53: Direct Benefit | E53: Provincial | G53: Direct Benefit | H53: Provincial | J53: Direct Benefit | K53: Provincial | M53: Direct Benefit | N53: Provincial | P53: Direct Benefit | Q53: Provincial | S53: Direct Benefit | T53: Provincial | V53: Direct Benefit | W53: Provincial | Y53: Direct Benefit | Z53: Provincial | AB53: Direct Benefit | AC53: Provincial
X54: Total | AA54: Total
A55: Net Income - ROE on Rate Base | D55: =D33 -> 0 | E55: =E33 -> 0 | G55: =G33 -> 0 | H55: =H33 -> 0 | J55: =J33 -> 0 | K55: =K33 -> 0 | M55: =M33 -> 0 | N55: =N33 -> 0 | P55: =P33 -> 0 | Q55: =Q33 -> 0 | S55: =S33 -> 0 | T55: =T33 -> 0 | V55: =V33 -> 0 | W55: =W33 -> 0 | Y55: =Y33 -> 0 | Z55: =Z33 -> 0 | AB55: =AB33 -> 0 | AC55: =AC33 -> 0
A56: Amortization (6% DB and 94% P) | D56: =D37 -> 0 | E56: =E37 -> 0 | G56: =G37 -> 0 | H56: =H37 -> 0 | J56: =J37 -> 0 | K56: =K37 -> 0 | M56: =M37 -> 0 | N56: =N37 -> 0 | P56: =P37 -> 0 | Q56: =Q37 -> 0 | S56: =S37 -> 0 | T56: =T37 -> 0 | V56: =V37 -> 0 | W56: =W37 -> 0 | Y56: =Y37 -> 0 | Z56: =Z37 -> 0 | AB56: =AB37 -> 0 | AC56: =AC37 -> 0
A57: CCA (6% DB and 94% P) | D57: =-D94*D$19 -> 0 | E57: =-D94*E$19 -> 0 | G57: =-E94*G19 -> 0 | H57: =-E94*H$19 -> 0 | J57: =-F94*J$19 -> 0 | K57: =-F94*K$19 -> 0 | M57: =-G94*M$19 -> 0 | N57: =-G94*N$19 -> 0 | P57: =-H94*P$19 -> 0 | Q57: =-H94*Q$19 -> 0 | S57: =-I94*S$19 -> 0 | T57: =-I94*T$19 -> 0 | V57: =-J94*V$19 -> 0 | W57: =-J94*W$19 -> 0 | Y57: =-K94*Y$19 -> 0 | Z57: =-K94*Z$19 -> 0 | AB57: =-L94*AB$19 -> 0 | AC57: =-L94*AC$19 -> 0
A58: Taxable income | D58: =SUM(D55:D57) -> 0 | E58: =SUM(E55:E57) -> 0 | G58: =SUM(G55:G57) -> 0 | H58: =SUM(H55:H57) -> 0 | J58: =SUM(J55:J57) -> 0 | K58: =SUM(K55:K57) -> 0 | M58: =SUM(M55:M57) -> 0 | N58: =SUM(N55:N57) -> 0 | P58: =SUM(P55:P57) -> 0 | Q58: =SUM(Q55:Q57) -> 0 | S58: =SUM(S55:S57) -> 0 | T58: =SUM(T55:T57) -> 0 | V58: =SUM(V55:V57) -> 0 | W58: =SUM(W55:W57) -> 0 | Y58: =SUM(Y55:Y57) -> 0 | Z58: =SUM(Z55:Z57) -> 0 | AB58: =SUM(AB55:AB57) -> 0 | AC58: =SUM(AC55:AC57) -> 0
A60: Tax Rate (to be entered)
A62: Income Taxes Payable | D62: =D58*D60 -> 0 | E62: =E58*E60 -> 0 | G62: =G58*G60 -> 0 | H62: =H58*H60 -> 0 | J62: =J58*J60 -> 0 | K62: =K58*K60 -> 0 | M62: =M58*M60 -> 0 | N62: =N58*N60 -> 0 | P62: =P58*P60 -> 0 | Q62: =Q58*Q60 -> 0 | S62: =S58*S60 -> 0 | T62: =T58*T60 -> 0 | V62: =V58*V60 -> 0 | W62: =W58*W60 -> 0 | Y62: =Y58*Y60 -> 0 | Z62: =Z58*Z60 -> 0 | AB62: =AB58*AB60 -> 0 | AC62: =AC58*AC60 -> 0
A63: Gross Up
A64: Income Taxes Payable | D64: =D62/(1-D60) -> 0 | E64: =E62/(1-E60) -> 0 | G64: =G62/(1-G60) -> 0 | H64: =H62/(1-H60) -> 0 | J64: =J62/(1-J60) -> 0 | K64: =K62/(1-K60) -> 0 | M64: =M62/(1-M60) -> 0 | N64: =N62/(1-N60) -> 0 | P64: =P62/(1-P60) -> 0 | Q64: =Q62/(1-Q60) -> 0 | S64: =S62/(1-S60) -> 0 | T64: =T62/(1-T60) -> 0 | V64: =V62/(1-V60) -> 0 | W64: =W62/(1-W60) -> 0 | Y64: =Y62/(1-Y60) -> 0 | Z64: =Z62/(1-Z60) -> 0 | AB64: =AB62/(1-AB60) -> 0 | AC64: =AC62/(1-AC60) -> 0
A65: Grossed Up PILs | D65: =SUM(D64:D64) -> 0 | E65: =SUM(E64:E64) -> 0 | G65: =SUM(G64:G64) -> 0 | H65: =SUM(H64:H64) -> 0 | J65: =SUM(J64:J64) -> 0 | K65: =SUM(K64:K64) -> 0 | M65: =SUM(M64:M64) -> 0 | N65: =SUM(N64:N64) -> 0 | P65: =SUM(P64:P64) -> 0 | Q65: =SUM(Q64:Q64) -> 0 | S65: =SUM(S64:S64) -> 0 | T65: =SUM(T64:T64) -> 0 | V65: =SUM(V64:V64) -> 0 | W65: =SUM(W64:W64) -> 0 | Y65: =SUM(Y64:Y64) -> 0 | Z65: =SUM(Z64:Z64) -> 0 | AB65: =SUM(AB64:AB64) -> 0 | AC65: =SUM(AC64:AC64) -> 0
D68: =E68-1 -> 2014 | E68: =F68-1 -> 2015 | F68: =G68-1 -> 2016 | G68: =H68-1 -> 2017 | H68: =TestYear -> 2018 | I68: =H68+1 -> 2019 | J68: =I68+1 -> 2020 | K68: =J68+1 -> 2021 | L68: =K68+1 -> 2022
A69: Net Fixed Assets
B70: Enter applicable amortization in years: | C70: 25
A71: Opening Gross Fixed Assets | E71: =D73 -> 0 | F71: 0 | G71: 0 | H71: 0 | I71: 0 | J71: 0 | K71: 0 | L71: 0
A72: Gross Capital Additions | D72: ='App.2-FA Proposed REG Invest.'!C62 -> 0 | E72: ='App.2-FA Proposed REG Invest.'!D62 -> 0 | F72: ='App.2-FA Proposed REG Invest.'!E62 -> 0 | G72: ='App.2-FA Proposed REG Invest.'!F62 -> 0 | H72: ='App.2-FA Proposed REG Invest.'!G62 -> 0 | I72: ='App.2-FA Proposed REG Invest.'!H62 -> 0 | J72: ='App.2-FA Proposed REG Invest.'!I62 -> 0 | K72: ='App.2-FA Proposed REG Invest.'!J62 -> 0 | L72: ='App.2-FA Proposed REG Invest.'!K62 -> 0
A73: Closing Gross Fixed Assets | D73: =SUM(D71:D72) -> 0 | E73: 0 | F73: 0 | G73: 0 | H73: 0 | I73: 0 | J73: 0 | K73: 0 | L73: 0
A75: Opening Accumulated Amortization | E75: =+D78 -> 0 | F75: =E78 -> 0 | G75: 0 | H75: 0 | I75: 0 | J75: 0 | K75: 0 | L75: 0
A76: Current Year Amortization (before additions) | D76: =IF(ISERROR(D71/$C$70), 0, D71/$C$70) -> 0 | E76: 0 | F76: 0 | G76: 0 | H76: 0 | I76: 0 | J76: 0 | K76: 0 | L76: 0
A77: Additions (half year) | D77: =D72/$C$70/2 -> 0 | E77: =E72/$C$70/2 -> 0 | F77: =F72/$C$70/2 -> 0 | G77: =G72/$C$70/2 -> 0 | H77: =H72/$C$70/2 -> 0 | I77: =I72/C70/2 -> 0 | J77: =J72/C70/2 -> 0 | K77: =K72/C70/2 -> 0 | L77: =L72/C70/2 -> 0
A78: Closing Accumulated Amortization | D78: =SUM(D75+D76+D77) -> 0 | E78: =SUM(E75+E76+E77) -> 0 | F78: =SUM(F75+F76+F77) -> 0 | G78: =SUM(G75+G76+G77) -> 0 | H78: =SUM(H75+H76+H77) -> 0 | I78: =SUM(I75:I77) -> 0 | J78: =SUM(J75:J77) -> 0 | K78: =SUM(K75:K77) -> 0 | L78: =SUM(L75:L77) -> 0
A80: Opening Net Fixed Assets | D80: =D71-D75 -> 0 | E80: =E71-E75 -> 0 | F80: =F71-F75 -> 0 | G80: =G71-G75 -> 0 | H80: =H71-H75 -> 0 | I80: =H81 -> 0 | J80: =I81 -> 0 | K80: =J81 -> 0 | L80: =K81 -> 0
A81: Closing Net Fixed Assets | D81: =D73-D78 -> 0 | E81: 0 | F81: 0 | G81: 0 | H81: 0 | I81: 0 | J81: 0 | K81: 0 | L81: 0
A82: Average Net Fixed Assets | D82: =SUM(D80:D81)/2 -> 0 | E82: 0 | F82: 0 | G82: 0 | H82: 0 | I82: 0 | J82: 0 | K82: 0 | L82: 0
A84: UCC for PILs Calculation
D85: =D68 -> 2014 | E85: =E68 -> 2015 | F85: 2016 | G85: 2017 | H85: 2018 | I85: 2019 | J85: 2020 | K85: 2021 | L85: 2022
A87: Opening UCC | E87: =D95 -> 0 | F87: 0 | G87: 0 | H87: 0 | I87: 0 | J87: 0 | K87: 0 | L87: 0
A88: Capital Additions (from Appendix 2-FA) | D88: =D72 -> 0 | E88: 0 | F88: 0 | G88: 0 | H88: 0 | I88: 0 | J88: 0 | K88: 0 | L88: 0
A89: UCC Before Half Year Rule | D89: =SUM(D87:D88) -> 0 | E89: 0 | F89: 0 | G89: 0 | H89: 0 | I89: 0 | J89: 0 | K89: 0 | L89: 0
A90: Half Year Rule (1/2 Additions - Disposals) | D90: =D88/2 -> 0 | E90: 0 | F90: 0 | G90: 0 | H90: 0 | I90: 0 | J90: 0 | K90: 0 | L90: 0
A91: Reduced UCC | D91: =D89-D90 -> 0 | E91: 0 | F91: 0 | G91: 0 | H91: 0 | I91: 0 | J91: 0 | K91: 0 | L91: 0
A92: CCA Rate Class (to be entered) | C92: 47 | D92: =C92 -> 47 | E92: =D92 -> 47 | F92: 47 | G92: 47 | H92: 47 | I92: 47 | J92: 47 | K92: 47 | L92: 47
A93: CCA Rate (to be entered) | C93: 0.08 | D93: =C93 -> 0.08 | E93: 0.08 | F93: 0.08 | G93: 0.08 | H93: 0.08 | I93: 0.08 | J93: 0.08 | K93: 0.08 | L93: 0.08
A94: CCA | D94: =D91*D93 -> 0 | E94: 0 | F94: 0 | G94: 0 | H94: 0 | I94: 0 | J94: 0 | K94: 0 | L94: 0
A95: Closing UCC | D95: =D89-D94 -> 0 | E95: 0 | F95: 0 | G95: 0 | H95: 0 | I95: 0 | J95: 0 | K95: 0 | L95: 0

Sheet App.2-FC Calc of REG Expansion
N1: File Number: | O1: =EBNUMBER -> EB-2017-0032
A2: Not Applicable | N2: Exhibit:
N3: Tab:
N4: Schedule:
N5: Page:
N7: Date:
A9: Appendix 2-FC
A10: Calculation of Renewable Generation Connection Direct Benefits/Provincial Amount: Renewable Expansion Investments
A12: This table will calculate the distributor/provincial shares of the investments entered in Part B of Appendix 2-FA.
A13: Enter values in green shaded cells: WCA percentage, debt percentages, interest rates, kWh, tax rates, amortization period, CCA Class and percentage.
A14: For historical investments, enter these variables for your last cost of service test year. For 2016 and beyond, enter variables as in the application.
A15: Rate Riders are not calculated for the Test Year as these assets and costs are already in the distributor's rate base.
D18: =G18-1 -> 2014 | G18: =J18-1 -> 2015 | J18: =M18-1 -> 2016 | M18: =BridgeYear -> 2017 | P18: =CONCATENATE(TestYear," Test Year") -> 2018 Test Year | S18: =TestYear+1 -> 2019 | T18: 2016 | V18: =S18+1 -> 2020 | Y18: =V18+1 -> 2021 | AB18: =Y18+1 -> 2022
E19: Direct Benefit | F19: Provincial | H19: Direct Benefit | I19: Provincial | K19: Direct Benefit | L19: Provincial | N19: Direct Benefit | O19: Provincial | Q19: Direct Benefit | R19: Provincial | T19: Direct Benefit | U19: Provincial | W19: Direct Benefit | X19: Provincial | Z19: Direct Benefit | AA19: Provincial | AC19: Direct Benefit | AD19: Provincial
D20: Total | E20: 0.17 | F20: 0.83 | G20: Total | H20: 0.17 | I20: 0.83 | J20: Total | K20: 0.17 | L20: 0.83 | M20: Total | N20: 0.17 | O20: 0.83 | P20: Total | Q20: 0.17 | R20: 0.83 | S20: Total | T20: 0.17 | U20: 0.83 | V20: Total | W20: 0.17 | X20: 0.83 | Y20: Total | Z20: 0.17 | AA20: 0.83 | AB20: Total | AC20: 0.17 | AD20: 0.83
A21: Net Fixed Assets (average) | D21: =D82 -> 0 | E21: =D21*E20 -> 0 | F21: =D21*F20 -> 0 | G21: =E82 -> 0 | H21: =G21*H20 -> 0 | I21: =G21*I20 -> 0 | J21: =F82 -> 0 | K21: =J21*K20 -> 0 | L21: =J21*L20 -> 0 | M21: =G82 -> 0 | N21: =M21*N20 -> 0 | O21: =M21*O20 -> 0 | P21: =H82 -> 0 | Q21: =P21*Q20 -> 0 | R21: =P21*R20 -> 0 | S21: =I82 -> 0 | T21: =S21*T20 -> 0 | U21: =S21*U20 -> 0 | V21: =J82 -> 0 | W21: =V21*W20 -> 0 | X21: =V21*X20 -> 0 | Y21: =K82 -> 0 | Z21: =Y21*Z20 -> 0 | AA21: =Y21*AA20 -> 0 | AB21: =L82 -> 0 | AC21: =AB21*AC20 -> 0 | AD21: =AB21*AD20 -> 0
A22: Incremental OM&A (on-going, N/A for Provincial Recovery) | D22: ='App.2-FA Proposed REG Invest.'!C101 -> 0 | E22: =D22 -> 0 | G22: ='App.2-FA Proposed REG Invest.'!D$101 -> 0 | H22: =G22 -> 0 | J22: ='App.2-FA Proposed REG Invest.'!E$101 -> 0 | K22: =J22 -> 0 | M22: ='App.2-FA Proposed REG Invest.'!F$101 -> 0 | N22: =M22 -> 0 | P22: ='App.2-FA Proposed REG Invest.'!G$101 -> 0 | Q22: =P22 -> 0 | S22: ='App.2-FA Proposed REG Invest.'!H$101 -> 0 | T22: =S22 -> 0 | V22: ='App.2-FA Proposed REG Invest.'!I$101 -> 0 | W22: =V22 -> 0 | Y22: ='App.2-FA Proposed REG Invest.'!J$101 -> 0 | Z22: =Y22 -> 0 | AB22: ='App.2-FA Proposed REG Invest.'!K$101 -> 0 | AC22: =AB22 -> 0
A23: Incremental OM&A (start-up, applicable for Provincial Recovery) | D23: ='App.2-FA Proposed REG Invest.'!C100 -> 0 | E23: =D23*E20 -> 0 | F23: =D23*F20 -> 0 | G23: ='App.2-FA Proposed REG Invest.'!D$100 -> 0 | H23: =G23*H20 -> 0 | I23: =G23*I20 -> 0 | J23: ='App.2-FA Proposed REG Invest.'!E$100 -> 0 | K23: =J23*K20 -> 0 | L23: =J23*L20 -> 0 | M23: ='App.2-FA Proposed REG Invest.'!F$100 -> 0 | N23: =M23*N20 -> 0 | O23: =M23*O20 -> 0 | P23: ='App.2-FA Proposed REG Invest.'!G$100 -> 0 | Q23: =P23*Q20 -> 0 | R23: =P23*R20 -> 0 | S23: ='App.2-FA Proposed REG Invest.'!H$100 -> 0 | T23: =S23*T20 -> 0 | U23: =S23*U20 -> 0 | V23: ='App.2-FA Proposed REG Invest.'!I$100 -> 0 | W23: =V23*W20 -> 0 | X23: =V23*X20 -> 0 | Y23: ='App.2-FA Proposed REG Invest.'!J$100 -> 0 | Z23: =Y23*Z20 -> 0 | AA23: =Y23*AA20 -> 0 | AB23: ='App.2-FA Proposed REG Invest.'!K$100 -> 0 | AC23: =AB23*AC20 -> 0 | AD23: =AB23*AD20 -> 0
A24: WCA | E24: =(E22+E23)*$B$24 -> 0 | F24: =F23*$B$24 -> 0 | H24: =(H22+H23)*$B$24 -> 0 | I24: =I23*$B$24 -> 0 | K24: =(K22+K23)*$B$24 -> 0 | L24: =L23*$B$24 -> 0 | N24: =(N22+N23)*$B$24 -> 0 | O24: =O23*$B$24 -> 0 | Q24: =(Q22+Q23)*$B$24 -> 0 | R24: =R23*$B$24 -> 0 | T24: =(T22+T23)*$B$24 -> 0 | U24: =U23*$B$24 -> 0 | W24: =(W22+W23)*$B$24 -> 0 | X24: =X23*$B$24 -> 0 | Z24: =(Z22+Z23)*$B$24 -> 0 | AA24: =AA23*$B$24 -> 0 | AC24: =(AC22+AC23)*$B$24 -> 0 | AD24: =AD23*$B$24 -> 0
A25: Rate Base | E25: =SUM(E21+E24) -> 0 | F25: =SUM(F21+F24) -> 0 | H25: =SUM(H21+H24) -> 0 | I25: =SUM(I21+I24) -> 0 | K25: =SUM(K21+K24) -> 0 | L25: =SUM(L21+L24) -> 0 | N25: =SUM(N21+N24) -> 0 | O25: =SUM(O21+O24) -> 0 | Q25: =SUM(Q21+Q24) -> 0 | R25: =SUM(R21+R24) -> 0 | T25: =SUM(T21+T24) -> 0 | U25: =SUM(U21+U24) -> 0 | W25: =SUM(W21+W24) -> 0 | X25: =SUM(X21+X24) -> 0 | Z25: =SUM(Z21+Z24) -> 0 | AA25: =SUM(AA21+AA24) -> 0 | AC25: =SUM(AC21+AC24) -> 0 | AD25: =SUM(AD21+AD24) -> 0
A28: Deemed ST Debt | E28: =E25*$B$28 -> 0 | F28: =F25*$B$28 -> 0 | H28: =H25*$B$28 -> 0 | I28: =I25*$B$28 -> 0 | K28: =K25*$B$28 -> 0 | L28: =L25*$B$28 -> 0 | N28: =N25*$B$28 -> 0 | O28: =O25*$B$28 -> 0 | Q28: =Q25*$B$28 -> 0 | R28: =R25*$B$28 -> 0 | T28: =T25*$B$28 -> 0 | U28: =U25*$B$28 -> 0 | W28: =W25*$B$28 -> 0 | X28: =X25*$B$28 -> 0 | Z28: =Z25*$B$28 -> 0 | AA28: =AA25*$B$28 -> 0 | AC28: =AC25*$B$28 -> 0 | AD28: =AD25*$B$28 -> 0
A29: Deemed LT Debt | E29: =E25*$B$29 -> 0 | F29: =F25*$B$29 -> 0 | H29: =H25*$B$29 -> 0 | I29: =I25*$B$29 -> 0 | K29: =K25*$B$29 -> 0 | L29: =L25*$B$29 -> 0 | N29: =N25*$B$29 -> 0 | O29: =O25*$B$29 -> 0 | Q29: =Q25*$B$29 -> 0 | R29: =R25*$B$29 -> 0 | T29: =T25*$B$29 -> 0 | U29: =U25*$B$29 -> 0 | W29: =W25*$B$29 -> 0 | X29: =X25*$B$29 -> 0 | Z29: =Z25*$B$29 -> 0 | AA29: =AA25*$B$29 -> 0 | AC29: =AC25*$B$29 -> 0 | AD29: =AD25*$B$29 -> 0
A30: Deemed Equity | E30: =E25*$B$30 -> 0 | F30: =F25*$B$30 -> 0 | H30: =H25*$B$30 -> 0 | I30: =I25*$B$30 -> 0 | K30: =K25*$B$30 -> 0 | L30: =L25*$B$30 -> 0 | N30: =N25*$B$30 -> 0 | O30: =O25*$B$30 -> 0 | Q30: =Q25*$B$30 -> 0 | R30: =R25*$B$30 -> 0 | T30: =T25*$B$30 -> 0 | U30: =U25*$B$30 -> 0 | W30: =W25*$B$30 -> 0 | X30: =X25*$B$30 -> 0 | Z30: =Z25*$B$30 -> 0 | AA30: =AA25*$B$30 -> 0 | AC30: =AC25*$B$30 -> 0 | AD30: =AD25*$B$30 -> 0
A32: ST Interest | E32: =E28*$B$32 -> 0 | F32: =F28*$B$32 -> 0 | H32: =H28*$B$32 -> 0 | I32: =I28*$B$32 -> 0 | K32: =K28*$B$32 -> 0 | L32: =L28*$B$32 -> 0 | N32: =N28*$B$32 -> 0 | O32: =O28*$B$32 -> 0 | Q32: =Q28*$B$32 -> 0 | R32: =R28*$B$32 -> 0 | T32: =T28*$B$32 -> 0 | U32: =U28*$B$32 -> 0 | W32: =W28*$B$32 -> 0 | X32: =X28*$B$32 -> 0 | Z32: =Z28*$B$32 -> 0 | AA32: =AA28*$B$32 -> 0 | AC32: =AC28*$B$32 -> 0 | AD32: =AD28*$B$32 -> 0
A33: LT Interest | E33: =E29*$B$33 -> 0 | F33: =F29*$B$33 -> 0 | H33: =H29*$B$33 -> 0 | I33: =I29*$B$33 -> 0 | K33: =K29*$B$33 -> 0 | L33: =L29*$B$33 -> 0 | N33: =N29*$B$33 -> 0 | O33: =O29*$B$33 -> 0 | Q33: =Q29*$B$33 -> 0 | R33: =R29*$B$33 -> 0 | T33: =T29*$B$33 -> 0 | U33: =U29*$B$33 -> 0 | W33: =W29*$B$33 -> 0 | X33: =X29*$B$33 -> 0 | Z33: =Z29*$B$33 -> 0 | AA33: =AA29*$B$33 -> 0 | AC33: =AC29*$B$33 -> 0 | AD33: =AD29*$B$33 -> 0
A34: ROE | E34: =E30*$B$34 -> 0 | F34: =F30*$B$34 -> 0 | H34: =H30*$B$34 -> 0 | I34: =I30*$B$34 -> 0 | K34: =K30*$B$34 -> 0 | L34: =L30*$B$34 -> 0 | N34: =N30*$B$34 -> 0 | O34: =O30*$B$34 -> 0 | Q34: =Q30*$B$34 -> 0 | R34: =R30*$B$34 -> 0 | T34: =T30*$B$34 -> 0 | U34: =U30*$B$34 -> 0 | W34: =W30*$B$34 -> 0 | X34: =X30*$B$34 -> 0 | Z34: =Z30*$B$34 -> 0 | AA34: =AA30*$B$34 -> 0 | AC34: =AC30*$B$34 -> 0 | AD34: =AD30*$B$34 -> 0
A35: Cost of Capital Total | E35: =SUM(E32:E34) -> 0 | F35: =SUM(F32:F34) -> 0 | H35: =SUM(H32:H34) -> 0 | I35: =SUM(I32:I34) -> 0 | K35: =SUM(K32:K34) -> 0 | L35: =SUM(L32:L34) -> 0 | N35: =SUM(N32:N34) -> 0 | O35: =SUM(O32:O34) -> 0 | Q35: =SUM(Q32:Q34) -> 0 | R35: =SUM(R32:R34) -> 0 | T35: =SUM(T32:T34) -> 0 | U35: =SUM(U32:U34) -> 0 | W35: =SUM(W32:W34) -> 0 | X35: =SUM(X32:X34) -> 0 | Z35: =SUM(Z32:Z34) -> 0 | AA35: =SUM(AA32:AA34) -> 0 | AC35: =SUM(AC32:AC34) -> 0 | AD35: =SUM(AD32:AD34) -> 0
A37: OM&A | E37: =E22+E23 -> 0 | F37: =F23 -> 0 | H37: =H22+H23 -> 0 | I37: =I23 -> 0 | K37: =K22+K23 -> 0 | L37: =L23 -> 0 | N37: =N22+N23 -> 0 | O37: =O23 -> 0 | Q37: =Q22+Q23 -> 0 | R37: =R23 -> 0 | T37: =T22+T23 -> 0 | U37: =U23 -> 0 | W37: =W22+W23 -> 0 | X37: =X23 -> 0 | Z37: =Z22+Z23 -> 0 | AA37: =AA23 -> 0 | AC37: =AC22+AC23 -> 0 | AD37: =AD23 -> 0
A38: Amortization | D38: =D78 -> 0 | E38: =D38*E$20 -> 0 | F38: =D38*F$20 -> 0 | G38: =E78 -> 0 | H38: =G38*H$20 -> 0 | I38: =G38*I$20 -> 0 | J38: =F78 -> 0 | K38: =J38*K$20 -> 0 | L38: =J38*L$20 -> 0 | M38: =G78 -> 0 | N38: =M38*N$20 -> 0 | O38: =M38*O$20 -> 0 | P38: =H76+H77 -> 0 | Q38: =P38*Q$20 -> 0 | R38: =P38*R$20 -> 0 | S38: =I76+I77 -> 0 | T38: =S38*T$20 -> 0 | U38: =S38*U$20 -> 0 | V38: =J76+J77 -> 0 | W38: =V38*W$20 -> 0 | X38: =V38*X$20 -> 0 | Y38: =K76+K77 -> 0 | Z38: =Y38*Z$20 -> 0 | AA38: =Y38*AA$20 -> 0 | AB38: =L76+L77 -> 0 | AC38: =AB38*AC$20 -> 0 | AD38: =AB38*AD$20 -> 0
A39: Grossed-up PILs | E39: =E66 -> 0 | F39: =F66 -> 0 | H39: =H66 -> 0 | I39: =I66 -> 0 | K39: =K66 -> 0 | L39: =L66 -> 0 | N39: =N66 -> 0 | O39: =O66 -> 0 | Q39: =Q66 -> 0 | R39: =R66 -> 0 | T39: =T66 -> 0 | U39: =U66 -> 0 | W39: =W66 -> 0 | X39: =X66 -> 0 | Z39: =Z66 -> 0 | AA39: =AA66 -> 0 | AC39: =AC66 -> 0 | AD39: =AD66 -> 0
A41: Revenue Requirement | E41: =SUM(E35:E39) -> 0 | F41: =SUM(F35:F39) -> 0 | H41: =SUM(H35:H39) -> 0 | I41: =SUM(I35:I39) -> 0 | K41: =SUM(K35:K39) -> 0 | L41: =SUM(L35:L39) -> 0 | N41: =SUM(N35:N39) -> 0 | O41: =SUM(O35:O39) -> 0 | Q41: =SUM(Q35:Q39) -> 0 | R41: =SUM(R35:R39) -> 0 | T41: =SUM(T35:T39) -> 0 | U41: =SUM(U35:U39) -> 0 | W41: =SUM(W35:W39) -> 0 | X41: =SUM(X35:X39) -> 0 | Z41: =SUM(Z35:Z39) -> 0 | AA41: =SUM(AA35:AA39) -> 0 | AC41: =SUM(AC35:AC39) -> 0 | AD41: =SUM(AD35:AD39) -> 0
A44: Provincial Rate Protection | F44: =F41 -> 0 | I44: =I41 -> 0 | L44: =L41 -> 0 | O44: =O41 -> 0 | R44: =R41 -> 0 | U44: =U41 -> 0 | X44: =X41 -> 0 | AA44: =AA41 -> 0 | AD44: =AD41 -> 0
A46: Monthly Amount Paid by IESO | F46: =F44/12 -> 0 | I46: =I44/12 -> 0 | L46: =L44/12 -> 0 | O46: =O44/12 -> 0 | R46: =R44/12 -> 0 | U46: =U44/12 -> 0 | X46: =X44/12 -> 0 | AA46: =AA44/12 -> 0 | AD46: =AD44/12 -> 0
A48: Note 1: The difference between the actual costs of approved eligible investments and revenue received from the IESO should be recorded in a variance account. The Board may provide
A49: regulatory accounting guidance regarding a variance account either in an individual proceeding or on a generic basis.
A50: Note 2: For the 2016 Test Year, Costs and Revenues of the Direct Benefit are to be included in the test year applicant Rate Base and Revenues.
A52: PILs Calculation
E53: =D18 -> 2014 | H53: =G18 -> 2015 | K53: =J18 -> 2016 | N53: =M18 -> 2017 | Q53: =P18 -> 2018 Test Year | T53: =S18 -> 2019 | W53: =V18 -> 2020 | Z53: =Y18 -> 2021 | AC53: =AB18 -> 2022
A54: Income Tax | E54: Direct Benefit | F54: Provincial | H54: Direct Benefit | I54: Provincial | K54: Direct Benefit | L54: Provincial | N54: Direct Benefit | O54: Provincial | Q54: Direct Benefit | R54: Provincial | T54: Direct Benefit | U54: Provincial | W54: Direct Benefit | X54: Provincial | Z54: Direct Benefit | AA54: Provincial | AC54: Direct Benefit | AD54: Provincial
V55: Total | Y55: Total | AB55: Total
A56: Net Income - ROE on Rate Base | E56: =E34 -> 0 | F56: =F34 -> 0 | H56: =H34 -> 0 | I56: =I34 -> 0 | K56: =K34 -> 0 | L56: =L34 -> 0 | N56: =N34 -> 0 | O56: =O34 -> 0 | Q56: =Q34 -> 0 | R56: =R34 -> 0 | T56: =T34 -> 0 | U56: =U34 -> 0 | W56: =W34 -> 0 | X56: =X34 -> 0 | Z56: =Z34 -> 0 | AA56: =AA34 -> 0 | AC56: =AC34 -> 0 | AD56: =AD34 -> 0
A57: Amortization (17% DB and 83% P) | E57: =E38 -> 0 | F57: =F38 -> 0 | H57: =H38 -> 0 | I57: =I38 -> 0 | K57: =K38 -> 0 | L57: =L38 -> 0 | N57: =N38 -> 0 | O57: =O38 -> 0 | Q57: =Q38 -> 0 | R57: =R38 -> 0 | T57: =T38 -> 0 | U57: =U38 -> 0 | W57: =W38 -> 0 | X57: =X38 -> 0 | Z57: =Z38 -> 0 | AA57: =AA38 -> 0 | AC57: =AC38 -> 0 | AD57: =AD38 -> 0
A58: CCA (17% DB and 83% P) | E58: =-D94*E$20 -> 0 | F58: =-D94*F$20 -> 0 | H58: =-E94*H$20 -> 0 | I58: =-E94*I$20 -> 0 | K58: =-F94*K$20 -> 0 | L58: =-F94*L$20 -> 0 | N58: =-G94*N$20 -> 0 | O58: =-G94*O$20 -> 0 | Q58: =-H94*Q$20 -> 0 | R58: =-H94*R$20 -> 0 | T58: =-I94*T$20 -> 0 | U58: =-I94*U$20 -> 0 | W58: =-J94*W$20 -> 0 | X58: =-J94*X$20 -> 0 | Z58: =-K94*Z$20 -> 0 | AA58: =-K94*AA$20 -> 0 | AC58: =-L94*AC$20 -> 0 | AD58: =-L94*AD$20 -> 0
A59: Taxable income | E59: =SUM(E56:E58) -> 0 | F59: =SUM(F56:F58) -> 0 | H59: =SUM(H56:H58) -> 0 | I59: =SUM(I56:I58) -> 0 | K59: =SUM(K56:K58) -> 0 | L59: =SUM(L56:L58) -> 0 | N59: =SUM(N56:N58) -> 0 | O59: =SUM(O56:O58) -> 0 | Q59: =SUM(Q56:Q58) -> 0 | R59: =SUM(R56:R58) -> 0 | T59: =SUM(T56:T58) -> 0 | U59: =SUM(U56:U58) -> 0 | W59: =SUM(W56:W58) -> 0 | X59: =SUM(X56:X58) -> 0 | Z59: =SUM(Z56:Z58) -> 0 | AA59: =SUM(AA56:AA58) -> 0 | AC59: =SUM(AC56:AC58) -> 0 | AD59: =SUM(AD56:AD58) -> 0
A61: Tax Rate (to be entered)
A63: Income Taxes Payable | E63: =E59*E61 -> 0 | F63: =F59*F61 -> 0 | H63: =H59*H61 -> 0 | I63: =I59*I61 -> 0 | K63: =K59*K61 -> 0 | L63: =L59*L61 -> 0 | N63: =N59*N61 -> 0 | O63: =O59*O61 -> 0 | Q63: =Q59*Q61 -> 0 | R63: =R59*R61 -> 0 | T63: =T59*T61 -> 0 | U63: =U59*U61 -> 0 | W63: =W59*W61 -> 0 | X63: =X59*X61 -> 0 | Z63: =Z59*Z61 -> 0 | AA63: =AA59*AA61 -> 0 | AC63: =AC59*AC61 -> 0 | AD63: =AD59*AD61 -> 0
A64: Gross Up
A65: Income Taxes Payable | E65: =E63/(1-E61) -> 0 | F65: =F63/(1-F61) -> 0 | H65: =H63/(1-H61) -> 0 | I65: =I63/(1-I61) -> 0 | K65: =K63/(1-K61) -> 0 | L65: =L63/(1-L61) -> 0 | N65: =N63/(1-N61) -> 0 | O65: =O63/(1-O61) -> 0 | Q65: =Q63/(1-Q61) -> 0 | R65: =R63/(1-R61) -> 0 | T65: =T63/(1-T61) -> 0 | U65: =U63/(1-U61) -> 0 | W65: =W63/(1-W61) -> 0 | X65: =X63/(1-X61) -> 0 | Z65: =Z63/(1-Z61) -> 0 | AA65: =AA63/(1-AA61) -> 0 | AC65: =AC63/(1-AC61) -> 0 | AD65: =AD63/(1-AD61) -> 0
A66: Grossed Up PILs | E66: =SUM(E65:E65) -> 0 | F66: =SUM(F65:F65) -> 0 | H66: =SUM(H65:H65) -> 0 | I66: =SUM(I65:I65) -> 0 | K66: =SUM(K65:K65) -> 0 | L66: =SUM(L65:L65) -> 0 | N66: =SUM(N65:N65) -> 0 | O66: =SUM(O65:O65) -> 0 | Q66: =SUM(Q65:Q65) -> 0 | R66: =SUM(R65:R65) -> 0 | T66: =SUM(T65:T65) -> 0 | U66: =SUM(U65:U65) -> 0 | W66: =SUM(W65:W65) -> 0 | X66: =SUM(X65:X65) -> 0 | Z66: =SUM(Z65:Z65) -> 0 | AA66: =SUM(AA65:AA65) -> 0 | AC66: =SUM(AC65:AC65) -> 0 | AD66: =SUM(AD65:AD65) -> 0
A69: Net Fixed Assets | D69: 2011 | E69: 2012 | F69: 2013 | G69: 2014 | H69: 2015 | I69: 2016 | J69: 2017 | K69: 2018 | L69: 2019
B70: Enter applicable amortization in years: | C70: 25
A71: Opening Gross Fixed Assets | E71: =D73 -> 0 | F71: 0 | G71: 0 | H71: 0 | I71: 0 | J71: 0 | K71: 0 | L71: 0
A72: Gross Capital Additions | D72: ='App.2-FA Proposed REG Invest.'!C99 -> 0 | E72: ='App.2-FA Proposed REG Invest.'!D99 -> 0 | F72: ='App.2-FA Proposed REG Invest.'!E99 -> 0 | G72: ='App.2-FA Proposed REG Invest.'!F99 -> 0 | H72: ='App.2-FA Proposed REG Invest.'!G99 -> 0 | I72: ='App.2-FA Proposed REG Invest.'!H99 -> 0 | J72: ='App.2-FA Proposed REG Invest.'!I99 -> 0 | K72: ='App.2-FA Proposed REG Invest.'!J99 -> 0 | L72: ='App.2-FA Proposed REG Invest.'!K99 -> 0
A73: Closing Gross Fixed Assets | D73: =SUM(D71:D72) -> 0 | E73: 0 | F73: 0 | G73: 0 | H73: 0 | I73: 0 | J73: 0 | K73: 0 | L73: 0
A75: Opening Accumulated Amortization | E75: =+D78 -> 0 | F75: =E78 -> 0 | G75: 0 | H75: 0 | I75: 0 | J75: 0 | K75: 0 | L75: 0
A76: Current Year Amortization (before additions) | E76: =IF(ISERROR(E71/$C$70), 0, E71/$C$70) -> 0 | F76: =IF(ISERROR(F71/$C$70), 0, F71/$C$70) -> 0 | G76: =IF(ISERROR(G71/$C$70), 0, G71/$C$70) -> 0 | H76: =H71/$C$70 -> 0 | I76: =I71/$C$70 -> 0 | J76: =J71/$C$70 -> 0 | K76: =K71/$C$70 -> 0 | L76: =L71/$C$70 -> 0
A77: Additions (half year) | D77: =D72/C70/2 -> 0 | E77: =E72/C70/2 -> 0 | F77: =F72/C70/2 -> 0 | G77: =G72/C70/2 -> 0 | H77: =H72/C70/2 -> 0 | I77: =I72/C70/2 -> 0 | J77: =J72/C70/2 -> 0 | K77: =K72/C70/2 -> 0 | L77: =L72/C70/2 -> 0
A78: Closing Accumulated Amortization | D78: =SUM(D75+D77) -> 0 | E78: =SUM(E75:E77) -> 0 | F78: 0 | G78: 0 | H78: 0 | I78: 0 | J78: 0 | K78: 0 | L78: 0
A80: Opening Net Fixed Assets | D80: =D71-D75 -> 0 | E80: =E71-E75 -> 0 | F80: =F71-F75 -> 0 | G80: =G71-G75 -> 0 | H80: =G81 -> 0 | I80: =H81 -> 0 | J80: =I81 -> 0 | K80: =J81 -> 0 | L80: =K81 -> 0
A81: Closing Net Fixed Assets | D81: =D73-D78 -> 0 | E81: 0 | F81: 0 | G81: 0 | H81: 0 | I81: 0 | J81: 0 | K81: 0 | L81: 0
A82: Average Net Fixed Assets | D82: =SUM(D80:D81)/2 -> 0 | E82: 0 | F82: 0 | G82: 0 | H82: 0 | I82: 0 | J82: 0 | K82: 0 | L82: 0
A84: UCC for PILs Calculation
D85: 2014 | E85: 2014 | F85: 2014 | G85: 2014 | H85: 2015 | I85: 2016 | J85: 2017 | K85: 2018 | L85: 2019
A87: Opening UCC | E87: =D95 -> 0 | F87: 0 | G87: 0 | H87: 0 | I87: 0 | J87: 0 | K87: 0 | L87: 0
A88: Capital Additions (from Appendix 2-FA) | D88: =D72 -> 0 | E88: 0 | F88: 0 | G88: 0 | H88: 0 | I88: 0 | J88: 0 | K88: 0 | L88: 0
A89: UCC Before Half Year Rule | D89: =SUM(D87:D88) -> 0 | E89: 0 | F89: 0 | G89: 0 | H89: 0 | I89: 0 | J89: 0 | K89: 0 | L89: 0
A90: Half Year Rule (1/2 Additions - Disposals) | D90: =D88/2 -> 0 | E90: 0 | F90: 0 | G90: 0 | H90: 0 | I90: 0 | J90: 0 | K90: 0 | L90: 0
A91: Reduced UCC | D91: =D89-D90 -> 0 | E91: 0 | F91: 0 | G91: 0 | H91: 0 | I91: 0 | J91: 0 | K91: 0 | L91: 0
A92: CCA Rate Class (to be entered) | C92: 47 | D92: =$C$92 -> 47 | E92: =$C$92 -> 47 | F92: 47 | G92: 47 | H92: 47 | I92: 47 | J92: 47 | K92: 47 | L92: 47
A93: CCA Rate (to be entered) | C93: 0.08 | D93: =$C$93 -> 0.08 | E93: =$C$93 -> 0.08 | F93: 0.08 | G93: 0.08 | H93: 0.08 | I93: 0.08 | J93: 0.08 | K93: 0.08 | L93: 0.08
A94: CCA | D94: =D91*D$93 -> 0 | E94: 0 | F94: 0 | G94: 0 | H94: 0 | I94: 0 | J94: 0 | K94: 0 | L94: 0
A95: Closing UCC | D95: =D89-D94 -> 0 | E95: 0 | F95: 0 | G95: 0 | H95: 0 | I95: 0 | J95: 0 | K95: 0 | L95: 0

Sheet App.2-G SQI
M1: File Number: | O1: =EBNUMBER -> EB-2017-0032
M2: Exhibit:
M3: Tab:
M4: Schedule:
M5: Page:
M7: Date:
A9: Appendix 2-G
A10: Service Reliability and Quality Indicators
A11: 2012 - 2016
A13: Service Reliability
A15: Index | B15: Including outages caused by loss of supply | G15: Excluding outages caused by loss of supply | L15: Excluding Major Event Days
B16: =TestYear-6 -> 2012 | C16: =TestYear-5 -> 2013 | D16: =TestYear-4 -> 2014 | E16: =TestYear-3 -> 2015 | F16: =TestYear-2 -> 2016 | G16: =B16 -> 2012 | H16: 2013 | I16: 2014 | J16: 2015 | K16: 2016 | L16: 2012 | M16: 2013 | N16: 2014 | O16: 2015 | P16: 2016
A17: SAIDI | B17: 3.76 | C17: 10.97 | D17: 0.2 | E17: 0.14 | F17: 3.83 | G17: 0.26 | H17: 2.87 | I17: 0.02 | J17: 0.14 | K17: 0.1 | L17: 0.26 | M17: 2.87 | N17: 0.02 | O17: 0.14 | P17: 0.1
A18: SAIFI | B18: 2.43 | C18: 2.39 | D18: 0.76 | E18: 0.06 | F18: 1.69 | G18: 0.74 | H18: 0.89 | I18: 0.08 | J18: 0.06 | K18: 0.11 | L18: 0.74 | M18: 0.89 | N18: 0.08 | O18: 0.06 | P18: 0.11
A20: 5 Year Historical Average
A21: SAIDI | F21: =IF(ISERROR(AVERAGE(B17:F17)), "", AVERAGE(B17:F17)) -> 3.78 | K21: =IF(ISERROR(AVERAGE(G17:K17)), "", AVERAGE(G17:K17)) -> 0.678 | P21: =IF(ISERROR(AVERAGE(L17:P17)), "", AVERAGE(L17:P17)) -> 0.678
A22: SAIFI | F22: =IF(ISERROR(AVERAGE(B18:F18)), "", AVERAGE(B18:F18)) -> 1.466 | K22: =IF(ISERROR(AVERAGE(G18:K18)), "", AVERAGE(G18:K18)) -> 0.376 | P22: =IF(ISERROR(AVERAGE(L18:P18)), "", AVERAGE(L18:P18)) -> 0.376
A24: SAIDI = System Average Interruption Duration Index
A25: SAIFI = System Average Interruption Frequency Index
A27: Service Quality
A29: Indicator | E29: OEB Minimum Standard | G29: =B16 -> 2012 | H29: =C16 -> 2013 | I29: =D16 -> 2014 | J29: =E16 -> 2015 | K29: =F16 -> 2016
A30: Low Voltage Connections | E30: 0.9 | G30: 1 | H30: 1 | I30: 0.966 | J30: 0.979 | K30: 0.993
A31: High Voltage Connections | E31: 0.9 | G31: NA | H31: NA | I31: NA | J31: NA | K31: NA
A32: Telephone Accessibility | E32: 0.65 | G32: 0.998 | H32: 0.999 | I32: 0.997 | J32: 0.996 | K32: 0.986
A33: Appointments Met | E33: 0.9 | G33: 0.976 | H33: 0.994 | I33: 0.917 | J33: 0.976 | K33: 0.989
A34: Written Response to Enquires | E34: 0.8 | G34: 1 | H34: 1 | I34: 0.996 | J34: 1 | K34: 1
A35: Emergency Urban Response | E35: 0.8 | G35: 0.971 | H35: 1 | I35: 1 | J35: 1 | K35: 1
A36: Emergency Rural Response | E36: 0.8 | G36: NA | H36: NA | I36: NA | J36: NA | K36: NA
A37: Telephone Call Abandon Rate | E37: 0.1 | G37: NA | H37: NA | I37: NA | J37: NA | K37: NA
A38: Appointment Scheduling | E38: 0.9 | G38: 0.991 | H38: 0.963 | I38: 0.946 | J38: 0.989 | K38: 0.99
A39: Rescheduling a Missed Appointment | E39: 1 | G39: 1 | H39: 1 | I39: 1 | J39: 1 | K39: 1
A40: Reconnection Performance Standard | E40: 0.85 | G40: 1 | H40: 1 | I40: 1 | J40: 1 | K40: 0.975

Sheet App.2-H_Other_Oper_Rev
A9: Appendix 2-H
A10: Other Operating Revenue
B12: Reporting Basis | C12: NEWCGAAP | D12: NEWCGAAP | E12: NEWCGAAP | F12: MIFRS | G12: MIFRS | H12: MIFRS | I12: MIFRS
C13: 2013 | D13: 2014 | E13: 2014 | F13: 2015 | G13: 2016 | H13: 2017 | I13: 2018
B14: USoA Description | C14: Board Approved
A15: 4235 | B15: 4235-Miscellaneous Service Revenues | C15: -126100 | D15: -124915.42 | E15: -136713.48 | F15: -152070.58 | G15: -150907.35 | H15: -152300 | I15: -124600
A16: 4225 | B16: 4225-Late Payment Charges | C16: -10800 | D16: -14560.62 | E16: -15668.29 | F16: -14251.86 | G16: -12908.31 | H16: -14300 | I16: -14300
A17: 4082 | B17: 4082-Retail Services Revenues | C17: -11800 | D17: -8343.6 | E17: -8274.1 | F17: -7396.72 | G17: -7172.09 | H17: -7900 | I17: -7900
A18: 4084 | B18: 4084-Service Transaction Requests (STR) Revenues | C18: -200 | D18: -77 | E18: -105.25 | F18: -60.88 | G18: -60.23 | H18: -100 | I18: -100
A19: 4086 | B19: 4086-SSS Administration Revenue | C19: -18400 | D19: -18547.07 | E19: -18919.74 | F19: -19100.44 | G19: -19327.24 | H19: -19200 | I19: -19500
A20: 4205 | B20: 4205-Interdepartmental Rents | C20: 0 | D20: 0 | E20: 0 | F20: 0 | G20: 0 | H20: 0 | I20: 0
A21: 4210 | B21: 4210-Rent from Electric Property | C21: -45500 | D21: -77599.69 | E21: -127902.96 | F21: -87437.8 | G21: -79841.88 | H21: -78200 | I21: -78200
A22: 4355 | B22: 4355-Gain on Disposition of Utility and Other Property | C22: 0 | D22: -10063.15 | E22: -19115.6 | F22: -10277 | G22: 0 | H22: -22000 | I22: -2000
A23: 4360 | B23: 4360-Loss on Disposition of Utility and Other Property | C23: 0 | D23: 6534.29 | E23: 46477.09 | F23: 9918.75 | G23: 47701.06 | H23: 5500 | I23: 5500
A24: 4375 | B24: 4375-Revenues from Non-Utility Operations | C24: -219600 | D24: -434125.09 | E24: -512311.15 | F24: -763889.42 | G24: -625842.22 | H24: -424600 | I24: -414300
A25: 4375 | B25: 4375-Sub-account Generation Facility Revenues | C25: 0 | D25: 0 | E25: 0 | F25: 0 | G25: 0 | H25: 0 | I25: 0
A26: 4380 | B26: 4380-Expenses of Non-Utility Operations | C26: 202700 | D26: 369137.14 | E26: 487880.6 | F26: 661890.99 | G26: 595618.91 | H26: 411400 | I26: 400000
A27: 4380 | B27: 4380-Sub-account Generation Facility Expenses | C27: 0 | E27: 0 | F27: 0 | G27: 0 | H27: 0 | I27: 0
A28: 4385 | B28: 4385-Non-Utility Rental Income | C28: 0 | D28: -5607.5 | E28: 0 | F28: 0 | G28: 0 | H28: 0 | I28: 0
A29: 4390 | B29: 4390-Miscellaneous Non-Operating Income | C29: -1300 | E29: -18479.34 | F29: -11723.1 | G29: -12050.32 | H29: -6000 | I29: -6000
A30: 4405 | B30: 4405-Interest and Dividend Income | C30: -39800 | D30: 8612.66 | E30: -34695.95 | F30: -33944.91 | G30: -30160.9 | H30: -32000 | I30: -31000
A31: 4415 | B31: 4415-Equity in Earnings of Subsidiary Companies | C31: 0 | E31: 0 | F31: 0 | G31: 0 | H31: 0 | I31: 0
B32: Total | C32: =SUM(C15:C31) -> -270800 | D32: =SUM(D15:D31) -> -309555.05 | E32: -357828.17 | F32: -428342.97 | G32: -294950.57 | H32: -339700 | I32: -292400
B34: Specific Service Charges | C34: =C15 -> -126100 | D34: -124915.42 | E34: -136713.48 | F34: -152070.58 | G34: -150907.35 | H34: -152300 | I34: -124600
B35: Late Payment Charges | C35: -10800 | D35: -14560.62 | E35: -15668.29 | F35: -14251.86 | G35: -12908.31 | H35: -14300 | I35: -14300
B36: Other Distribution/Operating Revenues | C36: =SUM(C17:C21) -> -75900 | D36: -104567.36 | E36: -155202.05 | F36: -113995.84 | G36: -106401.44 | H36: -105400 | I36: -105700
B37: Other Income or Deductions | C37: =SUM(C22:C31) -> -58000 | D37: -65511.65 | E37: -50244.35 | F37: -148024.69 | G37: -24733.47 | H37: -67700 | I37: -47800
B38: Total | C38: =SUM(C34:C37) -> -270800 | D38: =SUM(D34:D37) -> -309555.05 | E38: -357828.17 | F38: -428342.97 | G38: -294950.57 | H38: -339700 | I38: -292400
A42: Description | C42: Account(s)
A43: Specific Service Charges: | C43: 4235
A44: Late Payment Charges: | C44: 4225
A45: Other Distribution Revenues: | C45: 4080, 4082, 4084, 4090, 4205, 4210, 4215, 4220, 4240, 4245
A46: Other Income and Expenses: | C46: 4305, 4310, 4315, 4320, 4325, 4330, 4335, 4340, 4345, 4350, 4355, 4360, 4365, 4370, 4375, 4380, 4385, 4390, 4395, 4398, 4405, 4415
A49: Note: Add all applicable accounts listed above to the table and include all relevant information.
A51: Account Breakdown Details
A53: For each "Other Operating Revenue" and "Other Income or Deductions" Account, a detailed breakdown of the account components is required. See the example below for Account 4405, Interest and Dividend Income.
A56: Account 4405 - Interest and Dividend Income
C57: 2013 | D57: 2014 | E57: 2015 | F57: 2016 | G57: 2017 | H57: 2018
A59: Reporting Basis
A60: Short-term Investment Interest | C60: 0 | D60: 0 | E60: 0 | F60: 0 | G60: 0 | H60: 0
A61: Bank Deposit Interest | C61: -26519.32 | D61: -29617.98 | E61: -27402.12 | F61: -23066.65 | G61: -25600 | H61: -24600
A62: Miscellaneous Interest Revenue
A63: Dividend Income | C63: -1204.2 | D63: -963.36 | E63: -1010.19 | F63: -1083.77 | G63: -1000 | H63: -1000
A64: Carrying Charges on Regulatory Assets Accounts-Revenue | C64: 23518.37 | D64: -14062.13 | E64: -16176.26 | F64: -11205.47 | G64: -10300 | H64: -10300
A65: Carrying Charges on Regulatory Assets Accounts-Expense(not included elsewhere) | C65: 12817.81 | D65: 9954.28 | E65: 10643.66 | F65: 5194.99 | G65: 4900 | H65: 4900
A66: Miscellaneous Interest Revenue | C66: 0 | D66: -6.76 | E66: 0 | F66: 0 | G66: 0 | H66: 0
A68: Total | C68: =SUM(C60:C67) -> 8612.66 | D68: -34695.95 | E68: -33944.91 | F68: -30160.9 | G68: -32000 | H68: -31000
A71: Notes:
A72: 1 | B72: List and specify any other interest revenue.
A73: 2 | B73: In the transition year to IFRS, the applicant is to present information in both MIFRS and CGAAP. For the typical applicant that adopted IFRS on January 1, 2015, 2014 must be presented in both a CGAAP and MIFRS basis.

Sheet App_2-I LF_CDM
A1: =+G69+1 -> 2021 | G1: File Number: | H1: =EBNUMBER -> EB-2017-0032
G2: Exhibit:
G3: Tab:
G4: Schedule:
G5: Page:
G7: Date:
A9: Appendix 2-I
A10: Load Forecast CDM Adjustment Work Form (2017)
A12: Appendix 2-I was initially developed to help determine what would be the amount of CDM savings needed in each year to cumulatively achieve the four year 2011-2014 CDM target. This then determined the amount of kWh (and with translation, kW of demand) savings that were converted into dollar balances for the LRAMVA, and also to determine the related adjustment to the load forecast to account for OPA-reported savings. Beginning for the 2015 year, it has been adjusted because the persistence of 2011-2014 CDM programs will be an adjustment to the load forecast in addition to the estimated savings for the first year (2015) for the new 2015-2020 CDM plan.
A14: 2017 is the third year of the six-year (2015-2020) Conservation First program. Final results for the 2011-14 program were issued in the fall of 2015, and the program in completed, although in some instances disposition of the amounts has been deferred. For the purposes of the 2015-2020 LRAMVA, and the impact of CDM on the load forecast, CDM programs in 2014 and earlier are implicit in the historical data on which the base load forecast is developed. Only impacts of 2015 to 2017 CDM programs need to be reflected in the manual load forecast adjustment and for the LRAMVA threshold amount in 2017 and carrying forward, although the half-year impact of 2015 CDM programs on the 2015 historical data is also assumed to be reflected in the base load forecast.
A16: The new six year (2015-2020) CDM program works similarly to the previous 2011-2014 CDM program, meaning that distributors will offer programs each year that, over the six years (from January 1, 2015 to December 31, 2020) will strive to cumulatively achieve savings meeting the new six year CDM target. In other words, distributors will be able to offer and execute programs on a basis so that cumulatively over the period, the measured impacts, including persistence, of the CDM programs will accumulate towards achieving each distributor's 2015-2020 CDM target.
A18: 2015-2020 CDM Program - 2017, third year of the current CDM plan
A20: For the first year of the new 2015-2020 CDM plan, it is assumed that each year's program will achieve an equal amount of new CDM savings. The new targets for 2015-2020 do not take into account persistence beyond the first year, but the IESO will encourage distributors to promote and implement CDM plans that will have longer term persistence of savings. This results in each year's program being about 1/6 (18.67%) of the cumulative 2015-2020 CDM target for kWh savings. A distributor may propose an alternative approach but would be expected to document in its application why it believes that its proposal is more reasonable. In its proposal, the distributor should ensure that the sum of the results for each year's CDM program from 2015 to 2020 add up to its 2015-2020 CDM target as established by the IESO.
A22: 6 Year (2015-2020) kWh Target:
A23: 125000
B24: 2015 | C24: 2016 | D24: 2017 | E24: 2018 | F24: 2019 | G24: 2020 | H24: Total
A25: %
A26: 2015 CDM Programs | B26: =B34/$H$40 -> 0.04761904762 | C26: =C34/$H$40 -> 0.04761904762 | D26: 0.04761904762 | E26: 0.04761904762 | F26: 0.04761904762 | G26: 0.04761904762 | H26: =SUM(B26:G26) -> 0.2857142857
A27: 2016 CDM Programs | C27: 0.04761904762 | D27: 0.04761904762 | E27: 0.04761904762 | F27: 0.04761904762 | G27: 0.04761904762 | H27: =SUM(B27:G27) -> 0.2380952381
A28: 2017 CDM Programs | D28: 0.04761904762 | E28: 0.04761904762 | F28: 0.04761904762 | G28: 0.04761904762 | H28: =SUM(B28:G28) -> 0.1904761905
A29: 2018 CDM Programs | E29: 0.04761904762 | F29: 0.04761904762 | G29: 0.04761904762 | H29: =SUM(E29:G29) -> 0.1428571429
A30: 2019 CDM Programs | F30: 0.04761904762 | G30: 0.04761904762 | H30: =SUM(F30:G30) -> 0.09523809524
A31: 2020 CDM Programs | G31: =G39/$H$40 -> 0.04761904762 | H31: =SUM(B31:G31) -> 0.04761904762
A32: Total in Year | B32: =SUM(B26:B31) -> 0.04761904762 | C32: =SUM(C26:C31) -> 0.09523809524 | D32: =SUM(D26:D31) -> 0.1428571429 | E32: =SUM(E26:E29) -> 0.1904761905 | F32: =SUM(F26:F30) -> 0.2380952381 | G32: =SUM(G26:G31) -> 0.2857142857 | H32: =SUM(B32:G32) -> 1
A33: kWh
A34: =A26 -> 2015 CDM Programs | B34: =1/21*A23 -> 5952.380952 | C34: =B34 -> 5952.380952 | D34: =C34 -> 5952.380952 | E34: =D34 -> 5952.380952 | F34: =E34 -> 5952.380952 | G34: =F34 -> 5952.380952 | H34: =SUM(B34:G34) -> 35714.28571
A35: 2016 CDM Programs | C35: =1/15*(A23-H34) -> 5952.380952 | D35: =C35 -> 5952.380952 | E35: =D35 -> 5952.380952 | F35: =E35 -> 5952.380952 | G35: =F35 -> 5952.380952 | H35: =SUM(B35:G35) -> 29761.90476 | K35: 2011 | L35: 2012 | M35: 2013 | N35: 2014
A36: 2017 CDM Programs | D36: =1/10*(A23-(H34+H35)) -> 5952.380952 | E36: =D36 -> 5952.380952 | F36: =E36 -> 5952.380952 | G36: =F36 -> 5952.380952 | H36: =SUM(B36:G36) -> 23809.52381 | J36: 2011 CDM Programs | K36: =50% -> 0.5 | L36: 1 | M36: 1 | N36: 1
A37: 2018 CDM Programs | E37: =1/6*(A23-(H34+H35+H36)) -> 5952.380952 | F37: =E37 -> 5952.380952 | G37: =F37 -> 5952.380952 | H37: =SUM(E37:G37) -> 17857.14286 | J37: 2012 CDM Programs | L37: 0.5 | M37: 1 | N37: 1
A38: 2019 CDM Programs | F38: =E37 -> 5952.380952 | G38: =F38 -> 5952.380952 | H38: =SUM(F38:G38) -> 11904.7619 | J38: 2013 CDM Programs | M38: 0.5 | N38: 1
A39: 2020 CDM Programs | G39: =F38 -> 5952.380952 | H39: =SUM(B39:G39) -> 5952.380952 | J39: 2014 CDM Programs | N39: 0.5
A40: Total in Year | B40: =SUM(B34:B39) -> 5952.380952 | C40: =SUM(C34:C39) -> 11904.7619 | D40: =SUM(D34:D39) -> 17857.14286 | E40: =SUM(E34:E37) -> 23809.52381 | F40: =SUM(F34:F38) -> 29761.90476 | G40: =SUM(G34:G39) -> 35714.28571 | H40: =SUM(H34:H39) -> 125000
A42: Note: The default formulae in the above table assume that 1/21 of the 2015-2020 kWh CDM target is required each year so that, including persistence, 100% of the kWh target is achieved by the end of 2020. The distributor can input the 2015 CDM savings, including persistence from 2016 to 2020, once the reports become available. The distributor can also input estimates or forecasts of the 2016 and 2017 CDM programs if it believes that these are more realistic; such information would typically be derived from the CDM plans that the distributor has filed with the IESO. Similarly, CDM savings and persistence into future years can be estimated for 2018, 2019 and 2020 CDM programs. However, the distributor will have to support its proposals for estimated or forecasted savings, particularly beyond the 2017 test year. The sum of cumulative savings, including persistence, should equal the target entered into cell A25. | H42: Total does not match 6 year CDM target
A44: Determination of 2017 Load Forecast Adjustment
A46: The Board determined that the "net" number should be used in its Decision and Order with respect to Centre Wellington Hydro Ltd.'s 2013 Cost of Service rates (EB-2012-0113). This approach has also been used in Settlement Agreements accepted by the Board in other 2013 and 2014 applications. The distributor should select whether the adjustment is done on a "net" or "gross" basis, but must support a proposal for the adjustment being done on a "gross" basis. Sheet 2-I defaults to the adjustment being done on a "net" basis consistent with Board policy and practice.
A48: From each of the 2006-2010 CDM Final Report, and the 2011, 2012, 2013, 2014 and 2015 CDM Final Reports, issued by the OPA/IESO for the distributor, the distributor should input the "gross" and "net" results of the cumulative CDM savings for 2014 into cells D84 to E88. The model will calculate the cumulative savings for all programs from 2006 to 2012 and determine the "net" to "gross" factor "g".
A50: Net-to-Gross Conversion
A52: Is CDM adjustment being done on a "net" or "gross" basis? | F52: net
C54: "Gross" | D54: "Net" | E54: Difference | F54: "Net-to-Gross" Conversion Factor
A55: Persistence of Historical CDM programs to 2015 | C55: kWh | D55: kWh | E55: kWh | F55: ('g')
A56: 2006-2010 CDM programs | E56: =IF(ISBLANK(D56),"",C56-D56) -> 
A57: 2011 CDM program
A58: 2012 CDM program
A59: 2013 CDM program
A60: 2014 CDM program
A61: 2015 CDM program
A62: 2006 to 2015 OPA CDM programs: Persistence to 2017 | C62: =SUM(C56:C61) -> 0 | D62: =SUM(D56:D61) -> 0 | E62: =C62-D62 -> 0 | F62: =IF(D62=0,0,IF(F52="net",0,E62/D62)) -> 0
A64: The default values below represent the factor used for how each year's CDM program is factored into the manual CDM adjustment. Distributors can choose alternative weights of "0", "0.5" or "1" from the drop-down menu for each cell, but must support its alternatives.
A66: These factors do not mean that CDM programs are excluded, but the assumption that impacts of previous year CDM programs are already implicitly reflected in the actual data for historical years that are used to derive the load forecast prior to any manual CDM adjustment for the 2017 test year.
A68: Weight Factor for Inclusion in CDM Adjustment to 2017 Load Forecast
B69: 2015 | C69: 2016 | D69: 2017 | E69: 2018 | F69: 2019 | G69: 2020
A70: Weight Factor for each year's CDM program impact on 2014 load forecast | B70: 0.5 | C70: 1 | D70: 0.5 | E70: 0 | F70: 0 | G70: 0 | H70: Distributor can select "0", "0.5", or "1" from drop-down list
A71: Default Value selection rationale. | B71: Default is 0, but one option is for full year impact of persistence of 2015 CDM programs on 2017 load forecast, but 50% impact in base forecast (first year impact of 2014 CDM programs on 2014 actuals, which is part of the data for the load forecast. | C71: Full year impact of persistence of 2015 programs on 2015 load forecast. 2015 CDM program impacts are not in the base forecast. | D71: Only 50% of 2016 CDM programs are assumed to impact the 2016 load forecast based on the "half-year" rule. | E71: 2018, 2019 and 2020 are future years beyond the 2017 test year. No impacts of CDM programs beyond the 2017 test year are factored into the test year load forecast.
A73: 2015-2020 LRAMVA and 2017 CDM adjustment to Load Forecast
A75: One manual adjustment for CDM impacts to the 2017 load forecast is made. There is a different but related threshold amount that is used for the 2017 LRAMVA amount for Account 1568.
A77: The Amount used for the CDM threshold of the LRAMVA is the kWh that will be used to determine the base amount for the LRAMVA balance for 2017, for assessing performance against the five-year target.
A79: If used to determine the manual CDM adjustment for the system purchased kWh, the proposed loss factor should correspond with the proposed total loss factor calculated in Appendix 2-R
A81: The Manual Adjustment for the 2017 Load Forecast is the amount manually subtracted from the system-wide load forecast (either based on a purchased or billed basis) derived from the base forecast from historical data.
A83: If the distributor has developed their load forecast on a system purchased basis, then the manual adjustment should be on a system purchased basis, including the adjustment for losses. If the load forecast has been developed on a billed basis, either on a system basis or on a class-specific basis, the manual adjustment should be on a billed basis, excluding losses.
A85: The distributor should determine the allocation of the savings to all customer classes in a reasonable manner (e.g. taking into account what programs and what IESO-measured impacts were directed at specific customer classes), for both the LRAMVA and for the load forecast adjustment.
B87: 2015 | C87: 2016 | D87: 2017 | E87: 2018 | F87: 2019 | G87: 2020 | H87: Total for 2017
A89: Amount used for CDM threshold for LRAMVA (2017) | B89: =D34 -> 5952.380952 | C89: =D35 -> 5952.380952 | D89: =D36 -> 5952.380952 | H89: =SUM(B89:G89) -> 17857.14286
A91: Manual Adjustment for 2017 Load Forecast (billed basis) | B91: =B89*(1+F62)*B70 -> 2976.190476 | C91: =C89*(1+F62)*C70 -> 5952.380952 | D91: =D89*(1+F62)*D70 -> 2976.190476 | E91: =E89*(1+E62)*E70 -> 0 | F91: =F89*(1+F62)*F70 -> 0 | G91: =G89*(1+F62)*G70 -> 0 | H91: =SUM(B91:G91) -> 11904.7619
A93: Proposed Loss Factor (TLF) | B93: 0.0325 | C93: Format: X.XX%
A94: Manual Adjustment for 2017 Load Forecast (system purchased basis) | B94: =B91*(1+$B93) -> 3072.916667 | C94: 6145.833333 | D94: 3072.916667 | E94: 0 | F94: 0 | G94: 0 | H94: =SUM(B94:G94) -> 12291.66667
A96: Manual adjustment uses "gross" versus "net" (i.e. numbers multiplied by (1 + g). The Weight factor is also used to calculate the impact of each year's program on the CDM adjustment to the 2017 load forecast.

Sheet App.2-IA_Load_Forecast_Instrct
Q1: File Number: | R1: =EBNUMBER -> EB-2017-0032
Q2: Exhibit:
Q3: Tab:
Q4: Schedule:
Q5: Page:
Q7: Date:
B9: Appendix 2-IA
B10: Instructions on Customer, Connections, Load Forecast and Revenues Data and Analysis
B12: This sheet requires no inputs, but serves as a summary of the hiostorical and forecasted data to be provided with respect to:
B14: 1) | C14: Customers and connections
B15: 2) | C15: Consumption (kWh)
B16: 3) | C16: Demand (kW or kCA) for applicable demand-billed customer classes
B17: 4) | C17: Revenues
B19: The spreadsheet summarizes the data provided and the analyses (variance or year-over-year) that are required. Data are required to be provided on a customer class level. Consumption (kWh) must also be provided on a total distribution system level.
B21: Appendix 2-IB (formerly 2-IA) is the appendix spreadsheet that the distributor populates, and the spreadsheet is laid out for inputting the necessary data. The spreadsheet also calculates necessary statistics such as average consumption per customer/connection per year, and variances and % annual changes, as necessary.
B23: The distributor is required to provide suitable documentation in Exhibit 3 of its Application, in accordance with section 2.3.2 of Chaoter 2 of the Filing Requirements. This would include explanations for material variations or of trends in the data.
B25: The distributor is also required to input its test year customer/connection and load forecast in Sheet 10 - Load Forecast of the Revenue Requirement Work Form. This sheet should also be updated to reflect changes in the load forecast made through the stages of processing of the rates application.
B27: The applicant must demonstrate the historical accuracy of its load forecast approach for at least the past 5 years. Such analysis will cover both customer/connections and consumption (kWh) and demand (kW or kVA) by providing the following, as shown in the following table:
D29: Calendar Year | F29: Customers / Connections | I29: Consumption (kWh) (3) | M29: Demand (kW or kVA) | Q29: Revenues
D30: (for 2017 Cost of Service) | I30: Weather-actual | J30: Weather-normalized | M30: Weather-actual | N30: Weather-normalized | Q30: Weather-actual | R30: Weather-normalized
C31: Historical | D31: 2012 | F31: 8299.5 | I31: 156500644.4 | J31: 143496616.9 | M31: 212592.44 | N31: 212592.44
C32: Historical | D32: 2013 | F32: 8420.5 | I32: 154795353.8 | J32: 144472247.7 | M32: 211475.69 | N32: 211475.69 | Q32: 3135353.429
C33: Historical | D33: 2014 | F33: 8468 | G33: Board-approved (2) | I33: 148717979.2 | J33: 144603820.1 | K33: Board-approved (2) | M33: 200783.48 | N33: 200783.48 | O33: Board-approved (2) | Q33: 3148576.396
C34: Historical | D34: 2015 | F34: 8494.5 | I34: 144221924.3 | J34: 144146024.8 | M34: 193246.08 | N34: 193246.08 | Q34: 3156964.303
C35: Historical | D35: 2016 | F35: 8525 | I35: 145136098.4 | J35: 144563750.4 | M35: 190379.59 | N35: 190379.59 | Q35: 3233519.329
C36: Bridge Year (Forecast) | D36: 2017 | F36: 8596.834873 | J36: 145032041.8 | N36: 209103.609 | R36: 3330163.573
C37: Test Year (Forecast) | D37: 2018 | F37: 8669.389296 | J37: 145335432.8 | N37: 209542.0354 | R37: 3707316.831
I38: *Distribution System | M38: *Distribution System
B40: Notes:
B42: (1) | C42: “Weather-normalized actuals” are estimated by replacing the actual weather-related values (typically Heating Degree Days (HDD) and Cooling Degree Days (CDD)) by the “typical” or “weather-normalized” values. These “weather-normalized HDD and CDD values would be the same as used to estimate the Bridge Year and Test Year forecasts.
B43: (2) | C43: For 2017 Cost of Service rebasers, the typical situation is that 2013 would have been the most recent cost of service rebasing application. If the most recent rebasing application was for a rate year other than 2013, that year should be used. An applicant must provide historical information back to the greater of: a) at least five (5) historical actual years; or b) to its last cost of service application.
B44: (3) | C44: Consumption must be provided on a total distribution system basis as well as at a customer class level.
B45: (4) | C45: Revenues exclude commodity charges.

Sheet App.2-IB_Load_Forecast_Analysis
T1: File Number: | U1: EB-2017-0032
C2: REVISED JUNE 14, 2017 | T2: Exhibit:
T3: Tab:
T4: Schedule:
T5: Page:
T7: Date:
B9: Appendix 2-IB
B10: Customer, Connections, Load Forecast and Revenues Data and Analysis
B12: This sheet requires no inputs, but serves as a summary of the hiostorical and forecasted data to be provided with respect to:
B14: 1) | C14: Customers and connections
B15: 2) | C15: Consumption (kWh)
B16: 3) | C16: Demand (kW or kCA) for applicable demand-billed customer classes
B17: 4) | C17: Revenues
B19: The spreadsheet summarizes the data provided and the analyses (variance or year-over-year) that are required. Data are required to be provided on a customer class level. Consumption (kWh) must also be provided on a total distribution system level.
B21: Appendix 2-IB (formerly 2-IA) is the appendix spreadsheet that the distributor populates, and the spreadsheet is laid out for inputting the necessary data. The spreadsheet also calculates necessary statistics such as average consumption per customer/connection per year, and variances and % annual changes, as necessary.
B23: The distributor is required to provide suitable documentation in Exhibit 3 of its Application, in accordance with section 2.3.2 of Chaoter 2 of the Filing Requirements. This would include explanations for material variations or of trends in the data.
B25: The distributor is also required to input its test year customer/connection and load forecast in Sheet 10 - Load Forecast of the Revenue Requirement Work Form. This sheet should also be updated to reflect changes in the load forecast made through the stages of processing of the rates application.
B27: The applicant must demonstrate the historical accuracy of its load forecast approach for at least the past 5 years. Such analysis will cover both customer/connections and consumption (kWh) and demand (kW or kVA) by providing the following, as shown in the following table:
B29: This sheet is to be filled in accordance with the instructions documented in section 2.3.2 of Chapter 2 of the Filing Requirements for Distribution Rate Applications, in terms of one set of tables per customer class.
B31: Color coding for Cells: | F31: Data input | K31: Drop-down List
F33: No data entry required | K33: Blank or calculated value
B35: Distribution System (Total)
D37: Calendar Year | K37: Consumption (kWh) (3)
D38: (for 2018 Cost of Service | L38: Actual (Weather actual) | M38: Weather-normalized | O38: Weather-normalized
C39: Historical | D39: 2012 | K39: Actual | L39: 156500644.4 | M39: 143496616.9
C40: Historical | D40: 2013 | K40: Actual | L40: 154795353.8 | M40: 144472247.7 | N40: Board-approved
C41: Historical | D41: 2014 | K41: Actual | L41: 148717979.2 | M41: 144603820.1
C42: Historical | D42: 2015 | K42: Actual | L42: 144221924.3 | M42: 144146024.8
C43: Historical | D43: 2016 | K43: Actual | L43: 145136098.4 | M43: 144563750.4
C44: Bridge Year | D44: 2017 | K44: Forecast | M44: 145032041.8
C45: Test Year | D45: 2018 | K45: Forecast | M45: 145335432.8
O46: 0
C47: Variance Analysis | K47: Year | L47: Year-over-year | O47: Versus Board-approved
D48: 2012 | K48: 2012
D49: 2013 | K49: 2013 | L49: -0.01089638075 | M49: 0.006798980583
D50: 2014 | K50: 2014 | L50: -0.0392607046 | M50: 0.0009107109241
D51: 2015 | K51: 2015 | L51: -0.0302320867 | M51: -0.003165858914
D52: 2016 | K52: 2016 | L52: 0.006338662476 | M52: 0.002897933252
D53: 2017 | K53: 2017 | M53: 0.003239341677
D54: 2018 | K54: 2018 | M54: 0.002091889534
D55: Geometric Mean | K55: Geometric Mean | M55: 0.9898653527
B57: Customer Class Analysis (one for each Customer Class, excluding MicroFIT and Standby)
B59: 1 | C59: Customer Class: | D59: Residential | H59: Is the customer class billed on consumption (kWh) or demand (kW or kVA)? | N59: kWh
D61: Calendar Year | F61: Customers | K61: Consumption (kWh) (3) | Q61: Consumption (kWh) per Customer
D62: (for 2018 Cost of Service | L62: Actual (Weather actual) | M62: Weather-normalized | O62: Weather-normalized | R62: Actual (Weather actual) | S62: Weather-normalized | U62: Weather-normalized
C63: Historical | D63: 2012 | F63: Actual | G63: 5805 | K63: Actual | L63: 45223786 | M63: 45154493.25 | Q63: Actual | R63: 7790.488544 | S63: 7778.55181
C64: Historical | D64: 2013 | F64: Actual | G64: 5911.5 | H64: Board-approved | I64: 5858 | K64: Actual | L64: 46477809 | M64: 45782444.5 | N64: Board-approved | O64: 45809827 | Q64: Actual | R64: 7862.269982 | S64: 7744.640869 | T64: Board-approved | U64: 7820.045579
C65: Historical | D65: 2014 | F65: Actual | G65: 5946.5 | K65: Actual | L65: 46177614 | M65: 45855881.36 | Q65: Actual | R65: 7765.511477 | S65: 7711.406939
C66: Historical | D66: 2015 | F66: Actual | G66: 5961 | K66: Actual | L66: 45098159 | M66: 45491149.95 | Q66: Actual | R66: 7565.535816 | S66: 7631.462834
C67: Historical | D67: 2016 | F67: Actual | G67: 5988.5 | K67: Actual | L67: 44914361 | M67: 45102913.85 | Q67: Actual | R67: 7500.102029 | S67: 7531.587852
C68: Bridge Year | D68: 2017 | F68: Forecast | G68: 6047.466833 | K68: Forecast | M68: 45507125.13 | Q68: Forecast | R68: 0 | S68: 7524.989617
C69: Test Year | D69: 2018 | F69: Forecast | G69: 6107.014294 | K69: Forecast | M69: 45602321.01 | Q69: Forecast | R69: 0 | S69: 7467.203909
I70: 5858 | O70: 45809827 | U70: 7820.045579
C71: Variance Analysis | D71: Year | G71: Year-over-year | I71: Test Year Versus Board-approved | K71: Year | L71: Year-over-year | O71: Test Year Versus Board-approved | Q71: Year | R71: Year-over-year | U71: Test Year Versus Board-approved
D72: 2012 | K72: 2012 | Q72: 2012
D73: 2013 | G73: 0.01834625323 | K73: 2013 | L73: 0.02772927945 | M73: 0.01390672774 | Q73: 2013 | R73: 0.009213984139 | S73: -0.00435954419
D74: 2014 | G74: 0.005920663114 | K74: 2014 | L74: -0.0064588888 | M74: 0.001604039839 | Q74: 2014 | R74: -0.01230668816 | S74: -0.004291216429
D75: 2015 | G75: 0.002438409148 | K75: 2015 | L75: -0.02337615365 | M75: -0.007953863299 | Q75: 2015 | R75: -0.02575176945 | S75: -0.01036699348
D76: 2016 | G76: 0.004613319913 | K76: 2016 | L76: -0.004075510045 | M76: -0.008534321532 | Q76: 2016 | R76: -0.008648929678 | S76: -0.0130872657
D77: 2017 | G77: 0.009846678329 | K77: 2017 | M77: 0.008961977038 | Q77: 2017 | S77: -0.0008760748641
D78: 2018 | G78: 0.009846678329 | I78: 0.04250841478 | K78: 2018 | M78: 0.002091889534 | O78: -0.004529726601 | Q78: 2018 | S78: -0.007679174435 | U78: -0.04512015511
D79: Geometric Mean | G79: 0.007008142077 | I79: 0.01046178234 | K79: Geometric Mean | M79: 0.9921360271 | O79: -0.001134360351 | Q79: Geometric Mean | S79: 1.033219491 | U79: -0.01147608241
D82: Calendar Year | F82: Revenues | K82: Demand (kWh) | Q82: Demand (kWh) per Customer
D83: (for 2018 Cost of Service | L83: Actual (Weather actual) | M83: Weather-normalized | O83: Weather-normalized | R83: Actual (Weather actual) | S83: Weather-normalized | U83: Weather-normalized
C84: Historical | D84: 2012 | F84: Actual | G84: 1541111.95 | K84: Actual | Q84: Actual | R84: 0 | S84: 0
C85: Historical | D85: 2013 | F85: Actual | G85: 1730720.48 | H85: Board-approved | I85: 1711242.7 | K85: Actual | N85: Board-approved | Q85: Actual | R85: 0 | S85: 0 | T85: Board-approved | U85: 0
C86: Historical | D86: 2014 | F86: Actual | G86: 1756891.94 | K86: Actual | Q86: Actual | R86: 0 | S86: 0
C87: Historical | D87: 2015 | F87: Actual | G87: 1767440.92 | K87: Actual | Q87: Actual | R87: 0 | S87: 0
C88: Historical | D88: 2016 | F88: Actual | G88: 1808496.55 | K88: Actual | Q88: Actual | R88: 0 | S88: 0
C89: Bridge Year (Forecast) | D89: 2017 | F89: Forecast | G89: 1862165.76 | K89: Forecast | Q89: Forecast | R89: 0 | S89: 0
C90: Test Year (Forecast) | D90: 2018 | F90: Forecast | G90: 2092149.1 | K90: Forecast | Q90: Forecast | R90: 0 | S90: 0
I91: 1711242.7 | O91: 0 | U91: 0
C92: Variance Analysis | D92: Year | G92: Year-over-year | I92: Test Year Versus Board-approved | K92: Year | L92: Year-over-year | O92: Test Year Versus Board-approved | Q92: Year | R92: Year-over-year | U92: Test Year Versus Board-approved
D93: 2012 | K93: 2012 | Q93: 2012
D94: 2013 | G94: 0.1230335862 | K94: 2013 | Q94: 2013
D95: 2014 | G95: 0.01512171393 | K95: 2014 | Q95: 2014
D96: 2015 | G96: 0.006004341963 | K96: 2015 | Q96: 2015
D97: 2016 | G97: 0.02322885565 | K97: 2016 | Q97: 2016
D98: 2017 | G98: 0.02967614729 | K98: 2017 | Q98: 2017
D99: 2018 | G99: 0.1235031515 | I99: 0.2225905186 | K99: 2018 | Q99: 2018
D100: Geometric Mean | G100: 0.03135936419 | I100: 0.05152658194 | K100: Geometric Mean | Q100: Geometric Mean
B102: 2 | C102: Customer Class: | D102: GS < 50 kW | H102: Is the customer class billed on consumption (kWh) or demand (kW or kVA)? | N102: kWh
D104: Calendar Year | F104: Customers | K104: Consumption (kWh) (3) | Q104: Consumption (kWh) per Customer
D105: (for 2018 Cost of Service | L105: Actual (Weather actual) | M105: Weather-normalized | O105: Weather-normalized | R105: Actual (Weather actual) | S105: Weather-normalized | U105: Weather-normalized
C106: Historical | D106: 2012 | F106: Actual | G106: 707.5 | K106: Actual | L106: 20304130 | M106: 20273019.63 | Q106: Actual | R106: 28698.41696 | S106: 28654.4447
C107: Historical | D107: 2013 | F107: Actual | G107: 711 | H107: Board-approved | I107: 738 | K107: Actual | L107: 20342402 | M107: 20038054.95 | N107: Board-approved | O107: 20408044 | Q107: Actual | R107: 28610.97328 | S107: 28182.91835 | T107: Board-approved | U107: 27653.17615
C108: Historical | D108: 2014 | F108: Actual | G108: 715 | K108: Actual | L108: 20579869 | M108: 20436483.17 | Q108: Actual | R108: 28783.03357 | S108: 28582.49394
C109: Historical | D109: 2015 | F109: Actual | G109: 730 | K109: Actual | L109: 21387560 | M109: 21573933.85 | Q109: Actual | R109: 29298.0274 | S109: 29553.33404
C110: Historical | D110: 2016 | F110: Actual | G110: 741.5 | K110: Actual | L110: 23270825 | M110: 23368517.15 | Q110: Actual | R110: 31383.44572 | S110: 31515.19507
C111: Bridge Year | D111: 2017 | F111: Forecast | G111: 749.7756263 | K111: Forecast | M111: 20960878.59 | Q111: Forecast | R111: 0 | S111: 27956.20164
C112: Test Year | D112: 2018 | F112: Forecast | G112: 758.1436141 | K112: Forecast | M112: 21004726.44 | Q112: Forecast | R112: 0 | S112: 27705.47169
I113: 738 | O113: 20408044 | U113: 27653.17615
C114: Variance Analysis | D114: Year | G114: Year-over-year | I114: Test Year Versus Board-approved | K114: Year | L114: Year-over-year | O114: Test Year Versus Board-approved | Q114: Year | R114: Year-over-year | U114: Test Year Versus Board-approved
D115: 2012 | K115: 2012 | Q115: 2012
D116: 2013 | G116: 0.004946996466 | K116: 2013 | L116: 0.00188493671 | M116: -0.01159001883 | Q116: 2013 | R116: -0.003046986326 | S116: -0.01645560946
D117: 2014 | G117: 0.005625879044 | K117: 2014 | L117: 0.01167349854 | M117: 0.01988357775 | Q117: 2014 | R117: 0.006013786658 | S117: 0.01417793536
D118: 2015 | G118: 0.02097902098 | K118: 2015 | L118: 0.0392466541 | M118: 0.05565784834 | Q118: 2015 | R118: 0.01789227079 | S118: 0.03396624872
D119: 2016 | G119: 0.01575342466 | K119: 2016 | L119: 0.08805422404 | M119: 0.08318294241 | Q119: 2016 | R119: 0.07117947883 | S119: 0.06638374641
D120: 2017 | G120: 0.01116065586 | K120: 2017 | M120: -0.1030291541 | Q120: 2017 | S120: -0.1129294433
D121: 2018 | G121: 0.01116065586 | I121: 0.02729487 | K121: 2018 | M121: 0.002091889534 | O121: 0.0292376102 | Q121: 2018 | S121: -0.008968670086 | U121: 0.001891122268
D122: Geometric Mean | G122: 0.0102292848 | I122: 0.006754964436 | K122: Geometric Mean | M122: 0.9720332678 | O122: 0.007230601444 | Q122: Geometric Mean | S122: 1.027309155 | U122: 0.0004724456543
D125: Calendar Year | F125: Revenues | K125: Demand (kWh) | Q125: Demand (kWh) per Customer
D126: (for 2018 Cost of Service | L126: Actual (Weather actual) | M126: Weather-normalized | O126: Weather-normalized | R126: Actual (Weather actual) | S126: Weather-normalized | U126: Weather-normalized
C127: Historical | D127: 2012 | F127: Actual | G127: 379634.43 | K127: Actual | Q127: Actual | R127: 0 | S127: 0
C128: Historical | D128: 2013 | F128: Actual | G128: 517097.09 | H128: Board-approved | I128: 523125.76 | K128: Actual | N128: Board-approved | Q128: Actual | R128: 0 | S128: 0 | T128: Board-approved | U128: 0
C129: Historical | D129: 2014 | F129: Actual | G129: 529666.14 | K129: Actual | Q129: Actual | R129: 0 | S129: 0
C130: Historical | D130: 2015 | F130: Actual | G130: 554178.33 | K130: Actual | Q130: Actual | R130: 0 | S130: 0
C131: Historical | D131: 2016 | F131: Actual | G131: 601535.11 | K131: Actual | Q131: Actual | R131: 0 | S131: 0
C132: Bridge Year (Forecast) | D132: 2017 | F132: Forecast | G132: 568408.87 | K132: Forecast | Q132: Forecast | R132: 0 | S132: 0
C133: Test Year (Forecast) | D133: 2018 | F133: Forecast | G133: 643585.76 | K133: Forecast | Q133: Forecast | R133: 0 | S133: 0
I134: 523125.76 | O134: 0 | U134: 0
C135: Variance Analysis | D135: Year | G135: Year-over-year | I135: Test Year Versus Board-approved | K135: Year | L135: Year-over-year | O135: Test Year Versus Board-approved | Q135: Year | R135: Year-over-year | U135: Test Year Versus Board-approved
D136: 2012 | K136: 2012 | Q136: 2012
D137: 2013 | G137: 0.3620921843 | K137: 2013 | Q137: 2013
D138: 2014 | G138: 0.02430694398 | K138: 2014 | Q138: 2014
D139: 2015 | G139: 0.0462785671 | K139: 2015 | Q139: 2015
D140: 2016 | G140: 0.08545404509 | K140: 2016 | Q140: 2016
D141: 2017 | G141: -0.05506950376 | K141: 2017 | Q141: 2017
D142: 2018 | G142: 0.1322584744 | I142: 0.2302696774 | K142: 2018 | Q142: 2018
D143: Geometric Mean | I143: 0.05317388115 | K143: Geometric Mean | Q143: Geometric Mean
B145: 3 | C145: Customer Class: | D145: GS > 50-2999 kW | H145: Is the customer class billed on consumption (kWh) or demand (kW or kVA)? | N145: kW
D147: Calendar Year | F147: Customers | K147: Consumption (kWh) (3) | Q147: Consumption (kWh) per Customer
D148: (for 2018 Cost of Service | L148: Actual (Weather actual) | M148: Weather-normalized | O148: Weather-normalized | R148: Actual (Weather actual) | S148: Weather-normalized | U148: Weather-normalized
C149: Historical | D149: 2012 | F149: Actual | G149: 59.5 | K149: Actual | L149: 63286610 | M149: 63189641.05 | Q149: Actual | R149: 1063640.504 | S149: 1062010.774
C150: Historical | D150: 2013 | F150: Actual | G150: 57 | H150: Board-approved | I150: 62 | K150: Actual | L150: 60663507 | M150: 59755907.22 | N150: Board-approved | O150: 61309307 | Q150: Actual | R150: 1064272.053 | S150: 1048349.249 | T150: Board-approved | U150: 988859.7903
C151: Historical | D151: 2014 | F151: Actual | G151: 56.5 | K151: Actual | L151: 55013692 | M151: 54630395.88 | Q151: Actual | R151: 973693.6637 | S151: 966909.6616
C152: Historical | D152: 2015 | F152: Actual | G152: 52 | K152: Actual | L152: 52447595 | M152: 52904629.85 | Q152: Actual | R152: 1008607.596 | S152: 1017396.728
C153: Historical | D153: 2016 | F153: Actual | G153: 47.5 | K153: Actual | L153: 50553990 | M153: 50766218.31 | Q153: Actual | R153: 1064294.526 | S153: 1068762.491
C154: Bridge Year | D154: 2017 | F154: Forecast | G154: 46.42970816 | K154: Forecast | M154: 60321817.19 | Q154: Forecast | R154: 0 | S154: 1299207.33
C155: Test Year | D155: 2018 | F155: Forecast | G155: 45.38353263 | K155: Forecast | M155: 60448003.77 | Q155: Forecast | R155: 0 | S155: 1331936.944
I156: 62 | O156: 61309307 | U156: 988859.7903
C157: Variance Analysis | D157: Year | G157: Year-over-year | I157: Test Year Versus Board-approved | K157: Year | L157: Year-over-year | O157: Test Year Versus Board-approved | Q157: Year | R157: Year-over-year | U157: Test Year Versus Board-approved
D158: 2012 | K158: 2012 | Q158: 2012
D159: 2013 | G159: -0.04201680672 | K159: 2013 | L159: -0.0414479935 | M159: -0.0543401383 | Q159: 2013 | R159: 0.0005937611697 | S159: -0.01286382857
D160: 2014 | G160: -0.008771929825 | K160: 2014 | L160: -0.09313366931 | M160: -0.08577413639 | Q160: 2014 | R160: -0.08510830355 | S160: -0.07768364203
D161: 2015 | G161: -0.0796460177 | K161: 2015 | L161: -0.04664469711 | M161: -0.03158985041 | Q161: 2015 | R161: 0.03585720411 | S161: 0.05221487408
D162: 2016 | G162: -0.08653846154 | K162: 2016 | L162: -0.03610470604 | M162: -0.04042012097 | Q162: 2016 | R162: 0.05521169023 | S162: 0.05048744652
D163: 2017 | G163: -0.02253245977 | K163: 2017 | M163: 0.1882275102 | Q163: 2017 | S163: 0.2156183825
D164: 2018 | G164: -0.02253245977 | I164: -0.2680075382 | K164: 2018 | M164: 0.002091889534 | O164: -0.01404849079 | Q164: 2018 | S164: 0.02519198673 | U164: 0.3469421622
D165: Geometric Mean | I165: -0.07503211945 | K165: Geometric Mean | M165: 1.036122584 | O165: -0.003530778315 | Q165: Geometric Mean | S165: 0.8342884015 | U165: 0.07730143137
D168: Calendar Year | F168: Revenues | K168: Demand (kW) | Q168: Demand (kW) per Customer
D169: (for 2018 Cost of Service | L169: Actual (Weather actual) | M169: Weather-normalized | O169: Weather-normalized | R169: Actual (Weather actual) | S169: Weather-normalized | U169: Weather-normalized
C170: Historical | D170: 2012 | F170: Actual | G170: 554183.34 | K170: Actual | L170: 164083.8 | M170: 164083.8 | Q170: Actual | R170: 0.2960821594 | S170: 0.2960821594
C171: Historical | D171: 2013 | F171: Actual | G171: 687290.84 | H171: Board-approved | I171: 669888.38 | K171: Actual | L171: 165373.3 | M171: 165373.3 | N171: Board-approved | O171: 157640 | Q171: Actual | R171: 0.2406161851 | S171: 0.2406161851 | T171: Board-approved | U171: 0.2353227862
C172: Historical | D172: 2014 | F172: Actual | G172: 657544.16 | K172: Actual | L172: 154259.7 | M172: 154259.7 | Q172: Actual | R172: 0.2345997568 | S172: 0.2345997568
C173: Historical | D173: 2015 | F173: Actual | G173: 637253.37 | K173: Actual | L173: 148977.3 | M173: 148977.3 | Q173: Actual | R173: 0.2337803251 | S173: 0.2337803251
C174: Historical | D174: 2016 | F174: Actual | G174: 626609.22 | K174: Actual | L174: 145124.2 | M174: 145124.2 | Q174: Actual | R174: 0.2316024013 | S174: 0.2316024013
C175: Bridge Year (Forecast) | D175: 2017 | F175: Forecast | G175: 697312.12 | K175: Forecast | M175: 163126.1697 | Q175: Forecast | R175: 0 | S175: 0.2339356581
C176: Test Year (Forecast) | D176: 2018 | F176: Forecast | G176: 724272.09 | K176: Forecast | M176: 163467.4116 | Q176: Forecast | R176: 0 | S176: 0.2256988967
I177: 669888.38 | O177: 157640 | U177: 0.2353227862
C178: Variance Analysis | D178: Year | G178: Year-over-year | I178: Test Year Versus Board-approved | K178: Year | L178: Year-over-year | O178: Test Year Versus Board-approved | Q178: Year | R178: Year-over-year | U178: Test Year Versus Board-approved
D179: 2012 | K179: 2012 | Q179: 2012
D180: 2013 | G180: 0.2401867584 | K180: 2013 | L180: 0.007858789228 | M180: 0.007858789228 | Q180: 2013 | R180: -0.1873330509 | S180: -0.1873330509
D181: 2014 | G181: -0.0432810657 | K181: 2014 | L181: -0.06720310957 | M181: -0.06720310957 | Q181: 2014 | R181: -0.02500425466 | S181: -0.02500425466
D182: 2015 | G182: -0.03085844455 | K182: 2015 | L182: -0.03424355162 | M182: -0.03424355162 | Q182: 2015 | R182: -0.003492892295 | S182: -0.003492892295
D183: 2016 | G183: -0.01670316785 | K183: 2016 | L183: -0.02586367185 | M183: -0.02586367185 | Q183: 2016 | R183: -0.009316112594 | S183: -0.009316112594
D184: 2017 | G184: 0.1128341201 | K184: 2017 | M184: 0.1240452638 | Q184: 2017 | S184: 0.01007440682
D185: 2018 | G185: 0.038662701 | I185: 0.0811832413 | K185: 2018 | M185: 0.002091889534 | O185: 0.03696657953 | Q185: 2018 | S185: -0.03520951646 | U185: -0.04089654749
D186: Geometric Mean | I186: 0.01970565162 | K186: Geometric Mean | O186: 0.009116227149 | Q186: Geometric Mean | S186: 1.242528168 | U186: -0.0103847855
B188: 4 | C188: Customer Class: | D188: GS > 3000-5000 kW | H188: Is the customer class billed on consumption (kWh) or demand (kW or kVA)? | N188: kW
D190: Calendar Year | F190: Customers | K190: Consumption (kWh) (3) | Q190: Consumption (kWh) per Customer
D191: (for 2018 Cost of Service | L191: Actual (Weather actual) | M191: Weather-normalized | O191: Weather-normalized | R191: Actual (Weather actual) | S191: Weather-normalized | U191: Weather-normalized
C192: Historical | D192: 2012 | F192: Actual | G192: 1 | K192: Actual | L192: 18104643.6 | M192: 19919755.73 | Q192: Actual | R192: 18104643.6 | S192: 19919755.73
C193: Historical | D193: 2013 | F193: Actual | G193: 1 | H193: Board-approved | I193: 1 | K193: Actual | L193: 19950324 | M193: 18330572.96 | N193: Board-approved | O193: 16959953 | Q193: Actual | R193: 19950324 | S193: 18330572.96 | T193: Board-approved | U193: 16959953
C194: Historical | D194: 2014 | F194: Actual | G194: 1 | K194: Actual | L194: 18608986 | M194: 18333194.2 | Q194: Actual | R194: 18608986 | S194: 18333194.2
C195: Historical | D195: 2015 | F195: Actual | G195: 1 | K195: Actual | L195: 18461823 | M195: 17446328.11 | Q195: Actual | R195: 18461823 | S195: 17446328.11
C196: Historical | D196: 2016 | F196: Actual | G196: 1 | K196: Actual | L196: 17295612 | M196: 18421962.06 | Q196: Actual | R196: 17295612 | S196: 18421962.06
C197: Bridge Year | D197: 2017 | F197: Forecast | G197: 1 | K197: Forecast | M197: 18961919.5 | Q197: Forecast | R197: 0 | S197: 18961919.5
C198: Test Year | D198: 2018 | F198: Forecast | G198: 1 | K198: Forecast | M198: 19001585.74 | Q198: Forecast | R198: 0 | S198: 19001585.74
I199: 1 | O199: 16959953 | U199: 16959953
C200: Variance Analysis | D200: Year | G200: Year-over-year | I200: Test Year Versus Board-approved | K200: Year | L200: Year-over-year | O200: Test Year Versus Board-approved | Q200: Year | R200: Year-over-year | U200: Test Year Versus Board-approved
D201: 2012 | K201: 2012 | Q201: 2012
D202: 2013 | G202: 0 | K202: 2013 | L202: 0.1019451385 | M202: -0.07977923018 | Q202: 2013 | R202: 0.1019451385 | S202: -0.07977923018
D203: 2014 | G203: 0 | K203: 2014 | L203: -0.06723389555 | M203: 0.0001429985667 | Q203: 2014 | R203: -0.06723389555 | S203: 0.0001429985667
D204: 2015 | G204: 0 | K204: 2015 | L204: -0.007908168666 | M204: -0.04837488131 | Q204: 2015 | R204: -0.007908168666 | S204: -0.04837488131
D205: 2016 | G205: 0 | K205: 2016 | L205: -0.06316878891 | M205: 0.0559220225 | Q205: 2016 | R205: -0.06316878891 | S205: 0.0559220225
D206: 2017 | G206: 0 | K206: 2017 | M206: 0.02931052806 | Q206: 2017 | S206: 0.02931052806
D207: 2018 | G207: 0 | I207: 0 | K207: 2018 | M207: 0.002091889534 | O207: 0.1203796224 | Q207: 2018 | S207: 0.002091889534 | U207: 0.1203796224
D208: Geometric Mean | I208: 0 | K208: Geometric Mean | M208: 1.038473289 | O208: 0.02882450591 | Q208: Geometric Mean | S208: 1.038473289 | U208: 0.02882450591
D211: Calendar Year | F211: Revenues | K211: Demand (kW) | Q211: Demand (kW) per Customer
D212: (for 2018 Cost of Service | L212: Actual (Weather actual) | M212: Weather-normalized | O212: Weather-normalized | R212: Actual (Weather actual) | S212: Weather-normalized | U212: Weather-normalized
C213: Historical | D213: 2012 | F213: Actual | G213: 102396.32 | K213: Actual | L213: 45269.7 | M213: 45269.7 | Q213: Actual | R213: 0.4421028021 | S213: 0.4421028021
C214: Historical | D214: 2013 | F214: Actual | G214: 125732.14 | H214: Board-approved | I214: 110854.11 | K214: Actual | L214: 42815.4 | M214: 42815.4 | N214: Board-approved | O214: 37416 | Q214: Actual | R214: 0.3405286826 | S214: 0.3405286826 | T214: Board-approved | U214: 0.337524698
C215: Historical | D215: 2014 | F215: Actual | G215: 128747.92 | K215: Actual | L215: 43263.5 | M215: 43263.5 | Q215: Actual | R215: 0.3360326132 | S215: 0.3360326132
C216: Historical | D216: 2015 | F216: Actual | G216: 125250.12 | K216: Actual | L216: 41432.5 | M216: 41432.5 | Q216: Actual | R216: 0.3307980863 | S216: 0.3307980863
C217: Historical | D217: 2016 | F217: Actual | G217: 133712.55 | K217: Actual | L217: 43591 | M217: 43591 | Q217: Actual | R217: 0.3260053002 | S217: 0.3260053002
C218: Bridge Year (Forecast) | D218: 2017 | F218: Forecast | G218: 137950.85 | K218: Forecast | M218: 44307.58844 | Q218: Forecast | R218: 0 | S218: 0.3211838741
C219: Test Year (Forecast) | D219: 2018 | F219: Forecast | G219: 169967.05 | K219: Forecast | M219: 44400.27502 | Q219: Forecast | R219: 0 | S219: 0.2612287206
I220: 110854.11 | O220: 37416 | U220: 0.337524698
C221: Variance Analysis | D221: Year | G221: Year-over-year | I221: Test Year Versus Board-approved | K221: Year | L221: Year-over-year | O221: Test Year Versus Board-approved | Q221: Year | R221: Year-over-year | U221: Test Year Versus Board-approved
D222: 2012 | K222: 2012 | Q222: 2012
D223: 2013 | G223: 0.2278970572 | K223: 2013 | L223: -0.05421507101 | M223: -0.05421507101 | Q223: 2013 | R223: -0.2297522635 | S223: -0.2297522635
D224: 2014 | G224: 0.02398575257 | K224: 2014 | L224: 0.01046586041 | M224: 0.01046586041 | Q224: 2014 | R224: -0.01320320338 | S224: -0.01320320338
D225: 2015 | G225: -0.02716781755 | K225: 2015 | L225: -0.04232204976 | M225: -0.04232204976 | Q225: 2015 | R225: -0.01557743719 | S225: -0.01557743719
D226: 2016 | G226: 0.06756424665 | K226: 2016 | L226: 0.05209678393 | M226: 0.05209678393 | Q226: 2016 | R226: -0.01448855445 | S226: -0.01448855445
D227: 2017 | G227: 0.03169709949 | K227: 2017 | M227: 0.01643890811 | Q227: 2017 | S227: -0.01478940998
D228: 2018 | G228: 0.2320841082 | I228: 0.5332498723 | K228: 2018 | M228: 0.002091889534 | O228: 0.1866654646 | Q228: 2018 | S228: -0.1866692518 | U228: -0.2260456133
D229: Geometric Mean | I229: 0.1127644287 | K229: Geometric Mean | O229: 0.04371536229 | Q229: Geometric Mean | S229: 1.523357641 | U229: -0.06205182755
B231: 5 | C231: Customer Class: | D231: Unmetered Scattered Load | H231: Is the customer class billed on consumption (kWh) or demand (kW or kVA)? | N231: kWh
D233: Calendar Year | F233: Customers | K233: Consumption (kWh) (3) | Q233: Consumption (kWh) per Customer
... 233 more rows

Sheet App.2-JA_OM&A_Summary_Analys
L1: File Number: | M1: =EBNUMBER -> EB-2017-0032
L2: Exhibit:
L3: Tab:
L4: Schedule:
L5: Page:
L7: Date:
A9: Appendix 2-JA
A10: Summary of Recoverable OM&A Expenses
B13: ="Last Rebasing Year (" & RebaseYear & " Board-Approved)" -> Last Rebasing Year (2013 Board-Approved) | C13: ="Last Rebasing Year (" & RebaseYear & " Actuals)" -> Last Rebasing Year (2013 Actuals) | D13: 2014 Actuals | E13: =BridgeYear -2 & " Actuals" -> 2015 Actuals | F13: =BridgeYear -1 & " Actuals" -> 2016 Actuals | G13: =BridgeYear & " Bridge Year" -> 2017 Bridge Year | H13: =TestYear & " Test Year" -> 2018 Test Year
A14: Reporting Basis
A15: Operations | B15: 269500 | C15: 303224.1 | D15: 313306.04 | E15: 326132.87 | F15: 312568.32 | G15: 366200 | H15: 366900
A16: Maintenance | B16: 302200 | C16: 317930.37 | D16: 283489.39 | E16: 310600.7 | F16: 354386.46 | G16: 344000 | H16: 361500
A17: SubTotal | B17: =SUM(B15:B16) -> 571700 | C17: 621154.47 | D17: 596795.43 | E17: 636733.57 | F17: 666954.78 | G17: 710200 | H17: 728400
A18: %Change (year over year) | C18: =IF(ISERROR((C17-B17)/B17), "", (C17-B17)/B17) -> 0.08650423299 | D18: -0.03921575256 | E18: 0.06692098832 | F18: 0.04746288153 | G18: 0.06483980818 | H18: 0.02562658406
A19: %Change (Test Year vs Last Rebasing Year - Actual) | H19: =IF(ISERROR((H17-C17)/C17), "", (H17-C17)/C17) -> 0.172655169
A20: Billing and Collecting | B20: 446705 | C20: 434217.94 | D20: 437447.56 | E20: 449490.38 | F20: 461688.47 | G20: 487500 | H20: 520700
A21: Community Relations | B21: 28600 | C21: 25326.82 | D21: 31564.56 | E21: 23289.59 | F21: 51588.32 | G21: 55900 | H21: 43500
A22: Administrative and General | B22: 975100 | C22: 960814.67 | D22: 980552 | E22: 964754.59 | F22: 958600.05 | G22: 1043900 | H22: 1111700
A23: SubTotal | B23: =SUM(B20:B22) -> 1450405 | C23: 1420359.43 | D23: 1449564.12 | E23: 1437534.56 | F23: 1471876.84 | G23: 1587300 | H23: 1675900
A24: %Change (year over year) | C24: =IF(ISERROR((C23-B23)/B23), "", (C23-B23)/B23) -> -0.02071529676 | D24: 0.02056147858 | E24: -0.008298742935 | F24: 0.02388970739 | G24: 0.07841903403 | H24: 0.05581805582
A25: %Change (Test Year vs Last Rebasing Year - Actual) | H25: =IF(ISERROR((H23-C23)/C23), "", (H23-C23)/C23) -> 0.1799126085
A26: Total | B26: =SUM(B23,B17) -> 2022105 | C26: 2041513.9 | D26: 2046359.55 | E26: 2074268.13 | F26: 2138831.62 | G26: 2297500 | H26: 2404300
A27: %Change (year over year) | C27: =IF(ISERROR((C26-B26)/B26), "", (C26-B26)/B26) -> 0.009598364081 | D27: 0.002373557192 | E27: 0.01363816051 | F27: 0.03112591331 | G27: 0.07418460552 | H27: 0.04648531012
B30: =B13 -> Last Rebasing Year (2013 Board-Approved) | C30: Last Rebasing Year (2013 Actuals) | D30: 2014 Actuals | E30: 2015 Actuals | F30: 2016 Actuals | G30: 2017 Bridge Year | H30: 2018 Test Year
A31: Operations | B31: =B15 -> 269500 | C31: 303224.1 | D31: 313306.04 | E31: 326132.87 | F31: 312568.32 | G31: 366200 | H31: 366900
A32: Maintenance | B32: 302200 | C32: 317930.37 | D32: 283489.39 | E32: 310600.7 | F32: 354386.46 | G32: 344000 | H32: 361500
A33: Billing and Collecting | B33: =B20 -> 446705 | C33: 434217.94 | D33: 437447.56 | E33: 449490.38 | F33: 461688.47 | G33: 487500 | H33: 520700
A34: Community Relations | B34: 28600 | C34: 25326.82 | D34: 31564.56 | E34: 23289.59 | F34: 51588.32 | G34: 55900 | H34: 43500
A35: Administrative and General | B35: 975100 | C35: 960814.67 | D35: 980552 | E35: 964754.59 | F35: 958600.05 | G35: 1043900 | H35: 1111700
A36: Total | B36: =SUM(B31:B35) -> 2022105 | C36: 2041513.9 | D36: 2046359.55 | E36: 2074268.13 | F36: 2138831.62 | G36: 2297500 | H36: 2404300
A37: %Change (year over year) | C37: =IF(ISERROR((C36-B36)/B36), "", (C36-B36)/B36) -> 0.009598364081 | D37: 0.002373557192 | E37: 0.01363816051 | F37: 0.03112591331 | G37: 0.07418460552 | H37: 0.04648531012
B40: =B13 -> Last Rebasing Year (2013 Board-Approved) | C40: =C13 -> Last Rebasing Year (2013 Actuals) | D40: Variance 2013 BA - 2013 Actuals | E40: 2014 Actuals | F40: Variance 2014 Actuals vs. 2013 Actuals | G40: =E13 -> 2015 Actuals | H40: Variance 2015 Actuals vs. 2014 Actuals | I40: =F13 -> 2016 Actuals | J40: ="Variance " & 'LDC Info'!E26 -1 & " Actuals vs. " & 'LDC Info'!E26-2 & " Actuals" -> Variance 2016 Actuals vs. 2015 Actuals | K40: =G13 -> 2017 Bridge Year | L40: ="Variance " & 'LDC Info'!E26 & " Bridge vs. " & 'LDC Info'!E26 -1 & " Actuals" -> Variance 2017 Bridge vs. 2016 Actuals | M40: =H13 -> 2018 Test Year | N40: ="Variance " & TestYear & " Test vs. " & BridgeYear & " Bridge" -> Variance 2018 Test vs. 2017 Bridge
A41: Operations | B41: =B15 -> 269500 | C41: =C15 -> 303224.1 | D41: =C41-B41 -> 33724.1 | E41: 313306.04 | F41: =E41-C41 -> 10081.94 | G41: =E15 -> 326132.87 | H41: =G41-C41 -> 22908.77 | I41: =F15 -> 312568.32 | J41: =I41-G41 -> -13564.55 | K41: =G15 -> 366200 | L41: =K41-I41 -> 53631.68 | M41: =H15 -> 366900 | N41: =M41-K41 -> 700
A42: Maintenance | B42: =B16 -> 302200 | C42: =C16 -> 317930.37 | D42: =C42-B42 -> 15730.37 | E42: 283489.39 | F42: =E42-C42 -> -34440.98 | G42: =E16 -> 310600.7 | H42: =G42-C42 -> -7329.67 | I42: =F16 -> 354386.46 | J42: =I42-G42 -> 43785.76 | K42: =G16 -> 344000 | L42: -10386.46 | M42: =H16 -> 361500 | N42: 17500
A43: Billing and Collecting | B43: =B20 -> 446705 | C43: 434217.94 | D43: -12487.06 | E43: 437447.56 | F43: 3229.62 | G43: =E20 -> 449490.38 | H43: =G43-C43 -> 15272.44 | I43: =F20 -> 461688.47 | J43: 12198.09 | K43: =G20 -> 487500 | L43: 25811.53 | M43: =H20 -> 520700 | N43: 33200
A44: Community Relations | B44: 28600 | C44: 25326.82 | D44: -3273.18 | E44: 31564.56 | F44: 6237.74 | G44: =E21 -> 23289.59 | H44: =G44-C44 -> -2037.23 | I44: =F21 -> 51588.32 | J44: 28298.73 | K44: =G21 -> 55900 | L44: 4311.68 | M44: =H21 -> 43500 | N44: -12400
A45: Administrative and General | B45: 975100 | C45: 960814.67 | D45: -14285.33 | E45: 980552 | F45: 19737.33 | G45: =E22 -> 964754.59 | H45: =G45-C45 -> 3939.92 | I45: =F22 -> 958600.05 | J45: -6154.54 | K45: =G22 -> 1043900 | L45: 85299.95 | M45: =H22 -> 1111700 | N45: 67800
A46: Total OM&A Expenses | B46: =SUM(B41:B45) -> 2022105 | C46: =SUM(C41:C45) -> 2041513.9 | D46: 19408.9 | E46: =SUM(E41:E45) -> 2046359.55 | F46: 4845.65 | G46: 2074268.13 | H46: 32754.23 | I46: 2138831.62 | J46: 64563.49 | K46: 2297500 | L46: 158668.38 | M46: 2404300 | N46: 106800
A47: Adjustments for Total non-recoverable items (from Appendices 2-JA and 2-JB) | B47: 0 | C47: 0 | D47: 0 | E47: 0 | F47: 0 | G47: 0 | H47: 0 | I47: 0 | J47: 0 | K47: 0 | L47: 0 | M47: 0 | N47: 0
A48: Total Recoverable OM&A Expenses | B48: =B46-B47 -> 2022105 | C48: =C46-C47 -> 2041513.9 | D48: 19408.9 | E48: =SUM(E46:E47) -> 2046359.55 | F48: 4845.65 | G48: 2074268.13 | H48: 32754.23 | I48: 2138831.62 | J48: 64563.49 | K48: 2297500 | L48: 158668.38 | M48: 2404300 | N48: 106800
A49: Variance from previous year | C49: =C48-B48 -> 19408.9 | E49: =E48-C48 -> 4845.65 | G49: =G48-E48 -> 27908.58 | I49: =I48-G48 -> 64563.49 | K49: =K48-I48 -> 158668.38 | M49: =M48-K48 -> 106800
A50: Percent change (year over year) | C50: =C49/B48 -> 0.009598364081 | E50: =E49/C48 -> 0.002373557192 | G50: =IF(ISERROR(G49/E48), "", G49/E48) -> 0.01363816051 | I50: =IF(ISERROR(I49/G48), "", I49/G48) -> 0.03112591331 | K50: =IF(ISERROR(K49/I48), "", K49/I48) -> 0.07418460552 | M50: =IF(ISERROR(M49/K48), "", M49/K48) -> 0.04648531012
A51: Percent Change: Test year vs. Most Current Actual | I51: =IF(ISERROR((M48-I48)/I48), "", (M48-I48)/I48) -> 0.12411841 | M51: =(M48-I48)/I48 -> 0.12411841
A52: Simple average of % variance for all years | I52: =IF(ISERROR((M46-C46)/C46), "", (M46-C46)/C46) -> 0.1777044477 | M52: =(M48-C48)/C48 -> 0.1777044477 | N52: =IF(ISERROR(AVERAGE(E50,G50,I50,K50,M50)), "", AVERAGE(E50,G50,I50,K50,M50)) -> 0.03356150933
A53: Compound Annual Growth Rate for all years | I53: =IF(ISERROR((M49-C49)/C49), "", (M49-C49)/C49) -> 4.502630237 | N53: =IF((M48-C48)=0, "", (M48/C48)^(1/5)-1) -> 0.03325439925
A54: ="Compound Growth Rate (" & F13 & " vs. " & 'LDC Info'!E28 & " Actuals)" -> Compound Growth Rate (2016 Actuals vs. 2013 Actuals) | I54: =IF(ISERROR((I48/C48)^(1/(3)) - 1), "", (I48/C48)^(1/(3)) - 1) -> 0.01564379191
A56: Note:
A58: 1 "BA" = Board-Approved
A59: 2 If it has been more than three years since the applicant last filed a cost of service application, additional years of historical actuals should be incorporated into the table, as necessary, to go back to the last cost of service application. If the applicant last filed a cost of service application less than three years ago, a minimum of three years of actual information is required.
A61: 3 Recoverable OM&A that is included on these tables should be identical to the recoverable OM&A that is shown for the corresponding periods on Appendix 2-JB.

Sheet App.2-JB_OM&A_Cost _Drivers
G1: File Number: | H1: =EBNUMBER -> EB-2017-0032
G2: Exhibit:
G3: Tab:
G4: Schedule:
G5: Page:
G7: Date:
A10: Appendix 2-JB
A11: Recoverable OM&A Cost Driver Table
C13: Variances | D13: Variances | E13: Variances | F13: Variances | G13: Variances | H13: Variances
A14: Reporting Basis | B14: Board Approved | C14: CGAAP | D14: NEWGAAP | E14: MIFRS | F14: MIFRS | G14: MIFRS | H14: MIFRS
A15: OM&A | B15: 2013 | C15: 2013 | D15: 2014 | E15: 2015 | F15: 2016 | G15: 2017 | H15: 2018
A16: Opening Balance (2012 closing balance) | C16: 2157217.91 | D16: 2041514.12 | E16: 2046359.85 | F16: 2046359.85 | G16: 2138831.62 | H16: 2297499.95
A17: 5005-Operation Supervision and Engineering | B17: 108000 | F17: -35867.97 | G17: 7772.59 | H17: 5400
A18: 5010-Load Dispatching | B18: 14300 | D18: -7591.92 | E18: 15509.94 | F18: -9475.59
A19: 5012-Station Buildings and Fixtures Expense | B19: 25300 | C19: 43582.43 | F19: 6186.23
A20: 5017-Distribution Station Equipment - Operation Supplies and Expenses | B20: 0 | C20: 9764.24 | E20: 9100.21 | F20: -5485.79 | G20: 20316.32 | H20: -20800
A21: 5020-Overhead Distribution Lines and Feeders - Operation Labour | B21: 1300 | G21: 10553.22
A22: 5025-Overhead Distribution Lines and Feeders - Operation Supplies and Expenses | B22: 700 | C22: 7244.9 | F22: -5031.65 | G22: 8101.47
A23: 5040-Underground Distribution Lines and Feeders - Operation Labour | B23: 5700 | C23: -5536.95
A24: 5055-Underground Distribution Transformers - Operation | B24: 7000 | D24: -5529.63 | G24: 7744.76
A25: 5065-Meter Expense | B25: 54800 | C25: -14161.61 | D25: 9551.81 | E25: -16663.59 | F25: 25492.08 | H25: 16400
A26: 5085-Miscellaneous Distribution Expense | B26: 46800 | C26: -12381.12 | D26: 12383.43 | E26: 7815.83
A27: 5105-Maintenance Supervision and Engineering | B27: 48000 | D27: 15457.16 | E27: -19472.57 | F27: -16439.24 | G27: 9654.91
A28: 5114-Maintenance of Distribution Station Equipment | B28: 19000 | D28: -6090.94 | F28: -6490.09 | G28: 6564.47 | H28: 18000
A29: 5120-Maintenance of Poles, Towers and Fixtures | B29: 28600 | D29: -6422.65 | E29: -8111.18 | F29: 13715.05 | G29: -5422.22
A30: 5125-Maintenance of Overhead Conductors and Devices | B30: 47700 | D30: -46515.76 | E30: 7916.57 | F30: 29980.06 | G30: -30908.68
A31: 5130-Maintenance of Overhead Services | B31: 31000 | D31: 5266.98 | E31: -8227.71 | F31: 25539.73 | G31: -24158.98
A32: 5135-Overhead Distribution Lines and Feeders - Right of Way | B32: 45400 | C32: 9761.39 | D32: -5891.72 | E32: 13678.2
A33: 5155-Maintenance of Underground Services | B33: 48300 | C33: 5173.82 | D33: 30909.63 | E33: 5662.06 | F33: 24222.68
A34: 5160-Maintenance of Line Transformers | B34: 13300 | D34: -5973.37 | E34: 32089.77 | F34: -28017.82 | G34: 28497.9
A35: 5175-Maintenance of Meters | B35: 12600 | D35: -12355.02
A36: 5305-Supervision | B36: 0 | D36: 31436.42 | E36: 6036.74 | F36: 20412.62 | G36: -10585.78 | H36: 8600
A37: 5310-Meter Reading | B37: 99700
A38: 5315-Customer Billing | B38: 258300 | D38: -54690.48 | F38: 10120.7 | G38: 16179.89 | H38: 24500
A39: 5320-Collecting | B39: 77705 | D39: 13716.18 | E39: 15594.04 | F39: -20049.53 | G39: 12069.7
A40: 5335-Bad Debt Expense | B40: 11000 | C40: -6459.09 | D40: 12169.9 | E40: -12417.77
A41: 5410-Community Relations - Sundry | B41: 19300 | E41: -5071.82 | F41: 19398.53
A42: 5415-Energy Conservation | B42: 3400 | H42: -7100
A43: 5420-Community Safety Program | B43: 0 | D43: 6065 | E43: -6065 | G43: 8500 | H43: -5700
A44: 5425-Miscellaneous Customer Service and Informational Expenses | B44: 5900 | F44: 5529.58 | G44: -5019.8
A45: 5610-Management Salaries and Expenses | B45: 296400 | C45: -13270.17 | D45: 11442.75 | E45: 70313.99 | G45: 7429.88 | H45: 12500
A46: 5615-General Administrative Salaries and Expenses | B46: 235100 | C46: 12218.9 | D46: 13379.8 | E46: -45410.05 | F46: -6345.84 | G46: 19257.19 | H46: 5800
A47: 5620-Office Supplies and Expenses | B47: 61800 | D47: 6632.48 | E47: -7607.96 | F47: 9345.05 | G47: -5518.28
A48: 5630-Outside Services Employed | B48: 87500 | C48: 26274.79 | D48: -13610.4 | E48: -57964.37 | F48: 11014.49
A49: 5635-Property Insurance | B49: 16000 | C49: -10322.09
A50: 5640-Injuries and Damages | B50: 30000 | D50: 9704.71 | E50: -7979.25 | F50: 9350.2
A51: 5645-Employee Pensions and Benefits | B51: 0
A52: 5646 Employee Pensions and OPEB | B52: 3300 | D52: 11699.54 | G52: 7355.66 | H52: -5700
A53: 5655-Regulatory Expenses | B53: 123500 | C53: -27629.23 | D53: -31084.38 | E53: 28672.57 | F53: -15849.02 | G53: 44090.06 | H53: 46700
A54: 5665-Miscellaneous General Expenses | B54: 90400 | D54: 7411.12 | F54: -10380.69 | G54: 9975.05
A55: 5675-Maintenance of General Plant | B55: 19000 | D55: 5523.09
A57: Consolidated Expenses '< $5000 | B57: =15900+10100+2700 -> 28700 | C57: -139964.22 | D57: -2148.08 | E57: 10509.93 | F57: 41598.3 | G57: 16219.05 | H57: 8200
A58: Closing Balance | B58: =SUM(B16:B57) -> 2024805 | C58: 2041513.9 | D58: =SUM(D16:D57) -> 2046359.77 | E58: =SUM(E16:E57) -> 2074268.43 | F58: =SUM(F16:F57) -> 2138831.92 | G58: =SUM(G16:G57) -> 2297500 | H58: =SUM(H16:H57) -> 2404299.95
A59: OM&A Summay Integrity Check | B59: 2024805 | C59: 2041513.9 | D59: 2046359.55 | E59: 2074268.13 | F59: 2138831.62 | G59: 2297500 | H59: 2404300
A60: Difference | B60: =B58-B59 -> 0 | C60: 0 | D60: =D58-D59 -> 0.2200000009 | E60: =E58-E59 -> 0.3000000005 | F60: 0.3000000012 | G60: 0 | H60: -0.04999999842

Sheet App.2-JC_OMA Programs
I1: File Number: | J1: =EBNUMBER -> EB-2017-0032
I2: Exhibit:
I3: Tab:
I4: Schedule:
I5: Page:
I7: Date:
A9: Appendix 2-JC
A10: OM&A Programs Table
B13: Detail of OM&A Programs Table
K14: Test Year Versus 2013 Actual (Last Rebasing Year) | L14: Test Year Versus Most Current Actuals (2016)
B15: Reporting Basis | D15: Board Approved | E15: NEWGAAP | F15: NEWGAAP | G15: MIFRS | H15: MIFRS | I15: MIFRS | J15: MIFRS
B16: Programs | C16: USoA | D16: 2013 | E16: 2013 | F16: 2014 | G16: 2015 | H16: 2016 | I16: 2017 | J16: 2018 | K16: Variance ($) | L16: Variance ($)
B18: Customer Focus
B19: Community and Civic Co-ordination | C19: 5410 5415 5420 5425 | D19: =19300+3400+5900-3700 -> 24900 | E19: 25326.82 | F19: 31564.56 | G19: 23289.59 | H19: 51588.32 | I19: 55900 | J19: 43500 | K19: =J19-E19 -> 18173.18 | L19: =J19-H19 -> -8088.32
B20: Customer Service, Mailing Costs, Billing and Collections | C20: 5305 5315 5320 5325 5330 5340 | D20: =258300+77705 -> 336005 | E20: 330408.89 | F20: 320920.12 | G20: 342149 | H20: 352636.74 | I20: 370300 | J20: 400000 | K20: =J20-E20 -> 69591.11 | L20: =J20-H20 -> 47363.26
B21: Bad Debts Collection | C21: 5335 | D21: 11000 | E21: 4540.91 | F21: 16710.81 | G21: 4293.04 | H21: 2132.87 | I21: 6300 | J21: 6300 | K21: 1759.09 | L21: 4167.13
B22: Meter Reading | C22: 5310 | D22: 99700 | E22: 99268.14 | F22: 99816.63 | G22: 103048.34 | H22: 106918.86 | I22: 110900 | J22: 114400 | K22: 15131.86 | L22: 7481.14
B23: Service Locates | C23: 5155.007 | D23: 32100 | E23: 38598.49 | F23: 66209.76 | G23: 57043.72 | H23: 81990.99 | I23: 74400 | J23: 75900 | K23: 37301.51 | L23: -6090.99
B24: Sub-Total | D24: =SUM(D19:D23) -> 503705 | E24: =SUM(E19:E23) -> 498143.25 | F24: 535221.88 | G24: 529823.69 | H24: 595267.78 | I24: 617800 | J24: 640100 | K24: 141956.75 | L24: 44832.22
B26: Operational Effectiveness
B27: Distribution & Transformer Stations -operating and maintenance | C27: 5016 5017 5030 5114 | D27: =600+19000 -> 19600 | E27: 33378.3 | F27: 21614.12 | G27: 30289.73 | H27: 19524.38 | I27: 46600 | J27: 43900 | K27: =J27-E27 -> 10521.7 | L27: =J27-H27 -> 24375.62
B28: Metering -operations maintenance | C28: 5065 5175 | D28: =54800+12600 -> 67400 | E28: 52993.41 | F28: 50190.2 | G28: 36057.32 | H28: 59018.69 | I28: 57900 | J28: 74300 | K28: =J28-E28 -> 21306.59 | L28: =J28-H28 -> 15281.31
B29: Service Centre and Fixtures | C29: 5012 5110 | D29: =25300 -> 25300 | E29: 68882.43 | F29: 73941.82 | G29: 69534.67 | H29: 75720.9 | I29: 78400 | J29: 79100 | K29: 10217.57 | L29: 3379.1
B30: Asset management & maintenance department | K30: 0 | L30: 0
B31: Overhead lines, conductor, devices and services | C31: 5020 5025 5125 5130 | D31: =1300+700+47700+31000 -> 80700 | E31: 89123.16 | F31: 46703.19 | G31: 49351.72 | H31: 102212.97 | I31: 65800 | J31: 66300 | K31: -22823.16 | L31: -35912.97
B32: Underground Lines, conductor, devices and services | C32: 5040 5045 5150 5155.002 | D32: =5700+300+16200+3600 -> 25800 | E32: 18489.36 | F32: 21776.98 | G32: 36479.18 | H32: 34780.34 | I32: 44900 | J32: 43200 | K32: 24710.64 | L32: 8419.66
B33: Load dispatch activities, mapping, training & conferences | C33: 5010 5085 | D33: =14300+46800 -> 61100 | E33: 51476.81 | F33: 56268.32 | G33: 79594.09 | H33: 73907.67 | I33: 69700 | J33: 67900 | K33: 16423.19 | L33: -6007.67
B34: Operations & engineering ,Inspection drafting & design construction services | C34: 5005 5105 | D34: =108000+48000 -> 156000 | E34: 154416.4 | F34: 174222.9 | G34: 150879.71 | H34: 98572.5 | I34: 116000 | J34: 125400 | K34: -29016.4 | L34: 26827.5
B35: Distribution Transformers | C35: 5035 5055 5160 | D35: =7000+13300 -> 20300 | E35: 22170.8 | F35: 10667.8 | G35: 43661.77 | H35: 18757.34 | I35: 57500 | J35: 57400 | K35: 35229.2 | L35: 38642.66
B36: Vegetation Management-Tree trimming | C36: 5135 | D36: 45400 | E36: 55161.39 | F36: 49269.67 | G36: 62947.87 | H36: 66114.57 | I36: 69900 | J36: 64600 | K36: 9438.61 | L36: -1514.57
B37: Underground conduit | C37: 5145 | D37: 4700 | E37: 4062.15 | F37: 38.15 | G37: 1406.16 | H37: 3227.96 | I37: 1400 | J37: 1400 | K37: -2662.15 | L37: -1827.96
B38: Poles Towers & Fixtures | C38: 5095 5120 | D38: =4700+28600 -> 33300 | E38: 32315.17 | F38: 25892.52 | G38: 19279.48 | H38: 33126.47 | I38: 27700 | J38: 29000 | K38: -3315.17 | L38: -4126.47
B39: Fleet costs | K39: 0 | L39: 0
B40: Health & Safety Costs | K40: 0 | L40: 0
B41: Executive, Financial , Legal, Professional and Insurance Services | C41: 5610 5615 5630 5635 5640 | D41: =296400+235100+87500+16000+30000 -> 665000 | E41: 680919.7 | F41: 704078.8 | G41: 660638.85 | H41: 670600.65 | I41: 693900 | J41: 715800 | K41: 34880.3 | L41: 45199.35
B42: Post employment costs | C42: 5645 5646 | D42: 3300 | E42: 3159.16 | F42: 11699.54 | G42: 14641.81 | H42: 16744.34 | I42: 24100 | J42: 18400 | K42: 15240.84 | L42: 1655.66
B43: Procurement and Materials Management | K43: 0 | L43: 0
B44: Office building & security costs | C44: 5620 5675 | D44: =61800+19000 -> 80800 | E44: 76128.55 | F44: 88284.12 | G44: 80902.3 | H44: 90004.92 | I44: 88900 | J44: 90000 | K44: 13871.45 | L44: -4.92
B45: Corporate Dues, Directors, Advertising | C45: 5660 5665 | D45: =2000+90400 -> 92400 | E45: 87668.65 | F45: 94422.97 | G45: 98312.13 | H45: 87624.95 | I45: 98100 | J45: 100900 | K45: 13231.35 | L45: 13275.05
B46: IT, software, telecommunications | K46: 0 | L46: 0
B47: Internal Labour & Benefit Costs - attributed to capital work | K47: 0 | L47: 0
B48: Administrative services recovered from affiliates | K48: 0 | L48: 0
B49: Collection charges recovered from customers | K49: 0 | L49: 0
B50: Other | C50: 5195 6225 | D50: =2700 -> 2700 | E50: 3478.88 | F50: 3368.44 | G50: 3035.66 | H50: 1862.23 | I50: 2900 | J50: 2900 | K50: -578.88 | L50: 1037.77
B51: Sub-Total | D51: =SUM(D27:D50) -> 1383800 | E51: =SUM(E27:E50) -> 1433824.32 | F51: =SUM(F27:F50) -> 1432439.54 | G51: 1437012.45 | H51: 1451800.88 | I51: 1543700 | J51: 1580500 | K51: 146675.68 | L51: 128699.12
B53: Public and Regulatory Responsiveness
B54: Regulatory & Compliance | C54: 5655 | D54: 123500 | E54: 95870.77 | F54: 64786.39 | G54: 93458.96 | H54: 77609.94 | I54: 121700 | J54: 168400 | K54: =J54-E54 -> 72529.23 | L54: =J54-H54 -> 90790.06
B55: Electricial Safety Authority Fees | C55: 5680 | D55: 10100 | E55: 9996.04 | F55: 9981.99 | G55: 10043.28 | H55: 10223.27 | I55: 10400 | J55: 10500 | K55: =J55-E55 -> 503.96 | L55: =J55-H55 -> 276.73
B56: Smart Meter data management program | K56: =J56-E56 -> 0 | L56: =J56-H56 -> 0
B57: LEAP | C57: 6205 | D57: 3700 | E57: 3679.52 | F57: 3929.75 | G57: 3929.75 | H57: 3929.75 | I57: 3900 | J57: 4800 | K57: 1120.48 | L57: 870.25
B58: Sub-Total | D58: =SUM(D54:D57) -> 137300 | E58: =SUM(E54:E57) -> 109546.33 | F58: =SUM(F54:F57) -> 78698.13 | G58: 107431.99 | H58: 91762.96 | I58: 136000 | J58: 183700 | K58: 74153.67 | L58: 91937.04
B60: TOTAL OM&A | D60: =SUM(D24+D51+D58) -> 2024805 | E60: =SUM(E24+E51+E58) -> 2041513.9 | F60: 2046359.55 | G60: 2074268.13 | H60: 2138831.62 | I60: 2297500 | J60: 2404300 | K60: =SUM(K24+K51+K58) -> 362786.1 | L60: 265468.38
B61: Integrity Check | D61: 2024805 | E61: ='App.2-JA_OM&A_Summary_Analys'!C26 -> 2041513.9 | F61: ='App.2-JA_OM&A_Summary_Analys'!D26 -> 2046359.55 | G61: ='App.2-JA_OM&A_Summary_Analys'!E26 -> 2074268.13 | H61: ='App.2-JA_OM&A_Summary_Analys'!F26 -> 2138831.62 | I61: ='App.2-JA_OM&A_Summary_Analys'!G26 -> 2297500 | J61: ='App.2-JA_OM&A_Summary_Analys'!H26 -> 2404300
D62: =D60-D61 -> 0
B63: Normalized OM&A Programs Table
K64: Test Year Versus Last Rebasing | L64: Test Year Versus Most Current Actuals
B65: Programs | D65: 2013 Boad | E65: =E16 -> 2013 | F65: 2014 | G65: 2015 | H65: 2016 | I65: 2017 | J65: 2018 | K65: Variance ($) | L65: Variance ($)
B66: Reporting Basis | D66: Approved | E66: CGAAP | F66: CGAAP | G66: CGAAP | H66: CGAAP | I66: CGAAP | J66: CGAAP | K66: CGAAP | L66: CGAAP
B68: Normalized OM&A
B69: Customer Focus
B70: Specify | K70: =J70-E70 -> 0 | L70: =J70-H70 -> 0
B71: Specify | K71: =J71-E71 -> 0 | L71: =J71-H71 -> 0
B72: Sub-Total | E72: =SUM(E70:E71) -> 0 | F72: 0 | G72: 0 | H72: =SUM(H70:H71) -> 0 | I72: 0 | J72: 0 | K72: 0 | L72: 0
B74: Operational effectiveness
B75: Specify | K75: =J75-E75 -> 0 | L75: =J75-H75 -> 0
B76: Specify | K76: =J76-E76 -> 0 | L76: =J76-H76 -> 0
B77: Sub-Total | E77: =SUM(E75:E76) -> 0 | F77: 0 | G77: 0 | H77: =SUM(H75:H76) -> 0 | I77: 0 | J77: 0 | K77: 0 | L77: 0
B79: Public Policy
B80: Specify | K80: =J80-E80 -> 0 | L80: =J80-H80 -> 0
B81: Specify | K81: =J81-E81 -> 0 | L81: =J81-H81 -> 0
B82: Sub-Total | E82: =SUM(E80:E81) -> 0 | F82: 0 | G82: 0 | H82: =SUM(H80:H81) -> 0 | I82: 0 | J82: 0 | K82: 0 | L82: 0
B84: TOTAL Normalized OM&A | E84: =E60-E83 -> 2041513.9 | F84: 2046359.55 | G84: 2074268.13 | H84: =H60-H83 -> 2138831.62 | I84: 2297500 | J84: 2404300 | K84: 362786.1 | L84: 265468.38
B87: Summarized OM&A Programs Table
K89: Test Year Versus Last Rebasing | L89: Test Year Versus Most Current Actuals
B90: Programs | D90: 2013 Board | E90: 2013 | F90: 2014 | G90: 2015 | H90: 2016 | I90: 2017 | J90: 2018 | K90: Variance ($) | L90: Variance ($)
B91: Reporting Basis | D91: Approved | E91: CGAAP | F91: CGAAP | G91: CGAAP | H91: CGAAP | I91: CGAAP | J91: CGAAP | K91: CGAAP | L91: CGAAP
B93: Normalized OM&A
B95: Customer Focus | E95: =E72-E24 -> -498143.25 | F95: =F72-F24 -> -535221.88 | G95: -529823.69 | H95: =H72-H24 -> -595267.78 | I95: -617800 | J95: -640100 | K95: -141956.75 | L95: -44832.22
B97: Operational effectiveness | E97: =E77-E51 -> -1433824.32 | F97: -1432439.54 | G97: -1437012.45 | H97: =H77-H51 -> -1451800.88 | I97: -1543700 | J97: -1580500 | K97: -146675.68 | L97: -128699.12
B99: Public Policy | E99: =E82-E58 -> -109546.33 | F99: -78698.13 | G99: -107431.99 | H99: =H82-H58 -> -91762.96 | I99: -136000 | J99: -183700 | K99: -74153.67 | L99: -91937.04
B101: TOTAL Normalized OM&A | E101: =E95+E97+E99 -> -2041513.9 | F101: -2046359.55 | G101: -2074268.13 | H101: =H95+H97+H99 -> -2138831.62 | I101: -2297500 | J101: -2404300 | K101: -362786.1 | L101: -265468.38
D112: app

Sheet App.2-K_Employee Costs
G1: File Number: | H1: =EBNUMBER -> EB-2017-0032
G2: Exhibit:
G3: Tab:
G4: Schedule:
G5: Page:
G7: Date:
A9: Appendix 2-K
A10: Employee Costs
B12: ="Last Rebasing Year - "&RebaseYear&"- Board Approved" -> Last Rebasing Year - 2013- Board Approved | C12: ="Last Rebasing Year - "&RebaseYear&"- Actual" -> Last Rebasing Year - 2013- Actual | D12: =BridgeYear -3 & " Actuals" -> 2014 Actuals | E12: =BridgeYear -2 & " Actuals" -> 2015 Actuals | F12: =BridgeYear -1 & " Actuals" -> 2016 Actuals | G12: =BridgeYear & " Bridge Year" -> 2017 Bridge Year | H12: =BridgeYear+1 & " Test Year" -> 2018 Test Year
A13: Number of Employees (FTEs including Part-Time)1
A14: Management (including executive) | G14: 5 | H14: 5
A15: Non-Management (union and non-union) | B15: 16.5 | C15: 15.28 | D15: 15.97 | E15: 14.8 | F15: 14.51 | G15: 10.29 | H15: 10.29
A16: Total | B16: =SUM(B14:B15) -> 16.5 | C16: =SUM(C14:C15) -> 15.28 | D16: 15.97 | E16: 14.8 | F16: 14.51 | G16: 15.29 | H16: 15.29
A17: Total Salary and Wages including ovetime and incentive pay
A18: Management (including executive) | G18: 558800 | H18: 574700
A19: Non-Management (union and non-union) | B19: 1225546 | C19: 1303884.94 | D19: 1333391.6 | E19: 1266448.8 | F19: 1279117.25 | G19: =1351300-G18 -> 792500 | H19: =1444900-H18 -> 870200
A20: Total | B20: =SUM(B18:B19) -> 1225546 | C20: =SUM(C18:C19) -> 1303884.94 | D20: 1333391.6 | E20: 1266448.8 | F20: 1279117.25 | G20: 1351300 | H20: 1444900
A21: Total Benefits (Current + Accrued) 2
A22: Management (including executive) | G22: 130100 | H22: 138400
A23: Non-Management (union and non-union) | B23: 285622 | C23: 270617 | D23: 305030 | E23: 305760 | F23: 312503 | G23: =316100-G22 -> 186000 | H23: =335000-H22 -> 196600
A24: Total | B24: =SUM(B22:B23) -> 285622 | C24: =SUM(C22:C23) -> 270617 | D24: =SUM(D22:D23) -> 305030 | E24: =SUM(E22:E23) -> 305760 | F24: =SUM(F22:F23) -> 312503 | G24: =SUM(G22:G23) -> 316100 | H24: 335000
A25: Total Compensation (Salary, Wages, & Benefits)
A26: Management (including executive) | B26: =B18+B22 -> 0 | C26: =C18+C22 -> 0 | D26: 0 | E26: 0 | F26: 0 | G26: 688900 | H26: 713100
A27: Non-Management (union and non-union) | B27: 1511168 | C27: =C19+C23 -> 1574501.94 | D27: 1638421.6 | E27: 1572208.8 | F27: 1591620.25 | G27: 978500 | H27: 1066800
A28: Total | B28: 1511168 | C28: =C20+C24 -> 1574501.94 | D28: 1638421.6 | E28: 1572208.8 | F28: 1591620.25 | G28: 1667400 | H28: 1779900
A30: Note:
A31: 1 If an applicant wishes to use headcount, it must also file the same schedule on an FTE basis.
A32: 2 Current employee benefits, plus Pension and Other Post-Employment Benefits costs, as recorded for recovery in distribution rates. Should be consistent with OPEBs costs as documented in Appendix 2-KA.

Sheet App.2-KA_P_OPEBs
J1: File Number: | K1: =EBNUMBER -> EB-2017-0032
J2: Exhibit:
J3: Tab:
J4: Schedule:
J5: Page:
J7: Date:
B9: Appendix 2-KA
B10: OPEBs (Other Post-Employment Benefits) Costs
B12: A | C12: Please indicate if OPEBs were recovered on a cash or accrual accounting basis for each year since the distributor started to recover OPEBs in distribution rates from customers: | K12: Accrual
C14: Notes:
C15: (Please add any information to explain the accounting basis used for OPEBs cost recovery in rate setting. If basis is other than Cash or Accrual, an explanation is required.)
C17: In account 5646-Employee Pensions and OPEB-sub account, CWH records the annual premiums paid for life insurance premiums of retired employees which decreases to 25% of the original amount over a 10 year period. CWH also records health and dental premiums for management employees who retired prior to age 65 years in this account as well. As a separate sub-account of 5646-Employee Pensions and OPEB-Actuarial adjustment is also posted to this account. In 2018, CWH has included $6,700 as an annual actuarial adjustment. In 2013's CoS application there was zero ($0.00) dollars included in the applicaiton for actuarial accruals.
B24: B | C24: Please complete the following table:
C26: OPEBS | D26: =CONCATENATE("First Year of recovery to ",E26) -> First Year of recovery to 2013 | E26: =F26-1 -> 2013 | F26: =G26-1 -> 2014 | G26: =H26-1 -> 2015 | H26: =I26-1 -> 2016 | I26: =BridgeYear -> 2017 | J26: =TestYear -> 2018 | K26: Total
C27: Amounts included in Rates
C28: OM&A | D28: 0 | E28: 3300 | F28: 3300 | G28: 3300 | H28: 3300 | I28: 3300 | J28: =11700+6700 -> 18400 | K28: =SUM(D28:J28) -> 34900
C29: Capital | D29: 0 | E29: 0 | F29: 0 | G29: 0 | H29: 0 | I29: 0 | J29: 0 | K29: =SUM(D29:J29) -> 0
C30: Total | D30: =SUM(D28:D29) -> 0 | E30: =SUM(E28:E29) -> 3300 | F30: 3300 | G30: 3300 | H30: 3300 | I30: 3300 | J30: 18400 | K30: 34900
C31: Paid benefit amounts | E31: 3159 | F31: =11699.54-7697 -> 4002.54 | G31: =14641.81-2436-6757 -> 5448.81 | H31: =16744.34-5848 -> 10896.34 | I31: =24100-12400 -> 11700 | J31: =11700+6700 -> 18400 | K31: =SUM(D31:J31) -> 53606.69
C32: Net excess amount included in rates relative to amounts actually paid. | D32: =D30-D31 -> 0 | E32: =E30-E31 -> 141 | F32: -702.54 | G32: -2148.81 | H32: -7596.34 | I32: -8400 | J32: 0 | K32: =SUM(D32:J32) -> -18706.69
B34: C | C34: Please describe what the distributor has done with the recoveries in excess of cash payments:
C36: The above calculation shows and un-recovered amount for OPEBs of $18,706.69 once the actuarial accruals have been removed. The actuarial accrues would have increased the under recovery by 2014-$7,697; 2015-$9,193; 2016-$5,848; 2017 estimated amount of $12,400. The actuarial accrual total $35,138 between 2013-2017.

Sheet App.2-L_OM&A_per_Cust_FTE
I1: File Number: | J1: =EBNUMBER -> EB-2017-0032
I2: Exhibit:
I3: Tab:
I4: Schedule:
I5: Page:
I7: Date:
B9: Appendix 2-L
B10: Recoverable OM&A Cost per Customer and per FTE 1
D13: ="Last Rebasing Year - "&RebaseYear&"- Board Approved" -> Last Rebasing Year - 2013- Board Approved | E13: ="Last Rebasing Year - "&RebaseYear&"- Actual" -> Last Rebasing Year - 2013- Actual | F13: =BridgeYear -3 & " Actuals" -> 2014 Actuals | G13: =BridgeYear -2 & " Actuals" -> 2015 Actuals | H13: =BridgeYear -1 & " Actuals" -> 2016 Actuals | I13: =BridgeYear & " Bridge Year" -> 2017 Bridge Year | J13: =TestYear & " Test Year" -> 2018 Test Year
B14: Reporting Basis
B15: OM&A Costs
B16: O&M | D16: 1047005 | E16: 1080699 | F16: 1065808 | G16: 1109514 | H16: 1180232 | I16: 1253600 | J16: 1292600
B17: Admin Expenses | D17: 975100 | E17: 960815 | F17: 980552 | G17: 964755 | H17: 958600 | I17: 1043900 | J17: 1111700
B18: Total Recoverable OM&A from Appendix 2-JB 5 | D18: =SUM(D16:D17) -> 2022105 | E18: =SUM(E16:E17) -> 2041514 | F18: =SUM(F16:F17) -> 2046360 | G18: 2074269 | H18: 2138832 | I18: 2297500 | J18: 2404300
B19: Number of Customers 2,4 | D19: 8438 | E19: 8419 | F19: 8469 | G19: 8494 | H19: 8524 | I19: 8596 | J19: 8669
B20: Number of FTEs 3,4 | D20: 16.5 | E20: 15.28 | F20: 15.97 | G20: 14.8 | H20: 14.51 | I20: 15.29 | J20: 15.29
B21: Customers/FTEs | D21: =IF(D20=0,"",D19/D20) -> 511.3939394 | E21: =IF(E20=0,"",E19/E20) -> 550.9816754 | F21: =IF(F20=0,"",F19/F20) -> 530.3068253 | G21: 573.9189189 | H21: 587.4569263 | I21: 562.1975147 | J21: 566.971877
B22: OM&A cost per customer
B23: O&M per customer | D23: =IF(D19=0,"",D16/D19) -> 124.0821285 | E23: =IF(E19=0,"",E16/E19) -> 128.364295 | F23: =IF(F19=0,"",F16/F19) -> 125.8481521 | G23: 130.6232635 | H23: 138.459878 | I23: 145.8352722 | J23: 149.1060099
B24: Admin per customer | D24: =IF(D19=0,"",D17/D19) -> 115.5605594 | E24: =IF(E19=0,"",E17/E19) -> 114.1245991 | F24: =IF(F19=0,"",F17/F19) -> 115.7813201 | G24: 113.5807629 | H24: 112.4589395 | I24: 121.4402047 | J24: 128.2385512
B25: Total OM&A per customer | D25: =IF(D19=0,"",D18/D19) -> 239.6426878 | E25: =IF(E19=0,"",E18/E19) -> 242.4888942 | F25: =IF(F19=0,"",F18/F19) -> 241.6294722 | G25: 244.2040264 | H25: 250.9188175 | I25: 267.275477 | J25: 277.3445611
B26: OM&A cost per FTE
B27: O&M per FTE | D27: =IF(D20=0,"",D16/D20) -> 63454.84848 | E27: =IF(E20=0,"",E16/E20) -> 70726.37435 | F27: =IF(F20=0,"",F16/F20) -> 66738.134 | G27: 74967.16216 | H27: 81339.21433 | I27: 81988.2276 | J27: 84538.91432
B28: Admin per FTE | D28: =IF(D20=0,"",D17/D20) -> 59096.9697 | E28: =IF(E20=0,"",E17/E20) -> 62880.56283 | F28: =IF(F20=0,"",F17/F20) -> 61399.6243 | G28: 65186.14865 | H28: 66064.78291 | I28: 68273.38129 | J28: 72707.65206
B29: Total OM&A per FTE | D29: =IF(D20=0,"",D18/D20) -> 122551.8182 | E29: =IF(E20=0,"",E18/E20) -> 133606.9372 | F29: =IF(F20=0,"",F18/F20) -> 128137.7583 | G29: 140153.3108 | H29: 147403.9972 | I29: 150261.6089 | J29: 157246.5664
B31: Notes:
B33: 1 | C33: If it has been more than three years since the applicant last filed a cost of service application, additional years of historical actuals should be incorporated into the table, as necessary, to go back to the last cost of service application. If the applicant last filed a cost of service application less than three years ago, a minimum of three years of actual information is required.
B35: 2 | C35: The method of calculating the number of customers must be identified. Should correspond with data provided in Appendix 2-IB
B36: 3 | C36: The method of calculating the number of FTEs must be identified. See also Appendix 2-K
B37: 4 | C37: The number of customers and the number of FTEs should correspond to mid-year or average of January 1 and December 31 figures.
B38: 5 | C38: For the test year, the applicant should take into account the system O&M (line 22 of Appendix 2-AB) in developing its forecasted OM&A.

Sheet App.2-L_OM&A_per_Cust_FTEE_exp (hidden)
K1: File Number: | L1: =EBNUMBER -> EB-2017-0032
K2: Exhibit:
K3: Tab:
K4: Schedule:
K5: Page:
K7: Date:
A9: Appendix 2-L
A10: Recoverable OM&A Cost per Customer and per FTE 1
H12: 5-year Distribution System Plan Period
C13: ="Last Rebasing Year - "&RebaseYear&"- Board Approved" -> Last Rebasing Year - 2013- Board Approved | D13: ="Last Rebasing Year - "&RebaseYear&"- Actual" -> Last Rebasing Year - 2013- Actual | E13: =BridgeYear -2 & " Actuals" -> 2015 Actuals | F13: =BridgeYear -1 & " Actuals" -> 2016 Actuals | G13: =BridgeYear & " Bridge Year" -> 2017 Bridge Year | H13: =TestYear & " Test Year" -> 2018 Test Year | I13: =TestYear+1 & " Year" -> 2019 Year | J13: =TestYear+2 & " Year" -> 2020 Year | K13: =TestYear+3 & " Year" -> 2021 Year | L13: =TestYear+4 & " Year" -> 2022 Year
A14: Reporting Basis
A15: OM&A Costs
A16: O&M
A17: Admin Expenses
A18: Total Recoverable OM&A from Appendix 2-JB 5 | C18: =SUM(C16:C17) -> 0 | D18: =SUM(D16:D17) -> 0 | E18: 0 | F18: 0 | G18: 0 | H18: 0 | I18: 0 | J18: 0 | K18: 0 | L18: 0
A19: Number of Customers 2,4
A20: Number of FTEs 3,4
A21: Customers/FTEs | C21: =IF(C20=0,"",C19/C20) ->  | D21: =IF(D20=0,"",D19/D20) -> 
A22: OM&A cost per customer
A23: O&M per customer | C23: =IF(C19=0,"",C16/C19) ->  | D23: =IF(D19=0,"",D16/D19) -> 
A24: Admin per customer | C24: =IF(C19=0,"",C17/C19) ->  | D24: =IF(D19=0,"",D17/D19) -> 
A25: Total OM&A per customer | C25: =IF(C19=0,"",C18/C19) ->  | D25: =IF(D19=0,"",D18/D19) -> 
A26: OM&A cost per FTE
A27: O&M per FTE | C27: =IF(C20=0,"",C16/C20) ->  | D27: =IF(D20=0,"",D16/D20) -> 
A28: Admin per FTE | C28: =IF(C20=0,"",C17/C20) ->  | D28: =IF(D20=0,"",D17/D20) -> 
A29: Total OM&A per FTE | C29: =IF(C20=0,"",C18/C20) ->  | D29: =IF(D20=0,"",D18/D20) -> 
A31: Notes:
A33: 1 | B33: If it has been more than three years since the applicant last filed a cost of service application, additional years of historical actuals should be incorporated into the table, as necessary, to go back to the last cost of service application. If the applicant last filed a cost of service application less than three years ago, a minimum of three years of actual information is required.
A35: 2 | B35: The method of calculating the number of customers must be identified. Should be linked back to Appendix 2-IA
A36: 3 | B36: The method of calculating the number of FTEs must be identified. See also Appendix 2-K
A37: 4 | B37: The number of customers and the number of FTEs should correspond to mid-year or average of January 1 and December 31 figures.
A38: 5 | B38: For the test year and in the subsequent four years of the DSP period, the applicant should take into account the system O&M (line X of Appendix 2-AB) in developing its forecasted OM&A. Admin expenses beyond the test year also need to be forecasted (separately).

Sheet App.2-M_Regulatory_Costs
J1: File Number: | K1: =EBNUMBER -> EB-2017-0032
J2: Exhibit:
J3: Tab:
J4: Schedule:
J5: Page:
J7: Date:
A9: Appendix 2-M
A10: Regulatory Cost Schedule
E11: on
B13: Regulatory Cost Category | D13: USoA Account | E13: Ongoing or One-time Cost? | F13: Last Rebasing Year Board Approved | G13: 2013 | H13: 2014 | I13: 2015 | J13: 2016 | K13: 2017 | L13: 2018
B14: 1 | C14: OEB Annual Assessment | D14: 5655 | E14: On-Going | F14: 18000 | G14: 17617 | H14: 17557 | I14: 19424 | J14: 20113 | K14: 18300 | L14: 31700
B15: 2 | C15: OEB Section 30 Costs (Applicant-originated) | D15: 5655 | E15: On-Going | F15: 6500 | J15: 1153.9 | K15: 1000 | L15: 1300
B16: 3 | C16: OEB Section 30 Costs (OEB-initiated) | D16: 5655 | E16: On-Going | F16: 3600 | G16: 636.6 | H16: 500.19 | I16: 2628.15 | J16: 122.86 | K16: 2700 | L16: 2700
B17: 4 | C17: Expert Witness costs for regulatory matters | D17: 5655 | E17: One-Time | F17: 8700 | G17: 0 | H17: 0 | I17: 0 | J17: 0 | K17: 0 | L17: 0
B18: 5 | C18: Legal costs for regulatory matters | D18: 5655 | E18: One-Time | F18: 0 | G18: 0 | H18: 0 | I18: 0 | J18: 0 | K18: 0 | L18: 0
B19: 6 | C19: Consultants' costs for regulatory matters (IRM & ROE) | D19: 5655 | E19: On-Going | F19: 25000 | G19: 36948.5 | H19: 0 | I19: 28847.5 | J19: 11488.75 | K19: 11000 | L19: 11000
B20: 7 | C20: Operating expenses associated with staff resources allocated to regulatory matters | D20: 5655 | E20: On-Going | F20: 40000 | G20: 9028.78 | H20: 38463.99 | I20: 34793.38 | J20: 37789.42 | K20: 80200 | L20: 69000
B21: 8 | C21: Operating expenses associated with other resources allocated to regulatory matters | D21: 5655 | E21: On-Going | F21: 3700 | G21: 2166.88 | H21: 3189.05 | I21: 2430.9 | J21: 2062.14 | K21: 3000 | L21: 3000
B22: 9 | C22: Other regulatory agency fees or assessments | D22: 5655 | E22: On-Going | F22: 5500 | G22: 5018.01 | H22: 5076.15 | I22: 5335.03 | J22: 4879.87 | K22: 5500 | L22: 5500
B23: 10 | C23: Any other costs for regulatory matters (please define) (2009 Rebasing cost) | D23: 5655 | E23: On-Going | F23: 11200 | G23: 11180 | H23: 0 | I23: 0 | J23: 0 | K23: 0 | L23: 0
B24: 10 | C24: Any other costs for regulatory matters (please define) (2017-Consultants for CoS, DSP) | D24: 5655 | E24: One-Time | F24: 20000 | G24: 0 | H24: 0 | I24: 0 | J24: 0 | K24: 0 | L24: 0
B25: 10 | C25: Any other costs for regulatory matters: 2018 COS one-time Costs (1/5th cost of $221,100) | D25: 5655 | E25: On-Going | F25: 0 | G25: 0 | H25: 0 | I25: 0 | J25: 0 | K25: 0 | L25: 44200
B26: 11 | C26: Intervenor costs | D26: 5655 | E26: One-Time | F26: 11400 | G26: 13275 | H26: 0 | I26: 0 | J26: 0 | K26: 0 | L26: 0
B27: 12 | C27: Sub-total - Ongoing Costs | F27: 113500 | G27: 82595.77 | H27: 64786.38 | I27: 93458.96 | J27: 77609.94 | K27: 121700 | L27: 168400
B28: 13 | C28: Sub-total - One-time Costs | F28: 40100 | G28: 13275 | H28: 0 | I28: 0 | J28: 0 | K28: 0 | L28: 0
B29: 14 | C29: Total | F29: =F27+F28 -> 153600 | G29: 95870.77 | H29: 64786.38 | I29: 93458.96 | J29: 77609.94 | K29: 121700 | L29: 168400
C30: Regulatory Balance from 2.1.7 | F30: 123500 | G30: 95870.77 | H30: 64786.39 | I30: 93458.96 | J30: 77609.94 | K30: 121700 | L30: 168400
C31: Difference | F31: =F29-F30 -> 30100 | G31: =G29-G30 -> 0 | H31: -0.009999999987 | I31: 0 | J31: 0 | K31: 0 | L31: 0
B32: Please fill out the following table for all one-time costs related to this cost of service application to be amortized over the test year plus the IRM period.
B35: Regulatory Cost Category | D35: Historical Year(s) 2012 - 2013 CoS Actual Cost | E35: 2013 CoS OEB approved | F35: 2017 Bridge Year | G35: 2018 Test Year
B36: 4 | C36: Expert Witness costs for regulatory matters | D36: 0 | F36: 30000 | I36: 2013 consultant cost - $35,991.5 plus $91,000 from 2012
B37: 5 | C37: Legal costs for regulatory matters | D37: 0 | E37: 8700 | F37: 20000
B38: 6 | C38: Consultant's Costs | D38: 126991.5 | E38: 20000 | F38: 129600 | I38: The historical information includes CoS cost for 2013 that was paid in 2013 and does not include cost from 2012,
B39: 7 | C39: Incremental operating expenses associated with staff resources allocated to this application | D39: 0 | I39: It also includes the DSP initial cost paid in 2015 and not included in the 2017 Bridge year expenses.
B40: 8 | C40: Incremental operating expenses associated with other resources allocated to this application | D40: 0 | F40: 1500
B41: 10 | C41: Any other costs for regulatory matters: 2018 COS one-time Costs (1/5th cost of $221,100) | G41: 44200
B42: 11 | C42: Intervenor costs | D42: 13275 | E42: 11400 | F42: 40000
C44: Total One Time Costs split over 5 years | D44: =SUM(D36:D43) -> 140266.5 | E44: =SUM(E36:E43) -> 40100 | F44: =SUM(F36:F43) -> 221100 | G44: =SUM(G36:G43) -> 44200

Sheet App.2-N_Corp_Cost_Allocation
F1: File Number: | G1: =EBNUMBER -> EB-2017-0032
F2: Exhibit:
F3: Tab:
F4: Schedule:
F5: Page:
F7: Date:
A9: Appendix 2-N
A10: Shared Services and Corporate Cost Allocation 1
B13: Year: | C13: 2013
A15: Shared Services
A17: Name of Company | C17: Service Offered | D17: Pricing Methodology | E17: Price for the Service | F17: Cost for the Service
A18: From | B18: To
E19: $ | F19: $
A20: N/A | B20: N/A | C20: N/A | D20: N/A | E20: N/A | F20: N/A
A23: Corporate Cost Allocation
A25: Name of Company | C25: Service Offered | D25: Pricing Methodology | E25: % of Corporate Costs Allocated | F25: Amount Allocated | G25: Revenues | H25: Rate of Return
A26: From | B26: To
E27: % | F27: $ | G27: $ | H27: %
A28: Centre Wellington Hydro Ltd. | B28: Township of Centre Wellington | C28: Water/Sewer billing | D28: Cost Bases (See Notes) | E28: 100% of Cost | F28: 116745 | G28: 151757 | H28: =(G28-F28)/F28 -> 0.2999014947
A29: Centre Wellington Hydro Ltd. | B29: Township of Centre Wellington | C29: Street Lights Mtce and Installation | D29: Cost Bases (See Notes) | E29: 100% of Cost | F29: =22440.79+11275.31 -> 33716.1 | G29: 33716
B33: Year: | C33: 2014
A35: Shared Services
A37: Name of Company | C37: Service Offered | D37: Pricing Methodology | E37: Price for the Service | F37: Cost for the Service
A38: From | B38: To
E39: $ | F39: $
A40: N/A | B40: N/A | C40: N/A | D40: N/A | E40: N/A | F40: N/A
A43: Corporate Cost Allocation
A45: Name of Company | C45: Service Offered | D45: Pricing Methodology | E45: % of Corporate Costs Allocated | F45: Amount Allocated | G45: Revenues | H45: Rate of Return
A46: From | B46: To
E47: % | F47: $ | G47: $ | H47: %
A48: Centre Wellington Hydro Ltd. | B48: Township of Centre Wellington | C48: Water/Sewer billing | D48: Cost Bases (See Notes) | E48: 100% of Cost | F48: 129496 | G48: 153926.85 | H48: =(G48-F48)/F48 -> 0.1886610397
A49: Centre Wellington Hydro Ltd. | B49: Township of Centre Wellington | C49: Street Lights Mtce and Installation | D49: Cost Bases (See Notes) | E49: 100% of Cost | F49: 47513.22 | G49: 47513
B53: Year: | C53: 2015
A55: Shared Services
A57: Name of Company | C57: Service Offered | D57: Pricing Methodology | E57: Price for the Service | F57: Cost for the Service
A58: From | B58: To
E59: $ | F59: $
A60: N/A | B60: N/A | C60: N/A | D60: N/A | E60: N/A | F60: N/A
A63: Corporate Cost Allocation
A65: Name of Company | C65: Service Offered | D65: Pricing Methodology | E65: % of Corporate Costs Allocated | F65: Amount Allocated | G65: Revenues | H65: Rate of Return
A66: From | B66: To
E67: % | F67: $ | G67: $ | H67: %
A68: Centre Wellington Hydro Ltd. | B68: Township of Centre Wellington | C68: Water/Sewer billing | D68: Cost Bases (See Notes) | E68: 100% of Cost | F68: 124803 | G68: 156875.25 | H68: =(G68-F68)/F68 -> 0.2569830052
A69: Centre Wellington Hydro Ltd. | B69: Township of Centre Wellington | C69: Street Lights Mtce and Installation | D69: Cost Bases (See Notes) | E69: 100% of Cost | F69: 39682.5 | G69: 39683
B73: Year: | C73: 2016
A75: Shared Services
A77: Name of Company | C77: Service Offered | D77: Pricing Methodology | E77: Price for the Service | F77: Cost for the Service
A78: From | B78: To
E79: $ | F79: $
A80: N/A | B80: N/A | C80: N/A | D80: N/A | E80: N/A | F80: N/A
A83: Corporate Cost Allocation
A85: Name of Company | C85: Service Offered | D85: Pricing Methodology | E85: % of Corporate Costs Allocated | F85: Amount Allocated | G85: Revenues | H85: Rate of Return
A86: From | B86: To
E87: % | F87: $ | G87: $ | H87: %
A88: Centre Wellington Hydro Ltd. | B88: Township of Centre Wellington | C88: Water/Sewer billing | D88: Cost Bases (See Notes) | E88: 100% of Cost | F88: 132519 | G88: 161914.2 | H88: =(G88-F88)/F88 -> 0.2218187581
A89: Centre Wellington Hydro Ltd. | B89: Township of Centre Wellington | C89: Street Lights Mtce and Installation | D89: Cost Bases (See Notes) | E89: 100% of Cost | F89: 20952 | G89: 20952
B93: Year: | C93: 2017
A95: Shared Services
A97: Name of Company | C97: Service Offered | D97: Pricing Methodology | E97: Price for the Service | F97: Cost for the Service
A98: From | B98: To
E99: $ | F99: $
A100: N/A | B100: N/A | C100: N/A | D100: N/A | E100: N/A | F100: N/A
A103: Corporate Cost Allocation
A105: Name of Company | C105: Service Offered | D105: Pricing Methodology | E105: % of Corporate Costs Allocated | F105: Amount Allocated | G105: Revenues | H105: Rate of Return
A106: From | B106: To
E107: % | F107: $ | G107: $ | H107: %
A108: Centre Wellington Hydro Ltd. | B108: Township of Centre Wellington | C108: Water/Sewer billing | D108: Cost Bases (See Notes) | E108: 100% of Cost | F108: 149700 | G108: 162900 | H108: =(G108-F108)/F108 -> 0.08817635271
A109: Centre Wellington Hydro Ltd. | B109: Township of Centre Wellington | C109: Street Lights Mtce and Installation | D109: Cost Bases (See Notes) | E109: 100% of Cost | F109: 9000 | G109: 9000
B113: Year: | C113: 2018
A115: Shared Services
A117: Name of Company | C117: Service Offered | D117: Pricing Methodology | E117: Price for the Service | F117: Cost for the Service
A118: From | B118: To
E119: $ | F119: $
A120: N/A | B120: N/A | C120: N/A | D120: N/A | E120: N/A | F120: N/A
A123: Corporate Cost Allocation
A125: Name of Company | C125: Service Offered | D125: Pricing Methodology | E125: % of Corporate Costs Allocated | F125: Amount Allocated | G125: Revenues | H125: Rate of Return
A126: From | B126: To
E127: % | F127: $ | G127: $ | H127: %
A128: Centre Wellington Hydro Ltd. | B128: Township of Centre Wellington | C128: Water/Sewer billing | D128: Cost Bases (See Notes) | E128: 100% of Cost | F128: 148600 | G128: 162900 | H128: =(G128-F128)/F128 -> 0.09623149394
A129: Centre Wellington Hydro Ltd. | B129: Township of Centre Wellington | C129: Street Lights Mtce and Installation | D129: Cost Bases (See Notes) | E129: 100% of Cost | F129: 9900 | G129: 9900

Sheet App.2-OA Capital Structure
K1: File Number: | O1: =EBNUMBER -> EB-2017-0032
K2: Exhibit:
K3: Tab:
K4: Schedule:
K5: Page:
K7: Date:
C10: Appendix 2-OA
C11: Capital Structure and Cost of Capital
A13: This table must be completed for the last Board-approved year and the test year.
G15: Year: | H15: 2018
A17: Line No.
C18: Particulars | E18: Capitalization Ratio | K18: Cost Rate | O18: Return
E20: (%) | I20: ($) | K20: (%) | O20: ($)
C21: Debt
A22: 1 | C22: Long-term Debt | E22: 0.56 | I22: =$I$31*E22 -> 9658070.347 | K22: 0.0380693 | O22: =K22*I22 -> 367675.9774
A23: 2 | C23: Short-term Debt | E23: 0.04 | G23: (1) | I23: =$I$31*E23 -> 689862.1676 | K23: 0.0176 | O23: =K23*I23 -> 12141.57415
A24: 3 | C24: Total Debt | E24: =SUM(E22:E23) -> 0.6 | I24: =SUM(I22:I23) -> 10347932.51 | K24: =IF(E24=0,0,SUMPRODUCT(E22:E23,K22:K23)/E24) -> 0.03670468 | O24: =SUM(O22:O23) -> 379817.5516
C26: Equity
A27: 4 | C27: Common Equity | E27: 0.4 | I27: =$I$31*E27 -> 6898621.676 | K27: 0.0878 | O27: =K27*I27 -> 605698.9832
A28: 5 | C28: Preferred Shares | I28: =$I$31*E28 -> 0 | O28: =K28*I28 -> 0
A29: 6 | C29: Total Equity | E29: =SUM(E27:E28) -> 0.4 | I29: =SUM(I27:I28) -> 6898621.676 | K29: =IF(E29=0,0,SUMPRODUCT(E27:E28,K27:K28)/E29) -> 0.0878 | O29: =SUM(O27:O28) -> 605698.9832
A31: 7 | C31: Total | E31: 1 | I31: 17246554.19 | K31: =(K24*E24)+(K29*E29) -> 0.057142808 | O31: =O24+O29 -> 985516.5348
G34: Year: | H34: 2017
A36: Line No.
C37: Particulars | E37: Capitalization Ratio | K37: Cost Rate | O37: Return
E39: (%) | I39: ($) | K39: (%) | O39: ($)
C40: Debt
A41: 1 | C41: Long-term Debt | E41: 0.56 | I41: =$I$50*E41 -> 10094334.33 | K41: 0.0414 | O41: =K41*I41 -> 417905.4413
A42: 2 | C42: Short-term Debt | E42: 0.04 | G42: (1) | I42: =$I$50*E42 -> 721023.8808 | K42: 0.0207 | O42: =K42*I42 -> 14925.19433
A43: 3 | C43: Total Debt | E43: =SUM(E41:E42) -> 0.6 | I43: =SUM(I41:I42) -> 10815358.21 | K43: =IF(E43=0,0,SUMPRODUCT(E41:E42,K41:K42)/E43) -> 0.04002 | O43: =SUM(O41:O42) -> 432830.6356
C45: Equity
A46: 4 | C46: Common Equity | E46: 0.4 | I46: =$I$50*E46 -> 7210238.808 | K46: 0.0898 | O46: =K46*I46 -> 647479.445
A47: 5 | C47: Preferred Shares | I47: =$I$50*E47 -> 0 | O47: =K47*I47 -> 0
A48: 6 | C48: Total Equity | E48: =SUM(E46:E47) -> 0.4 | I48: =SUM(I46:I47) -> 7210238.808 | K48: =IF(E48=0,0,SUMPRODUCT(E46:E47,K46:K47)/E48) -> 0.0898 | O48: =SUM(O46:O47) -> 647479.445
A50: 7 | C50: Total | E50: 1 | I50: 18025597.02 | K50: =(K43*E43)+(K48*E48) -> 0.059932 | O50: =O43+O48 -> 1080310.081
G53: Year: | H53: 2016
A55: Line No.
C56: Particulars | E56: Capitalization Ratio | K56: Cost Rate | O56: Return
E58: (%) | I58: ($) | K58: (%) | O58: ($)
C59: Debt
A60: 1 | C60: Long-term Debt | E60: 0.56 | I60: =$I$69*E60 -> 9397488.8 | K60: 0.0414 | O60: =K60*I60 -> 389056.0363
A61: 2 | C61: Short-term Debt | E61: 0.04 | G61: (1) | I61: =$I$69*E61 -> 671249.2 | K61: 0.0207 | O61: =K61*I61 -> 13894.85844
A62: 3 | C62: Total Debt | E62: =SUM(E60:E61) -> 0.6 | I62: =SUM(I60:I61) -> 10068738 | K62: =IF(E62=0,0,SUMPRODUCT(E60:E61,K60:K61)/E62) -> 0.04002 | O62: =SUM(O60:O61) -> 402950.8948
C64: Equity
A65: 4 | C65: Common Equity | E65: 0.4 | I65: =$I$69*E65 -> 6712492 | K65: 0.0898 | O65: =K65*I65 -> 602781.7816
A66: 5 | C66: Preferred Shares | I66: =$I$50*E66 -> 0 | O66: =K66*I66 -> 0
A67: 6 | C67: Total Equity | E67: =SUM(E65:E66) -> 0.4 | I67: =SUM(I65:I66) -> 6712492 | K67: =IF(E67=0,0,SUMPRODUCT(E65:E66,K65:K66)/E67) -> 0.0898 | O67: =SUM(O65:O66) -> 602781.7816
A69: 7 | C69: Total | E69: 1 | I69: 16781230 | K69: =(K62*E62)+(K67*E67) -> 0.059932 | O69: =O62+O67 -> 1005732.676
G71: Year: | H71: 2015
A73: Line No.
C74: Particulars | E74: Capitalization Ratio | K74: Cost Rate | O74: Return
E76: (%) | I76: ($) | K76: (%) | O76: ($)
C77: Debt
A78: 1 | C78: Long-term Debt | E78: 0.56 | I78: =$I$87*E78 -> 8473730.728 | K78: 0.0414 | O78: =K78*I78 -> 350812.4522
A79: 2 | C79: Short-term Debt | E79: 0.04 | G79: (1) | I79: =$I$87*E79 -> 605266.4806 | K79: 0.0207 | O79: =K79*I79 -> 12529.01615
A80: 3 | C80: Total Debt | E80: =SUM(E78:E79) -> 0.6 | I80: =SUM(I78:I79) -> 9078997.209 | K80: =IF(E80=0,0,SUMPRODUCT(E78:E79,K78:K79)/E80) -> 0.04002 | O80: =SUM(O78:O79) -> 363341.4683
C82: Equity
A83: 4 | C83: Common Equity | E83: 0.4 | I83: =$I$87*E83 -> 6052664.806 | K83: 0.0898 | O83: =K83*I83 -> 543529.2996
A84: 5 | C84: Preferred Shares | I84: =$I$31*E84 -> 0 | O84: =K84*I84 -> 0
A85: 6 | C85: Total Equity | E85: =SUM(E83:E84) -> 0.4 | I85: =SUM(I83:I84) -> 6052664.806 | K85: =IF(E85=0,0,SUMPRODUCT(E83:E84,K83:K84)/E85) -> 0.0898 | O85: =SUM(O83:O84) -> 543529.2996
A87: 7 | C87: Total | E87: 1 | I87: 15131662.01 | K87: =(K80*E80)+(K85*E85) -> 0.059932 | O87: =O80+O85 -> 906870.7679
G90: Year: | H90: 2014
A92: Line No.
C93: Particulars | E93: Capitalization Ratio | K93: Cost Rate | O93: Return
E95: (%) | I95: ($) | K95: (%) | O95: ($)
C96: Debt
A97: 1 | C97: Long-term Debt | E97: 0.56 | I97: =$I$106*E97 -> 7546885.417 | K97: 0.0414 | O97: =K97*I97 -> 312441.0563
A98: 2 | C98: Short-term Debt | E98: 0.04 | G98: (1) | I98: =$I$106*E98 -> 539063.2441 | K98: 0.0207 | O98: =K98*I98 -> 11158.60915
A99: 3 | C99: Total Debt | E99: =SUM(E97:E98) -> 0.6 | I99: =SUM(I97:I98) -> 8085948.661 | K99: =IF(E99=0,0,SUMPRODUCT(E97:E98,K97:K98)/E99) -> 0.04002 | O99: =SUM(O97:O98) -> 323599.6654
C101: Equity
A102: 4 | C102: Common Equity | E102: 0.4 | I102: =$I$106*E102 -> 5390632.441 | K102: 0.0898 | O102: =K102*I102 -> 484078.7932
A103: 5 | C103: Preferred Shares | I103: =$I$106*E103 -> 0 | O103: =K103*I103 -> 0
A104: 6 | C104: Total Equity | E104: =SUM(E102:E103) -> 0.4 | I104: =SUM(I102:I103) -> 5390632.441 | K104: =IF(E104=0,0,SUMPRODUCT(E102:E103,K102:K103)/E104) -> 0.0898 | O104: =SUM(O102:O103) -> 484078.7932
A106: 7 | C106: Total | E106: 1 | I106: 13476581.1 | K106: =(K99*E99)+(K104*E104) -> 0.059932 | O106: =O99+O104 -> 807678.4586
G109: Year: | H109: 2013
A111: Line No.
C112: Particulars | E112: Capitalization Ratio | K112: Cost Rate | O112: Return
E114: (%) | I114: ($) | K114: (%) | O114: ($)
C115: Debt
A116: 1 | C116: Long-term Debt | E116: 0.56 | I116: =$I$144*E116 -> 6596078.026 | K116: 0.0414 | O116: =K116*I116 -> 273077.6303
A117: 2 | C117: Short-term Debt | E117: 0.04 | G117: (1) | I117: =$I$144*E117 -> 471148.4304 | K117: 0.0207 | O117: =K117*I117 -> 9752.772509
A118: 3 | C118: Total Debt | E118: =SUM(E116:E117) -> 0.6 | I118: =SUM(I116:I117) -> 7067226.456 | K118: =IF(E118=0,0,SUMPRODUCT(E116:E117,K116:K117)/E118) -> 0.04002 | O118: =SUM(O116:O117) -> 282830.4028
C120: Equity
A121: 4 | C121: Common Equity | E121: 0.4 | I121: =$I$125*E121 -> 4452741.628 | K121: 0.0898 | O121: =K121*I121 -> 399856.1982
A122: 5 | C122: Preferred Shares | I122: =$I$144*E122 -> 0 | O122: =K122*I122 -> 0
A123: 6 | C123: Total Equity | E123: =SUM(E121:E122) -> 0.4 | I123: =SUM(I121:I122) -> 4452741.628 | K123: =IF(E123=0,0,SUMPRODUCT(E121:E122,K121:K122)/E123) -> 0.0898 | O123: =SUM(O121:O122) -> 399856.1982
A125: 7 | C125: Total | E125: 1 | I125: 11131854.07 | K125: =(K118*E118)+(K123*E123) -> 0.059932 | O125: =O118+O123 -> 682686.6009
G128: Board Approved | H128: 2013
A130: Line No.
C131: Particulars | E131: Capitalization Ratio | K131: Cost Rate | O131: Return
E133: (%) | I133: ($) | K133: (%) | O133: ($)
C134: Debt
A135: 1 | C135: Long-term Debt | E135: 0.56 | I135: =$I$144*E135 -> 6596078.026 | K135: 0.0414 | O135: =K135*I135 -> 273077.6303
A136: 2 | C136: Short-term Debt | E136: 0.04 | G136: (1) | I136: =$I$144*E136 -> 471148.4304 | K136: 0.0207 | O136: =K136*I136 -> 9752.772509
A137: 3 | C137: Total Debt | E137: =SUM(E135:E136) -> 0.6 | I137: =SUM(I135:I136) -> 7067226.456 | K137: =IF(E137=0,0,SUMPRODUCT(E135:E136,K135:K136)/E137) -> 0.04002 | O137: =SUM(O135:O136) -> 282830.4028
C139: Equity
A140: 4 | C140: Common Equity | E140: 0.4 | I140: =$I$144*E140 -> 4711484.304 | K140: 0.0898 | O140: =K140*I140 -> 423091.2905
A141: 5 | C141: Preferred Shares | I141: =$I$144*E141 -> 0 | O141: =K141*I141 -> 0
A142: 6 | C142: Total Equity | E142: =SUM(E140:E141) -> 0.4 | I142: =SUM(I140:I141) -> 4711484.304 | K142: =IF(E142=0,0,SUMPRODUCT(E140:E141,K140:K141)/E142) -> 0.0898 | O142: =SUM(O140:O141) -> 423091.2905
A144: 7 | C144: Total | E144: 1 | I144: 11778710.76 | K144: =(K137*E137)+(K142*E142) -> 0.059932 | O144: =O137+O142 -> 705921.6933

Sheet App.2-OB_Debt Instruments
J1: File Number: | K1: =EBNUMBER -> EB-2017-0032
J2: Exhibit:
J3: Tab:
J4: Schedule:
J5: Page:
J7: Date:
A10: Appendix 2-OB
A11: Debt Instruments
E17: 2018 | O17: Weighted debt
A19: Row | B19: Description | C19: Lender | D19: Affiliated or Third-Party Debt? | E19: Fixed or Variable-Rate? | F19: Start Date | G19: Term (years) | H19: Principal ($) | I19: Rate (%) (Note 2) | J19: Interest ($) (Note 1) | K19: Additional Comments, if any | O19: Debt | P19: Weight | Q19: Principal | R19: Rate | S19: Rate | T19: Notes
A20: 1 | B20: Promissory Note | C20: Township of Centre Wellington | D20: Affiliated | E20: Fixed Rate | F20: 2000-11-01 | G20: open | H20: 5046753 | I20: 0.0725 | J20: 365889.5925 | O20: Township of Centre Wellington | P20: 0.5290234454 | Q20: 5046753 | R20: 0.0725 | S20: 0.0372 | T20: caped at 3.72%
A21: 2 | B21: Promissory Note | C21: Infrastructure Ontario | D21: Third-Party | E21: Fixed Rate | F21: 2013-10-01 | G21: 25 | H21: 1329000 | I21: 0.0452 | J21: 60070.8 | O21: Infrastructure Ontario | P21: 0.139311783 | Q21: 1329000 | R21: 0.0452 | S21: 0.0452 | T21: Actual
A22: 3 | B22: Promissory Note | C22: Infrastructure Ontario | D22: Third-Party | E22: Fixed Rate | F22: 2014-09-15 | G22: 25 | H22: 1238000 | I22: 0.0378 | J22: 46796.4 | O22: Infrastructure Ontario | P22: 0.129772752 | Q22: 1238000 | R22: 0.0378 | S22: 0.0378 | T22: Actual
A23: 4 | B23: Promissory Note | C23: Infrastructure Ontario | D23: Third-Party | E23: Fixed Rate | F23: 2015-07-02 | G23: 25 | H23: 1926000 | I23: 0.0356 | J23: 68565.6 | O23: Infrastructure Ontario | P23: 0.2018920196 | Q23: 1926000 | R23: 0.0356 | S23: 0.0356 | T23: Actual
A24: 5 | J24: 0 | O24: Total Debt | P24: 1 | Q24: 9539753 | R24: 0.05674385831 | S24: 0.03806933068
A26: Total | H26: 9539753 | I26: 0.05674385831 | J26: 541322.3925
D29: Year | E29: 2017
A31: Row | B31: Description | C31: Lender | D31: Affiliated or Third-Party Debt? | E31: Fixed or Variable-Rate? | F31: Start Date | G31: Term (years) | H31: Principal ($) | I31: Rate (%) (Note 2) | J31: Interest ($) (Note 1) | K31: Additional Comments, if any
A32: 1 | B32: Promissory Note | C32: Township of Centre Wellington | D32: Affiliated | E32: Fixed Rate | F32: 2000-11-01 | G32: open | H32: 5046753 | I32: 0.0725 | J32: 365889.5925
A33: 2 | B33: Promissory Note | C33: Infrastructure Ontario | D33: Third-Party | E33: Fixed Rate | F33: 2013-10-01 | G33: 25 | H33: 1329000 | I33: 0.0452 | J33: 60070.8
A34: 3 | B34: Promissory Note | C34: Infrastructure Ontario | D34: Third-Party | E34: Fixed Rate | F34: 2014-09-15 | G34: 25 | H34: 1238000 | I34: 0.0378 | J34: 46796.4
A35: 4 | B35: Promissory Note | C35: Infrastructure Ontario | D35: Third-Party | E35: Fixed Rate | F35: 2015-07-02 | G35: 25 | H35: 1926000 | I35: 0.0356 | J35: 68565.6
A36: 5 | J36: 0
A38: Total | H38: 9539753 | I38: 0.05674385831 | J38: 541322.3925
D41: Year | E41: 2016
A43: Row | B43: Description | C43: Lender | D43: Affiliated or Third-Party Debt? | E43: Fixed or Variable-Rate? | F43: Start Date | G43: Term (years) | H43: Principal ($) | I43: Rate (%) (Note 2) | J43: Interest ($) (Note 1) | K43: Additional Comments, if any
A44: 1 | B44: Promissory Note | C44: Township of Centre Wellington | D44: Affiliated | E44: Fixed Rate | F44: 2000-11-01 | G44: open | H44: 5046753 | I44: 0.0725 | J44: 365889.5925
A45: 2 | B45: Promissory Note | C45: Infrastructure Ontario | D45: Third-Party | E45: Fixed Rate | F45: 2013-10-01 | G45: 25 | H45: 1329000 | I45: 0.0452 | J45: 60070.8
A46: 3 | B46: Promissory Note | C46: Infrastructure Ontario | D46: Third-Party | E46: Fixed Rate | F46: 2014-09-15 | G46: 25 | H46: 1238000 | I46: 0.0378 | J46: 46796.4
A47: 4 | B47: Promissory Note | C47: Infrastructure Ontario | D47: Third-Party | E47: Fixed Rate | F47: 2015-07-02 | G47: 25 | H47: 1926000 | I47: 0.0356 | J47: 68565.6
A48: 5 | J48: 0
A50: Total | H50: 9539753 | I50: 0.05674385831 | J50: 541322.3925
D53: Year | E53: 2015
A55: Row | B55: Description | C55: Lender | D55: Affiliated or Third-Party Debt? | E55: Fixed or Variable-Rate? | F55: Start Date | G55: Term (years) | H55: Principal ($) | I55: Rate (%) (Note 2) | J55: Interest ($) (Note 1) | K55: Additional Comments, if any
A56: 1 | B56: Promissory Note | C56: Township of Centre Wellington | D56: Affiliated | E56: Fixed Rate | F56: 2000-11-01 | G56: open | H56: 5046753 | I56: 0.0725 | J56: 365889.5925
A57: 2 | B57: Promissory Note | C57: Infrastructure Ontario | D57: Third-Party | E57: Fixed Rate | F57: 2013-10-01 | G57: 25 | H57: 1329000 | I57: 0.0452 | J57: 60070.8
A58: 3 | B58: Promissory Note | C58: Infrastructure Ontario | D58: Third-Party | E58: Fixed Rate | F58: 2014-09-15 | G58: 25 | H58: 1238000 | I58: 0.0378 | J58: 46796.4
A59: 4 | B59: Promissory Note | C59: Infrastructure Ontario | D59: Third-Party | E59: Fixed Rate | F59: 2015-07-02 | G59: 25 | H59: 1926000 | I59: 0.0356 | J59: 68565.6
A60: 5 | J60: 0
A62: Total | H62: 9539753 | I62: 0.05674385831 | J62: 541322.3925
D65: Year | E65: 2014
A67: Row | B67: Description | C67: Lender | D67: Affiliated or Third-Party Debt? | E67: Fixed or Variable-Rate? | F67: Start Date | G67: Term (years) | H67: Principal ($) | I67: Rate (%) (Note 2) | J67: Interest ($) (Note 1) | K67: Additional Comments, if any
A68: 1 | B68: Promissory Note | C68: Township of Centre Wellington | D68: Affiliated | E68: Fixed Rate | F68: 2000-11-01 | G68: open | H68: 5046753 | I68: 0.0725 | J68: 365889.5925
A69: 2 | B69: Promissory Note | C69: Infrastructure Ontario | D69: Third-Party | E69: Fixed Rate | F69: 2013-10-01 | G69: 25 | H69: 1329000 | I69: 0.0452 | J69: 60070.8
A70: 3 | B70: Promissory Note | C70: Infrastructure Ontario | D70: Third-Party | E70: Fixed Rate | F70: 2014-09-15 | G70: 25 | H70: 1238000 | I70: 0.0378 | J70: 46796.4
A71: 4 | J71: 0
A73: Total | H73: 7613753 | I73: 0.06209247824 | J73: 472756.7925
D76: Year | E76: 2013
A78: Row | B78: Description | C78: Lender | D78: Affiliated or Third-Party Debt? | E78: Fixed or Variable-Rate? | F78: Start Date | G78: Term (years) | H78: Principal ($) | I78: Rate (%) (Note 2) | J78: Interest ($) (Note 1) | K78: Additional Comments, if any
A79: 1 | B79: Promissory Note | C79: Township of Centre Wellington | D79: Affiliated | E79: Fixed Rate | F79: 2000-11-01 | G79: open | H79: 5046753 | I79: 0.0725 | J79: 365889.5925
A80: 2 | B80: Promissory Note | C80: Infrastructure Ontario | D80: Third-Party | E80: Fixed Rate | F80: 2013-10-01 | G80: 25 | H80: 1329000 | I80: 0.0452 | J80: 60070.8
A81: 3 | J81: 0
A83: Total | H83: 6375753 | I83: 0.0668094251 | J83: 425960.3925

